Workbook

Sheet Compute
B16: Note: Press "DELETE" button if alert box appearing at start

Sheet All Admins
A1: 1 | B1: =A1+1 -> 2 | C1: =B1+1 -> 3 | D1: 4 | E1: 5 | F1: 6 | G1: 7 | H1: 8 | I1: 9 | J1: 10 | K1: 11 | L1: 12 | M1: 13 | N1: 14 | O1: 15 | P1: 16 | Q1: 17 | R1: 18 | S1: 19 | T1: 20 | U1: 21 | V1: 22 | W1: 23 | X1: 24 | Y1: 25 | Z1: 26 | AA1: 27 | AB1: 28 | AC1: 29 | AD1: 30 | AE1: 31 | AF1: 32 | AG1: 33 | AH1: 34 | AI1: 35 | AJ1: 36 | AK1: 37 | AL1: 38 | AM1: 39 | AN1: 40 | AO1: 41 | AP1: =AO1+1 -> 42 | AQ1: 43 | AR1: 44 | AS1: 45 | AT1: 46 | AU1: 47 | AV1: 48 | AW1: 49 | AX1: 50 | AY1: 51 | AZ1: 52 | BA1: 53 | BB1: 54 | BC1: 55
A2: Admin | B2: short | C2: Band index | D2: Frequency band (MHz) | E2: Licensing regime | I2: Topo-logy | K2: Application | P2: Number of P-P links | R2: Number of CS | S2: Channel/Frequency plan used (e.g. ERC/ECC Rec. ITU-R Rec.) | T2: Link characteristics | Z2: Future trends (e.g. in the next 5 years)
I3: FWA | K3: Network Infrastruc-ture | T3: Capacity | W3: Hop length (km)
E4: Link by link | F4: Block | G4: Light licensed | H4: Licence exempt | I4: P-P | J4: P-MP | K4: Mobile backhaul | L4: Others | M4: Broadcasting Infrastructure | N4: No Information available on the application | O4: Other (please indicate) | P4: unidirectional | Q4: bidirectional (1 bidirectional link counts 1) | R4: (applicable only for P-MP and mesh networks) | T4: LOW (<10 Mbit/s) | U4: MEDIUM (10 to 100 Mbit/s) | V4: HIGH (>100 Mbit/s) | W4: MIN | X4: Typical figure | Y4: MAX | Z4: Anticipated growth/reduction (+/-%) | AA4: Currently congested | AB4: Planned reallocation to other service/application | AC4: Other (please describe) (see Question 3 of the Questionnaire)
A5: Austria | B5: AUT | C5: 1 | D5: 1350-1375 and 1492-1517 | E5: X | I5: X | L5: X | Q5: 57 | S5: T/R 13-01 Annex A | T5: X | U5: X | W5: 3 | X5: 20 | Y5: 60
A6: Bosnia and Herzegovina | B6: BIH | C6: 1 | D6: 1350-1375 and 1492-1517 | E6: X | I6: X | M6: X | P6: 53 | S6: T/R 13-01 Annex A | T6: X | W6: 4 | X6: 30 | Y6: 70
A7: Estonia | B7: EST | C7: 1 | D7: 1350-1375 and 1492-1517 | E7: x | I7: x | S7: T/R 13-01 Annex A
A8: Estonia | B8: EST | C8: 1 | D8: 1350-1375 and 1492-1517 | E8: not in use
A9: Finland | B9: FIN | C9: 1 | D9: 1350-1375 and 1492-1517 | P9: 0 | Q9: 0 | S9: (T/R 13-01 Annex A) 1) | AB9: 1) | AD9: 1) MFCN 1492-1517 MHz planned in the beginning of 2019
A10: Finland | B10: FIN | C10: 1 | D10: 1350-1375 and 1492-1517 | F10: x | J10: x | L10: x | R10: 16 | S10: FWA: 1359-1371 MHz, national plan | U10: x | X10: N/A
A11: UK | B11: G | C11: 1 | D11: 1350-1375 and 1492-1517 | E11: X | I11: X | L11: X | M11: X | Q11: 820 | S11: T/R 13-01 Annex A | T11: X | X11: 15
A12: Netherlands | B12: HOL | C12: =VLOOKUP(D12,[1]BandList!$A$2:$B$110,2,FALSE) -> 1 | D12: 1350-1375 and 1492-1517 | S12: T/R 13-01 Annex A
A13: Croatia | B13: HRV | C13: 1 | D13: 1350-1375 and 1492-1517 | E13: X | I13: X | O13: X | P13: 1 | S13: National plan | T13: X | W13: 9.33 | X13: 9.33 | Y13: 9.33 | Z13: -100 | AB13: X
A14: Ireland | B14: IRL | C14: 1 | D14: 1350-1375 and 1492-1517 | E14: X | I14: X | N14: X | Q14: 76 | S14: T/R 13-01 Annex A | T14: 76 | W14: No min. path length policy
A15: Latvia | B15: LVA | C15: 1 | D15: 1350-1375 and 1492-1517 | E15: X | I15: X | L15: X | Q15: 0 | S15: T/R 13-01 Annex A | AB15: X
A16: Norway | B16: NOR | C16: 1 | D16: 1350-1375 and 1492-1517 | F16: x | R16: 0 | S16: T/R 13-01 Annex A | AB16: x
A17: Norway | B17: NOR | C17: 1 | D17: 1350-1375 and 1492-1517 | E17: x | N17: x | P17: 5 | Q17: 29 | R17: 0 | T17: x | W17: 1 | X17: 18 | Y17: 55 | AB17: x
A18: Portugal | B18: POR | C18: 1 | D18: 1350-1375 and 1492-1517 | E18: X | I18: X | Q18: 92 | S18: T/R 13-01 Annex A | T18: X | W18: 5 | X18: 20 | Y18: 50 | Z18: 0
A19: Switzerland | B19: SUI | C19: 1 | D19: 1350-1375 and 1492-1517 | E19: x | I19: x | L19: x | Q19: 2 | S19: T/R 13-01 Annex A | T19: x | Z19: -100 | AB19: MFCN
A20: Slovak Republic | B20: SVK | C20: 1 | D20: 1350-1375 and 1492-1517 | AC20: SDL
A21: Slovenia | B21: SVN | C21: 1 | D21: 1350-1375 and 1492-1517 | E21: X | I21: X | L21: X | M21: X | P21: 83 | Q21: 12 | S21: T/R 13-01 Annex A | T21: X | W21: 0.6 | X21: 18 | Y21: 82 | AB21: X | AC21: candidate band for mobile broadband
A22: Portugal | B22: POR | C22: 2 | D22: 1350-1375 and 1492-1518 | E22: X | J22: X | R22: 9 | S22: T/R 13-01 Annex A | T22: X | W22: 5 | X22: 10 | Y22: 25 | Z22: -100
A23: Austria | B23: AUT | C23: 3 | D23: 1375-1400 and 1427-1452 | E23: X | I23: X | L23: X | Q23: 41 | S23: T/R 13-01 Annex B | T23: X | U23: X | W23: 3 | X23: 20 | Y23: 60
A24: Bosnia and Herzegovina | B24: BIH | C24: 3 | D24: 1375-1400 and 1427-1452 | E24: X | I24: X | M24: X | P24: 5 | S24: T/R 13-01 Annex B | T24: X | W24: 0.4 | X24: 25 | Y24: 70
A25: Estonia | B25: EST | C25: 3 | D25: 1375-1400 and 1427-1452 | E25: x | I25: x | S25: T/R 13-01 Annex B
A26: Estonia | B26: EST | C26: 3 | D26: 1375-1400 and 1427-1452 | E26: not in use
A27: France | B27: F | C27: 3 | D27: 1375-1400 and 1427-1452 | E27: X | I27: X | L27: X | Q27: 1827 | S27: T/R 13-01 Annex B | T27: X | W27: 0.08 | X27: 20.5 | Y27: 152 | AC27: Due to the results of WRC-15, the future use of this band is currently under consideration.
A28: France | B28: F | C28: 3 | D28: 1375-1400 and 1427-1452 | E28: X | P28: 28 | T28: X | X28: 7
A29: Finland | B29: FIN | C29: 3 | D29: 1375-1400 and 1427-1452 | AB29: 2) | AD29: 2) MFCN 1427-1452 MHz planned in the beginning of 2019
A30: Hungary | B30: HNG | C30: 3 | D30: 1375-1400 and 1427-1452 | E30: X | I30: X | Q30: 0 | S30: T/R 13-01 Annex B
A31: Netherlands | B31: HOL | C31: =VLOOKUP(D31,[1]BandList!$A$2:$B$110,2,FALSE) -> 3 | D31: 1375-1400 and 1427-1452 | E31: x | I31: x | Q31: 10 | S31: T/R 13-01 Annex B | T31: x | W31: 28 | X31: 52 | Y31: 82 | Z31: 0
A32: Croatia | B32: HRV | C32: 3 | D32: 1375-1400 and 1427-1452 | E32: X | I32: X | O32: X | P32: 1 | S32: National plan | T32: X | W32: 9.33 | X32: 9.33 | Y32: 9.33 | Z32: -100 | AB32: X
A33: Ireland | B33: IRL | C33: 3 | D33: 1375-1400 and 1427-1452 | E33: X | I33: X | M33: X | P33: 41 | S33: T/R 13-01 Annex B | T33: 41 | W33: No min. path length policy
A34: Latvia | B34: LVA | C34: 3 | D34: 1375-1400 and 1427-1452 | E34: X | I34: X | L34: X | Q34: 0 | S34: T/R 13-01 Annex B | AB34: X
A35: Norway | B35: NOR | C35: 3 | D35: 1375-1400 and 1427-1452 | E35: x | N35: x | Q35: 17 | T35: x | W35: 1 | X35: 19 | Y35: 66 | AB35: x
A36: Portugal | B36: POR | C36: 3 | D36: 1375-1400 and 1427-1452 | E36: X | I36: X | J36: X | S36: T/R 13-01 Annex B | T36: X | Z36: Planned | AA36: Planned | AB36: Planned | AC36: Planned
A37: Sweden | B37: S | C37: 3 | D37: 1375-1400 and 1427-1452 | E37: X | L37: X | P37: 42 | Q37: 34 | S37: T/R 13-01 Annex B | T37: X | W37: 0.8 | X37: 11.5 | Y37: 61.4 | Z37: -100 | AB37: X
A38: Switzerland | B38: SUI | C38: 3 | D38: 1375-1400 and 1427-1452 | E38: x | I38: x | L38: x | Q38: 32 | S38: T/R 13-01 Annex B | T38: x /analog | Z38: -100 | AB38: MFCN
A39: Slovak Republic | B39: SVK | C39: 3 | D39: 1375-1400 and 1427-1452 | AC39: SDL
A40: Slovenia | B40: SVN | C40: 3 | D40: 1375-1400 and 1427-1452 | E40: X | I40: X | M40: X | P40: 25 | Q40: 0 | S40: T/R 13-01 Annex B | T40: X | W40: 2 | X40: 15 | Y40: 33 | AB40: X | AC40: candidate band for mobile broadband
A41: Greece | B41: GRC | C41: 4 | D41: 1437,5-1465,5 and 1486,5-1514,5 | F41: X | J41: X | O41: rural networks | S41: National Plan | Z41: reduction | AC41: licenses expire at 2020
A42: Switzerland | B42: SUI | C42: 5 | D42: 1440-1500 | E42: x | I42: x | L42: x | Q42: 39 | T42: analog | Z42: -100 | AB42: MFCN
A43: Latvia | B43: LVA | C43: 6 | D43: 1492–1506 | E43: X | J43: X | K43: X | R43: 19 | S43: ITU-R F.701 | T43: X | W43: 1 | X43: 5 | Y43: 10
A44: Portugal | B44: POR | C44: 7 | D44: 1517-1525 | E44: X | M44: X | P44: 347 | S44: National plan (STL) | T44: X | W44: 5 | X44: 15 | Y44: 30 | Z44: 5
A45: Switzerland | B45: SUI | C45: 8 | D45: 1518 - 1525 | E45: x | I45: x | M45: x | P45: 24 | T45: x /analog | W45: 1.1 | X45: 16.7 | Y45: 36.6 | Z45: 0
A46: Slovenia | B46: SVN | C46: 9 | D46: 1518-1530 | E46: X | I46: X | M46: X | P46: 61 | Q46: 0 | S46: national plan | T46: X | W46: 1 | X46: 10 | Y46: 46 | Z46: +10% | AC46: 500 kHz analog FM
A47: UK | B47: G | C47: 10 | D47: 1672 - 1690 | I47: X | L47: X | Q47: 2 | T47: X
A48: Greece | B48: GRC | C48: 11 | D48: 1700-1709 and 1786-1800 | E48: X | M48: X | P48: 192 | S48: National Plan | T48: X | U48: X | W48: 0.7 | X48: 17 | Y48: 90 | Z48: reduction | AB48: reallocate the 1785-1800 MHz band for PMSE applications (2014/641/EC)
A49: UK | B49: G | C49: 12 | D49: 1900-2690 | E49: X | K49: X | L49: X | Q49: 3 | T49: X | X49: 8
A50: Austria | B50: AUT | C50: 13 | D50: 2025-2110 and 2200-2290 | E50: X | I50: X | L50: X | M50: X | P50: 8 | S50: T/R 13-01 Annex C | Y50: 290
A51: Bosnia and Herzegovina | B51: BIH | C51: 13 | D51: 2025-2110 and 2200-2290 | E51: X | I51: X | M51: X | P51: 25 | S51: T/R 13-01 Annex C | T51: X | U51: X | W51: 2 | X51: 18 | Y51: 55
A52: Czech Republic | B52: CZE | C52: 13 | D52: 2025-2110 and 2200-2290 | L52: ENG/OB | S52: T/R 13-01 Annex C | T52: N/A | U52: N/A | V52: N/A
A53: Czech Republic | B53: CZE | C53: 13 | D53: 2025-2110 and 2200-2290 | L53: ENG/OB | T53: N/A | U53: N/A | V53: N/A
A54: Estonia | B54: EST | C54: 13 | D54: 2025-2110 and 2200-2290 | E54: x | I54: x | M54: x | P54: 4 | S54: T/R 13-01 Annex C | T54: x | U54: x | W54: SAP/SAB
A55: Finland | B55: FIN | C55: 13 | D55: 2025-2110 and 2200-2290 | E55: x | I55: x | L55: x | P55: N/A | S55: ERC/REC 25-10 | U55: x | X55: N/A | AD55: temporary use
A56: Greece | B56: GRC | C56: 13 | D56: 2025-2110 and 2200-2290 | E56: X | L56: X | Q56: 41 | S56: T/R 13-01 Annex C | T56: X | U56: X | W56: 0.6 | X56: 22 | Y56: 60 | Z56: reduction
A57: Hungary | B57: HNG | C57: 13 | D57: 2025-2110 and 2200-2290 | E57: X | I57: X | Q57: 0 | S57: T/R 13-01 Annex C
A58: Netherlands | B58: HOL | C58: =VLOOKUP(D58,[1]BandList!$A$2:$B$110,2,FALSE) -> 13 | D58: 2025-2110 and 2200-2290 | S58: T/R 13-01 Annex C
A59: Ireland | B59: IRL | C59: 13 | D59: 2025-2110 and 2200-2290 | E59: X | I59: X | N59: X | Q59: 28 | S59: T/R 13-01 Annex C | T59: 7 | U59: 21 | W59: 25 km
A60: Latvia | B60: LVA | C60: 13 | D60: 2025-2110 and 2200-2290 | E60: X | I60: X | N60: X | P60: 0 | Q60: 0 | S60: T/R 13-01 Annex C | AC60: No changes
A61: Malta | B61: MLT | C61: 13 | D61: 2025-2110 and 2200-2290 | E61: X | I61: X | M61: X | P61: 7 | S61: ERC Rec T/R 13-01 | W61: 7.7 | X61: 7.7 | Y61: 7.7
A62: Malta | B62: MLT | C62: 13 | D62: 2025-2110 and 2200-2290 | E62: X | I62: X | M62: X | P62: 4 | S62: ERC Rec T/R 13-01 | W62: 3 | X62: 3.2 | Y62: 3.4
A63: Norway | B63: NOR | C63: 13 | D63: 2025-2110 and 2200-2290 | F63: x | G63: x | N63: x
A64: Portugal | B64: POR | C64: 13 | D64: 2025-2110 and 2200-2290 | E64: X | I64: X | M64: X | O64: TCR, SAP/SAB | Q64: 11 | S64: T/R 13-01 Annex C | T64: X | W64: 5 | X64: 30 | Y64: 190 | Z64: 0
A65: Switzerland | B65: SUI | C65: 13 | D65: 2025-2110 and 2200-2290 | N65: x | O65: No civil use, PMSE | S65: T/R 13-01 Annex C
A66: Croatia | B66: HRV | C66: 14 | D66: 2085-2110 | E66: X | I66: X | M66: X | P66: 189 | S66: National plan | T66: ANALOG | W66: 0.09 | X66: 9.54 | Y66: 55.74 | Z66: 2
A67: Russia | B67: RUS | C67: 15 | D67: 2400-2483.5 | E67: X | H67: X | I67: X | J67: X | O67: X Telecom operators, industrial process communications | Q67: 8922 | R67: 4108 | T67: X | U67: X | V67: X | W67: 0.05 | X67: 20 | Y67: 70 | AC67: Increase of use in P-P FWA networks (TDD). Increase of use in P-MP FWA networks (TDD)of small telecom operators' networks.
A68: Austria | B68: AUT | C68: 16 | D68: 3400-3600 | E68: X | J68: X | L68: X | R68: 355 | S68: ERC/REC 14-03 | T68: X | U68: X | W68: 3 | X68: 15 | Y68: 30
A69: Bosnia and Herzegovina | B69: BIH | C69: 16 | D69: 3400-3600 | E69: X | I69: X | M69: X | P69: 10 | Q69: 1 | S69: ERC/REC 14-03 | U69: X | V69: X | W69: 2 | X69: 35 | Y69: 140 | AB69: X
A70: Czech Republic | B70: CZE | C70: 16 | D70: 3400-3600 | E70: X | J70: X | R70: 236 | S70: see the EFIS | T70: N/A | U70: N/A | V70: N/A
A71: Germany | B71: D | C71: 16 | D71: 3400-3600 | F71: x | J71: x | R71: 840 | S71: ERC/REC 14-03 | U71: x | V71: x | AB71: x
A72: Estonia | B72: EST | C72: 16 | D72: 3400-3600 | F72: x | J72: x | L72: x | R72: no info | S72: ERC/REC 14-03
A73: France | B73: F | C73: 16 | D73: 3400-3600 | E73: X | I73: X | K73: X | P73: 84 | S73: ERC/REC 14-03 | AB73: X
A74: Finland | B74: FIN | C74: 16 | D74: 3400-3600 | F74: x | J74: x | L74: x | R74: 250 | S74: FWA: 3410-3590 MHz, national plan | T74: x | X74: <8 | Z74: -35 | AB74: 3) | AD74: 3) MFCN 3400-3800 MHz planned in the beginning of 2019
A75: Greece | B75: GRC | C75: 16 | D75: 3400-3600 | F75: X | I75: X | J75: X | P75: 1 National Coverage License (2x30 MHz) | Q75: 1 National Coverage License (2x30 MHz) | R75: 1 National Coverage License (2x30 MHz) | S75: ECC/DEC/(11)06 | Z75: growth | AB75: potential future use of the band for 5G networks
A76: Hungary | B76: HNG | C76: 16 | D76: 3400-3600 | F76: X | I76: X | J76: X | S76: ERC/REC 14-03 | AD76: Block assignment for MFCN; awarded 2016 summer - currently no usage
A77: Netherlands | B77: HOL | C77: =VLOOKUP(D77,[1]BandList!$A$2:$B$110,2,FALSE) -> 16 | D77: 3400-3600 | E77: x | J77: x | R77: 13 | S77: ERC/REC 14-03 | U77: x | V77: x | AB77: x
A78: Croatia | B78: HRV | C78: 16 | D78: 3400-3600 | F78: X | J78: X | R78: 5 | S78: ERC/REC 14-03 | U78: X | AB78: X
A79: Ireland | B79: IRL | C79: 16 | D79: 3400-3600 | E79: X (FWALA licences issues on case by case basis) | J79: X | O79: Wireless broadband provision | R79: 268 | S79: ERC/REC 14-03 | W79: N/A | AB79: X
A80: Latvia | B80: LVA | C80: 16 | D80: 3400-3600 | E80: X | I80: X | J80: X | K80: X | L80: X | P80: 0 | Q80: 0 | R80: 31 | S80: ERC/REC 14-03 | U80: X | W80: 1 | X80: 10 | Y80: 25 | Z80: 0.1
A81: Malta | B81: MLT | C81: 16 | D81: 3400-3600 | E81: X | I81: X | L81: X | O81: Telecomms infrastructure backhaul | Q81: 1 | S81: ERC Rec 14-03 | W81: 9.1 | X81: 9.1 | Y81: 9.1 | Z81: -1
A82: Norway | B82: NOR | C82: 16 | D82: 3400-3600 | F82: x | I82: x | J82: x | S82: ERC/REC 14-03
A83: Portugal | B83: POR | C83: 16 | D83: 3400-3600 | F83: X | J83: X | O83: BWA (3.3 - 3.6GHz) | R83: 44 | S83: ERC/REC 14-03 | T83: X | U83: X | W83: 1 | X83: 10 | Y83: 20 | Z83: -50
A84: Russia | B84: RUS | C84: 16 | D84: 3400-3600 | E84: X | I84: X | J84: X | M84: X | O84: WiMAX | P84: under 0.1% | Q84: 200 | R84: 4000 | S84: For RRLs - National Plan | T84: X | U84: X | W84: 20 | X84: 50 | Y84: 80 | AC84: Use in telecom operators' infrastructure, broadcasting infrastructure, and industrial process communications. The number of RRL station is expected to decrease because the frequency band 3400-3600 MHz has been identified for IMT.
A85: Sweden | B85: S | C85: 16 | D85: 3400-3600 | F85: X | Q85: N/A | S85: ERC/REC 14-03
A86: Switzerland | B86: SUI | C86: 16 | D86: 3400-3600 | E86: x | J86: x | L86: x | S86: ERC/REC 14-03 | AB86: MFCN | AC86: PMSE
A87: Slovak Republic | B87: SVK | C87: 16 | D87: 3400-3600 | F87: X | J87: X | R87: 450 | S87: ERC/REC 14-03 | U87: X
A88: Slovenia | B88: SVN | C88: 16 | D88: 3400-3600 | F88: X | J88: X | L88: X | N88: X | R88: 10 | S88: ERC/REC 14-03 | U88: X
A89: Turkey | B89: TUR | C89: 16 | D89: 3400-3600 | F89: x | J89: x | L89: x | R89: 1276 | S89: ERC/REC 14-03
A90: UK | B90: G | C90: 17 | D90: 3480 – 3500//3580 – 3600; 3605 – 3689//3925 – 4009 | F90: X
A91: Bulgaria | B91: BUL | C91: 18 | D91: 3600-3800 | E91: X | I91: X | L91: X | P91: 0 | Q91: 14 | S91: ERC/REC 12-08, Annex B, Part 2 | U91: X | W91: 13 | X91: 51 | Y91: 73 | AC91: Reallocate to another suitable frequency band
A92: Croatia | B92: HRV | C92: 18 | D92: 3600-3800 | E92: X | I92: X | O92: ENG/OB | Q92: 7 | S92: National plan | U92: X | Z92: -100 | AB92: X
A93: Austria | B93: AUT | C93: 19 | D93: 3600-4200 | E93: X | I93: X | K93: X | Q93: 34 | S93: ERC/REC 12-08 | U93: X | W93: 13 | X93: 50 | Y93: 100
A94: Bosnia and Herzegovina | B94: BIH | C94: 19 | D94: 3600-4200 | E94: X | I94: X | M94: X | P94: 27 | Q94: 28 | S94: ERC/REC 12-08 | V94: X | W94: 9 | X94: 60 | Y94: 99 | Z94: +50
A95: Czech Republic | B95: CZE | C95: 19 | D95: 3600-4200 | E95: X | I95: X | Q95: 209 | S95: see the EFIS | T95: N/A | U95: N/A | V95: N/A | X95: 31.7km
A96: Czech Republic | B96: CZE | C96: 19 | D96: 3600-4200 | F96: X | J96: X | O96: auction in preparation | R96: 0 | T96: N/A | U96: N/A | V96: N/A
A97: Germany | B97: D | C97: 19 | D97: 3600-4200 | F97: x | J97: x | R97: 110 | S97: ERC/REC 12-08 | U97: x | V97: x | AB97: x
A98: Germany | B98: D | C98: 19 | D98: 3600-4200 | E98: x | I98: x | Q98: 90 | V98: x | W98: 20 | X98: 42 | Y98: 65 | Z98: -
A99: Estonia | B99: EST | C99: 19 | D99: 3600-4200 | F99: x | J99: x | L99: x | R99: no info | S99: ERC/REC 12-08
A100: Finland | B100: FIN | C100: 19 | D100: 3600-4200 | E100: x | I100: x | M100: x | P100: 164 | Q100: 32 | S100: ERC/REC 12-08 | U100: x | V100: x | W100: 20 | X100: >30 | AB100: 3) | AD100: 3) MFCN 3400-3800 MHz planned in the beginning of 2019
A101: Hungary | B101: HNG | C101: 19 | D101: 3600-4200 | Q101: 17 | S101: ERC/REC 12-08 | AD101: 3600-3800 MHz band: awarded 2016 summer; Block assignment for MFCN; currently no usage; 3800-4200 MHz: 17 bidirectional links
A102: Netherlands | B102: HOL | C102: =VLOOKUP(D102,[1]BandList!$A$2:$B$110,2,FALSE) -> 19 | D102: 3600-4200 | E102: x | J102: x | R102: 73 | S102: ERC/REC 12-08 | U102: x | V102: x | Z102: + | AB102: x
A103: Netherlands | B103: HOL | C103: =VLOOKUP(D103,[1]BandList!$A$2:$B$110,2,FALSE) -> 19 | D103: 3600-4200 | I103: x
A104: Ireland | B104: IRL | C104: 19 | D104: 3600-4200 | E104: X (FWALA licences issues on case by case basis) | J104: X | O104: Wireless broadband provision | R104: 268 (3400 - 3800 MHz) | S104: ERC/REC 12-08 | W104: N/A | AB104: X
A105: Latvia | B105: LVA | C105: 19 | D105: 3600-4200 | E105: X | I105: X | J105: X | K105: X | L105: X | P105: 0 | Q105: 5 | R105: 106 | S105: ERC/REC 12-08 | U105: X | W105: 1 | X105: 10 | Y105: 25 | Z105: 0.1
A106: Norway | B106: NOR | C106: 19 | D106: 3600-4200 | F106: x | J106: x | S106: ERC/REC 12-08
A107: Portugal | B107: POR | C107: 19 | D107: 3600-4200 | F107: X | J107: X | O107: FSS, VSAT (3.8-4.2 GHz) | R107: 2zax | S107: ERC/REC 12-08 | T107: X | U107: X | W107: 1 | X107: 10 | Y107: 20 | Z107: -100
A108: Russia | B108: RUS | C108: 19 | D108: 3600-4200 | E108: X | I108: X | K108: X | L108: X | M108: X | O108: X Telecom operators, industrial process communications | Q108: 400 | S108: For RRLs - ITU-R Rec. F.635 F.382 | T108: X | U108: X | V108: X | W108: 20 | X108: 50 | Y108: 80 | AC108: Increase of use in long-distance multi-hop links in mobile backhaul, broadcasting and telecom operators' infrastructure, and for industrial process communications.
A109: Sweden | B109: S | C109: 19 | D109: 3600-4200 | F109: X | Q109: N/A | S109: ERC/REC 12-08 | AB109: ?
A110: Switzerland | B110: SUI | C110: 19 | D110: 3600-4200 | E110: x | J110: x | L110: x | S110: ERC/REC 12-08 | AB110: MFCN
A111: Slovak Republic | B111: SVK | C111: 19 | D111: 3600-4200 | F111: X | J111: X | R111: 668 | S111: ERC/REC 12-08 | U111: X
A112: UK | B112: G | C112: 20 | D112: 3689-3875//4009-4195 | E112: x | I112: x | K112: X | L112: X | M112: X | Q112: 65 | S112: ERC/REC 12-08 Annex A Part 2 | V112: X | X112: 37
A113: Bulgaria | B113: BUL | C113: 21 | D113: 3800-4200 | E113: X | I113: X | P113: 0 | Q113: 0 | S113: ERC/REC 12-08, Annex B, Part 1 | T113: - | U113: - | V113: - | W113: - | X113: - | Y113: -
A114: Greece | B114: GRC | C114: 21 | D114: 3800-4200 | E114: Χ | L114: X | Q114: 144 | S114: ERC/REC 12-08 | U114: X | V114: Χ | W114: 11 | X114: 64 | Y114: 101 | Z114: reduction
A115: Croatia | B115: HRV | C115: 21 | D115: 3800-4200 | E115: X | I115: X | M115: X | Q115: 67 | S115: ERC/REC 12-08 | V115: X | W115: 20.27 | X115: 60.33 | Y115: 91.57
A116: Slovenia | B116: SVN | C116: 21 | D116: 3800-4200 | E116: X | I116: X | M116: X | P116: 0 | Q116: 19 | S116: ERC/REC 12-08 | V116: X | W116: 27 | X116: 57 | Y116: 69
A117: Turkey | B117: TUR | C117: 21 | D117: 3800-4200 | E117: x | Q117: 172 | S117: ERC/REC 12-08 | W117: <1 | X117: 33 | Y117: 72
A118: Austria | B118: AUT | C118: 22 | D118: 4400-5000 | E118: X | M118: X | O118: X | P118: 10 | Q118: 1 | S118: national | U118: X | W118: 22 | X118: 22 | Y118: 22
A119: Czech Republic | B119: CZE | C119: 22 | D119: 4400-5000 | L119: SAP/SAB | T119: N/A | U119: N/A | V119: N/A
A120: Czech Republic | B120: CZE | C120: 22 | D120: 4400-5000 | L120: SAP/SAB | T120: N/A | U120: N/A | V120: N/A
A121: Estonia | B121: EST | C121: 22 | D121: 4400-5000 | E121: x
A122: Latvia | B122: LVA | C122: 22 | D122: 4400-5000 | AD122: Exclusive Military Band Within the Band 4400-5000 MHz
A123: Portugal | B123: POR | C123: 22 | D123: 4400-5000 | O123: Military
A124: Russia | B124: RUS | C124: 22 | D124: 4400-5000 | E124: X | I124: X | L124: X | O124: X Telecom operators, industrial process communications | Q124: 310 | S124: ITU-R Rec. F.1099 F.746 | V124: X | W124: 10 | X124: 45 | Y124: 80 | AC124: Use in telecom operators' infrastructure and industrial process communications. The increase of the total number of RRLs is expected to stop becuase the frequency band 4800-4990 MHz has been identified for IMT.
A125: Switzerland | B125: SUI | C125: 22 | D125: 4400-5000 | N125: x | O125: No civil use
A126: Russia | B126: RUS | C126: 23 | D126: 5150-5350 | E126: X | I126: X | J126: X | O126: X Telecom operators, industrial process communications | Q126: 1282 | R126: 5419 | T126: X | U126: X | V126: X | W126: 0.5 | X126: 20 | Y126: 30 | AC126: Increase of use in P-P FWA networks (TDD). Increase of use in P-MP FWA networks (TDD) in small telecom operators' networks.
A127: Russia | B127: RUS | C127: 24 | D127: 5650-5850 | E127: X | I127: X | J127: X | O127: X Telecom operators, industrial process communications | Q127: 2258 | R127: 3802 | S127: For RRLs - National Plan | T127: X | U127: X | V127: X | W127: 0.05 | X127: 20 | Y127: 32 | AC127: Increase of use in P-P FWA networks (TDD). Increase of use in P-MP FWA networks (TDD) in small telecom operators' networks.
A128: Greece | B128: GRC | C128: 25 | D128: 5725-5795 | G128: X | I128: X | J128: X | R128: 25 | S128: ECC/DEC/(06)04 | Z128: growth
A129: Austria | B129: AUT | C129: 26 | D129: 5850-5925 | E129: X | I129: X | K129: X | Q129: 13 | S129: national | U129: X | W129: 4 | X129: 42 | Y129: 68
A130: Estonia | B130: EST | C130: 26 | D130: 5850-5925 | F130: x
A131: Estonia | B131: EST | C131: 26 | D131: 5850-5925 | E131: not in use | J131: x
A132: Ireland | B132: IRL | C132: 26 | D132: 5850-5925 | G132: X (5725 - 5875 MHz) | J132: X | L132: X | R132: 106 stations registered for use of the entire band 5725 - 5875 MHz | W132: N/A
A133: Latvia | B133: LVA | C133: 26 | D133: 5850-5925 | AD133: Currently not in use by Fixed service
A134: Norway | B134: NOR | C134: 26 | D134: 5850-5925 | H134: x
A135: Portugal | B135: POR | C135: 26 | D135: 5850-5925 | H135: X | O135: ISM, SRD
A136: Russia | B136: RUS | C136: 26 | D136: 5850-5925 | E136: X | I136: X | J136: X | O136: X Telecom operators, industrial process communications | Q136: 800 | R136: 1150 | S136: For RRLs - National Plan | T136: X | U136: X | V136: X | W136: 1 | X136: 10 | Y136: 40 | AC136: Increase of use in P-P FWA networks (TDD). Increase of use in P-MP FWA networks (TDD) in small telecom operators' networks.
A137: Switzerland | B137: SUI | C137: 26 | D137: 5850-5925 | H137: x | I137: x | J137: x | N137: x
A138: UK | B138: G | C138: 27 | D138: 5925-6425 | E138: X | I138: X | K138: X | L138: X | M138: X | P138: 31 | Q138: 305 | S138: ERC/REC 14-01 | U138: X | V138: X | X138: 40
A139: Bulgaria | B139: BUL | C139: 28 | D139: 5925-6425 | E139: X | I139: X | K139: X | L139: X | P139: 0 | Q139: 232 | S139: ERC/REC 14-01, Annex 1 | V139: X | W139: 6 | X139: 32 | Y139: 70 | AA139: X | AC139: Currently congested for area of capital - Sofia
A140: Greece | B140: GRC | C140: 28 | D140: 5925-6425 | E140: X | K140: X | L140: X | M140: X | P140: 7 | Q140: 324 | S140: ERC/REC 14-01 | U140: X | V140: X | W140: 7 | X140: 40 | Y140: 98 | Z140: growth
A141: Croatia | B141: HRV | C141: 28 | D141: 5925-6425 | E141: X | I141: X | K141: X | M141: X | Q141: 74 | S141: ERC/REC 14-01 | V141: X | W141: 10.7 | X141: 33.72 | Y141: 70.93
A142: Russia | B142: RUS | C142: 28 | D142: 5925-6425 | E142: X | I142: X | J142: X | K142: X | O142: X Telecom operators, industrial process communications | Q142: 4500 | R142: 5300 | S142: Для РРЛ- ITU-R Rec. F.383 | T142: X | U142: X | V142: X | W142: 1 | X142: 10 | Y142: 50 | AC142: Increase of use in P-P FWA networks (TDD). Increase of use in P-MP FWA networks (TDD) in small telecom operators' networks. Moderate use in mobile backhaul (outside major populated areas), in telecom operators' infrastructure, and for industrial process communications.
A143: Slovenia | B143: SVN | C143: 28 | D143: 5925-6425 | E143: X | I143: X | K143: X | L143: X | P143: 0 | Q143: 12 | S143: ERC/REC 14-01 | U143: X | V143: X | W143: 10 | X143: 21 | Y143: 33
A144: Austria | B144: AUT | C144: 29 | D144: 5925-7125 | E144: X | I144: X | K144: X | L144: X | M144: X | Q144: 313 | S144: ERC/REC 14-01 and ERC/REC 14-02, ECC/REC(14)06 | V144: X | W144: 5 | X144: 45 | Y144: 70
A145: Bosnia and Herzegovina | B145: BIH | C145: 29 | D145: 5925-7125 | E145: X | I145: X | L145: X | P145: 5 | Q145: 216 | S145: ERC/REC 14-01 and ERC/REC 14-02, ECC/REC(14)06 | V145: X | W145: 2 | X145: 58 | Y145: 140
A146: Czech Republic | B146: CZE | C146: 29 | D146: 5925-7125 | E146: X | I146: X | Q146: 582 | S146: see the EFIS | T146: N/A | U146: N/A | V146: N/A | X146: 31.5km
A147: Germany | B147: D | C147: 29 | D147: 5925-7125 | E147: x | I147: x | Q147: 3500 | S147: ERC/REC 14-01 and ERC/REC 14-02, ECC/REC(14)06 | U147: x | V147: x | W147: 15 | X147: 40 | Y147: 67 | AA147: x
A148: Estonia | B148: EST | C148: 29 | D148: 5925-7125 | E148: x | I148: x | K148: x | P148: 5 | S148: ERC/REC 14-01 and ERC/REC 14-02, ECC/REC(14)06 | U148: x | X148: 80
A149: France | B149: F | C149: 29 | D149: 5925-7125 | E149: X | I149: X | K149: X | L149: X | Q149: 4171 | S149: ERC/REC 14-01 and ERC/REC 14-02, ECC/REC(14)06 | U149: X | V149: X | W149: 2 | X149: 29 | Y149: 109 | AA149: X
A150: Finland | B150: FIN | C150: 29 | D150: 5925-7125 | E150: x | I150: x | K150: x | L150: x | M150: x | P150: 0 | Q150: 646 | S150: ERC/REC 14-01 and ERC/REC 14-02, ECC/REC(14)06 | U150: x | V150: x | W150: 10 | X150: 19.7 | Y150: 63.1 | Z150: + 50 | AA150: x | AC150: upper 6 GHz congested in some areas
A151: Hungary | B151: HNG | C151: 29 | D151: 5925-7125 | E151: X | I151: X | Q151: 135 | S151: ERC/REC 14-01 and ERC/REC 14-02 | V151: X | X151: 60
A152: Netherlands | B152: HOL | C152: =VLOOKUP(D152,[1]BandList!$A$2:$B$110,2,FALSE) -> 29 | D152: 5925-7125 | E152: x | I152: x | K152: x | L152: x | Q152: 64 | S152: ERC/REC 14-01 and ERC/REC 14-02, ECC/REC(14)06 | V152: x | W152: 40 | X152: 45 | Y152: 52 | AA152: x
A153: Italy | B153: =VLOOKUP(A153, '[1]Country names'!$A$5:$C$53,3,FALSE) -> I | C153: =VLOOKUP(D153,[1]BandList!$A$2:$B$110,2,FALSE) -> 29 | D153: 5925-7125 | E153: X | I153: X | K153: X | L153: X | M153: X | Q153: 1319 | S153: ERC/REC 14-01 and ERC/REC 14-02, ECC/REC(14)06 | T153: 0 | U153: 591 | V153: 728 | W153: 6.387 | X153: 31.5 | Y153: 59.38 | Z153: +10/20
A154: Ireland | B154: IRL | C154: 29 | D154: 5925-7125 | E154: X | I154: X | N154: X | Q154: 208 | S154: ERC/REC 14-01 and ERC/REC 14-02, ECC/REC(14)06 | V154: 208 | W154: 25 km
A155: Latvia | B155: LVA | C155: 29 | D155: 5925-7125 | E155: X | I155: X | K155: X | L155: X | M155: X | Q155: 105 | S155: ERC/REC 14-01 and ERC/REC 14-02 | U155: X | V155: X | W155: 20 | X155: 30 | Y155: 51 | Z155: 0.1
A156: Malta | B156: MLT | C156: 29 | D156: 5925-7125 | E156: X | I156: X | L156: X | O156: Telecomms infrastructure backhaul | Q156: 7 | S156: ERC Rec 14-01 and ERC Rec 14-02, | W156: 19.7 | X156: 20.6 | Y156: 21.5
A157: Norway | B157: NOR | C157: 29 | D157: 5925-7125 | E157: x | F157: x | M157: x | N157: x | P157: 0 | Q157: 1666 | R157: 0 | W157: 2 | X157: 24 | Y157: 123 | Z157: 5
A158: Portugal | B158: POR | C158: 29 | D158: 5925-7125 | E158: X | I158: X | K158: X | L158: X | O158: VSAT, SRD | Q158: 6 | S158: ERC/REC 14-01 | U158: X | V158: X | W158: 15 | X158: 30 | Y158: 70 | Z158: 5
A159: Portugal | B159: POR | C159: 30 | D159: 5925-7125 | E159: X | I159: X | K159: X | L159: X | O159: VSAT, SRD | Q159: 7 | S159: ERC/REC 14-02 | U159: X | V159: X | W159: 15 | X159: 30 | Y159: 70 | Z159: 5
A160: Portugal | B160: POR | C160: 31 | D160: 5925-7125 | E160: X | I160: X | O160: VSAT, SRD | S160: ECC/REC(14)06 | T160: X | W160: 10 | X160: 20 | Y160: 70 | Z160: Planned | AA160: Planned | AB160: Planned | AC160: Planned
A161: Sweden | B161: S | C161: 29 | D161: 5925-7125 | E161: X | M161: X | Q161: 928 | S161: ERC/REC 14-01 and ERC/REC 14-02, ECC/REC(14)06 | V161: X | W161: 9.3 | X161: 42.2 | Y161: 85.95 | Z161: 50 | AC161: X
A162: Switzerland | B162: SUI | C162: 29 | D162: 5925-7125 | E162: x | I162: x | K162: x | L162: x | M162: x | Q162: 46 | S162: ERC/REC 14-01 and ERC/REC 14-02, ECC/REC(14)06 | V162: x | W162: 20.2 | X162: 46.7 | Y162: 75.9 | Z162: 20
A163: Slovak Republic | B163: SVK | C163: 29 | D163: 5925-7125 | E163: X | I163: X | K163: X | R163: 70 | S163: ERC/REC 14-01 and ERC/REC 14-02, ECC/REC(14)06 | V163: X | W163: 8 | X163: 25 | Y163: 54.6 | Z163: 5
A164: Turkey | B164: TUR | C164: 29 | D164: 5925-7125 | E164: x | I164: x | Q164: 1387 | S164: ERC/REC 14-01 and ERC/REC 14-02 | W164: <1 | X164: 35 | Y164: 96
A165: Greece | B165: GRC | C165: 33 | D165: 6425-7110 | E165: X | K165: X | L165: X | M165: X | P165: 9 | Q165: 367 | S165: ERC/REC 14-02 | V165: X | W165: 7 | X165: 45 | Y165: 123 | Z165: growth
A166: Bulgaria | B166: BUL | C166: 34 | D166: 6425-7125 | E166: X | I166: X | K166: X | L166: X | P166: 0 | Q166: 228 | S166: ERC/REC 14-02, Annex 1 | V166: X | W166: 9 | X166: 30 | Y166: 97 | AA166: X | AC166: Currently congested for area of capital - Sofia
A167: Croatia | B167: HRV | C167: 34 | D167: 6425-7125 | E167: X | I167: X | K167: X | M167: X | Q167: 29 | S167: ERC/REC 14-02 | V167: X | W167: 16.12 | X167: 40.5 | Y167: 71.33
A168: Russia | B168: RUS | C168: 34 | D168: 6425-7125 | E168: X | I168: X | K168: X | L168: X | O168: X Telecom operators, industrial process communications | Q168: 1050 | S168: ITU-R Rec. F.384 | V168: X | W168: 5 | X168: 40 | Y168: 70 | AC168: Increase of use in long-distance multi-hop links in mobile backhaul, telecom operators' infrastructure, and for industrial process communications.
A169: Slovenia | B169: SVN | C169: 34 | D169: 6425-7125 | E169: X | I169: X | L169: X | P169: 0 | Q169: 1 | S169: ERC/REC 14-02 | U169: X | W169: 39 | X169: 39 | Y169: 39
A170: UK | B170: G | C170: 32 | D170: 6425-7125 | E170: X | I170: X | K170: X | L170: X | M170: X | P170: 23 | Q170: 519 | S170: ERC/REC 14-02, ITU-R Rec. F.384 | U170: X | V170: X | X170: 34
A171: Bulgaria | B171: BUL | C171: 35 | D171: 7125-7425 | E171: X | I171: X | K171: X | L171: X | P171: 0 | Q171: 73 | S171: ITU-R F.385-8 | U171: X | V171: X | W171: 20 | X171: 35 | Y171: 59 | Z171: +25 %
A172: Greece | B172: GRC | C172: 35 | D172: 7125-7425 | E172: X | L172: X | M172: X | P172: 10 | Q172: 16 | S172: ITU-R REC F.385-10 | T172: X | W172: 0.5 | X172: 16 | Y172: 56
A173: Croatia | B173: HRV | C173: 35 | D173: 7125-7425 | E173: X | I173: X | L173: X | Q173: 14 | S173: ECC REC (02)06 | T173: X | U173: X | W173: 3.76 | X173: 37.16 | Y173: 85.56
A174: Slovenia | B174: SVN | C174: 35 | D174: 7125-7425 | E174: X | I174: X | K174: X | M174: X | P174: 0 | Q174: 85 | S174: ECC REC (02)06 | V174: X | W174: 2 | X174: 29 | Y174: 72
A175: Turkey | B175: TUR | C175: 35 | D175: 7125-7425 | E175: x | I175: x | Q175: 2231 | S175: ECC REC (02)06 Annex 2.1
A176: Austria | B176: AUT | C176: 36 | D176: 7125-7750 | E176: X | I176: X | K176: X | L176: X | M176: X | Q176: 530 | S176: ECC REC (02)06 | U176: X | V176: X | W176: 1 | X176: 40 | Y176: 78
A177: Bosnia and Herzegovina | B177: BIH | C177: 36 | D177: 7125-7750 | E177: X | I177: X | L177: X | P177: 12 | Q177: 144 | S177: ECC REC (02)06 | V177: X | W177: 4 | X177: 30 | Y177: 53 | Z177: +5
A178: Czech Republic | B178: CZE | C178: 36 | D178: 7125-7750 | E178: X | I178: X | Q178: 446 | S178: see the EFIS | T178: N/A | U178: N/A | V178: N/A | X178: 24.4km
A179: Germany | B179: D | C179: 36 | D179: 7125-7750 | E179: x | I179: x | Q179: 4430 | S179: ECC REC (02)06 | U179: x | V179: x | W179: 15 | X179: 28 | Y179: 90 | AA179: x
A180: Estonia | B180: EST | C180: 36 | D180: 7125-7750 | E180: x | I180: x | K180: x | P180: 43 | S180: ECC REC (02)06 | U180: x | W180: 10 | X180: 30 | Y180: 55
A181: Finland | B181: FIN | C181: 36 | D181: 7125-7750 | E181: x | I181: x | K181: x | L181: x | P181: 0 | Q181: 363 | S181: Modified ITU-R F.385 | U181: x | V181: x | W181: 10 | X181: 29.4 | Y181: 74.9 | Z181: -25 | AD181: 7125-7425 MHz subband for non-civil FS, 7427-7725 MHz subband for civil FS
A182: Hungary | B182: HNG | C182: 36 | D182: 7125-7750 | E182: X | I182: X | L182: X | Q182: 205 | S182: ECC REC (02)06 | U182: X | X182: 40
A183: Netherlands | B183: HOL | C183: =VLOOKUP(D183,[1]BandList!$A$2:$B$110,2,FALSE) -> 36 | D183: 7125-7750 | E183: x | I183: x | K183: x | L183: x | Q183: 101 | S183: ECC REC (02)06 | T183: x | U183: x | V183: x | W183: 8 | X183: 22 | Y183: 60 | Z183: + | AA183: x
A184: Italy | B184: =VLOOKUP(A184, '[1]Country names'!$A$5:$C$53,3,FALSE) -> I | C184: =VLOOKUP(D184,[1]BandList!$A$2:$B$110,2,FALSE) -> 36 | D184: 7125-7750 | E184: X | I184: X | K184: X | L184: X | M184: X | Q184: 3379 | S184: ECC REC (02)06 | T184: 4 | U184: 2172 | V184: 1203 | W184: 4.593 | X184: 31.25 | Y184: 57.98 | Z184: +10/20
A185: Ireland | B185: IRL | C185: 36 | D185: 7125-7750 | E185: X | I185: X | N185: X | Q185: 270 | S185: ECC REC (02)06 | T185: 12 | U185: 31 | V185: 227 | W185: 25 km
A186: Latvia | B186: LVA | C186: 36 | D186: 7125-7750 | E186: X | I186: X | K186: X | L186: X | Q186: 110 | S186: ECC REC (02)06 | U186: X | V186: X | W186: 10 | X186: 35 | Y186: 55 | Z186: 0.2
A187: Malta | B187: MLT | C187: 36 | D187: 7125-7750 | E187: X | I187: X | K187: X | L187: X | M187: X | O187: Telecomms infrastructure backhaul | P187: 3 | Q187: 12 | S187: ECC Rec (02)06 | U187: X | V187: X | W187: 1.6 | X187: 13 | Y187: 25 | Z187: 0.13
A188: Norway | B188: NOR | C188: 36 | D188: 7125-7750 | E188: x | K188: x | N188: x | P188: 0 | Q188: 622 | T188: x | U188: x | V188: x | W188: 3 | X188: 32 | Y188: 106 | Z188: 5
A189: Portugal | B189: POR | C189: 36 | D189: 7125-7750 | E189: X | I189: X | L189: X | O189: FSS, Military (7.25-7.3 GHz) | Q189: 4 | S189: 7 LOW: ITU-R F.385 | T189: X | W189: 15 | X189: 30 | Y189: 50 | Z189: -100
A190: Portugal | B190: POR | C190: 37 | D190: 7125-7750 | E190: X | I190: X | K190: X | O190: FSS, Military (7.25-7.3 GHz) | Q190: 286 | S190: 7 LOW: ECC REC (02)06 | T190: X | U190: X | V190: X | W190: 10 | X190: 25 | Y190: 40 | Z190: 10
A191: Portugal | B191: POR | C191: 38 | D191: 7125-7750 | E191: X | I191: X | L191: X | O191: FSS | Q191: 4 | S191: 7 HIGH: ITU-R F.385 | T191: X | W191: 15 | X191: 30 | Y191: 50 | Z191: -100
A192: Portugal | B192: POR | C192: 39 | D192: 7125-7750 | E192: X | I192: X | K192: X | L192: X | O192: FSS | Q192: 103 | S192: 7 HIGH: ECC REC (02)06 | T192: X | U192: X | V192: X | W192: 10 | X192: 25 | Y192: 40 | Z192: 10
A193: Sweden | B193: S | C193: 36 | D193: 7125-7750 | E193: X | K193: X | L193: X | M193: X | Q193: 509 | S193: ECC REC (02)06 | T193: X | U193: X | V193: X | W193: 4.2 | X193: 27.7 | Y193: 70.5 | Z193: 25 | AA193: X
A194: Switzerland | B194: SUI | C194: 36 | D194: 7125-7750 | E194: x | I194: x | K194: x | L194: x | M194: x | Q194: 90 | S194: ECC REC (02)06 | U194: x | V194: x | W194: 11.1 | X194: 30.1 | Y194: 56.5 | Z194: 10
A195: Slovak Republic | B195: SVK | C195: 36 | D195: 7125-7750 | E195: X | I195: X | Q195: 97 | S195: ECC REC (02)06 | T195: X | U195: X | V195: X | W195: 13.2 | X195: 25 | Y195: 59.3 | Z195: 30
A196: Russia | B196: RUS | C196: 40 | D196: 7250-7550 | E196: X | I196: X | K196: X | L196: X | M196: X | O196: X Telecom operators, industrial process communications | Q196: 10890 | S196: ITU-R Rec. F.385 | T196: X | U196: X | V196: X | W196: 1 | X196: 35 | Y196: 65 | AC196: Increase of use, most of all in mobile backhaul (outside major populated areas) and in telecom operators' infrastructure and in industrial process communications.
A197: Bulgaria | B197: BUL | C197: 42 | D197: 7425-7725 | E197: X | I197: X | K197: X | P197: 0 | Q197: 404 | S197: ITU-R F.385-8 | T197: X | U197: X | V197: X | W197: 18 | X197: 30 | Y197: 98 | Z197: +25 %
A198: Greece | B198: GRC | C198: 42 | D198: 7425-7725 | E198: X | K198: X | L198: X | Q198: 1057 | S198: ECC REC (02)06 | T198: X | U198: X | V198: X | W198: 0.6 | X198: 30 | Y198: 98 | Z198: stable
A199: Croatia | B199: HRV | C199: 42 | D199: 7425-7725 | E199: X | I199: X | K199: X | L199: X | M199: X | Q199: 181 | S199: ECC REC (02)06 | U199: X | V199: X | W199: 7.08 | X199: 32 | Y199: 88.87 | Z199: 20 | AA199: X
A200: Slovenia | B200: SVN | C200: 42 | D200: 7425-7725 | E200: X | I200: X | K200: X | L200: X | M200: X | P200: 0 | Q200: 39 | S200: ECC REC (02)06 | U200: X | V200: X | W200: 6 | X200: 23 | Y200: 53 | AA200: X
... 491 more rows

Sheet BandList
A1: Band range (MHz) | B1: Index
A2: 1350-1375 and 1492-1517 | B2: 1
A3: 1350-1375 and 1492-1518 | B3: 2
A4: 1375-1400 and 1427-1452 | B4: 3
A5: 1437,5-1465,5 and 1486,5-1514,5 | B5: 4
A6: 1440-1500 | B6: 5
A7: 1492–1506 | B7: 6
A8: 1517-1525 | B8: 7
A9: 1518 - 1525 | B9: 8
A10: 1518-1530 | B10: 9
A11: 1672 - 1690 | B11: 10
A12: 1700-1709 and 1786-1800 | B12: 11
A13: 1900-2690 | B13: 12
A14: 2025-2110 and 2200-2290 | B14: 13
A15: 2085-2110 | B15: 14
A16: 2400-2483.5 | B16: 15
A17: 3400-3600 | B17: 16
A18: 3480 – 3500//3580 – 3600; 3605 – 3689//3925 – 4009 | B18: 17
A19: 3600-3800 | B19: 18
A20: 3600-4200 | B20: 19
A21: 3689-3875//4009-4195 | B21: 20
A22: 3800-4200 | B22: 21
A23: 4400-5000 | B23: 22
A24: 5150-5350 | B24: 23
A25: 5650-5850 | B25: 24
A26: 5725-5795 | B26: 25
A27: 5850-5925 | B27: 26
A28: 5925 - 6425 | B28: 27
A29: 5925-6425 | B29: 28
A30: 5925-7125 | B30: 29
A31: 5925-7126 | B31: 30
A32: 5925-7127 | B32: 31
A33: 6425 - 7125 | B33: 32
A34: 6425-7110 | B34: 33
A35: 6425-7125 | B35: 34
A36: 7125-7425 | B36: 35
A37: 7125-7750 | B37: 36
A38: 7125-7751 | B38: 37
A39: 7125-7752 | B39: 38
A40: 7125-7753 | B40: 39
A41: 7250-7550 | B41: 40
A42: 7425 - 7900 | B42: 41
A43: 7425-7725 | B43: 42
A44: 7425-7900 | B44: 43
A45: 7725-78275 | B45: 44
A46: 7725-8275 | B46: 45
A47: 7750-7900 | B47: 46
A48: 7900-8400 | B48: 47
A49: 7900-8500 | B49: 48
A50: 8275-8500 | B50: 49
A51: 10000-10680 | B51: 50
A52: 10125 – 10205 GHz//10475 – 10555; 10205 – 10225//10555 – 10575 | B52: 51
A53: 10150-10680 | B53: 52
A54: 10500-10680 | B54: 53
A55: 10700-11700 | B55: 54
A56: 10755-11725 | B56: 55
A57: 11700-12500 | B57: 56
A58: 11725-12500 | B58: 57
A59: 12750-13250 | B59: 58
A60: 14250-14500 | B60: 59
A61: 14500-14620 and 15230-15350 | B61: 60
A62: 14500-15350 | B62: 61
A63: 14923-15180 | B63: 62
A64: 17300-17700 | B64: 63
A65: 17700-19700 | B65: 64
A66: 17700-19701 | B66: 65
A67: 21200-22000 | B67: 66
A68: 21200-23600 | B68: 67
A69: 22000-22600 and 23000-23600 | B69: 68
A70: 22000-23600 | B70: 69
A71: 22008-23576 | B71: 70
A72: 22600-23000 | B72: 71
A73: 24250-24500 | B73: 72
A74: 24250-29500 | B74: 73
A75: 24500–24717/25557–25725 | B75: 74
A76: 24500-26500 | B76: 75
A77: 24773–25445/25781–26453 | B77: 76
A78: 26500-27500 | B78: 77
A79: 27500-29500 | B79: 78
A80: 27828,5–28444,5/28948,5–29452,5 | B80: 79
A81: 31000-31300 | B81: 80
A82: 31000-31800 | B82: 81
A83: 31800-33400 | B83: 82
A84: 31815–32347/32627–33159 | B84: 83
A85: 32375–32571/33187–33383 | B85: 84
A86: 36000-37000 | B86: 85
A87: 37000-39500 | B87: 86
A88: 39500-40500 | B88: 87
A89: 40500-43500 | B89: 88
A90: 47200-48500 | B90: 89
A91: 48500-50200 | B91: 90
A92: 49200 - 50200 | B92: 91
A93: 50400-51400 | B93: 92
A94: 51400-52600 | B94: 93
A95: 55780-57000 | B95: 94
A96: 55780-57000 | B96: 95
A97: 57000-59000 | B97: 96
A98: 57000-63000 | B98: 97
A99: 57200-58200 | B99: 98
A100: 58250-63250 | B100: 99
A101: 59000-61000 | B101: 100
A102: 59000-64000 | B102: 101
A103: 61000-66000 | B103: 102
A104: 64000-66000 | B104: 103
A105: 71000-76000 and 81000-86000 | B105: 104
A106: 71000-76000/81000-86000 | B106: 105
A107: 71125-73125 and 81125-83125 | B107: 106
A108: 73375-75875 and 83375-85875 | B108: 107
A109: 74000-76000 and 84000-86000 | B109: 108
A110: 92000-95000 | B110: 109

Sheet Country names
A1: Member | B1: Quest 2001 | C1: CEPT | D1: EXCLUDE | E1: Q. 2014 >50 GHz | I1: filtering as 2001 | J1: filtering as 2010
C2: Country
C3: Code
M4: respondent to 2001 Quest
A5: Albania | C5: ALB | M5: respondent to 2010 Quest
A6: Andorra | C6: AND | M6: respondent to 2016 Quest < 50 GHz
A7: Austria | C7: AUT | M7: respondent to 2016 Quest > 50 GHz
A8: Azerbaijan | C8: AZE
A9: Belarus | C9: BLR
A10: Belgium | C10: BEL
A11: Bosnia and Herzegovina | C11: BIH | K11: Note : to exclude counting of data from some country put "E" in corresponding row of column D
A12: Bulgaria | C12: BUL | I12: E | J12: E
A13: Croatia | C13: HRV
A14: Cyprus | C14: CYP
A15: Czech Republic | C15: CZE
A16: Denmark | C16: DNK
A17: Estonia | C17: EST
A18: Finland | C18: FIN
A19: France | C19: F
A20: Georgia | C20: GEO
A21: Germany | C21: D
A22: Greece | C22: GRC | I22: E
A23: Hungary | C23: HNG
A24: Iceland | C24: ISL
A25: Ireland | C25: IRL
A26: Italy | C26: I
A27: Latvia | C27: LVA
A28: Liechtenstein | C28: LIE
A29: Lithuania | C29: LTU
A30: Luxembourg | C30: LUX
A31: The Former Yugoslav Republic of Macedonia (FYROM) | C31: MKD
A32: Malta | C32: MLT | I32: E
A33: Moldova | C33: MDA
A34: Monaco | C34: MCO
A35: Montenegro | C35: MNE
A36: Netherlands | C36: HOL | I36: E
A37: Norway | C37: NOR | I37: E
A38: Poland | C38: POL
A39: Portugal | C39: POR
A40: Romania | C40: ROU
A41: Russia | C41: RUS | I41: E
A42: San Marino | C42: SMR
A43: Serbia | C43: SRB
A44: Slovak Republic | C44: SVK
A45: Slovenia | C45: SVN
A46: Spain | C46: E
A47: Sweden | C47: S
A48: Switzerland | C48: SUI
A49: Turkey | C49: TUR
A50: Ukraine | C50: UKR
A51: UK | C51: G
A52: Vatican | C52: CVA

Sheet Admins analyzes
A1: 1 | B1: =A1+1 -> 2 | C1: =B1+1 -> 3 | D1: 4 | E1: 5 | F1: 6 | G1: 7 | H1: 8 | I1: 9 | J1: 10 | K1: 11 | L1: 12 | M1: 13 | N1: 14 | O1: 15 | P1: 16 | Q1: 17 | R1: 18 | S1: 19 | T1: 20 | U1: 21 | V1: 22 | W1: 23 | X1: 24 | Y1: 25 | Z1: 26 | AA1: 27 | AB1: 28 | AC1: 29 | AD1: 30 | AE1: 31 | AF1: 32 | AG1: 33 | AH1: 34 | AI1: 35 | AJ1: 36 | AK1: 37 | AL1: 38 | AM1: 39 | AN1: 40 | AO1: 41 | AP1: =AO1+1 -> 42 | AQ1: 43 | AR1: 44 | AS1: 45 | AT1: 46 | AU1: 47 | AV1: 48 | AW1: 49 | AX1: 50 | AY1: 51 | AZ1: 52 | BA1: 53 | BB1: 54 | BC1: 55
A2: Admin | B2: short | C2: Band index | D2: Frequency band (MHz) | E2: Licensing regime | I2: Topo-logy | K2: Application | P2: Number of P-P links | R2: Number of CS | S2: Channel/Frequency plan used (e.g. ERC/ECC Rec. ITU-R Rec.) | T2: Link characteristics | Z2: Future trends (e.g. in the next 5 years)
I3: FWA | K3: Network Infrastruc-ture | T3: Capacity | W3: Hop length (km)
E4: Link by link | F4: Block | G4: Light licensed | H4: Licence exempt | I4: P-P | J4: P-MP | K4: Mobile backhaul | L4: Others | M4: Broadcasting Infrastructure | N4: No Information available on the application | O4: Other (please indicate) | P4: unidirectional | Q4: bidirectional (1 bidirectional link counts 1) | R4: (applicable only for P-MP and mesh networks) | T4: LOW (<10 Mbit/s) | U4: MEDIUM (10 to 100 Mbit/s) | V4: HIGH (>100 Mbit/s) | W4: MIN | X4: Typical figure | Y4: MAX | Z4: Anticipated growth/reduction (+/-%) | AA4: Currently congested | AB4: Planned reallocation to other service/application | AC4: Other (please describe) (see Question 3 of the Questionnaire)
A5: Austria | B5: AUT | C5: 1 | D5: 1350-1375 and 1492-1517 | E5: X | I5: X | L5: X | Q5: 57 | S5: T/R 13-01 Annex A | T5: X | U5: X | W5: 3 | X5: 20 | Y5: 60
A6: Bosnia and Herzegovina | B6: BIH | C6: 1 | D6: 1350-1375 and 1492-1517 | E6: X | I6: X | M6: X | P6: 53 | S6: T/R 13-01 Annex A | T6: X | W6: 4 | X6: 30 | Y6: 70
A7: Estonia | B7: EST | C7: 1 | D7: 1350-1375 and 1492-1517 | E7: x | I7: x | S7: T/R 13-01 Annex A
A8: Estonia | B8: EST | C8: 1 | D8: 1350-1375 and 1492-1517 | E8: not in use
A9: Finland | B9: FIN | C9: 1 | D9: 1350-1375 and 1492-1517 | P9: 0 | Q9: 0 | S9: (T/R 13-01 Annex A) 1) | AB9: 1) | AD9: 1) MFCN 1492-1517 MHz planned in the beginning of 2019
A10: Finland | B10: FIN | C10: 1 | D10: 1350-1375 and 1492-1517 | F10: x | J10: x | L10: x | R10: 16 | S10: FWA: 1359-1371 MHz, national plan | U10: x | X10: N/A
A11: UK | B11: G | C11: 1 | D11: 1350-1375 and 1492-1517 | E11: X | I11: X | L11: X | M11: X | Q11: 820 | S11: T/R 13-01 Annex A | T11: X | X11: 15
A12: Netherlands | B12: HOL | C12: =VLOOKUP(D12,[1]BandList!$A$2:$B$110,2,FALSE) -> 1 | D12: 1350-1375 and 1492-1517 | S12: T/R 13-01 Annex A
A13: Croatia | B13: HRV | C13: 1 | D13: 1350-1375 and 1492-1517 | E13: X | I13: X | O13: X | P13: 1 | S13: National plan | T13: X | W13: 9.33 | X13: 9.33 | Y13: 9.33 | Z13: -100 | AB13: X
A14: Ireland | B14: IRL | C14: 1 | D14: 1350-1375 and 1492-1517 | E14: X | I14: X | N14: X | Q14: 76 | S14: T/R 13-01 Annex A | T14: 76 | W14: No min. path length policy
A15: Latvia | B15: LVA | C15: 1 | D15: 1350-1375 and 1492-1517 | E15: X | I15: X | L15: X | Q15: 0 | S15: T/R 13-01 Annex A | AB15: X
A16: Norway | B16: NOR | C16: 1 | D16: 1350-1375 and 1492-1517 | F16: x | R16: 0 | S16: T/R 13-01 Annex A | AB16: x
A17: Norway | B17: NOR | C17: 1 | D17: 1350-1375 and 1492-1517 | E17: x | N17: x | P17: 5 | Q17: 29 | R17: 0 | T17: x | W17: 1 | X17: 18 | Y17: 55 | AB17: x
A18: Portugal | B18: POR | C18: 1 | D18: 1350-1375 and 1492-1517 | E18: X | I18: X | Q18: 92 | S18: T/R 13-01 Annex A | T18: X | W18: 5 | X18: 20 | Y18: 50 | Z18: 0
A19: Switzerland | B19: SUI | C19: 1 | D19: 1350-1375 and 1492-1517 | E19: x | I19: x | L19: x | Q19: 2 | S19: T/R 13-01 Annex A | T19: x | Z19: -100 | AB19: MFCN
A20: Slovak Republic | B20: SVK | C20: 1 | D20: 1350-1375 and 1492-1517 | AC20: SDL
A21: Slovenia | B21: SVN | C21: 1 | D21: 1350-1375 and 1492-1517 | E21: X | I21: X | L21: X | M21: X | P21: 83 | Q21: 12 | S21: T/R 13-01 Annex A | T21: X | W21: 0.6 | X21: 18 | Y21: 82 | AB21: X | AC21: candidate band for mobile broadband
A23: Portugal | B23: POR | C23: 2 | D23: 1350-1375 and 1492-1518 | E23: X | J23: X | R23: 9 | S23: T/R 13-01 Annex A | T23: X | W23: 5 | X23: 10 | Y23: 25 | Z23: -100
A25: Austria | B25: AUT | C25: 3 | D25: 1375-1400 and 1427-1452 | E25: X | I25: X | L25: X | Q25: 41 | S25: T/R 13-01 Annex B | T25: X | U25: X | W25: 3 | X25: 20 | Y25: 60
A26: Bosnia and Herzegovina | B26: BIH | C26: 3 | D26: 1375-1400 and 1427-1452 | E26: X | I26: X | M26: X | P26: 5 | S26: T/R 13-01 Annex B | T26: X | W26: 0.4 | X26: 25 | Y26: 70
A27: Estonia | B27: EST | C27: 3 | D27: 1375-1400 and 1427-1452 | E27: x | I27: x | S27: T/R 13-01 Annex B
A28: Estonia | B28: EST | C28: 3 | D28: 1375-1400 and 1427-1452 | E28: not in use
A29: France | B29: F | C29: 3 | D29: 1375-1400 and 1427-1452 | E29: X | I29: X | L29: X | Q29: 1827 | S29: T/R 13-01 Annex B | T29: X | W29: 0.08 | X29: 20.5 | Y29: 152 | AC29: Due to the results of WRC-15, the future use of this band is currently under consideration.
A30: France | B30: F | C30: 3 | D30: 1375-1400 and 1427-1452 | E30: X | P30: 28 | T30: X | X30: 7
A31: Finland | B31: FIN | C31: 3 | D31: 1375-1400 and 1427-1452 | AB31: 2) | AD31: 2) MFCN 1427-1452 MHz planned in the beginning of 2019
A32: Hungary | B32: HNG | C32: 3 | D32: 1375-1400 and 1427-1452 | E32: X | I32: X | Q32: 0 | S32: T/R 13-01 Annex B
A33: Netherlands | B33: HOL | C33: =VLOOKUP(D33,[1]BandList!$A$2:$B$110,2,FALSE) -> 3 | D33: 1375-1400 and 1427-1452 | E33: x | I33: x | Q33: 10 | S33: T/R 13-01 Annex B | T33: x | W33: 28 | X33: 52 | Y33: 82 | Z33: 0
A34: Croatia | B34: HRV | C34: 3 | D34: 1375-1400 and 1427-1452 | E34: X | I34: X | O34: X | P34: 1 | S34: National plan | T34: X | W34: 9.33 | X34: 9.33 | Y34: 9.33 | Z34: -100 | AB34: X
A35: Ireland | B35: IRL | C35: 3 | D35: 1375-1400 and 1427-1452 | E35: X | I35: X | M35: X | P35: 41 | S35: T/R 13-01 Annex B | T35: 41 | W35: No min. path length policy
A36: Latvia | B36: LVA | C36: 3 | D36: 1375-1400 and 1427-1452 | E36: X | I36: X | L36: X | Q36: 0 | S36: T/R 13-01 Annex B | AB36: X
A37: Norway | B37: NOR | C37: 3 | D37: 1375-1400 and 1427-1452 | E37: x | N37: x | Q37: 17 | T37: x | W37: 1 | X37: 19 | Y37: 66 | AB37: x
A38: Portugal | B38: POR | C38: 3 | D38: 1375-1400 and 1427-1452 | E38: X | I38: X | J38: X | S38: T/R 13-01 Annex B | T38: X | Z38: Planned | AA38: Planned | AB38: Planned | AC38: Planned
A39: Sweden | B39: S | C39: 3 | D39: 1375-1400 and 1427-1452 | E39: X | L39: X | P39: 42 | Q39: 34 | S39: T/R 13-01 Annex B | T39: X | W39: 0.8 | X39: 11.5 | Y39: 61.4 | Z39: -100 | AB39: X
A40: Switzerland | B40: SUI | C40: 3 | D40: 1375-1400 and 1427-1452 | E40: x | I40: x | L40: x | Q40: 32 | S40: T/R 13-01 Annex B | T40: x /analog | Z40: -100 | AB40: MFCN
A41: Slovak Republic | B41: SVK | C41: 3 | D41: 1375-1400 and 1427-1452 | AC41: SDL
A42: Slovenia | B42: SVN | C42: 3 | D42: 1375-1400 and 1427-1452 | E42: X | I42: X | M42: X | P42: 25 | Q42: 0 | S42: T/R 13-01 Annex B | T42: X | W42: 2 | X42: 15 | Y42: 33 | AB42: X | AC42: candidate band for mobile broadband
A44: Greece | B44: GRC | C44: 4 | D44: 1437,5-1465,5 and 1486,5-1514,5 | F44: X | J44: X | O44: rural networks | S44: National Plan | Z44: reduction | AC44: licenses expire at 2020
A46: Switzerland | B46: SUI | C46: 5 | D46: 1440-1500 | E46: x | I46: x | L46: x | Q46: 39 | T46: analog | Z46: -100 | AB46: MFCN
A48: Latvia | B48: LVA | C48: 6 | D48: 1492–1506 | E48: X | J48: X | K48: X | R48: 19 | S48: ITU-R F.701 | T48: X | W48: 1 | X48: 5 | Y48: 10
A50: Portugal | B50: POR | C50: 7 | D50: 1517-1525 | E50: X | M50: X | P50: 347 | S50: National plan (STL) | T50: X | W50: 5 | X50: 15 | Y50: 30 | Z50: 5
A52: Switzerland | B52: SUI | C52: 8 | D52: 1518 - 1525 | E52: x | I52: x | M52: x | P52: 24 | T52: x /analog | W52: 1.1 | X52: 16.7 | Y52: 36.6 | Z52: 0
A54: Slovenia | B54: SVN | C54: 9 | D54: 1518-1530 | E54: X | I54: X | M54: X | P54: 61 | Q54: 0 | S54: national plan | T54: X | W54: 1 | X54: 10 | Y54: 46 | Z54: +10% | AC54: 500 kHz analog FM
A56: UK | B56: G | C56: 10 | D56: 1672 - 1690 | I56: X | L56: X | Q56: 2 | T56: X
A58: Greece | B58: GRC | C58: 11 | D58: 1700-1709 and 1786-1800 | E58: X | M58: X | P58: 192 | S58: National Plan | T58: X | U58: X | W58: 0.7 | X58: 17 | Y58: 90 | Z58: reduction | AB58: reallocate the 1785-1800 MHz band for PMSE applications (2014/641/EC)
A60: UK | B60: G | C60: 12 | D60: 1900-2690 | E60: X | K60: X | L60: X | Q60: 3 | T60: X | X60: 8
A62: Austria | B62: AUT | C62: 13 | D62: 2025-2110 and 2200-2290 | E62: X | I62: X | L62: X | M62: X | P62: 8 | S62: T/R 13-01 Annex C | Y62: 290
A63: Bosnia and Herzegovina | B63: BIH | C63: 13 | D63: 2025-2110 and 2200-2290 | E63: X | I63: X | M63: X | P63: 25 | S63: T/R 13-01 Annex C | T63: X | U63: X | W63: 2 | X63: 18 | Y63: 55
A64: Czech Republic | B64: CZE | C64: 13 | D64: 2025-2110 and 2200-2290 | L64: ENG/OB | S64: T/R 13-01 Annex C | T64: N/A | U64: N/A | V64: N/A
A65: Czech Republic | B65: CZE | C65: 13 | D65: 2025-2110 and 2200-2290 | L65: ENG/OB | T65: N/A | U65: N/A | V65: N/A
A66: Estonia | B66: EST | C66: 13 | D66: 2025-2110 and 2200-2290 | E66: x | I66: x | M66: x | P66: 4 | S66: T/R 13-01 Annex C | T66: x | U66: x | W66: SAP/SAB
A67: Finland | B67: FIN | C67: 13 | D67: 2025-2110 and 2200-2290 | E67: x | I67: x | L67: x | P67: N/A | S67: ERC/REC 25-10 | U67: x | X67: N/A | AD67: temporary use
A68: Greece | B68: GRC | C68: 13 | D68: 2025-2110 and 2200-2290 | E68: X | L68: X | Q68: 41 | S68: T/R 13-01 Annex C | T68: X | U68: X | W68: 0.6 | X68: 22 | Y68: 60 | Z68: reduction
A69: Hungary | B69: HNG | C69: 13 | D69: 2025-2110 and 2200-2290 | E69: X | I69: X | Q69: 0 | S69: T/R 13-01 Annex C
A70: Netherlands | B70: HOL | C70: =VLOOKUP(D70,[1]BandList!$A$2:$B$110,2,FALSE) -> 13 | D70: 2025-2110 and 2200-2290 | S70: T/R 13-01 Annex C
A71: Ireland | B71: IRL | C71: 13 | D71: 2025-2110 and 2200-2290 | E71: X | I71: X | N71: X | Q71: 28 | S71: T/R 13-01 Annex C | T71: 7 | U71: 21 | W71: 25 km
A72: Latvia | B72: LVA | C72: 13 | D72: 2025-2110 and 2200-2290 | E72: X | I72: X | N72: X | P72: 0 | Q72: 0 | S72: T/R 13-01 Annex C | AC72: No changes
A73: Malta | B73: MLT | C73: 13 | D73: 2025-2110 and 2200-2290 | E73: X | I73: X | M73: X | P73: 7 | S73: ERC Rec T/R 13-01 | W73: 7.7 | X73: 7.7 | Y73: 7.7
A74: Malta | B74: MLT | C74: 13 | D74: 2025-2110 and 2200-2290 | E74: X | I74: X | M74: X | P74: 4 | S74: ERC Rec T/R 13-01 | W74: 3 | X74: 3.2 | Y74: 3.4
A75: Norway | B75: NOR | C75: 13 | D75: 2025-2110 and 2200-2290 | F75: x | G75: x | N75: x
A76: Portugal | B76: POR | C76: 13 | D76: 2025-2110 and 2200-2290 | E76: X | I76: X | M76: X | O76: TCR, SAP/SAB | Q76: 11 | S76: T/R 13-01 Annex C | T76: X | W76: 5 | X76: 30 | Y76: 190 | Z76: 0
A77: Switzerland | B77: SUI | C77: 13 | D77: 2025-2110 and 2200-2290 | N77: x | O77: No civil use, PMSE | S77: T/R 13-01 Annex C
A79: Croatia | B79: HRV | C79: 14 | D79: 2085-2110 | E79: X | I79: X | M79: X | P79: 189 | S79: National plan | T79: ANALOG | W79: 0.09 | X79: 9.54 | Y79: 55.74 | Z79: 2
A81: Russia | B81: RUS | C81: 15 | D81: 2400-2483.5 | E81: X | H81: X | I81: X | J81: X | O81: X Telecom operators, industrial process communications | Q81: 8922 | R81: 4108 | T81: X | U81: X | V81: X | W81: 0.05 | X81: 20 | Y81: 70 | AC81: Increase of use in P-P FWA networks (TDD). Increase of use in P-MP FWA networks (TDD)of small telecom operators' networks.
A83: Austria | B83: AUT | C83: 16 | D83: 3400-3600 | E83: X | J83: X | L83: X | R83: 355 | S83: ERC/REC 14-03 | T83: X | U83: X | W83: 3 | X83: 15 | Y83: 30
A84: Bosnia and Herzegovina | B84: BIH | C84: 16 | D84: 3400-3600 | E84: X | I84: X | M84: X | P84: 10 | Q84: 1 | S84: ERC/REC 14-03 | U84: X | V84: X | W84: 2 | X84: 35 | Y84: 140 | AB84: X
A85: Czech Republic | B85: CZE | C85: 16 | D85: 3400-3600 | E85: X | J85: X | R85: 236 | S85: see the EFIS | T85: N/A | U85: N/A | V85: N/A
A86: Germany | B86: D | C86: 16 | D86: 3400-3600 | F86: x | J86: x | R86: 840 | S86: ERC/REC 14-03 | U86: x | V86: x | AB86: x
A87: Estonia | B87: EST | C87: 16 | D87: 3400-3600 | F87: x | J87: x | L87: x | R87: no info | S87: ERC/REC 14-03
A88: France | B88: F | C88: 16 | D88: 3400-3600 | E88: X | I88: X | K88: X | P88: 84 | S88: ERC/REC 14-03 | AB88: X
A89: Finland | B89: FIN | C89: 16 | D89: 3400-3600 | F89: x | J89: x | L89: x | R89: 250 | S89: FWA: 3410-3590 MHz, national plan | T89: x | X89: <8 | Z89: -35 | AB89: 3) | AD89: 3) MFCN 3400-3800 MHz planned in the beginning of 2019
A90: Greece | B90: GRC | C90: 16 | D90: 3400-3600 | F90: X | I90: X | J90: X | P90: 1 National Coverage License (2x30 MHz) | Q90: 1 National Coverage License (2x30 MHz) | R90: 1 National Coverage License (2x30 MHz) | S90: ECC/DEC/(11)06 | Z90: growth | AB90: potential future use of the band for 5G networks
A91: Hungary | B91: HNG | C91: 16 | D91: 3400-3600 | F91: X | I91: X | J91: X | S91: ERC/REC 14-03 | AD91: Block assignment for MFCN; awarded 2016 summer - currently no usage
A92: Netherlands | B92: HOL | C92: =VLOOKUP(D92,[1]BandList!$A$2:$B$110,2,FALSE) -> 16 | D92: 3400-3600 | E92: x | J92: x | R92: 13 | S92: ERC/REC 14-03 | U92: x | V92: x | AB92: x
A93: Croatia | B93: HRV | C93: 16 | D93: 3400-3600 | F93: X | J93: X | R93: 5 | S93: ERC/REC 14-03 | U93: X | AB93: X
A94: Ireland | B94: IRL | C94: 16 | D94: 3400-3600 | E94: X (FWALA licences issues on case by case basis) | J94: X | O94: Wireless broadband provision | R94: 268 | S94: ERC/REC 14-03 | W94: N/A | AB94: X
A95: Latvia | B95: LVA | C95: 16 | D95: 3400-3600 | E95: X | I95: X | J95: X | K95: X | L95: X | P95: 0 | Q95: 0 | R95: 31 | S95: ERC/REC 14-03 | U95: X | W95: 1 | X95: 10 | Y95: 25 | Z95: 0.1
A96: Malta | B96: MLT | C96: 16 | D96: 3400-3600 | E96: X | I96: X | L96: X | O96: Telecomms infrastructure backhaul | Q96: 1 | S96: ERC Rec 14-03 | W96: 9.1 | X96: 9.1 | Y96: 9.1 | Z96: -1
A97: Norway | B97: NOR | C97: 16 | D97: 3400-3600 | F97: x | I97: x | J97: x | S97: ERC/REC 14-03
A98: Portugal | B98: POR | C98: 16 | D98: 3400-3600 | F98: X | J98: X | O98: BWA (3.3 - 3.6GHz) | R98: 44 | S98: ERC/REC 14-03 | T98: X | U98: X | W98: 1 | X98: 10 | Y98: 20 | Z98: -50
A99: Russia | B99: RUS | C99: 16 | D99: 3400-3600 | E99: X | I99: X | J99: X | M99: X | O99: WiMAX | P99: under 0.1% | Q99: 200 | R99: 4000 | S99: For RRLs - National Plan | T99: X | U99: X | W99: 20 | X99: 50 | Y99: 80 | AC99: Use in telecom operators' infrastructure, broadcasting infrastructure, and industrial process communications. The number of RRL station is expected to decrease because the frequency band 3400-3600 MHz has been identified for IMT.
A100: Sweden | B100: S | C100: 16 | D100: 3400-3600 | F100: X | Q100: N/A | S100: ERC/REC 14-03
A101: Switzerland | B101: SUI | C101: 16 | D101: 3400-3600 | E101: x | J101: x | L101: x | S101: ERC/REC 14-03 | AB101: MFCN | AC101: PMSE
A102: Slovak Republic | B102: SVK | C102: 16 | D102: 3400-3600 | F102: X | J102: X | R102: 450 | S102: ERC/REC 14-03 | U102: X
A103: Slovenia | B103: SVN | C103: 16 | D103: 3400-3600 | F103: X | J103: X | L103: X | N103: X | R103: 10 | S103: ERC/REC 14-03 | U103: X
A104: Turkey | B104: TUR | C104: 16 | D104: 3400-3600 | F104: x | J104: x | L104: x | R104: 1276 | S104: ERC/REC 14-03
A106: UK | B106: G | C106: 17 | D106: 3480 – 3500//3580 – 3600; 3605 – 3689//3925 – 4009 | F106: X
A108: Bulgaria | B108: BUL | C108: 18 | D108: 3600-3800 | E108: X | I108: X | L108: X | P108: 0 | Q108: 14 | S108: ERC/REC 12-08, Annex B, Part 2 | U108: X | W108: 13 | X108: 51 | Y108: 73 | AC108: Reallocate to another suitable frequency band
A109: Croatia | B109: HRV | C109: 18 | D109: 3600-3800 | E109: X | I109: X | O109: ENG/OB | Q109: 7 | S109: National plan | U109: X | Z109: -100 | AB109: X
A111: Austria | B111: AUT | C111: 19 | D111: 3600-4200 | E111: X | I111: X | K111: X | Q111: 34 | S111: ERC/REC 12-08 | U111: X | W111: 13 | X111: 50 | Y111: 100
A112: Bosnia and Herzegovina | B112: BIH | C112: 19 | D112: 3600-4200 | E112: X | I112: X | M112: X | P112: 27 | Q112: 28 | S112: ERC/REC 12-08 | V112: X | W112: 9 | X112: 60 | Y112: 99 | Z112: +50
A113: Czech Republic | B113: CZE | C113: 19 | D113: 3600-4200 | E113: X | I113: X | Q113: 209 | S113: see the EFIS | T113: N/A | U113: N/A | V113: N/A | X113: 31.7km
A114: Czech Republic | B114: CZE | C114: 19 | D114: 3600-4200 | F114: X | J114: X | O114: auction in preparation | R114: 0 | T114: N/A | U114: N/A | V114: N/A
A115: Germany | B115: D | C115: 19 | D115: 3600-4200 | F115: x | J115: x | R115: 110 | S115: ERC/REC 12-08 | U115: x | V115: x | AB115: x
A116: Germany | B116: D | C116: 19 | D116: 3600-4200 | E116: x | I116: x | Q116: 90 | V116: x | W116: 20 | X116: 42 | Y116: 65 | Z116: -
A117: Estonia | B117: EST | C117: 19 | D117: 3600-4200 | F117: x | J117: x | L117: x | R117: no info | S117: ERC/REC 12-08
A118: Finland | B118: FIN | C118: 19 | D118: 3600-4200 | E118: x | I118: x | M118: x | P118: 164 | Q118: 32 | S118: ERC/REC 12-08 | U118: x | V118: x | W118: 20 | X118: >30 | AB118: 3) | AD118: 3) MFCN 3400-3800 MHz planned in the beginning of 2019
A119: Hungary | B119: HNG | C119: 19 | D119: 3600-4200 | Q119: 17 | S119: ERC/REC 12-08 | AD119: 3600-3800 MHz band: awarded 2016 summer; Block assignment for MFCN; currently no usage; 3800-4200 MHz: 17 bidirectional links
A120: Netherlands | B120: HOL | C120: =VLOOKUP(D120,[1]BandList!$A$2:$B$110,2,FALSE) -> 19 | D120: 3600-4200 | E120: x | J120: x | R120: 73 | S120: ERC/REC 12-08 | U120: x | V120: x | Z120: + | AB120: x
A121: Netherlands | B121: HOL | C121: =VLOOKUP(D121,[1]BandList!$A$2:$B$110,2,FALSE) -> 19 | D121: 3600-4200 | I121: x
A122: Ireland | B122: IRL | C122: 19 | D122: 3600-4200 | E122: X (FWALA licences issues on case by case basis) | J122: X | O122: Wireless broadband provision | R122: 268 (3400 - 3800 MHz) | S122: ERC/REC 12-08 | W122: N/A | AB122: X
A123: Latvia | B123: LVA | C123: 19 | D123: 3600-4200 | E123: X | I123: X | J123: X | K123: X | L123: X | P123: 0 | Q123: 5 | R123: 106 | S123: ERC/REC 12-08 | U123: X | W123: 1 | X123: 10 | Y123: 25 | Z123: 0.1
A124: Norway | B124: NOR | C124: 19 | D124: 3600-4200 | F124: x | J124: x | S124: ERC/REC 12-08
A125: Portugal | B125: POR | C125: 19 | D125: 3600-4200 | F125: X | J125: X | O125: FSS, VSAT (3.8-4.2 GHz) | R125: 2zax | S125: ERC/REC 12-08 | T125: X | U125: X | W125: 1 | X125: 10 | Y125: 20 | Z125: -100
A126: Russia | B126: RUS | C126: 19 | D126: 3600-4200 | E126: X | I126: X | K126: X | L126: X | M126: X | O126: X Telecom operators, industrial process communications | Q126: 400 | S126: For RRLs - ITU-R Rec. F.635 F.382 | T126: X | U126: X | V126: X | W126: 20 | X126: 50 | Y126: 80 | AC126: Increase of use in long-distance multi-hop links in mobile backhaul, broadcasting and telecom operators' infrastructure, and for industrial process communications.
A127: Sweden | B127: S | C127: 19 | D127: 3600-4200 | F127: X | Q127: N/A | S127: ERC/REC 12-08 | AB127: ?
A128: Switzerland | B128: SUI | C128: 19 | D128: 3600-4200 | E128: x | J128: x | L128: x | S128: ERC/REC 12-08 | AB128: MFCN
A129: Slovak Republic | B129: SVK | C129: 19 | D129: 3600-4200 | F129: X | J129: X | R129: 668 | S129: ERC/REC 12-08 | U129: X
A131: UK | B131: G | C131: 20 | D131: 3689-3875//4009-4195 | E131: x | I131: x | K131: X | L131: X | M131: X | Q131: 65 | S131: ERC/REC 12-08 Annex A Part 2 | V131: X | X131: 37
A133: Bulgaria | B133: BUL | C133: 21 | D133: 3800-4200 | E133: X | I133: X | P133: 0 | Q133: 0 | S133: ERC/REC 12-08, Annex B, Part 1 | T133: - | U133: - | V133: - | W133: - | X133: - | Y133: -
A134: Greece | B134: GRC | C134: 21 | D134: 3800-4200 | E134: Χ | L134: X | Q134: 144 | S134: ERC/REC 12-08 | U134: X | V134: Χ | W134: 11 | X134: 64 | Y134: 101 | Z134: reduction
A135: Croatia | B135: HRV | C135: 21 | D135: 3800-4200 | E135: X | I135: X | M135: X | Q135: 67 | S135: ERC/REC 12-08 | V135: X | W135: 20.27 | X135: 60.33 | Y135: 91.57
A136: Slovenia | B136: SVN | C136: 21 | D136: 3800-4200 | E136: X | I136: X | M136: X | P136: 0 | Q136: 19 | S136: ERC/REC 12-08 | V136: X | W136: 27 | X136: 57 | Y136: 69
A137: Turkey | B137: TUR | C137: 21 | D137: 3800-4200 | E137: x | Q137: 172 | S137: ERC/REC 12-08 | W137: <1 | X137: 33 | Y137: 72
A139: Austria | B139: AUT | C139: 22 | D139: 4400-5000 | E139: X | M139: X | O139: X | P139: 10 | Q139: 1 | S139: national | U139: X | W139: 22 | X139: 22 | Y139: 22
A140: Czech Republic | B140: CZE | C140: 22 | D140: 4400-5000 | L140: SAP/SAB | T140: N/A | U140: N/A | V140: N/A
A141: Czech Republic | B141: CZE | C141: 22 | D141: 4400-5000 | L141: SAP/SAB | T141: N/A | U141: N/A | V141: N/A
A142: Estonia | B142: EST | C142: 22 | D142: 4400-5000 | E142: x
A143: Latvia | B143: LVA | C143: 22 | D143: 4400-5000 | AD143: Exclusive Military Band Within the Band 4400-5000 MHz
A144: Portugal | B144: POR | C144: 22 | D144: 4400-5000 | O144: Military
A145: Russia | B145: RUS | C145: 22 | D145: 4400-5000 | E145: X | I145: X | L145: X | O145: X Telecom operators, industrial process communications | Q145: 310 | S145: ITU-R Rec. F.1099 F.746 | V145: X | W145: 10 | X145: 45 | Y145: 80 | AC145: Use in telecom operators' infrastructure and industrial process communications. The increase of the total number of RRLs is expected to stop becuase the frequency band 4800-4990 MHz has been identified for IMT.
A146: Switzerland | B146: SUI | C146: 22 | D146: 4400-5000 | N146: x | O146: No civil use
A148: Russia | B148: RUS | C148: 23 | D148: 5150-5350 | E148: X | I148: X | J148: X | O148: X Telecom operators, industrial process communications | Q148: 1282 | R148: 5419 | T148: X | U148: X | V148: X | W148: 0.5 | X148: 20 | Y148: 30 | AC148: Increase of use in P-P FWA networks (TDD). Increase of use in P-MP FWA networks (TDD) in small telecom operators' networks.
A150: Russia | B150: RUS | C150: 24 | D150: 5650-5850 | E150: X | I150: X | J150: X | O150: X Telecom operators, industrial process communications | Q150: 2258 | R150: 3802 | S150: For RRLs - National Plan | T150: X | U150: X | V150: X | W150: 0.05 | X150: 20 | Y150: 32 | AC150: Increase of use in P-P FWA networks (TDD). Increase of use in P-MP FWA networks (TDD) in small telecom operators' networks.
A152: Greece | B152: GRC | C152: 25 | D152: 5725-5795 | G152: X | I152: X | J152: X | R152: 25 | S152: ECC/DEC/(06)04 | Z152: growth
A154: Austria | B154: AUT | C154: 26 | D154: 5850-5925 | E154: X | I154: X | K154: X | Q154: 13 | S154: national | U154: X | W154: 4 | X154: 42 | Y154: 68
A155: Estonia | B155: EST | C155: 26 | D155: 5850-5925 | F155: x
A156: Estonia | B156: EST | C156: 26 | D156: 5850-5925 | E156: not in use | J156: x
A157: Ireland | B157: IRL | C157: 26 | D157: 5850-5925 | G157: X (5725 - 5875 MHz) | J157: X | L157: X | R157: 106 stations registered for use of the entire band 5725 - 5875 MHz | W157: N/A
A158: Latvia | B158: LVA | C158: 26 | D158: 5850-5925 | AD158: Currently not in use by Fixed service
A159: Norway | B159: NOR | C159: 26 | D159: 5850-5925 | H159: x
A160: Portugal | B160: POR | C160: 26 | D160: 5850-5925 | H160: X | O160: ISM, SRD
A161: Russia | B161: RUS | C161: 26 | D161: 5850-5925 | E161: X | I161: X | J161: X | O161: X Telecom operators, industrial process communications | Q161: 800 | R161: 1150 | S161: For RRLs - National Plan | T161: X | U161: X | V161: X | W161: 1 | X161: 10 | Y161: 40 | AC161: Increase of use in P-P FWA networks (TDD). Increase of use in P-MP FWA networks (TDD) in small telecom operators' networks.
A162: Switzerland | B162: SUI | C162: 26 | D162: 5850-5925 | H162: x | I162: x | J162: x | N162: x
A164: UK | B164: G | C164: 27 | D164: 5925-6425 | E164: X | I164: X | K164: X | L164: X | M164: X | P164: 31 | Q164: 305 | S164: ERC/REC 14-01 | U164: X | V164: X | X164: 40
A165: Bulgaria | B165: BUL | C165: 28 | D165: 5925-6425 | E165: X | I165: X | K165: X | L165: X | P165: 0 | Q165: 232 | S165: ERC/REC 14-01, Annex 1 | V165: X | W165: 6 | X165: 32 | Y165: 70 | AA165: X | AC165: Currently congested for area of capital - Sofia
A166: Greece | B166: GRC | C166: 28 | D166: 5925-6425 | E166: X | K166: X | L166: X | M166: X | P166: 7 | Q166: 324 | S166: ERC/REC 14-01 | U166: X | V166: X | W166: 7 | X166: 40 | Y166: 98 | Z166: growth
A167: Croatia | B167: HRV | C167: 28 | D167: 5925-6425 | E167: X | I167: X | K167: X | M167: X | Q167: 74 | S167: ERC/REC 14-01 | V167: X | W167: 10.7 | X167: 33.72 | Y167: 70.93
A168: Russia | B168: RUS | C168: 28 | D168: 5925-6425 | E168: X | I168: X | J168: X | K168: X | O168: X Telecom operators, industrial process communications | Q168: 4500 | R168: 5300 | S168: Для РРЛ- ITU-R Rec. F.383 | T168: X | U168: X | V168: X | W168: 1 | X168: 10 | Y168: 50 | AC168: Increase of use in P-P FWA networks (TDD). Increase of use in P-MP FWA networks (TDD) in small telecom operators' networks. Moderate use in mobile backhaul (outside major populated areas), in telecom operators' infrastructure, and for industrial process communications.
A169: Slovenia | B169: SVN | C169: 28 | D169: 5925-6425 | E169: X | I169: X | K169: X | L169: X | P169: 0 | Q169: 12 | S169: ERC/REC 14-01 | U169: X | V169: X | W169: 10 | X169: 21 | Y169: 33
A171: Austria | B171: AUT | C171: 29 | D171: 5925-7125 | E171: X | I171: X | K171: X | L171: X | M171: X | Q171: 313 | S171: ERC/REC 14-01 and ERC/REC 14-02, ECC/REC(14)06 | V171: X | W171: 5 | X171: 45 | Y171: 70
A172: Bosnia and Herzegovina | B172: BIH | C172: 29 | D172: 5925-7125 | E172: X | I172: X | L172: X | P172: 5 | Q172: 216 | S172: ERC/REC 14-01 and ERC/REC 14-02, ECC/REC(14)06 | V172: X | W172: 2 | X172: 58 | Y172: 140
A173: Czech Republic | B173: CZE | C173: 29 | D173: 5925-7125 | E173: X | I173: X | Q173: 582 | S173: see the EFIS | T173: N/A | U173: N/A | V173: N/A | X173: 31.5km
A174: Germany | B174: D | C174: 29 | D174: 5925-7125 | E174: x | I174: x | Q174: 3500 | S174: ERC/REC 14-01 and ERC/REC 14-02, ECC/REC(14)06 | U174: x | V174: x | W174: 15 | X174: 40 | Y174: 67 | AA174: x
A175: Estonia | B175: EST | C175: 29 | D175: 5925-7125 | E175: x | I175: x | K175: x | P175: 5 | S175: ERC/REC 14-01 and ERC/REC 14-02, ECC/REC(14)06 | U175: x | X175: 80
A176: France | B176: F | C176: 29 | D176: 5925-7125 | E176: X | I176: X | K176: X | L176: X | Q176: 4171 | S176: ERC/REC 14-01 and ERC/REC 14-02, ECC/REC(14)06 | U176: X | V176: X | W176: 2 | X176: 29 | Y176: 109 | AA176: X
A177: Finland | B177: FIN | C177: 29 | D177: 5925-7125 | E177: x | I177: x | K177: x | L177: x | M177: x | P177: 0 | Q177: 646 | S177: ERC/REC 14-01 and ERC/REC 14-02, ECC/REC(14)06 | U177: x | V177: x | W177: 10 | X177: 19.7 | Y177: 63.1 | Z177: + 50 | AA177: x | AC177: upper 6 GHz congested in some areas
A178: Hungary | B178: HNG | C178: 29 | D178: 5925-7125 | E178: X | I178: X | Q178: 135 | S178: ERC/REC 14-01 and ERC/REC 14-02 | V178: X | X178: 60
A179: Netherlands | B179: HOL | C179: =VLOOKUP(D179,[1]BandList!$A$2:$B$110,2,FALSE) -> 29 | D179: 5925-7125 | E179: x | I179: x | K179: x | L179: x | Q179: 64 | S179: ERC/REC 14-01 and ERC/REC 14-02, ECC/REC(14)06 | V179: x | W179: 40 | X179: 45 | Y179: 52 | AA179: x
A180: Italy | B180: =VLOOKUP(A180, '[1]Country names'!$A$5:$C$53,3,FALSE) -> I | C180: =VLOOKUP(D180,[1]BandList!$A$2:$B$110,2,FALSE) -> 29 | D180: 5925-7125 | E180: X | I180: X | K180: X | L180: X | M180: X | Q180: 1319 | S180: ERC/REC 14-01 and ERC/REC 14-02, ECC/REC(14)06 | T180: 0 | U180: 591 | V180: 728 | W180: 6.387 | X180: 31.5 | Y180: 59.38 | Z180: +10/20
A181: Ireland | B181: IRL | C181: 29 | D181: 5925-7125 | E181: X | I181: X | N181: X | Q181: 208 | S181: ERC/REC 14-01 and ERC/REC 14-02, ECC/REC(14)06 | V181: 208 | W181: 25 km
A182: Latvia | B182: LVA | C182: 29 | D182: 5925-7125 | E182: X | I182: X | K182: X | L182: X | M182: X | Q182: 105 | S182: ERC/REC 14-01 and ERC/REC 14-02 | U182: X | V182: X | W182: 20 | X182: 30 | Y182: 51 | Z182: 0.1
A183: Malta | B183: MLT | C183: 29 | D183: 5925-7125 | E183: X | I183: X | L183: X | O183: Telecomms infrastructure backhaul | Q183: 7 | S183: ERC Rec 14-01 and ERC Rec 14-02, | W183: 19.7 | X183: 20.6 | Y183: 21.5
A184: Norway | B184: NOR | C184: 29 | D184: 5925-7125 | E184: x | F184: x | M184: x | N184: x | P184: 0 | Q184: 1666 | R184: 0 | W184: 2 | X184: 24 | Y184: 123 | Z184: 5
A185: Portugal | B185: POR | C185: 29 | D185: 5925-7125 | E185: X | I185: X | K185: X | L185: X | O185: VSAT, SRD | Q185: 6 | S185: ERC/REC 14-01 | U185: X | V185: X | W185: 15 | X185: 30 | Y185: 70 | Z185: 5
A186: Portugal | B186: POR | C186: 30 | D186: 5925-7125 | E186: X | I186: X | K186: X | L186: X | O186: VSAT, SRD | Q186: 7 | S186: ERC/REC 14-02 | U186: X | V186: X | W186: 15 | X186: 30 | Y186: 70 | Z186: 5
A187: Portugal | B187: POR | C187: 31 | D187: 5925-7125 | E187: X | I187: X | O187: VSAT, SRD | S187: ECC/REC(14)06 | T187: X | W187: 10 | X187: 20 | Y187: 70 | Z187: Planned | AA187: Planned | AB187: Planned | AC187: Planned
A188: Sweden | B188: S | C188: 29 | D188: 5925-7125 | E188: X | M188: X | Q188: 928 | S188: ERC/REC 14-01 and ERC/REC 14-02, ECC/REC(14)06 | V188: X | W188: 9.3 | X188: 42.2 | Y188: 85.95 | Z188: 50 | AC188: X
A189: Switzerland | B189: SUI | C189: 29 | D189: 5925-7125 | E189: x | I189: x | K189: x | L189: x | M189: x | Q189: 46 | S189: ERC/REC 14-01 and ERC/REC 14-02, ECC/REC(14)06 | V189: x | W189: 20.2 | X189: 46.7 | Y189: 75.9 | Z189: 20
A190: Slovak Republic | B190: SVK | C190: 29 | D190: 5925-7125 | E190: X | I190: X | K190: X | R190: 70 | S190: ERC/REC 14-01 and ERC/REC 14-02, ECC/REC(14)06 | V190: X | W190: 8 | X190: 25 | Y190: 54.6 | Z190: 5
A191: Turkey | B191: TUR | C191: 29 | D191: 5925-7125 | E191: x | I191: x | Q191: 1387 | S191: ERC/REC 14-01 and ERC/REC 14-02 | W191: <1 | X191: 35 | Y191: 96
A193: Greece | B193: GRC | C193: 33 | D193: 6425-7110 | E193: X | K193: X | L193: X | M193: X | P193: 9 | Q193: 367 | S193: ERC/REC 14-02 | V193: X | W193: 7 | X193: 45 | Y193: 123 | Z193: growth
A195: Bulgaria | B195: BUL | C195: 34 | D195: 6425-7125 | E195: X | I195: X | K195: X | L195: X | P195: 0 | Q195: 228 | S195: ERC/REC 14-02, Annex 1 | V195: X | W195: 9 | X195: 30 | Y195: 97 | AA195: X | AC195: Currently congested for area of capital - Sofia
A196: Croatia | B196: HRV | C196: 34 | D196: 6425-7125 | E196: X | I196: X | K196: X | M196: X | Q196: 29 | S196: ERC/REC 14-02 | V196: X | W196: 16.12 | X196: 40.5 | Y196: 71.33
A197: Russia | B197: RUS | C197: 34 | D197: 6425-7125 | E197: X | I197: X | K197: X | L197: X | O197: X Telecom operators, industrial process communications | Q197: 1050 | S197: ITU-R Rec. F.384 | V197: X | W197: 5 | X197: 40 | Y197: 70 | AC197: Increase of use in long-distance multi-hop links in mobile backhaul, telecom operators' infrastructure, and for industrial process communications.
A198: Slovenia | B198: SVN | C198: 34 | D198: 6425-7125 | E198: X | I198: X | L198: X | P198: 0 | Q198: 1 | S198: ERC/REC 14-02 | U198: X | W198: 39 | X198: 39 | Y198: 39
A199: UK | B199: G | C199: 32 | D199: 6425-7125 | E199: X | I199: X | K199: X | L199: X | M199: X | P199: 23 | Q199: 519 | S199: ERC/REC 14-02, ITU-R Rec. F.384 | U199: X | V199: X | X199: 34
A201: Bulgaria | B201: BUL | C201: 35 | D201: 7125-7425 | E201: X | I201: X | K201: X | L201: X | P201: 0 | Q201: 73 | S201: ITU-R F.385-8 | U201: X | V201: X | W201: 20 | X201: 35 | Y201: 59 | Z201: +25 %
A202: Greece | B202: GRC | C202: 35 | D202: 7125-7425 | E202: X | L202: X | M202: X | P202: 10 | Q202: 16 | S202: ITU-R REC F.385-10 | T202: X | W202: 0.5 | X202: 16 | Y202: 56
A203: Croatia | B203: HRV | C203: 35 | D203: 7125-7425 | E203: X | I203: X | L203: X | Q203: 14 | S203: ECC REC (02)06 | T203: X | U203: X | W203: 3.76 | X203: 37.16 | Y203: 85.56
A204: Slovenia | B204: SVN | C204: 35 | D204: 7125-7425 | E204: X | I204: X | K204: X | M204: X | P204: 0 | Q204: 85 | S204: ECC REC (02)06 | V204: X | W204: 2 | X204: 29 | Y204: 72
A205: Turkey | B205: TUR | C205: 35 | D205: 7125-7425 | E205: x | I205: x | Q205: 2231 | S205: ECC REC (02)06 Annex 2.1
A207: Austria | B207: AUT | C207: 36 | D207: 7125-7750 | E207: X | I207: X | K207: X | L207: X | M207: X | Q207: 530 | S207: ECC REC (02)06 | U207: X | V207: X | W207: 1 | X207: 40 | Y207: 78
A208: Bosnia and Herzegovina | B208: BIH | C208: 36 | D208: 7125-7750 | E208: X | I208: X | L208: X | P208: 12 | Q208: 144 | S208: ECC REC (02)06 | V208: X | W208: 4 | X208: 30 | Y208: 53 | Z208: +5
A209: Czech Republic | B209: CZE | C209: 36 | D209: 7125-7750 | E209: X | I209: X | Q209: 446 | S209: see the EFIS | T209: N/A | U209: N/A | V209: N/A | X209: 24.4km
A210: Germany | B210: D | C210: 36 | D210: 7125-7750 | E210: x | I210: x | Q210: 4430 | S210: ECC REC (02)06 | U210: x | V210: x | W210: 15 | X210: 28 | Y210: 90 | AA210: x
A211: Estonia | B211: EST | C211: 36 | D211: 7125-7750 | E211: x | I211: x | K211: x | P211: 43 | S211: ECC REC (02)06 | U211: x | W211: 10 | X211: 30 | Y211: 55
A212: Finland | B212: FIN | C212: 36 | D212: 7125-7750 | E212: x | I212: x | K212: x | L212: x | P212: 0 | Q212: 363 | S212: Modified ITU-R F.385 | U212: x | V212: x | W212: 10 | X212: 29.4 | Y212: 74.9 | Z212: -25 | AD212: 7125-7425 MHz subband for non-civil FS, 7427-7725 MHz subband for civil FS
A213: Hungary | B213: HNG | C213: 36 | D213: 7125-7750 | E213: X | I213: X | L213: X | Q213: 205 | S213: ECC REC (02)06 | U213: X | X213: 40
A214: Netherlands | B214: HOL | C214: =VLOOKUP(D214,[1]BandList!$A$2:$B$110,2,FALSE) -> 36 | D214: 7125-7750 | E214: x | I214: x | K214: x | L214: x | Q214: 101 | S214: ECC REC (02)06 | T214: x | U214: x | V214: x | W214: 8 | X214: 22 | Y214: 60 | Z214: + | AA214: x
A215: Italy | B215: =VLOOKUP(A215, '[1]Country names'!$A$5:$C$53,3,FALSE) -> I | C215: =VLOOKUP(D215,[1]BandList!$A$2:$B$110,2,FALSE) -> 36 | D215: 7125-7750 | E215: X | I215: X | K215: X | L215: X | M215: X | Q215: 3379 | S215: ECC REC (02)06 | T215: 4 | U215: 2172 | V215: 1203 | W215: 4.593 | X215: 31.25 | Y215: 57.98 | Z215: +10/20
A216: Ireland | B216: IRL | C216: 36 | D216: 7125-7750 | E216: X | I216: X | N216: X | Q216: 270 | S216: ECC REC (02)06 | T216: 12 | U216: 31 | V216: 227 | W216: 25 km
A217: Latvia | B217: LVA | C217: 36 | D217: 7125-7750 | E217: X | I217: X | K217: X | L217: X | Q217: 110 | S217: ECC REC (02)06 | U217: X | V217: X | W217: 10 | X217: 35 | Y217: 55 | Z217: 0.2
A218: Malta | B218: MLT | C218: 36 | D218: 7125-7750 | E218: X | I218: X | K218: X | L218: X | M218: X | O218: Telecomms infrastructure backhaul | P218: 3 | Q218: 12 | S218: ECC Rec (02)06 | U218: X | V218: X | W218: 1.6 | X218: 13 | Y218: 25 | Z218: 0.13
A219: Norway | B219: NOR | C219: 36 | D219: 7125-7750 | E219: x | K219: x | N219: x | P219: 0 | Q219: 622 | T219: x | U219: x | V219: x | W219: 3 | X219: 32 | Y219: 106 | Z219: 5
A220: Portugal | B220: POR | C220: 36 | D220: 7125-7750 | E220: X | I220: X | L220: X | O220: FSS, Military (7.25-7.3 GHz) | Q220: 4 | S220: 7 LOW: ITU-R F.385 | T220: X | W220: 15 | X220: 30 | Y220: 50 | Z220: -100
A221: Portugal | B221: POR | C221: 37 | D221: 7125-7750 | E221: X | I221: X | K221: X | O221: FSS, Military (7.25-7.3 GHz) | Q221: 286 | S221: 7 LOW: ECC REC (02)06 | T221: X | U221: X | V221: X | W221: 10 | X221: 25 | Y221: 40 | Z221: 10
A222: Portugal | B222: POR | C222: 38 | D222: 7125-7750 | E222: X | I222: X | L222: X | O222: FSS | Q222: 4 | S222: 7 HIGH: ITU-R F.385 | T222: X | W222: 15 | X222: 30 | Y222: 50 | Z222: -100
A223: Portugal | B223: POR | C223: 39 | D223: 7125-7750 | E223: X | I223: X | K223: X | L223: X | O223: FSS | Q223: 103 | S223: 7 HIGH: ECC REC (02)06 | T223: X | U223: X | V223: X | W223: 10 | X223: 25 | Y223: 40 | Z223: 10
A224: Sweden | B224: S | C224: 36 | D224: 7125-7750 | E224: X | K224: X | L224: X | M224: X | Q224: 509 | S224: ECC REC (02)06 | T224: X | U224: X | V224: X | W224: 4.2 | X224: 27.7 | Y224: 70.5 | Z224: 25 | AA224: X
A225: Switzerland | B225: SUI | C225: 36 | D225: 7125-7750 | E225: x | I225: x | K225: x | L225: x | M225: x | Q225: 90 | S225: ECC REC (02)06 | U225: x | V225: x | W225: 11.1 | X225: 30.1 | Y225: 56.5 | Z225: 10
A226: Slovak Republic | B226: SVK | C226: 36 | D226: 7125-7750 | E226: X | I226: X | Q226: 97 | S226: ECC REC (02)06 | T226: X | U226: X | V226: X | W226: 13.2 | X226: 25 | Y226: 59.3 | Z226: 30
A228: Russia | B228: RUS | C228: 40 | D228: 7250-7550 | E228: X | I228: X | K228: X | L228: X | M228: X | O228: X Telecom operators, industrial process communications | Q228: 10890 | S228: ITU-R Rec. F.385 | T228: X | U228: X | V228: X | W228: 1 | X228: 35 | Y228: 65 | AC228: Increase of use, most of all in mobile backhaul (outside major populated areas) and in telecom operators' infrastructure and in industrial process communications.
A230: Bulgaria | B230: BUL | C230: 42 | D230: 7425-7725 | E230: X | I230: X | K230: X | P230: 0 | Q230: 404 | S230: ITU-R F.385-8 | T230: X | U230: X | V230: X | W230: 18 | X230: 30 | Y230: 98 | Z230: +25 %
A231: Greece | B231: GRC | C231: 42 | D231: 7425-7725 | E231: X | K231: X | L231: X | Q231: 1057 | S231: ECC REC (02)06 | T231: X | U231: X | V231: X | W231: 0.6 | X231: 30 | Y231: 98 | Z231: stable
A232: Croatia | B232: HRV | C232: 42 | D232: 7425-7725 | E232: X | I232: X | K232: X | L232: X | M232: X | Q232: 181 | S232: ECC REC (02)06 | U232: X | V232: X | W232: 7.08 | X232: 32 | Y232: 88.87 | Z232: 20 | AA232: X
A233: Slovenia | B233: SVN | C233: 42 | D233: 7425-7725 | E233: X | I233: X | K233: X | L233: X | M233: X | P233: 0 | Q233: 39 | S233: ECC REC (02)06 | U233: X | V233: X | W233: 6 | X233: 23 | Y233: 53 | AA233: X
... 491 more rows

Sheet Ranges summary
A1: 1 | B1: 2 | C1: 3 | D1: 4 | E1: 5 | F1: 6 | G1: 7 | H1: 8 | I1: 9 | J1: 10 | K1: 11 | L1: 12 | M1: 13 | N1: 14 | O1: 15 | P1: 16 | Q1: 17 | R1: 18 | S1: 19 | T1: 20 | U1: 21 | V1: 22 | W1: 23 | X1: 24 | Y1: 25 | Z1: 26 | AA1: 27 | AB1: 28 | AC1: 29 | AD1: 30 | AE1: 31 | AF1: 32 | AG1: 33 | AH1: 34 | AI1: 35 | AJ1: 36 | AK1: 37 | AL1: 38 | AM1: 39 | AN1: 40 | AO1: 41 | AP1: 42 | AQ1: 43 | AR1: 44 | AS1: 45 | AT1: 46 | AU1: 47 | AV1: 48 | AW1: 49 | AX1: 50 | AY1: 51 | AZ1: 52 | BA1: 53 | BB1: 54 | BC1: 55 | BD1: 56 | BE1: 57 | BF1: 58 | BG1: 59 | BH1: 60 | BI1: 61 | BJ1: 62 | BK1: 63 | BL1: 64 | BM1: 65 | BN1: 66 | BO1: 67 | BP1: 68 | BQ1: 69 | BR1: 70 | BS1: 71 | BT1: 72 | BU1: 73 | BV1: 74 | BW1: 75 | BX1: 76 | BY1: 77 | BZ1: 78 | CA1: 79 | CB1: 80
A2: Admin number | B2: Half Band | C2: Band index | D2: Frequency band (MHz) | E2: Licensing regime | J2: Topo-logy | M2: Application | R2: Number of P-P links | T2: Number of CS | U2: Channel/Frequency plan used (e.g. ERC/ECC Rec. ITU-R Rec.) | W2: Link characteristics | AC2: Future trends (e.g. in the next 5 years) | AI2: 0.1 Percentile | AJ2: 0.3 Percentile | AK2: 0.5 Percentile | AL2: 0.7 Percentile | AM2: 0.95 Percentile | AN2: 1 Percentile | AO2: 0.1 Percentile | AP2: 0.3 Percentile | AQ2: 0.5 Percentile | AR2: 0.7 Percentile | AS2: 0.95 Percentile | AT2: 1 Percentile | AU2: 0.1 Percentile | AV2: 0.3 Percentile | AW2: 0.5 Percentile | AX2: 0.7 Percentile | AY2: 0.95 Percentile | AZ2: 1 Percentile | BA2: 0.1 Percentile | BB2: 0.3 Percentile | BC2: 0.5 Percentile | BD2: 0.7 Percentile | BE2: 0.95 Percentile | BF2: 1 Percentile
J3: FWA | M3: Network Infrastruc-ture | W3: Capacity | Z3: Hop length (km) | AI3: L min | AN3: L min | AO3: L Typ | AT3: L Typ | AU3: L max | AZ3: L max
E4: Link by link | F4: Block | G4: Light licensed | H4: Licence exempt | I4: link-by-link + Block | J4: P-P | K4: P-MP | L4: PtP + PMP | M4: Mobile backhaul | N4: Others | O4: Broadcasting Infrastructure | P4: No Information available on the application | Q4: Other (please indicate) | R4: unidirectional | S4: bidirectional (1 bidirectional link counts 1) | T4: (applicable only for P-MP and mesh networks) | V4: National plans | W4: LOW (<10 Mbit/s) | X4: MEDIUM (10 to 100 Mbit/s) | Y4: HIGH (>100 Mbit/s) | Z4: MIN | AA4: Typical figure | AB4: MAX | AC4: Anticipated growth | AD4: Anticipated reduction | AE4: Currently congested | AF4: Planned reallocation to other service/application | AG4: Other (please describe) (see Question 3 of the Questionnaire)
A5: 14 | B5: 1.4335 | C5: 1 | D5: 1350-1375 and 1492-1517 | E5: 11 | F5: 2 | J5: 10 | K5: 1 | N5: 6 | O5: 3 | P5: 2 | Q5: 1 | R5: 142 | S5: 1088 | T5: 16 | U5: 12 | V5: 2 | W5: 8 | X5: 2 | Z5: 0.6 | AB5: 82 | AD5: 2 | AF5: 7 | AG5: 2 | AH5: 1 | AI5: 0.8 | AJ5: 2 | AK5: 3.5 | AL5: 4.5 | AM5: 8.2475 | AN5: 9.33 | AO5: 12.165 | AP5: 16.5 | AQ5: 18 | AR5: 19 | AS5: 27.5 | AT5: 30 | AU5: 29.665 | AV5: 52.5 | AW5: 57.5 | AX5: 65 | AY5: 79 | AZ5: 82
A6: 1 | B6: 1.434 | C6: 2 | D6: 1350-1375 and 1492-1518 | E6: 1 | K6: 1 | T6: 9 | U6: 1 | W6: 1 | Z6: 5 | AB6: 25 | AD6: 1
A7: 16 | B7: 1.4135 | C7: 3 | D7: 1375-1400 and 1427-1452 | E7: 15 | J7: 12 | K7: 1 | L7: 1 | N7: 5 | O7: 3 | P7: 1 | Q7: 1 | R7: 142 | S7: 1961 | U7: 12 | V7: 1 | W7: 11 | X7: 1 | Z7: 0.08 | AB7: 152 | AC7: 1 | AD7: 3 | AF7: 8 | AG7: 4 | AH7: 1 | AI7: 0.304 | AJ7: 0.82 | AK7: 1.5 | AL7: 2.9 | AM7: 21.4655 | AN7: 28 | AO7: 8.864 | AP7: 12.9 | AQ7: 19 | AR7: 20.3 | AS7: 41.2 | AT7: 52 | AU7: 25.899 | AV7: 60.14 | AW7: 63.7 | AX7: 69.6 | AY7: 127.5 | AZ7: 152
A8: 1 | B8: 1.476 | C8: 4 | D8: 1437,5-1465,5 and 1486,5-1514,5 | F8: 1 | K8: 1 | Q8: 1 | V8: 1 | AD8: 1 | AG8: 1
A9: 1 | B9: 1.47 | C9: 5 | D9: 1440-1500 | E9: 1 | J9: 1 | N9: 1 | S9: 39 | AD9: 1 | AF9: 1
A10: 1 | B10: 1.499 | C10: 6 | D10: 1492–1506 | E10: 1 | K10: 1 | M10: 1 | T10: 19 | U10: 1 | W10: 1 | Z10: 1 | AB10: 10
A11: 1 | B11: 1.521 | C11: 7 | D11: 1517-1525 | E11: 1 | O11: 1 | R11: 347 | V11: 1 | W11: 1 | Z11: 5 | AB11: 30 | AC11: 1
A12: 1 | B12: 1.5215 | C12: 8 | D12: 1518 - 1525 | E12: 1 | J12: 1 | O12: 1 | R12: 24 | W12: 1 | Z12: 1.1 | AB12: 36.6
A13: 1 | B13: 1.524 | C13: 9 | D13: 1518-1530 | E13: 1 | J13: 1 | O13: 1 | R13: 61 | V13: 1 | W13: 1 | Z13: 1 | AB13: 46 | AC13: 1 | AG13: 1
A14: 1 | B14: 1.681 | C14: 10 | D14: 1672 - 1690 | J14: 1 | N14: 1 | S14: 2 | W14: 1
A15: 1 | B15: 1.75 | C15: 11 | D15: 1700-1709 and 1786-1800 | E15: 1 | O15: 1 | R15: 192 | V15: 1 | W15: 1 | X15: 1 | Z15: 7 | AB15: 90 | AD15: 1 | AF15: 1
A16: 1 | B16: 2.295 | C16: 12 | D16: 1900-2690 | E16: 1 | M16: 1 | N16: 1 | S16: 3 | W16: 1
A17: 14 | B17: 2.1575 | C17: 13 | D17: 2025-2110 and 2200-2290 | E17: 11 | F17: 1 | G17: 1 | J17: 10 | N17: 3 | O17: 6 | P17: 4 | Q17: 2 | R17: 48 | S17: 80 | U17: 14 | W17: 4 | X17: 4 | Z17: 2 | AB17: 290 | AD17: 1 | AG17: 1 | AH17: 1 | AI17: 2.3 | AJ17: 2.9 | AK17: 4 | AL17: 5.27 | AM17: 7.295 | AN17: 7.7 | AO17: 4.55 | AP17: 7.25 | AQ17: 12.85 | AR17: 18.4 | AS17: 21.4 | AT17: 22 | AU17: 5.55 | AV17: 31.35 | AW17: 57.5 | AX17: 125 | AY17: 265 | AZ17: 290
A18: 1 | B18: 2.0975 | C18: 14 | D18: 2085-2110 | E18: 1 | J18: 1 | O18: 1 | R18: 189 | V18: 1 | Z18: 0.09 | AB18: 55.74 | AC18: 1
A19: 1 | B19: 2.44175 | C19: 15 | D19: 2400-2483.5 | E19: 1 | H19: 1 | J19: 1 | K19: 1 | L19: 1 | Q19: 1 | S19: 8922 | T19: 4108 | W19: 1 | X19: 1 | Y19: 1 | Z19: 0.05 | AB19: 70 | AG19: 1
A20: 22 | B20: 3.5 | C20: 16 | D20: 3400-3600 | E20: 10 | F20: 12 | J20: 8 | K20: 18 | L20: 5 | M20: 2 | N20: 8 | O20: 2 | P20: 1 | Q20: 4 | R20: 94 | S20: 202 | T20: 7778 | U20: 18 | V20: 2 | W20: 4 | X20: 10 | Y20: 3 | Z20: 1 | AB20: 140 | AC20: 2 | AD20: 3 | AF20: 9 | AG20: 2 | AH20: 2 | AI20: 1 | AJ20: 1.5 | AK20: 2.5 | AL20: 6.05 | AM20: 17.275 | AN20: 20 | AO20: 9.46 | AP20: 11 | AQ20: 15 | AR20: 31 | AS20: 47 | AT20: 50 | AU20: 14.55 | AV20: 22.5 | AW20: 27.5 | AX20: 55 | AY20: 125 | AZ20: 140
A21: 1 | B21: 3.7445 | C21: 17 | D21: 3480 – 3500//3580 – 3600; 3605 – 3689//3925 – 4009 | F21: 1
A22: 2 | B22: 3.7 | C22: 18 | D22: 3600-3800 | E22: 2 | J22: 2 | N22: 1 | Q22: 1 | S22: 21 | U22: 1 | V22: 1 | X22: 2 | Z22: 13 | AB22: 73 | AD22: 1 | AF22: 1 | AG22: 1 | AI22: 13 | AJ22: 13 | AK22: 13 | AL22: 13 | AM22: 13 | AN22: 13 | AO22: 51 | AP22: 51 | AQ22: 51 | AR22: 51 | AS22: 51 | AT22: 51 | AU22: 73 | AV22: 73 | AW22: 73 | AX22: 73 | AY22: 73 | AZ22: 73
A23: 16 | B23: 3.9 | C23: 19 | D23: 3600-4200 | E23: 10 | F23: 7 | J23: 8 | K23: 10 | L23: 1 | M23: 3 | N23: 4 | O23: 3 | Q23: 4 | R23: 191 | S23: 815 | T23: 957 | U23: 15 | W23: 2 | X23: 8 | Y23: 6 | Z23: 1 | AB23: 100 | AC23: 3 | AD23: 1 | AF23: 6 | AG23: 1 | AH23: 2 | AI23: 1 | AJ23: 7.4 | AK23: 13 | AL23: 20 | AM23: 20 | AN23: 20 | AO23: 22.8 | AP23: 43.6 | AQ23: 50 | AR23: 50 | AS23: 58 | AT23: 60 | AU23: 22.5 | AV23: 45 | AW23: 72.5 | AX23: 89.5 | AY23: 99.75 | AZ23: 100
A24: 1 | B24: 3.942 | C24: 20 | D24: 3689-3875//4009-4195 | E24: 1 | J24: 1 | M24: 1 | N24: 1 | O24: 1 | S24: 65 | U24: 1 | Y24: 1
A25: 5 | B25: 4 | C25: 21 | D25: 3800-4200 | E25: 4 | J25: 3 | N25: 1 | O25: 2 | S25: 402 | U25: 5 | X25: 1 | Y25: 2 | Z25: 11 | AB25: 101 | AD25: 1 | AI25: 12.854 | AJ25: 16.562 | AK25: 20.27 | AL25: 22.962 | AM25: 26.327 | AN25: 27 | AO25: 40.2 | AP25: 54.6 | AQ25: 58.665 | AR25: 60.697 | AS25: 63.4495 | AT25: 64 | AU25: 69.9 | AV25: 71.7 | AW25: 81.785 | AX25: 92.513 | AY25: 99.5855 | AZ25: 101
A26: 7 | B26: 4.7 | C26: 22 | D26: 4400-5000 | E26: 3 | J26: 1 | N26: 1 | O26: 1 | P26: 1 | Q26: 4 | R26: 10 | S26: 311 | U26: 1 | V26: 1 | X26: 1 | Y26: 1 | Z26: 10 | AB26: 80 | AG26: 1 | AH26: 1 | AI26: 11.2 | AJ26: 13.6 | AK26: 16 | AL26: 18.4 | AM26: 21.4 | AN26: 22 | AO26: 24.3 | AP26: 28.9 | AQ26: 33.5 | AR26: 38.1 | AS26: 43.85 | AT26: 45 | AU26: 27.8 | AV26: 39.4 | AW26: 51 | AX26: 62.6 | AY26: 77.1 | AZ26: 80
A27: 1 | B27: 5.25 | C27: 23 | D27: 5150-5350 | E27: 1 | J27: 1 | K27: 1 | L27: 1 | Q27: 1 | S27: 1282 | T27: 5419 | W27: 1 | X27: 1 | Y27: 1 | Z27: 0.5 | AB27: 30 | AG27: 1
A28: 1 | B28: 5.75 | C28: 24 | D28: 5650-5850 | E28: 1 | J28: 1 | K28: 1 | L28: 1 | Q28: 1 | S28: 2258 | T28: 3802 | V28: 1 | W28: 1 | X28: 1 | Y28: 1 | Z28: 0.05 | AB28: 32 | AG28: 1
A29: 1 | B29: 5.76 | C29: 25 | D29: 5725-5795 | G29: 1 | J29: 1 | K29: 1 | L29: 1 | T29: 25 | AC29: 1
A30: 8 | B30: 5.8875 | C30: 26 | D30: 5850-5925 | E30: 2 | F30: 1 | G30: 1 | H30: 3 | J30: 3 | K30: 4 | L30: 2 | M30: 1 | N30: 1 | P30: 1 | Q30: 2 | S30: 813 | T30: 1150 | V30: 2 | W30: 1 | X30: 2 | Y30: 1 | Z30: 1 | AB30: 68 | AG30: 1 | AH30: 1 | AI30: 1.3 | AJ30: 1.9 | AK30: 2.5 | AL30: 3.1 | AM30: 3.85 | AN30: 4 | AO30: 13.2 | AP30: 19.6 | AQ30: 26 | AR30: 32.4 | AS30: 40.4 | AT30: 42 | AU30: 42.8 | AV30: 48.4 | AW30: 54 | AX30: 59.6 | AY30: 66.6 | AZ30: 68
A31: 6 | B31: 6.175 | C31: 27 | D31: 5925-6425 | E31: 6 | J31: 5 | K31: 1 | L31: 1 | M31: 6 | N31: 4 | O31: 3 | Q31: 1 | R31: 38 | S31: 5447 | T31: 5300 | U31: 6 | W31: 1 | X31: 4 | Y31: 6 | Z31: 1 | AB31: 98 | AC31: 1 | AE31: 1 | AG31: 2 | AI31: 3 | AJ31: 6.2 | AK31: 7 | AL31: 9.4 | AM31: 10.56 | AN31: 10.7 | AO31: 15.5 | AP31: 26.5 | AQ31: 32.86 | AR31: 36.86 | AS31: 40 | AT31: 40 | AU31: 39.8 | AV31: 54 | AW31: 70 | AX31: 70.744 | AY31: 92.586 | AZ31: 98
A32: 19 | B32: 6.525 | C32: 28 | D32: 5925-7125 | E32: 21 | F32: 1 | I32: 1 | J32: 19 | M32: 11 | N32: 11 | O32: 7 | P32: 2 | Q32: 4 | R32: 10 | S32: 15306 | T32: 70 | U32: 19 | W32: 1 | X32: 7 | Y32: 13 | Z32: 2 | AB32: 631 | AC32: 10 | AE32: 4 | AF32: 1 | AG32: 3 | AI32: 2 | AJ32: 7.1935 | AK32: 10 | AL32: 15 | AM32: 25.15 | AN32: 40 | AO32: 24.4 | AP32: 30.3 | AQ32: 40 | AR32: 45 | AS32: 66 | AT32: 80 | AU32: 51.5 | AV32: 63.19 | AW32: 70 | AX32: 80.925 | AY32: 127.25 | AZ32: 140
A33: 1 | B33: 6.7675 | C33: 29 | D33: 6425-7110 | E33: 1 | M33: 1 | N33: 1 | O33: 1 | R33: 9 | S33: 367 | U33: 1 | Y33: 1 | Z33: 7 | AB33: 123 | AC33: 1
A34: 5 | B34: 6.775 | C34: 30 | D34: 6425-7125 | E34: 5 | J34: 5 | M34: 4 | N34: 4 | O34: 2 | Q34: 1 | R34: 23 | S34: 1827 | U34: 5 | X34: 2 | Y34: 4 | Z34: 5 | AB34: 97 | AE34: 1 | AG34: 2 | AI34: 6.2 | AJ34: 8.6 | AK34: 12.56 | AL34: 18.408 | AM34: 35.568 | AN34: 39 | AO34: 31.6 | AP34: 35 | AQ34: 39 | AR34: 39.8 | AS34: 40.4 | AT34: 40.5 | AU34: 48.3 | AV34: 66.9 | AW34: 70.665 | AX34: 73.897 | AY34: 93.1495 | AZ34: 97
A35: 5 | B35: 7.275 | C35: 31 | D35: 7125-7425 | E35: 5 | J35: 4 | M35: 2 | N35: 3 | O35: 2 | R35: 10 | S35: 2419 | U35: 5 | W35: 2 | X35: 2 | Y35: 2 | Z35: 0.5 | AB35: 85.56 | AC35: 1 | AI35: 0.95 | AJ35: 1.85 | AK35: 2.88 | AL35: 5.384 | AM35: 17.564 | AN35: 20 | AO35: 19.9 | AP35: 27.7 | AQ35: 32 | AR35: 35.216 | AS35: 36.836 | AT35: 37.16 | AU35: 56.9 | AV35: 58.7 | AW35: 65.5 | AX35: 73.356 | AY35: 83.526 | AZ35: 85.56
A36: 17 | B36: 7.4375 | C36: 32 | D36: 7125-7750 | E36: 20 | J36: 18 | M36: 12 | N36: 13 | O36: 5 | P36: 2 | Q36: 5 | R36: 58 | S36: 11705 | U36: 18 | W36: 8 | X36: 14 | Y36: 13 | Z36: 1 | AB36: 749 | AC36: 11 | AD36: 3 | AE36: 3 | AH36: 1 | AI36: 2.44 | AJ36: 4.5144 | AK36: 10 | AL36: 10.22 | AM36: 15 | AN36: 15 | AO36: 22.6 | AP36: 27.88 | AQ36: 30 | AR36: 31.55 | AS36: 40 | AT36: 40 | AU36: 40 | AV36: 51.5 | AW36: 55.75 | AX36: 59.65 | AY36: 94 | AZ36: 106
A37: 1 | B37: 7.4 | C37: 33 | D37: 7250-7550 | E37: 1 | J37: 1 | M37: 1 | N37: 1 | O37: 1 | Q37: 1 | S37: 10890 | U37: 1 | W37: 1 | X37: 1 | Y37: 1 | Z37: 1 | AB37: 65 | AG37: 1
A38: 4 | B38: 7.575 | C38: 34 | D38: 7425-7725 | E38: 4 | J38: 3 | M38: 4 | N38: 3 | O38: 2 | S38: 1681 | U38: 4 | W38: 2 | X38: 4 | Y38: 4 | Z38: 0.6 | AB38: 98 | AC38: 2 | AE38: 2 | AI38: 2.22 | AJ38: 5.46 | AK38: 6.54 | AL38: 8.172 | AM38: 16.362 | AN38: 18 | AO38: 25.1 | AP38: 29.3 | AQ38: 30 | AR38: 30.2 | AS38: 31.7 | AT38: 32 | AU38: 63.761 | AV38: 85.283 | AW38: 93.435 | AX38: 98 | AY38: 98 | AZ38: 98
A39: 2 | B39: 7.6625 | C39: 35 | D39: 7425-7900 | E39: 2 | J39: 2 | M39: 1 | N39: 1 | O39: 1 | R39: 51 | S39: 4863 | U39: 2 | W39: 1 | X39: 1 | Y39: 1 | AO39: 32 | AP39: 32 | AQ39: 32 | AR39: 32 | AS39: 32 | AT39: 32
A40: 1 | B40: 7.77625 | C40: 36 | D40: 7725-7827,5 | E40: 1 | J40: 1 | M40: 1 | S40: 454 | U40: 1 | V40: 1 | W40: 1 | X40: 1 | Y40: 1 | Z40: 7 | AB40: 58 | AC40: 1
A41: 9 | B41: 7.825 | C41: 37 | D41: 7750-7900 | E41: 8 | J41: 7 | M41: 3 | N41: 3 | O41: 1 | P41: 3 | Q41: 1 | R41: 40 | S41: 566 | U41: 5 | W41: 1 | X41: 4 | Y41: 3 | Z41: 3 | AB41: 80 | AC41: 4 | AI41: 5.1 | AJ41: 9.3 | AK41: 10 | AL41: 10.145 | AM41: 11.2325 | AN41: 11.45 | AO41: 29 | AP41: 36 | AQ41: 40 | AR41: 40 | AS41: 48 | AT41: 50 | AU41: 50 | AV41: 50 | AW41: 52.6 | AX41: 57.68 | AY41: 76.28 | AZ41: 80
A42: 1 | B42: 8.15 | C42: 38 | D42: 7900-8400 | E42: 1 | J42: 1 | M42: 1 | N42: 1 | O42: 1 | Q42: 1 | S42: 11540 | U42: 1 | W42: 1 | X42: 1 | Y42: 1 | Z42: 1 | AB42: 65 | AG42: 1
A43: 3 | B43: 8 | C43: 39 | D43: 7725-8275 | E43: 3 | J43: 2 | M43: 1 | N43: 1 | O43: 2 | S43: 1243 | U43: 3 | X43: 1 | Y43: 3 | Z43: 2 | AB43: 102 | AC43: 1 | AD43: 1 | AI43: 2.6 | AJ43: 3.8 | AK43: 5 | AL43: 11.456 | AM43: 19.526 | AN43: 21.14 | AO43: 30.2 | AP43: 36.6 | AQ43: 43 | AR43: 46.72 | AS43: 51.37 | AT43: 52.3 | AU43: 58.314 | AV43: 74.942 | AW43: 91.57 | AX43: 95.742 | AY43: 100.957 | AZ43: 102
A44: 13 | B44: 8.2 | C44: 40 | D44: 7900-8500 | E44: 10 | F44: 2 | J44: 9 | M44: 6 | N44: 5 | O44: 3 | P44: 3 | Q44: 3 | R44: 22 | S44: 7006 | U44: 12 | V44: 1 | W44: 2 | X44: 7 | Y44: 5 | Z44: 0.15 | AB44: 171 | AC44: 3 | AE44: 1 | AF44: 1 | AG44: 1 | AI44: 1.525 | AJ44: 4.15 | AK44: 6.2 | AL44: 7.5 | AM44: 9.5 | AN44: 10 | AO44: 16.56 | AP44: 19.36 | AQ44: 24.8 | AR44: 24.96 | AS44: 27.4 | AT44: 28 | AU44: 34.98 | AV44: 45.4 | AW44: 47 | AX44: 73.08 | AY44: 80.72 | AZ44: 81
A45: 3 | B45: 8.3875 | C45: 41 | D45: 8275-8500 | E45: 3 | J45: 2 | M45: 2 | N45: 2 | O45: 1 | S45: 122 | U45: 3 | W45: 1 | X45: 2 | Y45: 3 | Z45: 9 | AB45: 79 | AD45: 1 | AI45: 11.614 | AJ45: 16.842 | AK45: 22.07 | AL45: 24.442 | AM45: 27.407 | AN45: 28 | AO45: 29.4 | AP45: 32.2 | AQ45: 35 | AR45: 38.6 | AS45: 43.1 | AT45: 44 | AU45: 35.332 | AV45: 49.996 | AW45: 64.66 | AX45: 70.396 | AY45: 77.566 | AZ45: 79
A46: 18 | B46: 10.34 | C46: 42 | D46: 10000-10680 | E46: 13 | F46: 5 | H46: 1 | I46: 1 | J46: 12 | K46: 5 | L46: 2 | M46: 2 | N46: 7 | O46: 8 | P46: 2 | Q46: 4 | R46: 234 | S46: 678 | T46: 890 | U46: 15 | V46: 2 | W46: 5 | X46: 10 | Y46: 2 | Z46: 0.3 | AB46: 142 | AC46: 5 | AD46: 2 | AG46: 2 | AI46: 0.39 | AJ46: 1 | AK46: 2 | AL46: 3.3 | AM46: 5.88 | AN46: 6.6 | AO46: 5 | AP46: 8 | AQ46: 14 | AR46: 20.4 | AS46: 27.5 | AT46: 30 | AU46: 10.63 | AV46: 14.46 | AW46: 30 | AX46: 43.25 | AY46: 90.45 | AZ46: 99
A47: 1 | B47: 10.35 | C47: 43 | D47: 10125 – 10205 GHz//10475 – 10555; 10205 – 10225//10555 – 10575 | F47: 1
A48: 1 | B48: 10.415 | C48: 44 | D48: 10150-10680 | E48: 1 | J48: 1 | O48: 1 | R48: 53 | S48: 1 | U48: 1 | W48: 1 | Z48: 0.2 | AB48: 42 | AC48: 1
A49: 1 | B49: 10.59 | C49: 45 | D49: 10500-10680 | F49: 1 | J49: 1 | S49: 5229 | U49: 1
A50: 19 | B50: 11.2 | C50: 46 | D50: 10700-11700 | E50: 16 | F50: 1 | J50: 15 | M50: 10 | N50: 10 | O50: 9 | P50: 1 | Q50: 2 | R50: 48 | S50: 16470 | U50: 17 | W50: 1 | X50: 6 | Y50: 13 | Z50: 0.6 | AB50: 71 | AC50: 5 | AD50: 3 | AE50: 1 | AG50: 2 | AI50: 1.045 | AJ50: 1.4734 | AK50: 2.85 | AL50: 5 | AM50: 9.78 | AN50: 10 | AO50: 12.2 | AP50: 14.2 | AQ50: 19 | AR50: 23.104 | AS50: 42.4 | AT50: 46 | AU50: 27.287 | AV50: 30.849 | AW50: 37.755 | AX50: 43.5 | AY50: 67.7 | AZ50: 71
A51: 1 | B51: 11.24 | C51: 47 | D51: 10755-11725 | E51: 1 | J51: 1 | M51: 1 | N51: 1 | R51: 5 | S51: 242 | U51: 1 | X51: 1 | Y51: 1 | Z51: 3 | AB51: 46 | AC51: 1
A52: 7 | B52: 12.1 | C52: 48 | D52: 11700-12500 | E52: 1 | F52: 2 | J52: 1 | K52: 3 | O52: 2 | Q52: 2 | R52: 2 | T52: 252 | V52: 2 | X52: 1 | Y52: 1 | Z52: 5.4 | AB52: 23 | AG52: 1 | AH52: 2 | AI52: 5.4 | AJ52: 5.4 | AK52: 5.4 | AL52: 5.4 | AM52: 5.4 | AN52: 5.4 | AO52: 14.2 | AP52: 14.2 | AQ52: 14.2 | AR52: 14.2 | AS52: 14.2 | AT52: 14.2 | AU52: 23 | AV52: 23 | AW52: 23 | AX52: 23 | AY52: 23 | AZ52: 23
A53: 1 | B53: 12.1125 | C53: 49 | D53: 11725-12500 | E53: 1 | J53: 1 | N53: 1 | R53: 3 | V53: 1 | W53: 1 | X53: 1 | Z53: 2 | AB53: 4 | AG53: 1
A54: 24 | B54: 13 | C54: 50 | D54: 12750-13250 | E54: 24 | F54: 1 | J54: 21 | M54: 17 | N54: 16 | O54: 9 | P54: 3 | Q54: 2 | R54: 41 | S54: 72159 | U54: 23 | W54: 9 | X54: 15 | Y54: 17 | Z54: 0.31 | AB54: 349 | AC54: 11 | AD54: 1 | AE54: 8 | AG54: 1 | AH54: 1 | AI54: 1 | AJ54: 1 | AK54: 1.71 | AL54: 2.09 | AM54: 6.055 | AN54: 7.5 | AO54: 11.6 | AP54: 14.472 | AQ54: 17.39 | AR54: 18.9 | AS54: 25.5 | AT54: 30 | AU54: 34.31 | AV54: 44.2 | AW54: 48 | AX54: 51.75 | AY54: 62.0645 | AZ54: 79.43
A55: 8 | B55: 14.375 | C55: 51 | D55: 14250-14500 | E55: 4 | J55: 4 | M55: 1 | N55: 1 | O55: 4 | Q55: 3 | R55: 1091 | S55: 333 | U55: 1 | W55: 2 | X55: 2 | Z55: 1 | AB55: 35 | AC55: 1 | AF55: 1 | AG55: 2 | AH55: 1 | AI55: 1.06 | AJ55: 1.18 | AK55: 1.3 | AL55: 2.78 | AM55: 4.63 | AN55: 5 | AO55: 12.6 | AP55: 13.8 | AQ55: 15 | AR55: 17.8 | AS55: 21.3 | AT55: 22 | AU55: 26 | AV55: 28 | AW55: 30 | AX55: 32 | AY55: 34.5 | AZ55: 35
A56: 18 | B56: 14.925 | C56: 52 | D56: 14500-14620 and 15230-15350 | E56: 17 | F56: 2 | J56: 17 | M56: 10 | N56: 9 | O56: 5 | P56: 2 | R56: 361 | S56: 27043 | U56: 16 | V56: 1 | W56: 8 | X56: 12 | Y56: 7 | Z56: 0.3 | AB56: 322 | AC56: 6 | AD56: 3 | AE56: 4 | AH56: 1 | AI56: 0.5102 | AJ56: 1 | AK56: 5 | AL56: 5.4 | AM56: 11.18 | AN56: 12.95 | AO56: 13.0266 | AP56: 14 | AQ56: 15 | AR56: 15.12 | AS56: 25 | AT56: 25 | AU56: 17.304 | AV56: 29.68 | AW56: 41 | AX56: 48 | AY56: 62.96 | AZ56: 74.9
A57: 5 | B57: 14.925 | C57: 53 | D57: 14500-15350 | E57: 5 | J57: 4 | M57: 5 | N57: 4 | O57: 2 | Q57: 2 | R57: 1 | S57: 29823 | U57: 4 | V57: 1 | W57: 3 | X57: 3 | Y57: 5 | Z57: 0.2 | AB57: 57 | AC57: 2 | AG57: 2 | AI57: 0.44 | AJ57: 0.92 | AK57: 1 | AL57: 1.3 | AM57: 3.55 | AN57: 4 | AO57: 10.66 | AP57: 13.2 | AQ57: 14 | AR57: 14.8 | AS57: 15 | AT57: 15 | AU57: 23 | AV57: 29 | AW57: 30 | AX57: 32.7 | AY57: 52.95 | AZ57: 57
A58: 6 | B58: 17.5 | C58: 54 | D58: 17300-17700 | E58: 1 | J58: 1 | N58: 1 | O58: 1 | Q58: 2 | S58: 1 | Y58: 1 | AH58: 1 | AO58: 0.5 | AP58: 0.5 | AQ58: 0.5 | AR58: 0.5 | AS58: 0.5 | AT58: 0.5
A59: 25 | B59: 18.7 | C59: 55 | D59: 17700-19700 | E59: 26 | F59: 1 | J59: 23 | M59: 19 | N59: 16 | O59: 9 | P59: 2 | Q59: 3 | R59: 544 | S59: 139776 | U59: 23 | W59: 12 | X59: 18 | Y59: 20 | Z59: 0.1 | AB59: 266 | AC59: 16 | AE59: 3 | AG59: 1 | AH59: 1 | AI59: 0.191 | AJ59: 0.2913 | AK59: 1 | AL59: 2 | AM59: 4 | AN59: 4 | AO59: 5 | AP59: 8.08 | AQ59: 9 | AR59: 10 | AS59: 18.2 | AT59: 20 | AU59: 17.8822 | AV59: 20 | AW59: 30.5 | AX59: 38 | AY59: 45.125 | AZ59: 76
A60: 7 | B60: 21.6 | C60: 56 | D60: 21200-22000 | E60: 4 | J60: 4 | M60: 1 | N60: 1 | O60: 1 | Q60: 2 | S60: 220 | U60: 2 | W60: 1 | X60: 1 | AG60: 1 | AH60: 1 | AO60: 5 | AP60: 5 | AQ60: 5 | AR60: 5 | AS60: 5 | AT60: 5
A61: 1 | B61: 22.4 | C61: 57 | D61: 21200-23600 | E61: 1 | J61: 1 | M61: 1 | N61: 1 | Q61: 1 | S61: 29200 | U61: 1 | W61: 1 | X61: 1 | Y61: 1 | Z61: 1 | AB61: 15 | AG61: 1
A62: 21 | B62: 22.8 | C62: 58 | D62: 22000-22600 and 23000-23600 | E62: 21 | F62: 2 | J62: 20 | M62: 14 | N62: 9 | O62: 3 | P62: 1 | Q62: 1 | R62: 550 | S62: 94413 | U62: 20 | W62: 9 | X62: 17 | Y62: 15 | Z62: 0.1 | AB62: 175 | AC62: 12 | AD62: 1 | AE62: 4 | AG62: 2 | AH62: 2 | AI62: 0.12 | AJ62: 0.225 | AK62: 0.5 | AL62: 1 | AM62: 4 | AN62: 4 | AO62: 5 | AP62: 6.25 | AQ62: 6.815 | AR62: 7.9 | AS62: 10.5 | AT62: 12 | AU62: 11.726 | AV62: 16 | AW62: 20.6 | AX62: 26 | AY62: 51 | AZ62: 51
A63: 2 | B63: 22.8 | C63: 59 | D63: 22000-23600 | E63: 2 | J63: 1 | M63: 2 | N63: 2 | O63: 1 | R63: 11 | S63: 5883 | U63: 2 | W63: 2 | X63: 2 | Y63: 2 | Z63: 0.1 | AB63: 15 | AC63: 1 | AI63: 0.1 | AJ63: 0.1 | AK63: 0.1 | AL63: 0.1 | AM63: 0.1 | AN63: 0.1 | AO63: 4.4 | AP63: 5.2 | AQ63: 6 | AR63: 6.8 | AS63: 7.8 | AT63: 8 | AU63: 15 | AV63: 15 | AW63: 15 | AX63: 15 | AY63: 15 | AZ63: 15
A64: 1 | B64: 22.792 | C64: 60 | D64: 22008-23576 | E64: 1 | J64: 1 | M64: 1 | N64: 1 | S64: 903 | U64: 1 | W64: 1 | X64: 1 | Y64: 1 | Z64: 0.2 | AB64: 21 | AC64: 1
A65: 8 | B65: 22.8 | C65: 61 | D65: 22600-23000 | E65: 6 | J65: 5 | N65: 2 | O65: 3 | Q65: 1 | R65: 1 | S65: 8 | U65: 4 | V65: 1 | W65: 1 | X65: 2 | Y65: 1 | AC65: 1 | AF65: 1 | AG65: 2 | AH65: 1 | AO65: 8 | AP65: 8 | AQ65: 8 | AR65: 8 | AS65: 8 | AT65: 8
A66: 9 | B66: 24.375 | C66: 62 | D66: 24250-24500 | E66: 2 | H66: 1 | J66: 2 | O66: 3 | Q66: 2 | U66: 2 | V66: 1 | X66: 1 | Y66: 1 | AC66: 1 | AF66: 1 | AH66: 2
A67: 1 | B67: 25.1125 | C67: 63 | D67: 24500–24717/25557–25725 | E67: 1 | J67: 1 | M67: 1 | S67: 33 | U67: 1 | X67: 1 | Y67: 1 | Z67: 0.2 | AB67: 5 | AC67: 1
A68: 20 | B68: 25.5 | C68: 64 | D68: 24500-26500 | E68: 20 | F68: 11 | I68: 4 | J68: 19 | K68: 11 | L68: 6 | M68: 13 | N68: 6 | O68: 3 | Q68: 2 | R68: 17 | S68: 51678 | T68: 4234 | U68: 19 | W68: 9 | X68: 15 | Y68: 14 | Z68: 0.04 | AB68: 80 | AC68: 7 | AD68: 1 | AE68: 2 | AF68: 3 | AG68: 2 | AH68: 2 | AI68: 0.042 | AJ68: 0.102 | AK68: 0.4 | AL68: 0.97 | AM68: 2.45 | AN68: 3 | AO68: 3 | AP68: 3.92 | AQ68: 4 | AR68: 5.8 | AS68: 11.8 | AT68: 16 | AU68: 8 | AV68: 9 | AW68: 11 | AX68: 15.168 | AY68: 59.78 | AZ68: 80
A69: 1 | B69: 25.613 | C69: 65 | D69: 24773–25445/25781–26453 | E69: 1 | J69: 1 | K69: 1 | L69: 1 | M69: 1 | T69: 43 | U69: 1 | X69: 1 | Y69: 1 | Z69: 0.2 | AB69: 5 | AC69: 1
A70: 1 | B70: 26.875 | C70: 66 | D70: 24250-29500 | E70: 1 | J70: 1 | K70: 1 | L70: 1 | M70: 1 | N70: 1 | Q70: 1 | S70: 350 | T70: 330 | U70: 1 | W70: 1 | X70: 1 | Y70: 1 | Z70: 1 | AB70: 10 | AG70: 1
A71: 5 | B71: 27 | C71: 67 | D71: 26500-27500 | P71: 1 | Q71: 2 | AF71: 1 | AH71: 2
A72: 18 | B72: 28.5 | C72: 68 | D72: 27500-29500 | E72: 12 | F72: 8 | I72: 1 | J72: 11 | K72: 8 | L72: 4 | M72: 6 | N72: 3 | O72: 3 | P72: 1 | Q72: 1 | S72: 5862 | T72: 277 | U72: 14 | W72: 2 | X72: 7 | Y72: 9 | Z72: 0.05 | AB72: 173 | AC72: 8 | AF72: 1 | AG72: 1 | AH72: 1 | AI72: 0.062 | AJ72: 0.382 | AK72: 1 | AL72: 1.84 | AM72: 2 | AN72: 2 | AO72: 1.128 | AP72: 1.84 | AQ72: 2 | AR72: 3.2 | AS72: 4.14 | AT72: 4.2 | AU72: 3.108 | AV72: 4.16 | AW72: 6.8 | AX72: 7.6 | AY72: 12.1 | AZ72: 13
A73: 1 | B73: 28.6405 | C73: 69 | D73: 27828,5–28444,5/28948,5–29452,5 | E73: 1 | J73: 1 | K73: 1 | L73: 1 | M73: 1 | N73: 1 | S73: 7 | T73: 86 | U73: 1 | X73: 1 | Y73: 1 | Z73: 0.1 | AB73: 5 | AC73: 1
A74: 11 | B74: 31.15 | C74: 70 | D74: 31000-31300 | E74: 7 | J74: 6 | K74: 1 | L74: 1 | M74: 1 | N74: 1 | U74: 10 | AC74: 1 | AF74: 1 | AG74: 2
A75: 1 | B75: 31.4 | C75: 71 | D75: 31000-31800 | E75: 1 | J75: 1 | N75: 1 | S75: 450 | V75: 1
A76: 17 | B76: 32.6 | C76: 72 | D76: 31800-33400 | E76: 14 | F76: 2 | I76: 1 | J76: 11 | K76: 1 | L76: 1 | M76: 5 | N76: 2 | O76: 1 | S76: 16723 | U76: 15 | W76: 1 | X76: 8 | Y76: 9 | Z76: 0.13 | AB76: 75 | AC76: 7 | AD76: 1 | AF76: 2 | AG76: 1 | AH76: 2 | AI76: 0.091 | AJ76: 0.301 | AK76: 0.45 | AL76: 0.95 | AM76: 1 | AN76: 1 | AO76: 1.7 | AP76: 2 | AQ76: 2.1 | AR76: 2.29 | AS76: 2.8985 | AT76: 3 | AU76: 5 | AV76: 5.16 | AW76: 5.85 | AX76: 6.9 | AY76: 10.015 | AZ76: 11.1
A77: 1 | B77: 32.487 | C77: 73 | D77: 31815–32347/32627–33159 | E77: 1 | J77: 1 | K77: 1 | L77: 1 | M77: 1 | S77: 224 | U77: 1 | X77: 1 | Y77: 1 | Z77: 0.1 | AB77: 5 | AC77: 1
A78: 1 | B78: 32.879 | C78: 74 | D78: 32375–32571/33187–33383 | E78: 1 | J78: 1 | M78: 1 | U78: 1 | AC78: 1
A79: 4 | B79: 36.5 | C79: 75 | D79: 36000-37000 | P79: 1 | Q79: 2 | AH79: 1
A80: 25 | B80: 38.25 | C80: 76 | D80: 37000-39500 | E80: 25 | F80: 2 | J80: 23 | M80: 17 | N80: 10 | O80: 3 | P80: 1 | Q80: 2 | R80: 226 | S80: 131956 | U80: 24 | W80: 11 | X80: 21 | Y80: 18 | Z80: 0.05 | AB80: 37 | AC80: 12 | AD80: 1 | AE80: 3 | AF80: 1 | AG80: 2 | AH80: 2 | AI80: 0.026 | AJ80: 0.05 | AK80: 0.1 | AL80: 0.44 | AM80: 1.14 | AN80: 1.7 | AO80: 1.5 | AP80: 1.82 | AQ80: 2 | AR80: 2.288 | AS80: 5 | AT80: 5 | AU80: 5 | AV80: 6 | AW80: 7 | AX80: 9.18 | AY80: 13.4 | AZ80: 17
A81: 5 | B81: 40 | C81: 77 | D81: 39500-40500 | Q81: 2 | AF81: 1 | AH81: 2
A82: 18 | B82: 42 | C82: 78 | D82: 40500-43500 | E82: 12 | F82: 2 | J82: 12 | K82: 3 | L82: 3 | M82: 4 | N82: 3 | O82: 1 | P82: 1 | Q82: 2 | S82: 5459 | T82: 16 | U82: 15 | X82: 3 | Y82: 5 | Z82: 0.1 | AB82: 6 | AC82: 6 | AF82: 3 | AG82: 5 | AH82: 2 | AI82: 0.18 | AJ82: 0.34 | AK82: 0.5 | AL82: 0.7 | AM82: 0.95 | AN82: 1 | AO82: 1.72 | AP82: 1.96 | AQ82: 2.5 | AR82: 3 | AS82: 3 | AT82: 3 | AU82: 3.83 | AV82: 3.89 | AW82: 4.45 | AX82: 5.1 | AY82: 5.85 | AZ82: 6
A83: 6 | B83: 47.85 | C83: 79 | D83: 47200-48500 | E83: 2 | J83: 2 | O83: 1 | Q83: 2 | U83: 2 | X83: 1 | AC83: 1 | AF83: 1 | AG83: 1 | AH83: 1
A84: 9 | B84: 49.35 | C84: 80 | D84: 48500-50200 | E84: 4 | J84: 5 | K84: 1 | L84: 1 | M84: 1 | N84: 1 | Q84: 1 | U84: 8 | AC84: 1 | AF84: 2 | AG84: 2 | AH84: 1
A85: 1 | B85: 49.7 | C85: 81 | D85: 49200 - 50200 | E85: 1 | J85: 1 | M85: 1 | S85: 30 | W85: 1
A86: 4 | B86: 50.9 | C86: 82 | D86: 50400-51400 | E86: 1 | J86: 1 | AF86: 1 | AG86: 1 | AH86: 2
A87: 11 | B87: 52 | C87: 83 | D87: 51400-52600 | E87: 8 | J87: 9 | K87: 1 | L87: 1 | M87: 2 | N87: 2 | S87: 299 | U87: 11 | X87: 2 | Y87: 1 | Z87: 0.15 | AB87: 2.8 | AC87: 2 | AD87: 1 | AF87: 2 | AG87: 2 | AH87: 1 | AI87: 0.15 | AJ87: 0.15 | AK87: 0.15 | AL87: 0.15 | AM87: 0.15 | AN87: 0.15 | AO87: 0.75 | AP87: 0.75 | AQ87: 0.75 | AR87: 0.75 | AS87: 0.75 | AT87: 0.75 | AU87: 2.8 | AV87: 2.8 | AW87: 2.8 | AX87: 2.8 | AY87: 2.8 | AZ87: 2.8
A88: 11 | B88: 56.39 | C88: 84 | D88: 55780-57000 | E88: 8 | J88: 8 | K88: 1 | L88: 1 | M88: 2 | N88: 2 | Q88: 1 | U88: 11 | AC88: 2 | AF88: 1 | AG88: 2
A89: 14 | B89: 58 | C89: 85 | D89: 57000-59000 | E89: 6 | F89: 1 | H89: 4 | J89: 9 | K89: 1 | L89: 1 | M89: 2 | N89: 2 | Q89: 1 | S89: 118 | U89: 13 | W89: 1 | Y89: 1 | Z89: 0.05 | AB89: 1 | AC89: 2 | AD89: 1 | AF89: 1 | AG89: 2 | AI89: 0.05 | AJ89: 0.05 | AK89: 0.05 | AL89: 0.05 | AM89: 0.05 | AN89: 0.05 | AO89: 0.57 | AP89: 1.11 | AQ89: 1.65 | AR89: 2.19 | AS89: 2.865 | AT89: 3 | AU89: 1 | AV89: 1 | AW89: 1 | AX89: 1 | AY89: 1 | AZ89: 1
A90: 1 | B90: 60 | C90: 86 | D90: 57000-63000 | E90: 1 | U90: 1
A91: 1 | B91: 57.7 | C91: 87 | D91: 57200-58200 | E91: 1 | J91: 1 | M91: 1 | S91: 220 | U91: 1 | W91: 1 | X91: 1 | Z91: 0.1 | AB91: 2 | AG91: 1
A92: 1 | B92: 60.75 | C92: 88 | D92: 58250-63250 | H92: 1 | J92: 1 | V92: 1 | Y92: 1 | Z92: 0.1 | AB92: 2
A93: 1 | B93: 60 | C93: 89 | D93: 59000-61000 | U93: 1 | AF93: 1 | AH93: 1
A94: 10 | B94: 61.5 | C94: 90 | D94: 59000-64000 | E94: 1 | G94: 1 | H94: 5 | J94: 5 | K94: 1 | L94: 1 | Q94: 1 | U94: 10 | AC94: 1 | AF94: 1 | AG94: 1
A95: 1 | B95: 63.5 | C95: 91 | D95: 61000-66000 | AF95: 1
A96: 12 | B96: 65 | C96: 92 | D96: 64000-66000 | E96: 4 | G96: 1 | H96: 3 | J96: 6 | K96: 1 | L96: 1 | U96: 11 | AC96: 1 | AF96: 1 | AG96: 1 | AH96: 1
A97: 20 | B97: 78.5 | C97: 93 | D97: 71000-76000 and 81000-86000 | E97: 15 | G97: 3 | J97: 16 | K97: 1 | L97: 1 | M97: 8 | N97: 8 | O97: 1 | P97: 1 | Q97: 1 | S97: 5706 | U97: 19 | X97: 1 | Y97: 14 | Z97: 0.1 | AB97: 29 | AC97: 10 | AF97: 1 | AH97: 1 | AI97: 0.01 | AJ97: 0.1 | AK97: 0.144 | AL97: 0.36 | AM97: 1 | AN97: 1 | AO97: 0.8 | AP97: 1 | AQ97: 1.62 | AR97: 2 | AS97: 2.6535 | AT97: 3 | AU97: 1.4924 | AV97: 2.93 | AW97: 3.5 | AX97: 4.63 | AY97: 7.92 | AZ97: 8.8
A98: 1 | B98: 78.5 | C98: 94 | D98: 71000-76000/81000-86000 | H98: 1 | J98: 1 | M98: 1 | N98: 1 | Q98: 1 | U98: 1 | Y98: 1 | Z98: 0.1 | AB98: 1 | AG98: 1
A99: 1 | B99: 77.125 | C99: 95 | D99: 71125-73125 and 81125-83125 | E99: 1 | J99: 1 | M99: 1 | N99: 1 | S99: 320 | U99: 1 | Y99: 1
A100: 1 | B100: 79.625 | C100: 96 | D100: 73375-75875 and 83375-85875 | G100: 1 | J100: 1 | N100: 1 | Q100: 1 | S100: 2400 | X100: 1 | Y100: 1
A101: 1 | B101: 80 | C101: 97 | D101: 74000-76000 and 84000-86000 | E101: 1 | J101: 1 | M101: 1 | N101: 1 | S101: 14 | U101: 1 | Y101: 1 | Z101: 0.1 | AB101: 3 | AC101: 1
A102: 7 | B102: 93.5 | C102: 98 | D102: 92000-95000 | E102: 2 | H102: 1 | J102: 4 | K102: 1 | L102: 1 | M102: 1 | N102: 1 | U102: 7 | Y102: 2 | Z102: 0.1 | AB102: 1 | AC102: 1 | AF102: 1 | AG102: 2 | AH102: 1 | AI102: 0.1 | AJ102: 0.1 | AK102: 0.1 | AL102: 0.1 | AM102: 0.1 | AN102: 0.1 | AO102: 0.5 | AP102: 0.5 | AQ102: 0.5 | AR102: 0.5 | AS102: 0.5 | AT102: 0.5 | AU102: 1 | AV102: 1 | AW102: 1 | AX102: 1 | AY102: 1 | AZ102: 1
E104: 472 | F104: 70 | G104: 9 | H104: 21 | I104: 8 | J104: 443 | K104: 86 | L104: 43 | M104: 222 | N104: 217 | O104: 132 | P104: 37 | Q104: 90 | R104: 4889 | S104: 737931 | T104: 34781 | U104: 502 | V104: 28 | W104: 147 | X104: 245 | Y104: 249 | AC104: 177 | AD104: 36 | AE104: 37 | AF104: 65

Sheet Tot-GHz
A1: 1 | B1: 2 | C1: 3 | D1: 4 | E1: 5 | F1: 6 | G1: 7 | H1: 8 | I1: 9 | J1: 10 | K1: 11 | L1: 12 | M1: 13 | N1: 14 | O1: 15 | P1: 16 | Q1: 17 | R1: 18 | S1: 19 | T1: 20 | U1: 21 | V1: 22 | W1: 23 | X1: 24 | Y1: 25 | Z1: 26 | AA1: 27 | AB1: 28 | AC1: 29 | AD1: 30 | AE1: 31 | AF1: 32 | AG1: 33 | AH1: 34 | AI1: 35 | AJ1: 36 | AK1: 37 | AL1: 38 | AM1: 39 | AN1: 40 | AO1: 41 | AP1: 42 | AQ1: 43 | AR1: 44 | AS1: 45 | AT1: 46 | AU1: 47 | AV1: 48 | AW1: 49 | AX1: 50 | AY1: 51 | AZ1: 52 | BA1: 53 | BB1: 54 | BC1: 55 | BD1: 56 | BE1: 57 | BF1: 58 | BG1: 59 | BH1: 60 | BI1: 61 | BJ1: 62 | BK1: 63 | BL1: 64 | BM1: 65 | BN1: 66 | BO1: 67 | BP1: 68 | BQ1: 69 | BR1: 70 | BS1: 71 | BT1: 72 | BU1: 73 | BV1: 74 | BW1: 75 | BX1: 76 | BY1: 77 | BZ1: 78 | CA1: 79 | CB1: 80
C2: Frequency (GHz) | E2: Licensing regime | J2: Topo-logy | M2: Application | R2: Number of P-P links | T2: Number of CS | U2: Channel/Frequency plan used (e.g. ERC/ECC Rec. ITU-R Rec.) | W2: Link characteristics | AC2: Future trends (e.g. in the next 5 years)
J3: FWA | M3: Network Infrastruc-ture | W3: Capacity | Z3: Hop length (km)
E4: Link by link | F4: Block | G4: Light licensed | H4: Licence exempt | I4: link-by-link + Block | J4: P-P | K4: P-MP | L4: PtP + PMP | M4: Mobile backhaul | N4: Others | O4: Broadcasting Infrastructure | P4: No Information available on the application | Q4: Other (please indicate) | R4: unidirection | S4: bidirectional (1 bidirectional link counts 1) | T4: (applicable only for P-MP and mesh networks) | V4: National plans | W4: LOW (<10 Mbit/s) | X4: MEDIUM (10 to 100 Mbit/s) | Y4: HIGH (>100 Mbit/s) | Z4: MIN | AA4: Typical figure | AB4: MAX | AC4: Anticipated growth | AD4: Anticipated reduction | AE4: Currently congested | AF4: Planned reallocation to other service/application | AG4: Other (please describe) (see Question 3 of the Questionnaire)
C5: 1 | E5: 33 | F5: 3 | J5: 26 | K5: 5 | L5: 1 | M5: 1 | N5: 13 | O5: 10 | P5: 3 | Q5: 3 | R5: 908 | S5: 3090 | T5: 44 | U5: 26 | V5: 7 | W5: 26 | X5: 4 | AC5: 3 | AD5: 9 | AF5: 17 | AG5: 8
C6: 2 | E6: 14 | F6: 1 | G6: 1 | H6: 1 | J6: 12 | K6: 1 | L6: 1 | M6: 1 | N6: 4 | O6: 7 | P6: 4 | Q6: 3 | R6: 237 | S6: 9005 | T6: 4108 | U6: 14 | V6: 1 | W6: 6 | X6: 5 | Y6: 1 | AC6: 1 | AD6: 1 | AG6: 2
C7: 3 | E7: 23 | F7: 20 | J7: 19 | K7: 28 | L7: 6 | M7: 6 | N7: 14 | O7: 6 | P7: 1 | Q7: 9 | R7: 285 | S7: 1103 | T7: 8735 | U7: 35 | V7: 3 | W7: 6 | X7: 20 | Y7: 10 | AC7: 5 | AD7: 5 | AF7: 16 | AG7: 4
C8: 4 | E8: 7 | J8: 4 | N8: 2 | O8: 3 | P8: 1 | Q8: 4 | R8: 10 | S8: 713 | U8: 6 | V8: 1 | X8: 2 | Y8: 3 | AD8: 1 | AG8: 1
C9: 5 | E9: 4 | F9: 1 | G9: 2 | H9: 3 | J9: 6 | K9: 7 | L9: 5 | M9: 1 | N9: 1 | P9: 1 | Q9: 4 | S9: 4353 | T9: 10396 | V9: 3 | W9: 3 | X9: 4 | Y9: 3 | AC9: 1 | AG9: 3
C10: 6 | E10: 33 | F10: 1 | I10: 1 | J10: 29 | K10: 1 | L10: 1 | M10: 22 | N10: 20 | O10: 13 | P10: 2 | Q10: 6 | R10: 80 | S10: 22947 | T10: 5370 | U10: 31 | W10: 2 | X10: 13 | Y10: 24 | AC10: 12 | AE10: 6 | AF10: 1 | AG10: 7
C11: 7 | E11: 41 | J11: 36 | M11: 24 | N11: 24 | O11: 12 | P11: 5 | Q11: 7 | R11: 159 | S11: 32578 | U11: 36 | V11: 1 | W11: 16 | X11: 27 | Y11: 25 | AC11: 19 | AD11: 3 | AE11: 5 | AG11: 1
C12: 8 | E12: 17 | F12: 2 | J12: 14 | M12: 10 | N12: 9 | O12: 7 | P12: 3 | Q12: 4 | R12: 22 | S12: 19911 | U12: 19 | V12: 1 | W12: 4 | X12: 11 | Y12: 12 | AC12: 4 | AD12: 2 | AE12: 1 | AF12: 1 | AG12: 2
C13: 10 | E13: 14 | F13: 7 | H13: 1 | I13: 1 | J13: 14 | K13: 5 | L13: 2 | M13: 2 | N13: 7 | O13: 9 | P13: 2 | Q13: 4 | R13: 287 | S13: 5908 | T13: 890 | U13: 17 | V13: 2 | W13: 6 | X13: 10 | Y13: 2 | AC13: 6 | AD13: 2 | AG13: 2
C14: 11 | E14: 17 | F14: 1 | J14: 16 | M14: 11 | N14: 11 | O14: 9 | P14: 1 | Q14: 2 | R14: 53 | S14: 16712 | U14: 18 | W14: 1 | X14: 7 | Y14: 14 | AC14: 6 | AD14: 3 | AE14: 1 | AG14: 2
C15: 12 | E15: 2 | F15: 2 | J15: 2 | K15: 3 | N15: 1 | O15: 2 | Q15: 2 | R15: 5 | T15: 252 | V15: 3 | W15: 1 | X15: 2 | Y15: 1 | AG15: 2
C16: 13 | E16: 24 | F16: 1 | J16: 21 | M16: 17 | N16: 16 | O16: 9 | P16: 3 | Q16: 2 | R16: 41 | S16: 72159 | U16: 23 | W16: 9 | X16: 15 | Y16: 17 | AC16: 11 | AD16: 1 | AE16: 8 | AG16: 1
C17: 14 | E17: 26 | F17: 2 | J17: 25 | M17: 16 | N17: 14 | O17: 11 | P17: 2 | Q17: 5 | R17: 1453 | S17: 57199 | U17: 21 | V17: 2 | W17: 13 | X17: 17 | Y17: 12 | AC17: 9 | AD17: 3 | AE17: 4 | AF17: 1 | AG17: 4
C18: 17 | E18: 1 | J18: 1 | N18: 1 | O18: 1 | Q18: 2 | S18: 1 | Y18: 1
C19: 18 | E19: 26 | F19: 1 | J19: 23 | M19: 19 | N19: 16 | O19: 9 | P19: 2 | Q19: 3 | R19: 544 | S19: 139776 | U19: 23 | W19: 12 | X19: 18 | Y19: 20 | AC19: 16 | AE19: 3 | AG19: 1
C20: 21 | E20: 4 | J20: 4 | M20: 1 | N20: 1 | O20: 1 | Q20: 2 | S20: 220 | U20: 2 | W20: 1 | X20: 1 | AG20: 1
C21: 22 | E21: 31 | F21: 2 | J21: 28 | M21: 18 | N21: 15 | O21: 7 | P21: 1 | Q21: 3 | R21: 562 | S21: 130407 | U21: 28 | V21: 1 | W21: 14 | X21: 23 | Y21: 20 | AC21: 15 | AD21: 1 | AE21: 4 | AF21: 1 | AG21: 5
C22: 24 | E22: 2 | H22: 1 | J22: 2 | O22: 3 | Q22: 2 | U22: 2 | V22: 1 | X22: 1 | Y22: 1 | AC22: 1 | AF22: 1
C23: 25 | E23: 22 | F23: 11 | I23: 4 | J23: 21 | K23: 12 | L23: 7 | M23: 15 | N23: 6 | O23: 3 | Q23: 2 | R23: 17 | S23: 51711 | T23: 4277 | U23: 21 | W23: 9 | X23: 17 | Y23: 16 | AC23: 9 | AD23: 1 | AE23: 2 | AF23: 3 | AG23: 2
C24: 26 | E24: 1 | J24: 1 | K24: 1 | L24: 1 | M24: 1 | N24: 1 | Q24: 1 | S24: 350 | T24: 330 | U24: 1 | W24: 1 | X24: 1 | Y24: 1 | AG24: 1
C25: 27 | P25: 1 | Q25: 2 | AF25: 1
C26: 28 | E26: 13 | F26: 8 | I26: 1 | J26: 12 | K26: 9 | L26: 5 | M26: 7 | N26: 4 | O26: 3 | P26: 1 | Q26: 1 | S26: 5869 | T26: 363 | U26: 15 | W26: 2 | X26: 8 | Y26: 10 | AC26: 9 | AF26: 1 | AG26: 1
C27: 31 | E27: 8 | J27: 7 | K27: 1 | L27: 1 | M27: 1 | N27: 2 | S27: 450 | U27: 10 | V27: 1 | AC27: 1 | AF27: 1 | AG27: 2
C28: 32 | E28: 16 | F28: 2 | I28: 1 | J28: 13 | K28: 2 | L28: 2 | M28: 7 | N28: 2 | O28: 1 | S28: 16947 | U28: 17 | W28: 1 | X28: 9 | Y28: 10 | AC28: 9 | AD28: 1 | AF28: 2 | AG28: 1
C29: 36 | P29: 1 | Q29: 2
C30: 38 | E30: 25 | F30: 2 | J30: 23 | M30: 17 | N30: 10 | O30: 3 | P30: 1 | Q30: 2 | R30: 226 | S30: 131956 | U30: 24 | W30: 11 | X30: 21 | Y30: 18 | AC30: 12 | AD30: 1 | AE30: 3 | AF30: 1 | AG30: 2
C31: 40 | Q31: 2 | AF31: 1
C32: 42 | E32: 12 | F32: 2 | J32: 12 | K32: 3 | L32: 3 | M32: 4 | N32: 3 | O32: 1 | P32: 1 | Q32: 2 | S32: 5459 | T32: 16 | U32: 15 | X32: 3 | Y32: 5 | AC32: 6 | AF32: 3 | AG32: 5
C33: 47 | E33: 2 | J33: 2 | O33: 1 | Q33: 2 | U33: 2 | X33: 1 | AC33: 1 | AF33: 1 | AG33: 1
C34: 49 | E34: 5 | J34: 6 | K34: 1 | L34: 1 | M34: 2 | N34: 1 | Q34: 1 | S34: 30 | U34: 8 | W34: 1 | AC34: 1 | AF34: 2 | AG34: 2
C35: 50 | E35: 1 | J35: 1 | AF35: 1 | AG35: 1
C36: 52 | E36: 8 | J36: 9 | K36: 1 | L36: 1 | M36: 2 | N36: 2 | S36: 299 | U36: 11 | X36: 2 | Y36: 1 | AC36: 2 | AD36: 1 | AF36: 2 | AG36: 2
C37: 56 | E37: 8 | J37: 8 | K37: 1 | L37: 1 | M37: 2 | N37: 2 | Q37: 1 | U37: 11 | AC37: 2 | AF37: 1 | AG37: 2
C38: 58 | E38: 6 | F38: 1 | H38: 4 | J38: 9 | K38: 1 | L38: 1 | M38: 2 | N38: 2 | Q38: 1 | S38: 118 | U38: 13 | W38: 1 | Y38: 1 | AC38: 2 | AD38: 1 | AF38: 1 | AG38: 2
C39: 60 | E39: 1 | U39: 1
C40: 57 | E40: 1 | J40: 1 | M40: 1 | S40: 220 | U40: 1 | W40: 1 | X40: 1 | AG40: 1
C41: 60 | H41: 1 | J41: 1 | U41: 1 | V41: 1 | Y41: 1 | AF41: 1
C42: 61 | E42: 1 | G42: 1 | H42: 5 | J42: 5 | K42: 1 | L42: 1 | Q42: 1 | U42: 10 | AC42: 1 | AF42: 1 | AG42: 1
C43: 63 | AF43: 1
C44: 65 | E44: 4 | G44: 1 | H44: 3 | J44: 6 | K44: 1 | L44: 1 | U44: 11 | AC44: 1 | AF44: 1 | AG44: 1
C45: 78 | E45: 15 | G45: 3 | H45: 1 | J45: 17 | K45: 1 | L45: 1 | M45: 9 | N45: 9 | O45: 1 | P45: 1 | Q45: 2 | S45: 5706 | U45: 20 | X45: 1 | Y45: 15 | AC45: 10 | AF45: 1 | AG45: 1
C46: 77 | E46: 1 | J46: 1 | M46: 1 | N46: 1 | S46: 320 | U46: 1 | Y46: 1
C47: 79 | G47: 1 | J47: 1 | N47: 1 | Q47: 1 | S47: 2400 | X47: 1 | Y47: 1
C48: 80 | E48: 1 | J48: 1 | M48: 1 | N48: 1 | S48: 14 | U48: 1 | Y48: 1 | AC48: 1
C49: 93 | E49: 2 | H49: 1 | J49: 4 | K49: 1 | L49: 1 | M49: 1 | N49: 1 | U49: 7 | Y49: 2 | AC49: 1 | AF49: 1 | AG49: 2
E51: =SUM(E4:E49) -> 472 | F51: 70 | G51: 9 | H51: 21 | I51: 8 | J51: 443 | K51: 86 | L51: 43 | M51: 222 | N51: 217 | O51: 132 | P51: 37 | Q51: 90 | R51: 4889 | S51: 737931 | T51: 34781 | U51: 502 | V51: 28 | W51: 147 | X51: 245 | Y51: 249 | AC51: =SUM(AC4:AC49) -> 177 | AD51: =SUM(AD4:AD49) -> 36 | AE51: =SUM(AE4:AE49) -> 37 | AF51: =SUM(AF4:AF49) -> 65 | AG51: =SUM(AG4:AG49) -> 76

Sheet Percentile
F2: 0.1 Percentile | G2: 0.3 Percentile | H2: 0.5 Percentile | I2: 0.7 Percentile | J2: 0.95 Percentile | K2: 1 Percentile | L2: 0.1 Percentile | M2: 0.3 Percentile | N2: 0.5 Percentile | O2: 0.7 Percentile | P2: 0.95 Percentile | Q2: 1 Percentile | R2: 0.1 Percentile | S2: 0.3 Percentile | T2: 0.5 Percentile | U2: 0.7 Percentile | V2: 0.95 Percentile | W2: 1 Percentile
F3: L min | K3: L min | L3: L Typ | Q3: L Typ | R3: L max | W3: L max
B4: 1.4335 | C4: 1 | D4: 1350-1375 and 1492-1517 | F4: 0.8 | G4: 2 | H4: 3.5 | I4: 4.5 | J4: 8.2475 | K4: 9.33 | L4: 12.165 | M4: 16.5 | N4: 18 | O4: 19 | P4: 27.5 | Q4: 30 | R4: 29.665 | S4: 52.5 | T4: 57.5 | U4: 65 | V4: 79 | W4: 82
B5: 1.4135 | C5: 3 | D5: 1375-1400 and 1427-1452 | F5: 0.304 | G5: 0.82 | H5: 1.5 | I5: 2.9 | J5: 21.4655 | K5: 28 | L5: 8.864 | M5: 12.9 | N5: 19 | O5: 20.3 | P5: 41.2 | Q5: 52 | R5: 25.899 | S5: 60.14 | T5: 63.7 | U5: 69.6 | V5: 127.5 | W5: 152
B6: 2.1575 | C6: 13 | D6: 2025-2110 and 2200-2290 | F6: 2.3 | G6: 2.9 | H6: 4 | I6: 5.27 | J6: 7.295 | K6: 7.7 | L6: 4.55 | M6: 7.25 | N6: 12.85 | O6: 18.4 | P6: 21.4 | Q6: 22 | R6: 5.55 | S6: 31.35 | T6: 57.5 | U6: 125 | V6: 265 | W6: 290
B7: 3.5 | C7: 16 | D7: 3400-3600 | F7: 1 | G7: 1.5 | H7: 2.5 | I7: 6.05 | J7: 17.275 | K7: 20 | L7: 9.46 | M7: 11 | N7: 15 | O7: 31 | P7: 47 | Q7: 50 | R7: 14.55 | S7: 22.5 | T7: 27.5 | U7: 55 | V7: 125 | W7: 140
B8: 3.9 | C8: 19 | D8: 3600-4200 | F8: 1 | G8: 7.4 | H8: 13 | I8: 20 | J8: 20 | K8: 20 | L8: 22.8 | M8: 43.6 | N8: 50 | O8: 50 | P8: 58 | Q8: 60 | R8: 22.5 | S8: 45 | T8: 72.5 | U8: 89.5 | V8: 99.75 | W8: 100
B9: 4 | C9: 21 | D9: 3800-4200 | F9: 12.854 | G9: 16.562 | H9: 20.27 | I9: 22.962 | J9: 26.327 | K9: 27 | L9: 40.2 | M9: 54.6 | N9: 58.665 | O9: 60.697 | P9: 63.4495 | Q9: 64 | R9: 69.9 | S9: 71.7 | T9: 81.785 | U9: 92.513 | V9: 99.5855 | W9: 101
B10: 4.7 | C10: 22 | D10: 4400-5000 | F10: 11.2 | G10: 13.6 | H10: 16 | I10: 18.4 | J10: 21.4 | K10: 22 | L10: 24.3 | M10: 28.9 | N10: 33.5 | O10: 38.1 | P10: 43.85 | Q10: 45 | R10: 27.8 | S10: 39.4 | T10: 51 | U10: 62.6 | V10: 77.1 | W10: 80
B11: 5.8875 | C11: 26 | D11: 5850-5925 | F11: 1.3 | G11: 1.9 | H11: 2.5 | I11: 3.1 | J11: 3.85 | K11: 4 | L11: 13.2 | M11: 19.6 | N11: 26 | O11: 32.4 | P11: 40.4 | Q11: 42 | R11: 42.8 | S11: 48.4 | T11: 54 | U11: 59.6 | V11: 66.6 | W11: 68
B12: 6.175 | C12: 27 | D12: 5925-6425 | F12: 3 | G12: 6.2 | H12: 7 | I12: 9.4 | J12: 10.56 | K12: 10.7 | L12: 15.5 | M12: 26.5 | N12: 32.86 | O12: 36.86 | P12: 40 | Q12: 40 | R12: 39.8 | S12: 54 | T12: 70 | U12: 70.744 | V12: 92.586 | W12: 98
B13: 6.525 | C13: 28 | D13: 5925-7125 | F13: 2 | G13: 7.1935 | H13: 10 | I13: 15 | J13: 25.15 | K13: 40 | L13: 24.4 | M13: 30.3 | N13: 40 | O13: 45 | P13: 66 | Q13: 80 | R13: 51.5 | S13: 63.19 | T13: 70 | U13: 80.925 | V13: 127.25 | W13: 140
B14: 6.775 | C14: 30 | D14: 6425-7125 | F14: 6.2 | G14: 8.6 | H14: 12.56 | I14: 18.408 | J14: 35.568 | K14: 39 | L14: 31.6 | M14: 35 | N14: 39 | O14: 39.8 | P14: 40.4 | Q14: 40.5 | R14: 48.3 | S14: 66.9 | T14: 70.665 | U14: 73.897 | V14: 93.1495 | W14: 97
B15: 7.275 | C15: 31 | D15: 7125-7425 | F15: 0.95 | G15: 1.85 | H15: 2.88 | I15: 5.384 | J15: 17.564 | K15: 20 | L15: 19.9 | M15: 27.7 | N15: 32 | O15: 35.216 | P15: 36.836 | Q15: 37.16 | R15: 56.9 | S15: 58.7 | T15: 65.5 | U15: 73.356 | V15: 83.526 | W15: 85.56
B16: 7.4375 | C16: 32 | D16: 7125-7750 | F16: 2.44 | G16: 4.5144 | H16: 10 | I16: 10.22 | J16: 15 | K16: 15 | L16: 22.6 | M16: 27.88 | N16: 30 | O16: 31.55 | P16: 40 | Q16: 40 | R16: 40 | S16: 51.5 | T16: 55.75 | U16: 59.65 | V16: 94 | W16: 106
B17: 7.575 | C17: 34 | D17: 7425-7725 | F17: 2.22 | G17: 5.46 | H17: 6.54 | I17: 8.172 | J17: 16.362 | K17: 18 | L17: 25.1 | M17: 29.3 | N17: 30 | O17: 30.2 | P17: 31.7 | Q17: 32 | R17: 63.761 | S17: 85.283 | T17: 93.435 | U17: 98 | V17: 98 | W17: 98
B18: 7.825 | C18: 37 | D18: 7750-7900 | F18: 5.1 | G18: 9.3 | H18: 10 | I18: 10.145 | J18: 11.2325 | K18: 11.45 | L18: 29 | M18: 36 | N18: 40 | O18: 40 | P18: 48 | Q18: 50 | R18: 50 | S18: 50 | T18: 52.6 | U18: 57.68 | V18: 76.28 | W18: 80
B19: 8 | C19: 39 | D19: 7725-8275 | F19: 2.6 | G19: 3.8 | H19: 5 | I19: 11.456 | J19: 19.526 | K19: 21.14 | L19: 30.2 | M19: 36.6 | N19: 43 | O19: 46.72 | P19: 51.37 | Q19: 52.3 | R19: 58.314 | S19: 74.942 | T19: 91.57 | U19: 95.742 | V19: 100.957 | W19: 102
B20: 8.2 | C20: 40 | D20: 7900-8500 | F20: 1.525 | G20: 4.15 | H20: 6.2 | I20: 7.5 | J20: 9.5 | K20: 10 | L20: 16.56 | M20: 19.36 | N20: 24.8 | O20: 24.96 | P20: 27.4 | Q20: 28 | R20: 34.98 | S20: 45.4 | T20: 47 | U20: 73.08 | V20: 80.72 | W20: 81
B21: 8.3875 | C21: 41 | D21: 8275-8500 | F21: 11.614 | G21: 16.842 | H21: 22.07 | I21: 24.442 | J21: 27.407 | K21: 28 | L21: 29.4 | M21: 32.2 | N21: 35 | O21: 38.6 | P21: 43.1 | Q21: 44 | R21: 35.332 | S21: 49.996 | T21: 64.66 | U21: 70.396 | V21: 77.566 | W21: 79
B22: 10.34 | C22: 42 | D22: 10000-10680 | F22: 0.39 | G22: 1 | H22: 2 | I22: 3.3 | J22: 5.88 | K22: 6.6 | L22: 5 | M22: 8 | N22: 14 | O22: 20.4 | P22: 27.5 | Q22: 30 | R22: 10.63 | S22: 14.46 | T22: 30 | U22: 43.25 | V22: 90.45 | W22: 99
B23: 11.2 | C23: 46 | D23: 10700-11700 | F23: 1.045 | G23: 1.4734 | H23: 2.85 | I23: 5 | J23: 9.78 | K23: 10 | L23: 12.2 | M23: 14.2 | N23: 19 | O23: 23.104 | P23: 42.4 | Q23: 46 | R23: 27.287 | S23: 30.849 | T23: 37.755 | U23: 43.5 | V23: 67.7 | W23: 71
B24: 13 | C24: 50 | D24: 12750-13250 | F24: 1 | G24: 1 | H24: 1.71 | I24: 2.09 | J24: 6.055 | K24: 7.5 | L24: 11.6 | M24: 14.472 | N24: 17.39 | O24: 18.9 | P24: 25.5 | Q24: 30 | R24: 34.31 | S24: 44.2 | T24: 48 | U24: 51.75 | V24: 62.0645 | W24: 79.43
B25: 14.375 | C25: 51 | D25: 14250-14500 | F25: 1.06 | G25: 1.18 | H25: 1.3 | I25: 2.78 | J25: 4.63 | K25: 5 | L25: 12.6 | M25: 13.8 | N25: 15 | O25: 17.8 | P25: 21.3 | Q25: 22 | R25: 26 | S25: 28 | T25: 30 | U25: 32 | V25: 34.5 | W25: 35
B26: 14.925 | C26: 52 | D26: 14500-14620 and 15230-15350 | F26: 0.5102 | G26: 1 | H26: 5 | I26: 5.4 | J26: 11.18 | K26: 12.95 | L26: 13.0266 | M26: 14 | N26: 15 | O26: 15.12 | P26: 25 | Q26: 25 | R26: 17.304 | S26: 29.68 | T26: 41 | U26: 48 | V26: 62.96 | W26: 74.9
B27: 14.925 | C27: 53 | D27: 14500-15350 | F27: 0.44 | G27: 0.92 | H27: 1 | I27: 1.3 | J27: 3.55 | K27: 4 | L27: 10.66 | M27: 13.2 | N27: 14 | O27: 14.8 | P27: 15 | Q27: 15 | R27: 23 | S27: 29 | T27: 30 | U27: 32.7 | V27: 52.95 | W27: 57
B28: 18.7 | C28: 55 | D28: 17700-19700 | F28: 0.191 | G28: 0.2913 | H28: 1 | I28: 2 | J28: 4 | K28: 4 | L28: 5 | M28: 8.08 | N28: 9 | O28: 10 | P28: 18.2 | Q28: 20 | R28: 17.8822 | S28: 20 | T28: 30.5 | U28: 38 | V28: 45.125 | W28: 76
B29: 22.8 | C29: 58 | D29: 22000-22600 and 23000-23600 | F29: 0.12 | G29: 0.225 | H29: 0.5 | I29: 1 | J29: 4 | K29: 4 | L29: 5 | M29: 6.25 | N29: 6.815 | O29: 7.9 | P29: 10.5 | Q29: 12 | R29: 11.726 | S29: 16 | T29: 20.6 | U29: 26 | V29: 51 | W29: 51
B30: 25.5 | C30: 64 | D30: 24500-26500 | F30: 0.042 | G30: 0.102 | H30: 0.4 | I30: 0.97 | J30: 2.45 | K30: 3 | L30: 3 | M30: 3.92 | N30: 4 | O30: 5.8 | P30: 11.8 | Q30: 16 | R30: 8 | S30: 9 | T30: 11 | U30: 15.168 | V30: 59.78 | W30: 80
B31: 28.5 | C31: 68 | D31: 27500-29500 | F31: 0.062 | G31: 0.382 | H31: 1 | I31: 1.84 | J31: 2 | K31: 2 | L31: 1.128 | M31: 1.84 | N31: 2 | O31: 3.2 | P31: 4.14 | Q31: 4.2 | R31: 3.108 | S31: 4.16 | T31: 6.8 | U31: 7.6 | V31: 12.1 | W31: 13
B32: 32.6 | C32: 72 | D32: 31800-33400 | F32: 0.091 | G32: 0.301 | H32: 0.45 | I32: 0.95 | J32: 1 | K32: 1 | L32: 1.7 | M32: 2 | N32: 2.1 | O32: 2.29 | P32: 2.8985 | Q32: 3 | R32: 5 | S32: 5.16 | T32: 5.85 | U32: 6.9 | V32: 10.015 | W32: 11.1
B33: 38.25 | C33: 76 | D33: 37000-39500 | F33: 0.026 | G33: 0.05 | H33: 0.1 | I33: 0.44 | J33: 1.14 | K33: 1.7 | L33: 1.5 | M33: 1.82 | N33: 2 | O33: 2.288 | P33: 5 | Q33: 5 | R33: 5 | S33: 6 | T33: 7 | U33: 9.18 | V33: 13.4 | W33: 17
B34: 42 | C34: 78 | D34: 40500-43500 | F34: 0.18 | G34: 0.34 | H34: 0.5 | I34: 0.7 | J34: 0.95 | K34: 1 | L34: 1.72 | M34: 1.96 | N34: 2.5 | O34: 3 | P34: 3 | Q34: 3 | R34: 3.83 | S34: 3.89 | T34: 4.45 | U34: 5.1 | V34: 5.85 | W34: 6
B35: 78.5 | C35: 93 | D35: 71000-76000 and 81000-86000 | F35: 0.01 | G35: 0.1 | H35: 0.144 | I35: 0.36 | J35: 1 | K35: 1 | L35: 0.8 | M35: 1 | N35: 1.62 | O35: 2 | P35: 2.6535 | Q35: 3 | R35: 1.4924 | S35: 2.93 | T35: 3.5 | U35: 4.63 | V35: 7.92 | W35: 8.8

Sheet Combined
A1: Respondent | B1: Country code | C1: Band index | D1: Frequency band (MHz) | E1: Licensing regime | I1: Topo-logy | K1: Application | P1: Number of P-P links | R1: Number of CS | S1: Channel/Frequency plan used (e.g. ERC/ECC Rec. ITU-R Rec.) | T1: Link characteristics | Z1: Future trends (e.g. in the next 5 years)
I2: FWA | K2: Network Infrastruc-ture | T2: Capacity | W2: Hop length (km)
E3: Link by link | F3: Block | G3: Light licensed | H3: Licence exempt | I3: P-P | J3: P-MP | K3: Mobile backhaul | L3: Others | M3: Broadcasting Infrastructure | N3: No Information available on the application | O3: Other (please indicate) | P3: unidirection | Q3: bidirectional (1 bidirectional link counts 1) | R3: (applicable only for P-MP and mesh networks) | T3: LOW (<10 Mbit/s) | U3: MEDIUM (10 to 100 Mbit/s) | V3: HIGH (>100 Mbit/s) | W3: MIN | X3: Typical figure | Y3: MAX | Z3: Anticipated growth/reduction (+/-%) | AA3: Currently congested | AB3: Planned reallocation to other service/application | AC3: Other (please describe) (see Question 3 of the Questionnaire)
A4: Italy | B4: =VLOOKUP(A4, 'Country names'!$A$5:$C$53,3,FALSE) -> I | C4: =VLOOKUP(D4,BandList!$A$2:$B$110,2,FALSE) -> 29 | D4: 5925-7125 | E4: X | I4: X | K4: X | L4: X | M4: X | Q4: 1319 | S4: ERC/REC 14-01 and ERC/REC 14-02, ECC/REC(14)06 | T4: 0 | U4: 0 | V4: 399 | W4: 6.387 | X4: 31.5 | Y4: 59.38 | Z4: +10/20
A5: Italy | B5: =VLOOKUP(A5, 'Country names'!$A$5:$C$53,3,FALSE) -> I | C5: =VLOOKUP(D5,BandList!$A$2:$B$110,2,FALSE) -> 36 | D5: 7125-7750 | E5: X | I5: X | K5: X | L5: X | M5: X | Q5: 3379 | S5: ECC REC (02)06 | T5: 4 | U5: 0 | V5: 1418 | W5: 4.593 | X5: 31.25 | Y5: 57.98 | Z5: +10/20
A6: Italy | B6: =VLOOKUP(A6, 'Country names'!$A$5:$C$53,3,FALSE) -> I | C6: =VLOOKUP(D6,BandList!$A$2:$B$110,2,FALSE) -> 54 | D6: 10700-11700 | E6: X | I6: X | K6: X | L6: X | M6: X | Q6: 7436 | S6: ERC/REC 12-06 | T6: 0 | U6: 0 | V6: 1350 | W6: 1.462 | X6: 21.75 | Y6: 32.83 | Z6: +10/20
A7: Italy | B7: =VLOOKUP(A7, 'Country names'!$A$5:$C$53,3,FALSE) -> I | C7: =VLOOKUP(D7,BandList!$A$2:$B$110,2,FALSE) -> 58 | D7: 12750-13250 | E7: X | I7: X | K7: X | L7: X | M7: X | Q7: 10663 | S7: ERC/REC 12-02 | T7: 93 | U7: 31 | V7: 4383 | W7: 1.013 | X7: 18.75 | Y7: 32.7 | Z7: +10/20
A8: Italy | B8: =VLOOKUP(A8, 'Country names'!$A$5:$C$53,3,FALSE) -> I | C8: =VLOOKUP(D8,BandList!$A$2:$B$110,2,FALSE) -> 60 | D8: 14500-14620 and 15230-15350 | E8: X | I8: X | K8: X | L8: X | M8: X | Q8: 6256 | S8: ERC/REC 12-07 | T8: 152 | U8: 2 | V8: 3012 | W8: 0.951 | X8: 13.333 | Y8: 22.52 | Z8: +10/20
A9: Italy | B9: =VLOOKUP(A9, 'Country names'!$A$5:$C$53,3,FALSE) -> I | C9: =VLOOKUP(D9,BandList!$A$2:$B$110,2,FALSE) -> 64 | D9: 17700-19700 | E9: X | I9: X | K9: X | L9: X | M9: X | Q9: 21374 | S9: ERC/REC 12-03 | T9: 251 | U9: 6 | V9: 5078 | W9: 0.271 | X9: 8.75 | Y9: 16.822 | Z9: +10/20
A10: Italy | B10: =VLOOKUP(A10, 'Country names'!$A$5:$C$53,3,FALSE) -> I | C10: =VLOOKUP(D10,BandList!$A$2:$B$110,2,FALSE) -> 68 | D10: 22000-22600 and 23000-23600 | E10: X | I10: X | K10: X | L10: X | M10: X | Q10: 15778 | S10: T/R 13-02 Annexes A1, A2, A3 | T10: 189 | U10: 16 | V10: 5156 | W10: 0.12 | X10: 6.5 | Y10: 12.21 | Z10: +10/20
A11: Italy | B11: =VLOOKUP(A11, 'Country names'!$A$5:$C$53,3,FALSE) -> I | C11: =VLOOKUP(D11,BandList!$A$2:$B$110,2,FALSE) -> 86 | D11: 37000-39500 | E11: X | I11: X | K11: X | L11: X | M11: X | Q11: 13585 | S11: T/R 12-01 | T11: 65 | U11: 13 | V11: 4838 | W11: 0.1 | X11: 3.875 | Y11: 9.3 | Z11: +10/20
A12: Italy | B12: =VLOOKUP(A12, 'Country names'!$A$5:$C$53,3,FALSE) -> I | C12: =VLOOKUP(D12,BandList!$A$2:$B$110,2,FALSE) -> 88 | D12: 40500-43500 | E12: X | I12: X | K12: X | L12: X | M12: X | Q12: 1580 | S12: ECC/REC/(01)04 | T12: 0 | U12: 0 | V12: 23 | W12: 0.080 | X12: 2 | Y12: 3.9 | Z12: +10/20
A13: Italy | B13: =VLOOKUP(A13, 'Country names'!$A$5:$C$53,3,FALSE) -> I | C13: =VLOOKUP(D13,BandList!$A$2:$B$110,2,FALSE) -> 104 | D13: 71000-76000 and 81000-86000 | E13: X | I13: X | K13: X | L13: X | M13: X | Q13: 8 | S13: ECC/REC/(05)07 | T13: 0 | U13: 0 | V13: 1 | W13: 0.144 | X13: 0.5 | Y13: 1.436 | Z13: +10/20
A14: Portugal | B14: =VLOOKUP(A14, 'Country names'!$A$5:$C$53,3,FALSE) -> POR | C14: =VLOOKUP(D14,BandList!$A$2:$B$110,2,FALSE) -> 1 | D14: 1350-1375 and 1492-1517 | E14: X | I14: X | Q14: 92 | S14: T/R 13-01 Annex A | T14: X | W14: 5 | X14: 20 | Y14: 50 | Z14: 0
A15: Portugal | B15: =VLOOKUP(A15, 'Country names'!$A$5:$C$53,3,FALSE) -> POR | C15: =VLOOKUP(D15,BandList!$A$2:$B$110,2,FALSE) -> 2 | D15: 1350-1375 and 1492-1518 | E15: X | J15: X | R15: 9 | S15: T/R 13-01 Annex A | T15: X | W15: 5 | X15: 10 | Y15: 25 | Z15: -100
A16: Portugal | B16: =VLOOKUP(A16, 'Country names'!$A$5:$C$53,3,FALSE) -> POR | C16: =VLOOKUP(D16,BandList!$A$2:$B$110,2,FALSE) -> 3 | D16: 1375-1400 and 1427-1452 | E16: X | I16: X | J16: X | S16: T/R 13-01 Annex B | T16: X | Z16: Planned | AA16: Planned | AB16: Planned | AC16: Planned
A17: Portugal | B17: =VLOOKUP(A17, 'Country names'!$A$5:$C$53,3,FALSE) -> POR | C17: =VLOOKUP(D17,BandList!$A$2:$B$110,2,FALSE) -> 7 | D17: 1517-1525 | E17: X | M17: X | P17: 347 | S17: National plan (STL) | T17: X | W17: 5 | X17: 15 | Y17: 30 | Z17: 5
A18: Portugal | B18: =VLOOKUP(A18, 'Country names'!$A$5:$C$53,3,FALSE) -> POR | C18: =VLOOKUP(D18,BandList!$A$2:$B$110,2,FALSE) -> 13 | D18: 2025-2110 and 2200-2290 | E18: X | I18: X | M18: X | O18: TCR, SAP/SAB | Q18: 11 | S18: T/R 13-01 Annex C | T18: X | W18: 5 | X18: 30 | Y18: 190 | Z18: 0
A19: Portugal | B19: =VLOOKUP(A19, 'Country names'!$A$5:$C$53,3,FALSE) -> POR | C19: =VLOOKUP(D19,BandList!$A$2:$B$110,2,FALSE) -> 16 | D19: 3400-3600 | F19: X | J19: X | O19: BWA (3.3 - 3.6GHz) | R19: 44meo | S19: ERC/REC 14-03 | T19: X | U19: X | W19: 1 | X19: 10 | Y19: 20 | Z19: -50
A20: Portugal | B20: =VLOOKUP(A20, 'Country names'!$A$5:$C$53,3,FALSE) -> POR | C20: =VLOOKUP(D20,BandList!$A$2:$B$110,2,FALSE) -> 19 | D20: 3600-4200 | F20: X | J20: X | O20: FSS, VSAT (3.8-4.2 GHz) | R20: 2zax | S20: ERC/REC 12-08 | T20: X | U20: X | W20: 1 | X20: 10 | Y20: 20 | Z20: -100
A21: Portugal | B21: =VLOOKUP(A21, 'Country names'!$A$5:$C$53,3,FALSE) -> POR | C21: =VLOOKUP(D21,BandList!$A$2:$B$110,2,FALSE) -> 22 | D21: 4400-5000 | O21: Military
A22: Portugal | B22: =VLOOKUP(A22, 'Country names'!$A$5:$C$53,3,FALSE) -> POR | C22: =VLOOKUP(D22,BandList!$A$2:$B$110,2,FALSE) -> 26 | D22: 5850-5925 | H22: X | O22: ISM, SRD
A23: Portugal | B23: =VLOOKUP(A23, 'Country names'!$A$5:$C$53,3,FALSE) -> POR | C23: =VLOOKUP(D23,BandList!$A$2:$B$110,2,FALSE) -> 29 | D23: 5925-7125 | E23: X | I23: X | K23: X | L23: X | O23: VSAT, SRD | Q23: 6 | S23: ERC/REC 14-01 | U23: X | V23: X | W23: 15 | X23: 30 | Y23: 70 | Z23: 5
A24: Portugal | B24: =VLOOKUP(A24, 'Country names'!$A$5:$C$53,3,FALSE) -> POR | C24: =VLOOKUP(D24,BandList!$A$2:$B$110,2,FALSE) -> 30 | D24: 5925-7126 | E24: X | I24: X | K24: X | L24: X | O24: VSAT, SRD | Q24: 7 | S24: ERC/REC 14-02 | U24: X | V24: X | W24: 15 | X24: 30 | Y24: 70 | Z24: 5
A25: Portugal | B25: =VLOOKUP(A25, 'Country names'!$A$5:$C$53,3,FALSE) -> POR | C25: =VLOOKUP(D25,BandList!$A$2:$B$110,2,FALSE) -> 31 | D25: 5925-7127 | E25: X | I25: X | O25: VSAT, SRD | S25: ECC/REC(14)06 | T25: X | W25: 10 | X25: 20 | Y25: 70 | Z25: Planned | AA25: Planned | AB25: Planned | AC25: Planned
A26: Portugal | B26: =VLOOKUP(A26, 'Country names'!$A$5:$C$53,3,FALSE) -> POR | C26: =VLOOKUP(D26,BandList!$A$2:$B$110,2,FALSE) -> 36 | D26: 7125-7750 | E26: X | I26: X | L26: X | O26: FSS, Military (7.25-7.3 GHz) | Q26: 4 | S26: 7 LOW: ITU-R F.385 | T26: X | W26: 15 | X26: 30 | Y26: 50 | Z26: -100
A27: Portugal | B27: =VLOOKUP(A27, 'Country names'!$A$5:$C$53,3,FALSE) -> POR | C27: =VLOOKUP(D27,BandList!$A$2:$B$110,2,FALSE) -> 37 | D27: 7125-7751 | E27: X | I27: X | K27: X | O27: FSS, Military (7.25-7.3 GHz) | Q27: 286 | S27: 7 LOW: ECC REC (02)06 | T27: X | U27: X | V27: X | W27: 10 | X27: 25 | Y27: 40 | Z27: 10
A28: Portugal | B28: =VLOOKUP(A28, 'Country names'!$A$5:$C$53,3,FALSE) -> POR | C28: =VLOOKUP(D28,BandList!$A$2:$B$110,2,FALSE) -> 38 | D28: 7125-7752 | E28: X | I28: X | L28: X | O28: FSS | Q28: 4 | S28: 7 HIGH: ITU-R F.385 | T28: X | W28: 15 | X28: 30 | Y28: 50 | Z28: -100
A29: Portugal | B29: =VLOOKUP(A29, 'Country names'!$A$5:$C$53,3,FALSE) -> POR | C29: =VLOOKUP(D29,BandList!$A$2:$B$110,2,FALSE) -> 39 | D29: 7125-7753 | E29: X | I29: X | K29: X | L29: X | O29: FSS | Q29: 103 | S29: 7 HIGH: ECC REC (02)06 | T29: X | U29: X | V29: X | W29: 10 | X29: 25 | Y29: 40 | Z29: 10
A30: Portugal | B30: =VLOOKUP(A30, 'Country names'!$A$5:$C$53,3,FALSE) -> POR | C30: =VLOOKUP(D30,BandList!$A$2:$B$110,2,FALSE) -> 46 | D30: 7750-7900 | E30: X | I30: X | K30: X | L30: X | Q30: 141 | S30: 8 LOW: ECC REC (02)06 | U30: X | V30: X | W30: 10 | X30: 25 | Y30: 50 | Z30: 10
A31: Portugal | B31: =VLOOKUP(A31, 'Country names'!$A$5:$C$53,3,FALSE) -> POR | C31: =VLOOKUP(D31,BandList!$A$2:$B$110,2,FALSE) -> 48 | D31: 7900-8500 | E31: X | I31: X | O31: FSS, EESS, Military (7.975-8.025 GHz) | S31: 8 HIGH: ECC REC (02)06 | T31: X | U31: X | Z31: Planned | AA31: Planned | AB31: Planned | AC31: Planned
A32: Portugal | B32: =VLOOKUP(A32, 'Country names'!$A$5:$C$53,3,FALSE) -> POR | C32: =VLOOKUP(D32,BandList!$A$2:$B$110,2,FALSE) -> 50 | D32: 10000-10680 | O32: AM, SAP/SAB, SRD | S32: ERC/REC 12-05
A33: Portugal | B33: =VLOOKUP(A33, 'Country names'!$A$5:$C$53,3,FALSE) -> POR | C33: =VLOOKUP(D33,BandList!$A$2:$B$110,2,FALSE) -> 54 | D33: 10700-11700 | E33: X | I33: X | K33: X | L33: X | M33: X | O33: FSS, VSAT, SNG, SIT, AES, Euteltracs | Q33: 97 | S33: ERC/REC 12-06 | U33: X | V33: X | W33: 5 | X33: 20 | Y33: 40 | Z33: -10
A34: Portugal | B34: =VLOOKUP(A34, 'Country names'!$A$5:$C$53,3,FALSE) -> POR | C34: =VLOOKUP(D34,BandList!$A$2:$B$110,2,FALSE) -> 56 | D34: 11700-12500 | O34: RAD-S, SIT
A35: Portugal | B35: =VLOOKUP(A35, 'Country names'!$A$5:$C$53,3,FALSE) -> POR | C35: =VLOOKUP(D35,BandList!$A$2:$B$110,2,FALSE) -> 58 | D35: 12750-13250 | E35: X | I35: X | K35: X | L35: X | O35: FSS | Q35: 357 | S35: ERC/REC 12-02 | T35: X | U35: X | V35: X | W35: 5 | X35: 15 | Y35: 40 | Z35: 5
A36: Portugal | B36: =VLOOKUP(A36, 'Country names'!$A$5:$C$53,3,FALSE) -> POR | C36: =VLOOKUP(D36,BandList!$A$2:$B$110,2,FALSE) -> 59 | D36: 14250-14500 | O36: FSS, VSAT, SNG, AES
A37: Portugal | B37: =VLOOKUP(A37, 'Country names'!$A$5:$C$53,3,FALSE) -> POR | C37: =VLOOKUP(D37,BandList!$A$2:$B$110,2,FALSE) -> 60 | D37: 14500-14620 and 15230-15350 | E37: X | I37: X | K37: X | L37: X | Q37: 189 | S37: ERC/REC 12-07 | T37: X | U37: X | V37: X | W37: 5 | X37: 15 | Y37: 30 | Z37: 5
A38: Portugal | B38: =VLOOKUP(A38, 'Country names'!$A$5:$C$53,3,FALSE) -> POR | C38: =VLOOKUP(D38,BandList!$A$2:$B$110,2,FALSE) -> 63 | D38: 17300-17700 | O38: FSS, HDFSS
A39: Portugal | B39: =VLOOKUP(A39, 'Country names'!$A$5:$C$53,3,FALSE) -> POR | C39: =VLOOKUP(D39,BandList!$A$2:$B$110,2,FALSE) -> 64 | D39: 17700-19700 | E39: X | I39: X | K39: X | L39: X | O39: FSS | Q39: 251 | S39: ITU-R F.595 | T39: X | U39: X | W39: 3 | X39: 10 | Y39: 20 | Z39: 5
A40: Portugal | B40: =VLOOKUP(A40, 'Country names'!$A$5:$C$53,3,FALSE) -> POR | C40: =VLOOKUP(D40,BandList!$A$2:$B$110,2,FALSE) -> 65 | D40: 17700-19701 | E40: X | I40: X | K40: X | L40: X | M40: X | O40: FSS | Q40: 1628 | S40: ERC/REC 12-03 | U40: X | V40: X | W40: 3 | X40: 10 | Y40: 20 | Z40: 20
A41: Portugal | B41: =VLOOKUP(A41, 'Country names'!$A$5:$C$53,3,FALSE) -> POR | C41: =VLOOKUP(D41,BandList!$A$2:$B$110,2,FALSE) -> 66 | D41: 21200-22000 | O41: SRR
A42: Portugal | B42: =VLOOKUP(A42, 'Country names'!$A$5:$C$53,3,FALSE) -> POR | C42: =VLOOKUP(D42,BandList!$A$2:$B$110,2,FALSE) -> 68 | D42: 22000-22600 and 23000-23600 | E42: X | I42: X | K42: X | L42: X | O42: SRR | Q42: 1047 | S42: T/R 13-02 Annexes A1 | T42: X | U42: X | V42: X | W42: 1 | X42: 5 | Y42: 15 | Z42: 10
A43: Portugal | B43: =VLOOKUP(A43, 'Country names'!$A$5:$C$53,3,FALSE) -> POR | C43: =VLOOKUP(D43,BandList!$A$2:$B$110,2,FALSE) -> 71 | D43: 22600-23000 | E43: X | I43: X | O43: SRR | S43: T/R 13-02 Annexes A2, A3 | Z43: No use at the moment. | AA43: No use at the moment. | AB43: No use at the moment. | AC43: No use at the moment.
A44: Portugal | B44: =VLOOKUP(A44, 'Country names'!$A$5:$C$53,3,FALSE) -> POR | C44: =VLOOKUP(D44,BandList!$A$2:$B$110,2,FALSE) -> 72 | D44: 24250-24500 | O44: SRR, SRD
A45: Portugal | B45: =VLOOKUP(A45, 'Country names'!$A$5:$C$53,3,FALSE) -> POR | C45: =VLOOKUP(D45,BandList!$A$2:$B$110,2,FALSE) -> 75 | D45: 24500-26500 | F45: X | J45: X | K45: X | O45: SRR, SRD, Military (25.25-25.492 GHz and 26.25-27.5 GHz) | S45: T/R 13-02 Annex B | T45: X | U45: X | X45: 5 | Z45: No use at the moment. | AA45: No use at the moment. | AB45: No use at the moment. | AC45: No use at the moment.
A46: Portugal | B46: =VLOOKUP(A46, 'Country names'!$A$5:$C$53,3,FALSE) -> POR | C46: =VLOOKUP(D46,BandList!$A$2:$B$110,2,FALSE) -> 77 | D46: 26500-27500 | O46: SRR, SRD, Military (26.25-27.5 GHz)
A47: Portugal | B47: =VLOOKUP(A47, 'Country names'!$A$5:$C$53,3,FALSE) -> POR | C47: =VLOOKUP(D47,BandList!$A$2:$B$110,2,FALSE) -> 78 | D47: 27500-29500 | F47: X | J47: X | M47: X | O47: FSS, HDFSS | S47: T/R 13-02 Annex C | U47: X | X47: 5 | Z47: No use at the moment. | AA47: No use at the moment. | AB47: No use at the moment. | AC47: No use at the moment.
A48: Portugal | B48: =VLOOKUP(A48, 'Country names'!$A$5:$C$53,3,FALSE) -> POR | C48: =VLOOKUP(D48,BandList!$A$2:$B$110,2,FALSE) -> 80 | D48: 31000-31300 | S48: ECC/REC/(02)02 | Z48: Planned | AA48: Planned | AB48: Planned | AC48: Planned
A49: Portugal | B49: =VLOOKUP(A49, 'Country names'!$A$5:$C$53,3,FALSE) -> POR | C49: =VLOOKUP(D49,BandList!$A$2:$B$110,2,FALSE) -> 82 | D49: 31800-33400 | E49: X | I49: X | J49: X | S49: ERC/REC/(01)02 | Z49: Planned | AA49: Planned | AB49: Planned | AC49: Planned
A50: Portugal | B50: =VLOOKUP(A50, 'Country names'!$A$5:$C$53,3,FALSE) -> POR | C50: =VLOOKUP(D50,BandList!$A$2:$B$110,2,FALSE) -> 85 | D50: 36000-37000 | N50: X | O50: Military
A51: Portugal | B51: =VLOOKUP(A51, 'Country names'!$A$5:$C$53,3,FALSE) -> POR | C51: =VLOOKUP(D51,BandList!$A$2:$B$110,2,FALSE) -> 86 | D51: 37000-39500 | E51: X | I51: X | K51: X | L51: X | O51: FS | Q51: 425 | S51: T/R 12-01 | T51: X | U51: X | V51: X | W51: 0.1 | X51: 2 | Y51: 6 | Z51: 5
A52: Portugal | B52: =VLOOKUP(A52, 'Country names'!$A$5:$C$53,3,FALSE) -> POR | C52: =VLOOKUP(D52,BandList!$A$2:$B$110,2,FALSE) -> 87 | D52: 39500-40500 | O52: HDFSS
A53: Portugal | B53: =VLOOKUP(A53, 'Country names'!$A$5:$C$53,3,FALSE) -> POR | C53: =VLOOKUP(D53,BandList!$A$2:$B$110,2,FALSE) -> 88 | D53: 40500-43500 | E53: ? | F53: ? | I53: X | J53: X | O53: MWS, MVDS | S53: ECC/REC/(01)04 | Z53: Planned | AA53: Planned | AB53: Planned | AC53: Planned
A54: Portugal | B54: =VLOOKUP(A54, 'Country names'!$A$5:$C$53,3,FALSE) -> POR | C54: =VLOOKUP(D54,BandList!$A$2:$B$110,2,FALSE) -> 89 | D54: 47200-48500 | O54: HDFSS (47.5-47.9 GHz)
A55: Portugal | B55: =VLOOKUP(A55, 'Country names'!$A$5:$C$53,3,FALSE) -> POR | C55: =VLOOKUP(D55,BandList!$A$2:$B$110,2,FALSE) -> 90 | D55: 48500-50200 | E55: ? | F55: ? | I55: X | J55: X | O55: HDFSS (48.2-48.54 GHz and 49.44-50.2 GHz) | S55: ERC/REC 12-11 | Z55: Planned | AA55: Planned | AB55: Planned | AC55: Planned
A56: Portugal | B56: =VLOOKUP(A56, 'Country names'!$A$5:$C$53,3,FALSE) -> POR | C56: =VLOOKUP(D56,BandList!$A$2:$B$110,2,FALSE) -> 93 | D56: 51400-52600 | E56: ? | F56: ? | I56: X | J56: X | S56: ERC/REC 12-11 | Z56: Planned | AA56: Planned | AB56: Planned | AC56: Planned
A57: Portugal | B57: =VLOOKUP(A57, 'Country names'!$A$5:$C$53,3,FALSE) -> POR | C57: =VLOOKUP(D57,BandList!$A$2:$B$110,2,FALSE) -> 94 | D57: 55780-57000 | E57: ? | F57: ? | I57: X | J57: X | O57: EESS | S57: ERC/REC 12-12 | Z57: Planned | AA57: Planned | AB57: Planned | AC57: Planned
A58: Portugal | B58: =VLOOKUP(A58, 'Country names'!$A$5:$C$53,3,FALSE) -> POR | C58: =VLOOKUP(D58,BandList!$A$2:$B$110,2,FALSE) -> 96 | D58: 57000-59000 | E58: ? | F58: ? | I58: X | J58: X | O58: EESS, SRD | S58: ECC/REC/(09)01 | Z58: Planned | AA58: Planned | AB58: Planned | AC58: Planned
A59: Portugal | B59: =VLOOKUP(A59, 'Country names'!$A$5:$C$53,3,FALSE) -> POR | C59: =VLOOKUP(D59,BandList!$A$2:$B$110,2,FALSE) -> 101 | D59: 59000-64000 | E59: ? | F59: ? | I59: X | J59: X | O59: SRD, ISM, Military (59-61 GHz) | S59: ECC/REC/(09)01 | Z59: Planned | AA59: Planned | AB59: Planned | AC59: Planned
A60: Portugal | B60: =VLOOKUP(A60, 'Country names'!$A$5:$C$53,3,FALSE) -> POR | C60: =VLOOKUP(D60,BandList!$A$2:$B$110,2,FALSE) -> 103 | D60: 64000-66000 | E60: ? | F60: ? | I60: X | J60: X | S60: ECC/REC/(05)02 | Z60: Planned | AA60: Planned | AB60: Planned | AC60: Planned
A61: Portugal | B61: =VLOOKUP(A61, 'Country names'!$A$5:$C$53,3,FALSE) -> POR | C61: =VLOOKUP(D61,BandList!$A$2:$B$110,2,FALSE) -> 104 | D61: 71000-76000 and 81000-86000 | E61: ? | F61: ? | I61: X | J61: X | L61: X | O61: SRD, AM (75.5-76 GHz), Military (71-74 GHz and 81-84 GHz) | Q61: 1 | S61: ECC/REC/(05)07 | V61: X | W61: 0.01 | X61: 0,3 | Y61: 1 | Z61: 1000
A62: Portugal | B62: =VLOOKUP(A62, 'Country names'!$A$5:$C$53,3,FALSE) -> POR | C62: =VLOOKUP(D62,BandList!$A$2:$B$110,2,FALSE) -> 109 | D62: 92000-95000 | E62: ? | F62: ? | I62: X | J62: X | S62: ECC/REC/(14)01 | Z62: Planned | AA62: Planned | AB62: Planned | AC62: Planned
A63: Bulgaria | B63: =VLOOKUP(A63, 'Country names'!$A$5:$C$53,3,FALSE) -> BUL | C63: =VLOOKUP(D63,BandList!$A$2:$B$110,2,FALSE) -> 18 | D63: 3600-3800 | E63: X | I63: X | L63: X | P63: 0 | Q63: 14 | S63: ERC/REC 12-08, Annex B, Part 2 | U63: X | W63: 13 | X63: 51 | Y63: 73 | AC63: Reallocate to another suitable frequency band
A64: Bulgaria | B64: =VLOOKUP(A64, 'Country names'!$A$5:$C$53,3,FALSE) -> BUL | C64: =VLOOKUP(D64,BandList!$A$2:$B$110,2,FALSE) -> 21 | D64: 3800-4200 | E64: X | I64: X | P64: 0 | Q64: 0 | S64: ERC/REC 12-08, Annex B, Part 1 | T64: - | U64: - | V64: - | W64: - | X64: - | Y64: -
A65: Bulgaria | B65: =VLOOKUP(A65, 'Country names'!$A$5:$C$53,3,FALSE) -> BUL | C65: =VLOOKUP(D65,BandList!$A$2:$B$110,2,FALSE) -> 28 | D65: 5925-6425 | E65: X | I65: X | K65: X | L65: X | P65: 0 | Q65: 232 | S65: ERC/REC 14-01, Annex 1 | V65: X | W65: 6 | X65: 32 | Y65: 70 | AA65: X | AC65: Currently congested for area of capital - Sofia
A66: Bulgaria | B66: =VLOOKUP(A66, 'Country names'!$A$5:$C$53,3,FALSE) -> BUL | C66: =VLOOKUP(D66,BandList!$A$2:$B$110,2,FALSE) -> 34 | D66: 6425-7125 | E66: X | I66: X | K66: X | L66: X | P66: 0 | Q66: 228 | S66: ERC/REC 14-02, Annex 1 | V66: X | W66: 9 | X66: 30 | Y66: 97 | AA66: X | AC66: Currently congested for area of capital - Sofia
A67: Bulgaria | B67: =VLOOKUP(A67, 'Country names'!$A$5:$C$53,3,FALSE) -> BUL | C67: =VLOOKUP(D67,BandList!$A$2:$B$110,2,FALSE) -> 35 | D67: 7125-7425 | E67: X | I67: X | K67: X | L67: X | P67: 0 | Q67: 73 | S67: ITU-R F.385-8 | U67: X | V67: X | W67: 20 | X67: 35 | Y67: 59 | Z67: +25 %
A68: Bulgaria | B68: =VLOOKUP(A68, 'Country names'!$A$5:$C$53,3,FALSE) -> BUL | C68: =VLOOKUP(D68,BandList!$A$2:$B$110,2,FALSE) -> 42 | D68: 7425-7725 | E68: X | I68: X | K68: X | P68: 0 | Q68: 404 | S68: ITU-R F.385-8 | T68: X | U68: X | V68: X | W68: 18 | X68: 30 | Y68: 98 | Z68: +25 %
A69: Bulgaria | B69: =VLOOKUP(A69, 'Country names'!$A$5:$C$53,3,FALSE) -> BUL | C69: =VLOOKUP(D69,BandList!$A$2:$B$110,2,FALSE) -> 44 | D69: 7725-78275 | E69: X | I69: X | K69: X | P69: 0 | Q69: 454 | S69: ITU-R F.386-9 and national plan | T69: X | U69: X | V69: X | W69: 7 | X69: 22 | Y69: 58 | Z69: +10 %
A70: Bulgaria | B70: =VLOOKUP(A70, 'Country names'!$A$5:$C$53,3,FALSE) -> BUL | C70: =VLOOKUP(D70,BandList!$A$2:$B$110,2,FALSE) -> 48 | D70: 7900-8500 | E70: X | I70: X | L70: X | P70: 0 | Q70: 19 | S70: ECC REC (02)06, Annex 2 | U70: X | W70: 15 | X70: 34 | Y70: 61 | Z70: +200 %
A71: Bulgaria | B71: =VLOOKUP(A71, 'Country names'!$A$5:$C$53,3,FALSE) -> BUL | C71: =VLOOKUP(D71,BandList!$A$2:$B$110,2,FALSE) -> 52 | D71: 10150-10680 | E71: X | I71: X | M71: X | P71: 53 | Q71: 1 | S71: ERC/REC 12-05, Annex A | T71: X | W71: 0.2 | X71: 7 | Y71: 42 | Z71: +10 %
A72: Bulgaria | B72: =VLOOKUP(A72, 'Country names'!$A$5:$C$53,3,FALSE) -> BUL | C72: =VLOOKUP(D72,BandList!$A$2:$B$110,2,FALSE) -> 55 | D72: 10755-11725 | E72: X | I72: X | K72: X | L72: X | P72: 5 | Q72: 242 | S72: ITU-R F.387-12 | U72: X | V72: X | W72: 3 | X72: 16 | Y72: 46 | Z72: +25 %
A73: Bulgaria | B73: =VLOOKUP(A73, 'Country names'!$A$5:$C$53,3,FALSE) -> BUL | C73: =VLOOKUP(D73,BandList!$A$2:$B$110,2,FALSE) -> 57 | D73: 11725-12500 | E73: X | I73: X | L73: X | P73: 3 | Q73: 0 | S73: national plan | T73: X | U73: X | W73: 2 | X73: 3 | Y73: 4 | AC73: Reallocate to another suitable frequency band
A74: Bulgaria | B74: =VLOOKUP(A74, 'Country names'!$A$5:$C$53,3,FALSE) -> BUL | C74: =VLOOKUP(D74,BandList!$A$2:$B$110,2,FALSE) -> 58 | D74: 12750-13250 | E74: X | I74: X | K74: X | L74: X | P74: 0 | Q74: 1135 | S74: ERC/REC 12-02 | T74: X | U74: X | V74: X | W74: 2 | X74: 15 | Y74: 59 | Z74: +25 %
A75: Bulgaria | B75: =VLOOKUP(A75, 'Country names'!$A$5:$C$53,3,FALSE) -> BUL | C75: =VLOOKUP(D75,BandList!$A$2:$B$110,2,FALSE) -> 64 | D75: 17700-19700 | E75: X | I75: X | K75: X | L75: X | P75: 0 | Q75: 2798 | S75: ERC/REC 12-03 | T75: X | U75: X | V75: X | W75: 0.2 | X75: 10 | Y75: 36 | Z75: +50 %
A76: Bulgaria | B76: =VLOOKUP(A76, 'Country names'!$A$5:$C$53,3,FALSE) -> BUL | C76: =VLOOKUP(D76,BandList!$A$2:$B$110,2,FALSE) -> 70 | D76: 22008-23576 | E76: X | I76: X | K76: X | L76: X | P76: 0 | Q76: 903 | S76: T/R 13-02, Annex A | T76: X | U76: X | V76: X | W76: 0.2 | X76: 5 | Y76: 21 | Z76: +25 %
A77: Bulgaria | B77: =VLOOKUP(A77, 'Country names'!$A$5:$C$53,3,FALSE) -> BUL | C77: =VLOOKUP(D77,BandList!$A$2:$B$110,2,FALSE) -> 75 | D77: 24500-26500 | E77: X | F77: X | I77: X | J77: X | K77: X | P77: 0 | Q77: 469 | R77: 1472 | S77: T/R 13-02 Annex B for P-P and ECC/REC (00) 05 for P-MP | T77: X | U77: X | V77: X | W77: 0.06 | X77: 4 | Y77: 15 | Z77: +25 %
A78: Bulgaria | B78: =VLOOKUP(A78, 'Country names'!$A$5:$C$53,3,FALSE) -> BUL | C78: =VLOOKUP(D78,BandList!$A$2:$B$110,2,FALSE) -> 78 | D78: 27500-29500 | E78: X | I78: X | K78: X | P78: 0 | Q78: 946 | S78: T/R 13-02 Annex C | T78: X | U78: X | V78: X | W78: 0.07 | X78: 2 | Y78: 10 | Z78: +50 %
A79: Bulgaria | B79: =VLOOKUP(A79, 'Country names'!$A$5:$C$53,3,FALSE) -> BUL | C79: =VLOOKUP(D79,BandList!$A$2:$B$110,2,FALSE) -> 80 | D79: 31000-31300 | E79: X | I79: X | P79: 0 | Q79: 0 | S79: ECC/REC/(02)02 | T79: - | U79: - | V79: - | W79: - | X79: - | Y79: -
A80: Bulgaria | B80: =VLOOKUP(A80, 'Country names'!$A$5:$C$53,3,FALSE) -> BUL | C80: =VLOOKUP(D80,BandList!$A$2:$B$110,2,FALSE) -> 82 | D80: 31800-33400 | E80: X | I80: X | P80: 0 | Q80: 0 | S80: ERC/REC/(01)02 | T80: - | U80: - | V80: - | W80: - | X80: - | Y80: -
A81: Bulgaria | B81: =VLOOKUP(A81, 'Country names'!$A$5:$C$53,3,FALSE) -> BUL | C81: =VLOOKUP(D81,BandList!$A$2:$B$110,2,FALSE) -> 86 | D81: 37000-39500 | E81: X | I81: X | K81: X | P81: 0 | Q81: 1075 | S81: T/R 12-01, Annex A | T81: X | U81: X | V81: X | W81: 0.03 | X81: 1 | Y81: 6 | Z81: +50 %
A82: Bulgaria | B82: =VLOOKUP(A82, 'Country names'!$A$5:$C$53,3,FALSE) -> BUL | C82: =VLOOKUP(D82,BandList!$A$2:$B$110,2,FALSE) -> 93 | D82: 51400-52600 | E82: X | I82: X | P82: 0 | Q82: 0 | S82: ERC/REC 12-11 | T82: - | U82: - | V82: - | W82: - | X82: - | Y82: -
A83: Bulgaria | B83: =VLOOKUP(A83, 'Country names'!$A$5:$C$53,3,FALSE) -> BUL | C83: =VLOOKUP(D83,BandList!$A$2:$B$110,2,FALSE) -> 94 | D83: 55780-57000 | E83: X | I83: X | P83: 0 | Q83: 0 | S83: ERC/REC 12-12, Annex 2 | T83: - | U83: - | V83: - | W83: - | X83: - | Y83: -
A84: Bulgaria | B84: =VLOOKUP(A84, 'Country names'!$A$5:$C$53,3,FALSE) -> BUL | C84: =VLOOKUP(D84,BandList!$A$2:$B$110,2,FALSE) -> 96 | D84: 57000-59000 | E84: X | I84: X | P84: 0 | Q84: 0 | S84: ECC/REC/(09)01 | T84: - | U84: - | V84: - | W84: - | X84: - | Y84: -
A85: Bulgaria | B85: =VLOOKUP(A85, 'Country names'!$A$5:$C$53,3,FALSE) -> BUL | C85: =VLOOKUP(D85,BandList!$A$2:$B$110,2,FALSE) -> 101 | D85: 59000-64000 | E85: X | I85: X | P85: 0 | Q85: 0 | S85: ECC/REC/(09)01 | T85: - | U85: - | V85: - | W85: - | X85: - | Y85: -
A86: Bulgaria | B86: =VLOOKUP(A86, 'Country names'!$A$5:$C$53,3,FALSE) -> BUL | C86: =VLOOKUP(D86,BandList!$A$2:$B$110,2,FALSE) -> 103 | D86: 64000-66000 | E86: X | I86: X | P86: 0 | Q86: 0 | S86: ECC/REC/(05)02 | T86: - | U86: - | V86: - | W86: - | X86: - | Y86: -
A87: Bulgaria | B87: =VLOOKUP(A87, 'Country names'!$A$5:$C$53,3,FALSE) -> BUL | C87: =VLOOKUP(D87,BandList!$A$2:$B$110,2,FALSE) -> 104 | D87: 71000-76000 and 81000-86000 | E87: X | I87: X | K87: X | P87: 0 | Q87: 52 | S87: ECC/REC/(05)07 | V87: X | W87: 0.2 | X87: 0.8 | Y87: 2 | Z87: +500 %
A88: Switzerland | B88: =VLOOKUP(A88, 'Country names'!$A$5:$C$53,3,FALSE) -> SUI | C88: =VLOOKUP(D88,BandList!$A$2:$B$110,2,FALSE) -> 1 | D88: 1350-1375 and 1492-1517 | E88: x | I88: x | L88: x | Q88: 2 | S88: T/R 13-01 Annex A | T88: x | Z88: -100 | AB88: MFCN
A89: Switzerland | B89: =VLOOKUP(A89, 'Country names'!$A$5:$C$53,3,FALSE) -> SUI | C89: =VLOOKUP(D89,BandList!$A$2:$B$110,2,FALSE) -> 5 | D89: 1440-1500 | E89: x | I89: x | L89: x | Q89: 39 | T89: analog | Z89: -100 | AB89: MFCN
A90: Switzerland | B90: =VLOOKUP(A90, 'Country names'!$A$5:$C$53,3,FALSE) -> SUI | C90: =VLOOKUP(D90,BandList!$A$2:$B$110,2,FALSE) -> 3 | D90: 1375-1400 and 1427-1452 | E90: x | I90: x | L90: x | Q90: 32 | S90: T/R 13-01 Annex B | T90: x /analog | Z90: -100 | AB90: MFCN
A91: Switzerland | B91: =VLOOKUP(A91, 'Country names'!$A$5:$C$53,3,FALSE) -> SUI | C91: =VLOOKUP(D91,BandList!$A$2:$B$110,2,FALSE) -> 8 | D91: 1518 - 1525 | E91: x | I91: x | M91: x | P91: 24 | T91: x /analog | W91: 1.1 | X91: 16.7 | Y91: 36.6 | Z91: 0
A92: Switzerland | B92: =VLOOKUP(A92, 'Country names'!$A$5:$C$53,3,FALSE) -> SUI | C92: =VLOOKUP(D92,BandList!$A$2:$B$110,2,FALSE) -> 13 | D92: 2025-2110 and 2200-2290 | N92: x | O92: No civil use, PMSE | S92: T/R 13-01 Annex C
A93: Switzerland | B93: =VLOOKUP(A93, 'Country names'!$A$5:$C$53,3,FALSE) -> SUI | C93: =VLOOKUP(D93,BandList!$A$2:$B$110,2,FALSE) -> 16 | D93: 3400-3600 | E93: x | J93: x | L93: x | S93: ERC/REC 14-03 | AB93: MFCN | AC93: PMSE
A94: Switzerland | B94: =VLOOKUP(A94, 'Country names'!$A$5:$C$53,3,FALSE) -> SUI | C94: =VLOOKUP(D94,BandList!$A$2:$B$110,2,FALSE) -> 19 | D94: 3600-4200 | E94: x | J94: x | L94: x | S94: ERC/REC 12-08 | AB94: MFCN
A95: Switzerland | B95: =VLOOKUP(A95, 'Country names'!$A$5:$C$53,3,FALSE) -> SUI | C95: =VLOOKUP(D95,BandList!$A$2:$B$110,2,FALSE) -> 22 | D95: 4400-5000 | N95: x | O95: No civil use
A96: Switzerland | B96: =VLOOKUP(A96, 'Country names'!$A$5:$C$53,3,FALSE) -> SUI | C96: =VLOOKUP(D96,BandList!$A$2:$B$110,2,FALSE) -> 26 | D96: 5850-5925 | H96: x | I96: x | J96: x | N96: x
A97: Switzerland | B97: =VLOOKUP(A97, 'Country names'!$A$5:$C$53,3,FALSE) -> SUI | C97: =VLOOKUP(D97,BandList!$A$2:$B$110,2,FALSE) -> 29 | D97: 5925-7125 | E97: x | I97: x | K97: x | L97: x | M97: x | Q97: 46 | S97: ERC/REC 14-01 and ERC/REC 14-02, ECC/REC(14)06 | V97: x | W97: 20.2 | X97: 46.7 | Y97: 75.9 | Z97: 20
A98: Switzerland | B98: =VLOOKUP(A98, 'Country names'!$A$5:$C$53,3,FALSE) -> SUI | C98: =VLOOKUP(D98,BandList!$A$2:$B$110,2,FALSE) -> 36 | D98: 7125-7750 | E98: x | I98: x | K98: x | L98: x | M98: x | Q98: 90 | S98: ECC REC (02)06 | U98: x | V98: x | W98: 11.1 | X98: 30.1 | Y98: 56.5 | Z98: 10
A99: Switzerland | B99: =VLOOKUP(A99, 'Country names'!$A$5:$C$53,3,FALSE) -> SUI | C99: =VLOOKUP(D99,BandList!$A$2:$B$110,2,FALSE) -> 46 | D99: 7750-7900 | N99: x | O99: No civil use
A100: Switzerland | B100: =VLOOKUP(A100, 'Country names'!$A$5:$C$53,3,FALSE) -> SUI | C100: =VLOOKUP(D100,BandList!$A$2:$B$110,2,FALSE) -> 48 | D100: 7900-8500 | N100: x | O100: No civil use | S100: ECC REC (02)06
A101: Switzerland | B101: =VLOOKUP(A101, 'Country names'!$A$5:$C$53,3,FALSE) -> SUI | C101: =VLOOKUP(D101,BandList!$A$2:$B$110,2,FALSE) -> 50 | D101: 10000-10680 | E101: x | I101: x | L101: x | M101: x | Q101: 66 | S101: ERC/REC 12-05 | U101: x | W101: 6.6 | X101: 20.4 | Y101: 42.5 | Z101: 30
A102: Switzerland | B102: =VLOOKUP(A102, 'Country names'!$A$5:$C$53,3,FALSE) -> SUI | C102: =VLOOKUP(D102,BandList!$A$2:$B$110,2,FALSE) -> 54 | D102: 10700-11700 | E102: x | I102: x | K102: x | L102: x | M102: x | Q102: 103 | S102: ERC/REC 12-06 | V102: x | W102: 9.6 | X102: 17.7 | Y102: 37.01 | Z102: 30
A103: Switzerland | B103: =VLOOKUP(A103, 'Country names'!$A$5:$C$53,3,FALSE) -> SUI | C103: =VLOOKUP(D103,BandList!$A$2:$B$110,2,FALSE) -> 58 | D103: 12750-13250 | E103: x | I103: x | K103: x | L103: x | M103: x | Q103: 510 | S103: ERC/REC 12-02 | U103: x | W103: 5.8 | X103: 15.3 | Y103: 46.4 | Z103: 50
A104: Switzerland | B104: =VLOOKUP(A104, 'Country names'!$A$5:$C$53,3,FALSE) -> SUI | C104: =VLOOKUP(D104,BandList!$A$2:$B$110,2,FALSE) -> 59 | D104: 14250-14500 | M104: x | O104: FSS SNG
A105: Switzerland | B105: =VLOOKUP(A105, 'Country names'!$A$5:$C$53,3,FALSE) -> SUI | C105: =VLOOKUP(D105,BandList!$A$2:$B$110,2,FALSE) -> 60 | D105: 14500-14620 and 15230-15350 | E105: x | I105: x | K105: x | L105: x | M105: x | Q105: 103 | S105: ERC/REC 12-07 | U105: x | W105: 7.6 | X105: 15.3 | Y105: 29.2 | Z105: -20
A106: Switzerland | B106: =VLOOKUP(A106, 'Country names'!$A$5:$C$53,3,FALSE) -> SUI | C106: =VLOOKUP(D106,BandList!$A$2:$B$110,2,FALSE) -> 63 | D106: 17300-17700 | M106: x | O106: FSS Feeder Link
A107: Switzerland | B107: =VLOOKUP(A107, 'Country names'!$A$5:$C$53,3,FALSE) -> SUI | C107: =VLOOKUP(D107,BandList!$A$2:$B$110,2,FALSE) -> 64 | D107: 17700-19700 | E107: x | I107: x | K107: x | L107: x | M107: x | Q107: 1149 | S107: ERC/REC 12-03 | U107: x | V107: x | W107: 2.4 | X107: 8.2 | Y107: 26.1 | Z107: 200
A108: Switzerland | B108: =VLOOKUP(A108, 'Country names'!$A$5:$C$53,3,FALSE) -> SUI | C108: =VLOOKUP(D108,BandList!$A$2:$B$110,2,FALSE) -> 66 | D108: 21200-22000 | O108: PMSE | AC108: ?? equipment available
A109: Switzerland | B109: =VLOOKUP(A109, 'Country names'!$A$5:$C$53,3,FALSE) -> SUI | C109: =VLOOKUP(D109,BandList!$A$2:$B$110,2,FALSE) -> 68 | D109: 22000-22600 and 23000-23600 | E109: x | I109: x | K109: x | L109: x | M109: x | Q109: 873 | S109: T/R 13-02 Annexes A1, A2, A3 | U109: x | W109: 1.6 | X109: 7.2 | Y109: 20.6 | Z109: 50 | AA109: > High / Low problems in urban areas
A110: Switzerland | B110: =VLOOKUP(A110, 'Country names'!$A$5:$C$53,3,FALSE) -> SUI | C110: =VLOOKUP(D110,BandList!$A$2:$B$110,2,FALSE) -> 71 | D110: 22600-23000 | E110: (x) | I110: (x) | L110: (x) | T110: (x) | AC110: (planned narrowband link as a replacement for 1.4 GHz)
A111: Switzerland | B111: =VLOOKUP(A111, 'Country names'!$A$5:$C$53,3,FALSE) -> SUI | C111: =VLOOKUP(D111,BandList!$A$2:$B$110,2,FALSE) -> 72 | D111: 24250-24500 | O111: PMSE
A112: Switzerland | B112: =VLOOKUP(A112, 'Country names'!$A$5:$C$53,3,FALSE) -> SUI | C112: =VLOOKUP(D112,BandList!$A$2:$B$110,2,FALSE) -> 75 | D112: 24500-26500 | E112: x | I112: x | K112: x | L112: x | M112: x | Q112: 52 | S112: T/R 13-02 Annex B | V112: x | W112: 0.9 | X112: 3.9 | Y112: 7.9 | Z112: 200
A113: Switzerland | B113: =VLOOKUP(A113, 'Country names'!$A$5:$C$53,3,FALSE) -> SUI | C113: =VLOOKUP(D113,BandList!$A$2:$B$110,2,FALSE) -> 77 | D113: 26500-27500 | N113: x | O113: No civil use
A114: Switzerland | B114: =VLOOKUP(A114, 'Country names'!$A$5:$C$53,3,FALSE) -> SUI | C114: =VLOOKUP(D114,BandList!$A$2:$B$110,2,FALSE) -> 78 | D114: 27500-29500 | E114: x | I114: x | K114: x | L114: x | M114: x | Q114: 540 | S114: T/R 13-02 Annex C | U114: x | V114: x | W114: 1.8 | X114: 4.2 | Y114: 6.8 | Z114: 100
A115: Switzerland | B115: =VLOOKUP(A115, 'Country names'!$A$5:$C$53,3,FALSE) -> SUI | C115: =VLOOKUP(D115,BandList!$A$2:$B$110,2,FALSE) -> 80 | D115: 31000-31300 | S115: ECC/REC/(02)02 | AC115: ?? equipment available
A116: Switzerland | B116: =VLOOKUP(A116, 'Country names'!$A$5:$C$53,3,FALSE) -> SUI | C116: =VLOOKUP(D116,BandList!$A$2:$B$110,2,FALSE) -> 82 | D116: 31800-33400 | E116: x | I116: x | K116: x | L116: x | M116: x | Q116: 775 | S116: ERC/REC/(01)02 | V116: x | W116: 0.5 | X116: 2.3 | Y116: 5.7 | Z116: 100
A117: Switzerland | B117: =VLOOKUP(A117, 'Country names'!$A$5:$C$53,3,FALSE) -> SUI | C117: =VLOOKUP(D117,BandList!$A$2:$B$110,2,FALSE) -> 85 | D117: 36000-37000 | O117: No civil use
A118: Switzerland | B118: =VLOOKUP(A118, 'Country names'!$A$5:$C$53,3,FALSE) -> SUI | C118: =VLOOKUP(D118,BandList!$A$2:$B$110,2,FALSE) -> 86 | D118: 37000-39500 | E118: x | I118: x | K118: x | L118: x | M118: x | Q118: 1036 | S118: T/R 12-01 | U118: x | W118: 0.3 | X118: 2.7 | Y118: 7.9 | Z118: 50 | AA118: > High / Low problems in urban areas
A119: Switzerland | B119: =VLOOKUP(A119, 'Country names'!$A$5:$C$53,3,FALSE) -> SUI | C119: =VLOOKUP(D119,BandList!$A$2:$B$110,2,FALSE) -> 87 | D119: 39500-40500 | O119: FSS
A120: Switzerland | B120: =VLOOKUP(A120, 'Country names'!$A$5:$C$53,3,FALSE) -> SUI | C120: =VLOOKUP(D120,BandList!$A$2:$B$110,2,FALSE) -> 88 | D120: 40500-43500 | E120: x | I120: x | K120: x | L120: x | Q120: 582 | S120: ECC/REC/(01)04 | V120: x | W120: 0.5 | X120: 1.6 | Y120: 3.8 | Z120: 200
A121: Switzerland | B121: =VLOOKUP(A121, 'Country names'!$A$5:$C$53,3,FALSE) -> SUI | C121: =VLOOKUP(D121,BandList!$A$2:$B$110,2,FALSE) -> 89 | D121: 47200-48500 | O121: PMSE | AC121: ?? equipment available
A122: Switzerland | B122: =VLOOKUP(A122, 'Country names'!$A$5:$C$53,3,FALSE) -> SUI | C122: =VLOOKUP(D122,BandList!$A$2:$B$110,2,FALSE) -> 90 | D122: 48500-50200 | S122: ERC/REC 12-11 | AC122: ?? equipment available
A123: Switzerland | B123: =VLOOKUP(A123, 'Country names'!$A$5:$C$53,3,FALSE) -> SUI | C123: =VLOOKUP(D123,BandList!$A$2:$B$110,2,FALSE) -> 92 | D123: 50400-51400 | AC123: ?? equipment available
A124: Switzerland | B124: =VLOOKUP(A124, 'Country names'!$A$5:$C$53,3,FALSE) -> SUI | C124: =VLOOKUP(D124,BandList!$A$2:$B$110,2,FALSE) -> 93 | D124: 51400-52600 | E124: x | I124: x | K124: x | L124: x | Q124: 299 | S124: ERC/REC 12-11 | U124: x | W124: 0.15 | X124: 0.75 | Y124: 2.8 | Z124: -80 | AC124: > not enough transmission capacity with existing equipment
A125: Switzerland | B125: =VLOOKUP(A125, 'Country names'!$A$5:$C$53,3,FALSE) -> SUI | C125: =VLOOKUP(D125,BandList!$A$2:$B$110,2,FALSE) -> 94 | D125: 55780-57000 | E125: x | I125: x | K125: x | L125: x | Q125: 0 | S125: ERC/REC 12-12 | AC125: ?? equipment available
A126: Switzerland | B126: =VLOOKUP(A126, 'Country names'!$A$5:$C$53,3,FALSE) -> SUI | C126: =VLOOKUP(D126,BandList!$A$2:$B$110,2,FALSE) -> 96 | D126: 57000-59000 | E126: x | I126: x | K126: x | Q126: 109 | S126: ECC/REC/(09)01 | T126: x | W126: 0.05 | X126: 0.3 | Y126: 1 | Z126: -100 | AC126: > not enough transmission capacity with existing equipment
A127: Switzerland | B127: =VLOOKUP(A127, 'Country names'!$A$5:$C$53,3,FALSE) -> SUI | C127: =VLOOKUP(D127,BandList!$A$2:$B$110,2,FALSE) -> 101 | D127: 59000-64000 | H127: x | I127: x | S127: ECC/REC/(09)01
A128: Switzerland | B128: =VLOOKUP(A128, 'Country names'!$A$5:$C$53,3,FALSE) -> SUI | C128: =VLOOKUP(D128,BandList!$A$2:$B$110,2,FALSE) -> 103 | D128: 64000-66000 | H128: x | I128: x | S128: ECC/REC/(05)02
A129: Switzerland | B129: =VLOOKUP(A129, 'Country names'!$A$5:$C$53,3,FALSE) -> SUI | C129: =VLOOKUP(D129,BandList!$A$2:$B$110,2,FALSE) -> 104 | D129: 71000-76000 and 81000-86000 | E129: x | I129: x | K129: x | L129: x | Q129: 333 | S129: ECC/REC/(05)07 | V129: x | W129: 0.1 | X129: 0.8 | Y129: 4.9 | Z129: 500
A130: Switzerland | B130: =VLOOKUP(A130, 'Country names'!$A$5:$C$53,3,FALSE) -> SUI | C130: =VLOOKUP(D130,BandList!$A$2:$B$110,2,FALSE) -> 109 | D130: 92000-95000 | E130: x | I130: x | K130: x | L130: x | Q130: 0 | S130: ECC/REC (14)01 | V130: x | Z130: ? | AC130: ?? equipment available
A131: Hungary | B131: =VLOOKUP(A131, 'Country names'!$A$5:$C$53,3,FALSE) -> HNG | C131: =VLOOKUP(D131,BandList!$A$2:$B$110,2,FALSE) -> 3 | D131: 1375-1400 and 1427-1452 | E131: X | I131: X | Q131: 0 | S131: T/R 13-01 Annex B
A132: Hungary | B132: =VLOOKUP(A132, 'Country names'!$A$5:$C$53,3,FALSE) -> HNG | C132: =VLOOKUP(D132,BandList!$A$2:$B$110,2,FALSE) -> 13 | D132: 2025-2110 and 2200-2290 | E132: X | I132: X | Q132: 0 | S132: T/R 13-01 Annex C
A133: Hungary | B133: =VLOOKUP(A133, 'Country names'!$A$5:$C$53,3,FALSE) -> HNG | C133: =VLOOKUP(D133,BandList!$A$2:$B$110,2,FALSE) -> 16 | D133: 3400-3600 | F133: X | I133: X | J133: X | S133: ERC/REC 14-03 | AD133: Block assignment for MFCN; awarded 2016 summer - currently no usage
A134: Hungary | B134: =VLOOKUP(A134, 'Country names'!$A$5:$C$53,3,FALSE) -> HNG | C134: =VLOOKUP(D134,BandList!$A$2:$B$110,2,FALSE) -> 19 | D134: 3600-4200 | Q134: 17 | S134: ERC/REC 12-08 | AD134: 3600-3800 MHz band: awarded 2016 summer; Block assignment for MFCN; currently no usage; 3800-4200 MHz: 17 bidirectional links
A135: Hungary | B135: =VLOOKUP(A135, 'Country names'!$A$5:$C$53,3,FALSE) -> HNG | C135: =VLOOKUP(D135,BandList!$A$2:$B$110,2,FALSE) -> 29 | D135: 5925-7125 | E135: X | I135: X | Q135: 135 | S135: ERC/REC 14-01 and ERC/REC 14-02 | V135: X | X135: 60
A136: Hungary | B136: =VLOOKUP(A136, 'Country names'!$A$5:$C$53,3,FALSE) -> HNG | C136: =VLOOKUP(D136,BandList!$A$2:$B$110,2,FALSE) -> 36 | D136: 7125-7750 | E136: X | I136: X | L136: X | Q136: 205 | S136: ECC REC (02)06 | U136: X | X136: 40 | AD136: 7125-7425 MHz subband for non-civil FS, 7427-7725 MHz subband for civil FS
A137: Hungary | B137: =VLOOKUP(A137, 'Country names'!$A$5:$C$53,3,FALSE) -> HNG | C137: =VLOOKUP(D137,BandList!$A$2:$B$110,2,FALSE) -> 46 | D137: 7750-7900 | E137: X | I137: X | M137: X | Q137: 0 | S137: ECC REC (02)06 | U137: X | X137: 40
A138: Hungary | B138: =VLOOKUP(A138, 'Country names'!$A$5:$C$53,3,FALSE) -> HNG | C138: =VLOOKUP(D138,BandList!$A$2:$B$110,2,FALSE) -> 48 | D138: 7900-8500 | E138: X | I138: X | Q138: 0 | S138: ECC REC (02)06
A139: Hungary | B139: =VLOOKUP(A139, 'Country names'!$A$5:$C$53,3,FALSE) -> HNG | C139: =VLOOKUP(D139,BandList!$A$2:$B$110,2,FALSE) -> 50 | D139: 10000-10680 | E139: X | I139: X | M139: X | P139: 58 | S139: ERC/REC 12-05 | U139: X | X139: 20
A140: Hungary | B140: =VLOOKUP(A140, 'Country names'!$A$5:$C$53,3,FALSE) -> HNG | C140: =VLOOKUP(D140,BandList!$A$2:$B$110,2,FALSE) -> 54 | D140: 10700-11700 | E140: X | I140: X | K140: X | Q140: 341 | S140: ERC/REC 12-06 | V140: X | X140: 40
A141: Hungary | B141: =VLOOKUP(A141, 'Country names'!$A$5:$C$53,3,FALSE) -> HNG | C141: =VLOOKUP(D141,BandList!$A$2:$B$110,2,FALSE) -> 56 | D141: 11700-12500 | J141: X | M141: X | R141: 150 | S141: National plan | V141: X | AD141: Only 12.3-12.5 GHz band designated for local MVDS
A142: Hungary | B142: =VLOOKUP(A142, 'Country names'!$A$5:$C$53,3,FALSE) -> HNG | C142: =VLOOKUP(D142,BandList!$A$2:$B$110,2,FALSE) -> 58 | D142: 12750-13250 | E142: X | I142: X | Q142: 2806 | S142: ERC/REC 12-02 | V142: X | X142: 30 | AA142: X | AD142: Currently congested in big cities
A143: Hungary | B143: =VLOOKUP(A143, 'Country names'!$A$5:$C$53,3,FALSE) -> HNG | C143: =VLOOKUP(D143,BandList!$A$2:$B$110,2,FALSE) -> 60 | D143: 14500-14620 and 15230-15350 | E143: X | I143: X | Q143: 114 | S143: ERC/REC 12-07 | U143: X | X143: 25 | AD143: Number of civil FS links decreased due to the extension of the subband used for military purposes
A144: Hungary | B144: =VLOOKUP(A144, 'Country names'!$A$5:$C$53,3,FALSE) -> HNG | C144: =VLOOKUP(D144,BandList!$A$2:$B$110,2,FALSE) -> 64 | D144: 17700-19700 | E144: X | I144: X | Q144: 2159 | S144: ERC/REC 12-03 | V144: X | X144: 20 | AA144: X | AD144: Currently congested in big cities
A145: Hungary | B145: =VLOOKUP(A145, 'Country names'!$A$5:$C$53,3,FALSE) -> HNG | C145: =VLOOKUP(D145,BandList!$A$2:$B$110,2,FALSE) -> 66 | D145: 21200-22000 | E145: X | I145: X | AD145: Only the subband 21.2-21.4 GHz is planned for ENG/OB
A146: Hungary | B146: =VLOOKUP(A146, 'Country names'!$A$5:$C$53,3,FALSE) -> HNG | C146: =VLOOKUP(D146,BandList!$A$2:$B$110,2,FALSE) -> 68 | D146: 22000-22600 and 23000-23600 | E146: X | I146: X | Q146: 2209 | S146: T/R 13-02 Annex A1 | U146: X | X146: 10 | AD146: 22-22.45/23-23.45 GHz subband for civil FS, the rest for non-civil FS
A147: Hungary | B147: =VLOOKUP(A147, 'Country names'!$A$5:$C$53,3,FALSE) -> HNG | C147: =VLOOKUP(D147,BandList!$A$2:$B$110,2,FALSE) -> 71 | D147: 22600-23000 | E147: X | I147: X | M147: X | P147: 1 | S147: T/R 13-02 Annexes A2 and A3 | AD147: National plan for analogue ENG/OB
A148: Hungary | B148: =VLOOKUP(A148, 'Country names'!$A$5:$C$53,3,FALSE) -> HNG | C148: =VLOOKUP(D148,BandList!$A$2:$B$110,2,FALSE) -> 72 | D148: 24250-24500 | E148: X | I148: X | M148: X | P148: 0 | S148: T/R 13-02 | AD148: T/R 13-02 van beírva
A149: Hungary | B149: =VLOOKUP(A149, 'Country names'!$A$5:$C$53,3,FALSE) -> HNG | C149: =VLOOKUP(D149,BandList!$A$2:$B$110,2,FALSE) -> 75 | D149: 24500-26500 | F149: X | I149: X | J149: X | K149: X | Q149: N/A | R149: N/A | S149: T/R 13-02 Annex B | V149: X | X149: 10 | AD149: Block assignment is applied, the exact number of CS and PP links is not known
A150: Hungary | B150: =VLOOKUP(A150, 'Country names'!$A$5:$C$53,3,FALSE) -> HNG | C150: =VLOOKUP(D150,BandList!$A$2:$B$110,2,FALSE) -> 78 | D150: 27500-29500 | S150: ECC/DEC/(05)01 | AD150: Only planned for PP, PMP
A151: Hungary | B151: =VLOOKUP(A151, 'Country names'!$A$5:$C$53,3,FALSE) -> HNG | C151: =VLOOKUP(D151,BandList!$A$2:$B$110,2,FALSE) -> 80 | D151: 31000-31300 | E151: X | I151: X | Q151: 0 | S151: ECC/REC/(02)02
A152: Hungary | B152: =VLOOKUP(A152, 'Country names'!$A$5:$C$53,3,FALSE) -> HNG | C152: =VLOOKUP(D152,BandList!$A$2:$B$110,2,FALSE) -> 82 | D152: 31800-33400 | S152: ERC/REC/(01)02 | AD152: Only planned for PP, PMP
A153: Hungary | B153: =VLOOKUP(A153, 'Country names'!$A$5:$C$53,3,FALSE) -> HNG | C153: =VLOOKUP(D153,BandList!$A$2:$B$110,2,FALSE) -> 86 | D153: 37000-39500 | E153: X | I153: X | K153: X | Q153: 6356 | S153: T/R 12-01 | U153: X | V153: X | X153: 5 | AA153: X | AD153: 37.926-38.220/39.186-39.480 GHz subband designated for non-civil FS, the rest for civil FS
A154: Hungary | B154: =VLOOKUP(A154, 'Country names'!$A$5:$C$53,3,FALSE) -> HNG | C154: =VLOOKUP(D154,BandList!$A$2:$B$110,2,FALSE) -> 88 | D154: 40500-43500 | S154: ERC/DEC/(99)15 | AD154: Only planned for PP and MWS
A155: Hungary | B155: =VLOOKUP(A155, 'Country names'!$A$5:$C$53,3,FALSE) -> HNG | C155: =VLOOKUP(D155,BandList!$A$2:$B$110,2,FALSE) -> 90 | D155: 48500-50200 | E155: X | I155: X | Q155: 0 | S155: ERC/REC 12-10
A156: Hungary | B156: =VLOOKUP(A156, 'Country names'!$A$5:$C$53,3,FALSE) -> HNG | C156: =VLOOKUP(D156,BandList!$A$2:$B$110,2,FALSE) -> 93 | D156: 51400-52600 | E156: X | I156: X | Q156: 0 | S156: ERC/REC 12-11
A157: Hungary | B157: =VLOOKUP(A157, 'Country names'!$A$5:$C$53,3,FALSE) -> HNG | C157: =VLOOKUP(D157,BandList!$A$2:$B$110,2,FALSE) -> 94 | D157: 55780-57000 | E157: X | I157: X | Q157: 0 | S157: ERC/REC 12-12
A158: Hungary | B158: =VLOOKUP(A158, 'Country names'!$A$5:$C$53,3,FALSE) -> HNG | C158: =VLOOKUP(D158,BandList!$A$2:$B$110,2,FALSE) -> 96 | D158: 57000-59000 | E158: X | I158: X | L158: X | Q158: 2 | S158: ECC/REC/(09)01 | V158: X | X158: 3
A159: Hungary | B159: =VLOOKUP(A159, 'Country names'!$A$5:$C$53,3,FALSE) -> HNG | C159: =VLOOKUP(D159,BandList!$A$2:$B$110,2,FALSE) -> 101 | D159: 59000-64000 | G159: X | I159: X | Q159: 0 | S159: ECC/REC/(09)01
A160: Hungary | B160: =VLOOKUP(A160, 'Country names'!$A$5:$C$53,3,FALSE) -> HNG | C160: =VLOOKUP(D160,BandList!$A$2:$B$110,2,FALSE) -> 103 | D160: 64000-66000 | S160: ECC/REC/(05)02 | AD160: Only planned for PP
A161: Hungary | B161: =VLOOKUP(A161, 'Country names'!$A$5:$C$53,3,FALSE) -> HNG | C161: =VLOOKUP(D161,BandList!$A$2:$B$110,2,FALSE) -> 104 | D161: 71000-76000 and 81000-86000 | G161: X | I161: X | Q161: 562 | S161: ECC/REC/(05)07 | V161: X | X161: 1
A162: Hungary | B162: =VLOOKUP(A162, 'Country names'!$A$5:$C$53,3,FALSE) -> HNG | C162: =VLOOKUP(D162,BandList!$A$2:$B$110,2,FALSE) -> 109 | D162: 92000-95000 | S162: ECC/REC (14)01 | AD162: Only planned for PP
A163: Latvia | B163: =VLOOKUP(A163, 'Country names'!$A$5:$C$53,3,FALSE) -> LVA | C163: =VLOOKUP(D163,BandList!$A$2:$B$110,2,FALSE) -> 1 | D163: 1350-1375 and 1492-1517 | E163: X | I163: X | L163: X | Q163: 0 | S163: T/R 13-01 Annex A | AB163: X
A164: Latvia | B164: =VLOOKUP(A164, 'Country names'!$A$5:$C$53,3,FALSE) -> LVA | C164: =VLOOKUP(D164,BandList!$A$2:$B$110,2,FALSE) -> 6 | D164: 1492–1506 | E164: X | J164: X | K164: X | R164: 19 | S164: ITU-R F.701 | T164: X | W164: 1 | X164: 5 | Y164: 10
A165: Latvia | B165: =VLOOKUP(A165, 'Country names'!$A$5:$C$53,3,FALSE) -> LVA | C165: =VLOOKUP(D165,BandList!$A$2:$B$110,2,FALSE) -> 3 | D165: 1375-1400 and 1427-1452 | E165: X | I165: X | L165: X | Q165: 0 | S165: T/R 13-01 Annex B | AB165: X
A166: Latvia | B166: =VLOOKUP(A166, 'Country names'!$A$5:$C$53,3,FALSE) -> LVA | C166: =VLOOKUP(D166,BandList!$A$2:$B$110,2,FALSE) -> 13 | D166: 2025-2110 and 2200-2290 | E166: X | I166: X | N166: X | P166: 0 | Q166: 0 | S166: T/R 13-01 Annex C | AC166: No changes
A167: Latvia | B167: =VLOOKUP(A167, 'Country names'!$A$5:$C$53,3,FALSE) -> LVA | C167: =VLOOKUP(D167,BandList!$A$2:$B$110,2,FALSE) -> 16 | D167: 3400-3600 | E167: X | I167: X | J167: X | K167: X | L167: X | P167: 0 | Q167: 0 | R167: 31 | S167: ERC/REC 14-03 | U167: X | W167: 1 | X167: 10 | Y167: 25 | Z167: 0.1
A168: Latvia | B168: =VLOOKUP(A168, 'Country names'!$A$5:$C$53,3,FALSE) -> LVA | C168: =VLOOKUP(D168,BandList!$A$2:$B$110,2,FALSE) -> 19 | D168: 3600-4200 | E168: X | I168: X | J168: X | K168: X | L168: X | P168: 0 | Q168: 5 | R168: 106 | S168: ERC/REC 12-08 | U168: X | W168: 1 | X168: 10 | Y168: 25 | Z168: 0.1
A169: Latvia | B169: =VLOOKUP(A169, 'Country names'!$A$5:$C$53,3,FALSE) -> LVA | C169: =VLOOKUP(D169,BandList!$A$2:$B$110,2,FALSE) -> 22 | D169: 4400-5000 | AD169: Exclusive Military Band Within the Band 4400-5000 MHz
A170: Latvia | B170: =VLOOKUP(A170, 'Country names'!$A$5:$C$53,3,FALSE) -> LVA | C170: =VLOOKUP(D170,BandList!$A$2:$B$110,2,FALSE) -> 26 | D170: 5850-5925 | AD170: Currently not in use by Fixed service
A171: Latvia | B171: =VLOOKUP(A171, 'Country names'!$A$5:$C$53,3,FALSE) -> LVA | C171: =VLOOKUP(D171,BandList!$A$2:$B$110,2,FALSE) -> 29 | D171: 5925-7125 | E171: X | I171: X | K171: X | L171: X | M171: X | Q171: 105 | S171: ERC/REC 14-01 and ERC/REC 14-02 | U171: X | V171: X | W171: 20 | X171: 30 | Y171: 51 | Z171: 0.1
A172: Latvia | B172: =VLOOKUP(A172, 'Country names'!$A$5:$C$53,3,FALSE) -> LVA | C172: =VLOOKUP(D172,BandList!$A$2:$B$110,2,FALSE) -> 36 | D172: 7125-7750 | E172: X | I172: X | K172: X | L172: X | Q172: 110 | S172: ECC REC (02)06 | U172: X | V172: X | W172: 10 | X172: 35 | Y172: 55 | Z172: 0.2
A173: Latvia | B173: =VLOOKUP(A173, 'Country names'!$A$5:$C$53,3,FALSE) -> LVA | C173: =VLOOKUP(D173,BandList!$A$2:$B$110,2,FALSE) -> 46 | D173: 7750-7900 | E173: X | I173: X | K173: X | L173: X | Q173: 35 | S173: ECC REC (02)06 | U173: X | V173: X | W173: 10 | X173: 35 | Y173: 50 | Z173: 0.2
A174: Latvia | B174: =VLOOKUP(A174, 'Country names'!$A$5:$C$53,3,FALSE) -> LVA | C174: =VLOOKUP(D174,BandList!$A$2:$B$110,2,FALSE) -> 48 | D174: 7900-8500 | E174: X | I174: X | K174: X | L174: X | Q174: 410 | S174: ECC REC (02)06 | U174: X | V174: X | W174: 8 | X174: 25 | Y174: 45 | Z174: 0.1
A175: Latvia | B175: =VLOOKUP(A175, 'Country names'!$A$5:$C$53,3,FALSE) -> LVA | C175: =VLOOKUP(D175,BandList!$A$2:$B$110,2,FALSE) -> 50 | D175: 10000-10680 | E175: X | I175: X | L175: X | Q175: 20 | S175: ERC/REC 12-05 | T175: X | U175: X | W175: 5 | X175: 10 | Y175: 20 | Z175: -0.2
A176: Latvia | B176: =VLOOKUP(A176, 'Country names'!$A$5:$C$53,3,FALSE) -> LVA | C176: =VLOOKUP(D176,BandList!$A$2:$B$110,2,FALSE) -> 50 | D176: 10000-10680 | F176: X | J176: X | L176: X | R176: 65 | U176: X | W176: 1 | X176: 5 | Y176: 15 | Z176: 0.1
A177: Latvia | B177: =VLOOKUP(A177, 'Country names'!$A$5:$C$53,3,FALSE) -> LVA | C177: =VLOOKUP(D177,BandList!$A$2:$B$110,2,FALSE) -> 54 | D177: 10700-11700 | E177: X | I177: X | K177: X | L177: X | M177: X | P177: 6 | Q177: 0 | S177: ERC/REC 12-06 | U177: X | V177: X | W177: 10 | X177: 15 | Y177: 30 | Z177: 5
A178: Latvia | B178: =VLOOKUP(A178, 'Country names'!$A$5:$C$53,3,FALSE) -> LVA | C178: =VLOOKUP(D178,BandList!$A$2:$B$110,2,FALSE) -> 56 | D178: 11700-12500 | AD178: Not allocated for Fixed service
A179: Latvia | B179: =VLOOKUP(A179, 'Country names'!$A$5:$C$53,3,FALSE) -> LVA | C179: =VLOOKUP(D179,BandList!$A$2:$B$110,2,FALSE) -> 58 | D179: 12750-13250 | E179: X | I179: X | K179: X | L179: X | Q179: 890 | S179: ERC/REC 12-02 | U179: X | V179: X | W179: 2 | X179: 20 | Y179: 52 | Z179: 0.1
A180: Latvia | B180: =VLOOKUP(A180, 'Country names'!$A$5:$C$53,3,FALSE) -> LVA | C180: =VLOOKUP(D180,BandList!$A$2:$B$110,2,FALSE) -> 59 | D180: 14250-14500 | AD180: Not allocated for Fixed service, allocation for FSS (Earth to Space)
A181: Latvia | B181: =VLOOKUP(A181, 'Country names'!$A$5:$C$53,3,FALSE) -> LVA | C181: =VLOOKUP(D181,BandList!$A$2:$B$110,2,FALSE) -> 60 | D181: 14500-14620 and 15230-15350 | E181: X | I181: x | K181: X | L181: X | Q181: 44 | S181: ERC/REC 12-07 | U181: X | V181: X | W181: 10 | X181: 25 | Y181: 41 | Z181: 0.1
A182: Latvia | B182: =VLOOKUP(A182, 'Country names'!$A$5:$C$53,3,FALSE) -> LVA | C182: =VLOOKUP(D182,BandList!$A$2:$B$110,2,FALSE) -> 63 | D182: 17300-17700 | S182: ECC/DEC/(05)08 | AD182: Not allocated for Fixed service, allocation for FSS (application - HDFSS)
A183: Latvia | B183: =VLOOKUP(A183, 'Country names'!$A$5:$C$53,3,FALSE) -> LVA | C183: =VLOOKUP(D183,BandList!$A$2:$B$110,2,FALSE) -> 64 | D183: 17700-19700 | E183: X | I183: X | K183: X | L183: X | Q183: 550 | S183: ERC/REC 12-03 | U183: X | V183: X | W183: 2 | X183: 18 | Y183: 27 | Z183: 0.1
A184: Latvia | B184: =VLOOKUP(A184, 'Country names'!$A$5:$C$53,3,FALSE) -> LVA | C184: =VLOOKUP(D184,BandList!$A$2:$B$110,2,FALSE) -> 66 | D184: 21200-22000 | E184: X | I184: X | M184: X | Q184: 0 | S184: ITU-R F.637 Annex 2
A185: Latvia | B185: =VLOOKUP(A185, 'Country names'!$A$5:$C$53,3,FALSE) -> LVA | C185: =VLOOKUP(D185,BandList!$A$2:$B$110,2,FALSE) -> 68 | D185: 22000-22600 and 23000-23600 | E185: X | I185: X | K185: X | L185: X | Q185: 1380 | S185: T/R 13-02 Annexes A1, A2, A3 | U185: X | V185: X | W185: 1 | X185: 12 | Y185: 23 | Z185: 0.1
A186: Latvia | B186: =VLOOKUP(A186, 'Country names'!$A$5:$C$53,3,FALSE) -> LVA | C186: =VLOOKUP(D186,BandList!$A$2:$B$110,2,FALSE) -> 71 | D186: 22600-23000 | E186: X | I186: X | M186: X | P186: 0 | S186: T/R 13-02 Annex A2 | U186: X | V186: X | Z186: 0.1
A187: Latvia | B187: =VLOOKUP(A187, 'Country names'!$A$5:$C$53,3,FALSE) -> LVA | C187: =VLOOKUP(D187,BandList!$A$2:$B$110,2,FALSE) -> 72 | D187: 24250-24500 | E187: X | I187: X | M187: X | P187: 0 | S187: T/R 13-02 | U187: X | V187: X | Z187: 0.1
A188: Latvia | B188: =VLOOKUP(A188, 'Country names'!$A$5:$C$53,3,FALSE) -> LVA | C188: =VLOOKUP(D188,BandList!$A$2:$B$110,2,FALSE) -> 74 | D188: 24500–24717/25557–25725 | E188: X | I188: X | K188: X | Q188: 33 | S188: T/R 13-02 | U188: X | V188: X | W188: 0.2 | X188: 2 | Y188: 5 | Z188: 0.1
A189: Latvia | B189: =VLOOKUP(A189, 'Country names'!$A$5:$C$53,3,FALSE) -> LVA | C189: =VLOOKUP(D189,BandList!$A$2:$B$110,2,FALSE) -> 76 | D189: 24773–25445/25781–26453 | E189: X | I189: X | J189: X | K189: X | R189: 43 | S189: T/R 13-02 | U189: X | V189: X | W189: 0.2 | X189: 2 | Y189: 5 | Z189: 0.1
A190: Latvia | B190: =VLOOKUP(A190, 'Country names'!$A$5:$C$53,3,FALSE) -> LVA | C190: =VLOOKUP(D190,BandList!$A$2:$B$110,2,FALSE) -> 77 | D190: 26500-27500 | AD190: Exclusive Military Band Within the Band 26500-27500 MHz
A191: Latvia | B191: =VLOOKUP(A191, 'Country names'!$A$5:$C$53,3,FALSE) -> LVA | C191: =VLOOKUP(D191,BandList!$A$2:$B$110,2,FALSE) -> 79 | D191: 27828,5–28444,5/28948,5–29452,5 | E191: X | I191: X | J191: X | K191: X | L191: X | Q191: 7 | R191: 86 | S191: T/R 13-02 | U191: X | V191: X | W191: 0.1 | X191: 1.5 | Y191: 5 | Z191: 0.1
A192: Latvia | B192: =VLOOKUP(A192, 'Country names'!$A$5:$C$53,3,FALSE) -> LVA | C192: =VLOOKUP(D192,BandList!$A$2:$B$110,2,FALSE) -> 80 | D192: 31000-31300 | E192: X | I192: X | J192: X | K192: X | Q192: 0 | R192: 0 | S192: ECC/REC/(02)02
A193: Latvia | B193: =VLOOKUP(A193, 'Country names'!$A$5:$C$53,3,FALSE) -> LVA | C193: =VLOOKUP(D193,BandList!$A$2:$B$110,2,FALSE) -> 84 | D193: 32375–32571/33187–33383 | E193: X | I193: X | K193: X | Q193: 0 | S193: ERC/REC/(01)02 | Z193: 0.05
A194: Latvia | B194: =VLOOKUP(A194, 'Country names'!$A$5:$C$53,3,FALSE) -> LVA | C194: =VLOOKUP(D194,BandList!$A$2:$B$110,2,FALSE) -> 83 | D194: 31815–32347/32627–33159 | E194: X | I194: X | J194: X | K194: X | Q194: 224 | S194: ERC/REC/(01)02 | U194: X | V194: X | W194: 0.1 | X194: 1.5 | Y194: 5 | Z194: 0.1
A195: Latvia | B195: =VLOOKUP(A195, 'Country names'!$A$5:$C$53,3,FALSE) -> LVA | C195: =VLOOKUP(D195,BandList!$A$2:$B$110,2,FALSE) -> 85 | D195: 36000-37000 | AD195: Exclusive Military Band Within the Band 36000-37000 MHz
A196: Latvia | B196: =VLOOKUP(A196, 'Country names'!$A$5:$C$53,3,FALSE) -> LVA | C196: =VLOOKUP(D196,BandList!$A$2:$B$110,2,FALSE) -> 86 | D196: 37000-39500 | E196: X | I196: X | K196: X | L196: X | Q196: 195 | S196: T/R 12-01 | U196: X | V196: X | W196: 0,3 | X196: 2 | Y196: 6 | Z196: 0.2
A197: Latvia | B197: =VLOOKUP(A197, 'Country names'!$A$5:$C$53,3,FALSE) -> LVA | C197: =VLOOKUP(D197,BandList!$A$2:$B$110,2,FALSE) -> 87 | D197: 39500-40500 | S197: ERC/DEC/(00)02 | AD197: Currently not in use by Fixed service
A198: Latvia | B198: =VLOOKUP(A198, 'Country names'!$A$5:$C$53,3,FALSE) -> LVA | C198: =VLOOKUP(D198,BandList!$A$2:$B$110,2,FALSE) -> 88 | D198: 40500-43500 | E198: X | I198: X | J198: X | K198: X | Q198: 0 | R198: 0 | S198: ECC/REC/(01)04 | U198: X | V198: X | Z198: 1
A199: Latvia | B199: =VLOOKUP(A199, 'Country names'!$A$5:$C$53,3,FALSE) -> LVA | C199: =VLOOKUP(D199,BandList!$A$2:$B$110,2,FALSE) -> 89 | D199: 47200-48500 | E199: X | I199: X | M199: X | P199: 0 | S199: ERC/REC 25-10 | U199: X | Z199: 1
A200: Latvia | B200: =VLOOKUP(A200, 'Country names'!$A$5:$C$53,3,FALSE) -> LVA | C200: =VLOOKUP(D200,BandList!$A$2:$B$110,2,FALSE) -> 90 | D200: 48500-50200 | E200: X | I200: X | K200: X | L200: X | Q200: 0 | S200: ERC/REC 12-11
... 487 more rows

Sheet Italy
A1: Frequency band (MHz) | B1: Licensing regime | C1: Topo-logy | E1: Application | J1: Number of P-P links | L1: Channel/Frequency plan used (e.g. ERC/ECC Rec. ITU-R Rec.) | M1: Link characteristics | AD1: Future trends (e.g. in the next 5 years)
C2: FWA | E2: Network Infrastruc-ture | M2: Capacity and Adaptive Capacity | T2: Hop length (km)
B3: Link by link | C3: P-P | D3: P-MP | E3: Mobile backhaul | F3: Others | G3: Broadcasting Infrastructure | H3: No Information available on the application | I3: Other (please indicate) | J3: unidirection | K3: bidirectional (1 bidirectional link counts 1) | M3: LOW (<10 Mbit/s) | N3: BETWEEN <10 Mbit/s and <100 Mbit/s | O3: MEDIUM (10 to 100 Mbit/s) | P3: BETWEEN 10 Mbit/s and <100 Mbit/s | Q3: BETWEEN 10 Mbit/s and >100 Mbit/s | R3: HIGH (>=100 Mbit/s) | S3: BETWEEN >=100 Mbit/s and >100 Mbit/s | T3: Km <10 | U3: Km between 10 and 20 | V3: Km between 20 and 30 | W3: Km between 30 and 40 | X3: Km between 40 and 50 | Y3: Km between 50 and 230 | Z3: Km>230 | AA3: MIN | AB3: Typical figure | AC3: MAX | AD3: Anticipated growth/reduction (+/-%) | AE3: Currently congested | AF3: Planned reallocation to other service/application | AG3: Other (please describe) (see Question 3 of the Questionnaire) | AH3: Other (please describe) (see Question 3 of the Questionnaire)
A4: 5925-7125 | B4: X | C4: X | E4: X | F4: X | G4: X | K4: 1319 | L4: ERC/REC 14-01 and ERC/REC 14-02, ECC/REC(14)06 | M4: 0 | N4: 0 | O4: 399 | P4: 1 | Q4: 191 | R4: 635 | S4: 93 | T4: 16 | U4: 207 | V4: 353 | W4: 275 | X4: 159 | Y4: 143 | Z4: 166 | AA4: 6.387 | AB4: 31.5 | AC4: 59.38 | AD4: +10/20 | AL4: 1
A5: 7125-7750 | B5: X | C5: X | E5: X | F5: X | G5: X | K5: 3379 | L5: ECC REC (02)06 | M5: 4 | N5: 0 | O5: 1418 | P5: 10 | Q5: 744 | R5: 905 | S5: 298 | T5: 91 | U5: 780 | V5: 1224 | W5: 666 | X5: 345 | Y5: 130 | Z5: 143 | AA5: 4.593 | AB5: 31.25 | AC5: 57.98 | AD5: +10/20
A6: 10700-11700 | B6: X | C6: X | E6: X | F6: X | G6: X | K6: 7436 | L6: ERC/REC 12-06 | M6: 0 | N6: 0 | O6: 1350 | P6: 2 | Q6: 1622 | R6: 4214 | S6: 248 | T6: 1648 | U6: 4103 | V6: 1188 | W6: 338 | X6: 93 | Y6: 33 | Z6: 33 | AA6: 1.462 | AB6: 21.75 | AC6: 32.83 | AD6: +10/20
A7: 12750-13250 | B7: X | C7: X | E7: X | F7: X | G7: X | K7: 10663 | L7: ERC/REC 12-02 | M7: 93 | N7: 31 | O7: 4383 | P7: 49 | Q7: 3674 | R7: 1544 | S7: 889 | T7: 3034 | U7: 6172 | V7: 1270 | W7: 139 | X7: 27 | Y7: 5 | Z7: 16 | AA7: 1.013 | AB7: 18.75 | AC7: 32.7 | AD7: +10/20
A8: 14250-14500 | B8: X | C8: X | G8: X | J8: 1089 | L8: ch. Spacing 20 MHz, D.M. 07-10-1986 | O8: 1089 | AA8: 5 | AC8: 25 | AD8: +10 | AE8: Y | AF8: N
A9: 14500-14620 and 15230-15350 | B9: X | C9: X | E9: X | F9: X | G9: X | K9: 6256 | L9: ERC/REC 12-07 | M9: 152 | N9: 2 | O9: 3012 | P9: 44 | Q9: 2827 | R9: 168 | S9: 51 | T9: 3742 | U9: 2422 | V9: 67 | W9: 10 | X9: 5 | Y9: 0 | Z9: 10 | AA9: 0.951 | AB9: 13.333 | AC9: 22.52 | AD9: +10/20
A10: 17700-19700 | B10: X | C10: X | E10: X | F10: X | G10: X | K10: 21374 | L10: ERC/REC 12-03 | M10: 251 | N10: 6 | O10: 5078 | P10: 422 | Q10: 7327 | R10: 6032 | S10: 2258 | T10: 19535 | U10: 1775 | V10: 41 | W10: 5 | X10: 2 | Y10: 0 | Z10: 16 | AA10: 0.271 | AB10: 8.75 | AC10: 16.822 | AD10: +10/20
A11: 22000-22600 and 23000-23600 | B11: X | C11: X | E11: X | F11: X | G11: X | K11: 15778 | L11: T/R 13-02 Annexes A1, A2, A3 | M11: 189 | N11: 16 | O11: 5156 | P11: 633 | Q11: 6930 | R11: 1580 | S11: 1274 | T11: 15698 | U11: 57 | V11: 2 | W11: 1 | X11: 1 | Y11: 1 | Z11: 18 | AA11: 0.12 | AB11: 6.5 | AC11: 12.21 | AD11: +10/20
A12: 37000-39500 | B12: X | C12: X | E12: X | F12: X | G12: X | K12: 13585 | L12: T/R 12-01 | M12: 65 | N12: 13 | O12: 4838 | P12: 382 | Q12: 5756 | R12: 1186 | S12: 1345 | T12: 13571 | U12: 2 | V12: 1 | W12: 0 | X12: 2 | Y12: 0 | Z12: 9 | AA12: 0.1 | AB12: 3.875 | AC12: 9.3 | AD12: +10/20
A13: 40500-43500 | B13: X | C13: X | E13: X | F13: X | G13: X | K13: 1580 | L13: ECC/REC/(01)04 | M13: 0 | N13: 0 | O13: 23 | P13: 51 | Q13: 1021 | R13: 66 | S13: 419 | T13: 1579 | U13: 1 | V13: 0 | W13: 0 | X13: 0 | Y13: 0 | Z13: 0 | AA13: 0.080 | AB13: 2 | AC13: 3.9 | AD13: +10/20
A14: 71000-76000 and 81000-86000 | B14: X | C14: X | E14: X | F14: X | G14: X | K14: 8 | L14: ECC/REC/(05)07 | M14: 0 | N14: 0 | O14: 1 | P14: 0 | Q14: 3 | R14: 1 | S14: 3 | T14: 8 | U14: 0 | V14: 0 | W14: 0 | X14: 0 | Y14: 0 | Z14: 0 | AA14: 0.144 | AB14: 0.5 | AC14: 1.436 | AD14: +10/20
B18: Rev. Feb 2017 (14.250 - 14.500 info inserted and sheet formatted as ETSI Questionnaire)
A20: 5925-7125 | B20: X | E20: X | G20: X | H20: X | I20: X | M20: 1319 | O20: ERC/REC 14-01 and ERC/REC 14-02, ECC/REC(14)06 | P20: 0 | Q20: 591 | R20: 728 | S20: 6.387 | T20: 31.5 | U20: 59.38 | V20: +10/20
A21: 7125-7750 | B21: X | E21: X | G21: X | H21: X | I21: X | M21: 3379 | O21: ECC REC (02)06 | P21: 4 | Q21: 2172 | R21: 1203 | S21: 4.593 | T21: 31.25 | U21: 57.98 | V21: +10/20
A22: 10700-11700 | B22: X | E22: X | G22: X | H22: X | I22: X | M22: 7436 | O22: ERC/REC 12-06 | P22: 0 | Q22: 2974 | R22: 4462 | S22: 1.462 | T22: 21.75 | U22: 32.83 | V22: +10/20
A23: 12750-13250 | B23: X | E23: X | G23: X | H23: X | I23: X | M23: 10663 | O23: ERC/REC 12-02 | P23: 93 | Q23: 8137 | R23: 2433 | S23: 1.013 | T23: 18.75 | U23: 32.7 | V23: +10/20
A24: 14250-14500 | B24: X | E24: X | I24: X | L24: 1089 | O24: ch. Spacing 20 MHz, D.M. 07-10-1986 | Q24: 1089 | R24: 0 | S24: 5 | U24: 25 | V24: +10 | W24: Y | X24: N
A25: 14500-14620 and 15230-15350 | B25: X | E25: X | G25: X | H25: X | I25: X | M25: 6256 | O25: ERC/REC 12-07 | P25: 152 | Q25: 5885 | R25: 219 | S25: 0.951 | T25: 13.333 | U25: 22.52 | V25: +10/20
A26: 17700-19700 | B26: X | E26: X | G26: X | H26: X | I26: X | M26: 21374 | O26: ERC/REC 12-03 | P26: 251 | Q26: 12833 | R26: 8290 | S26: 0.271 | T26: 8.75 | U26: 16.822 | V26: +10/20
A27: 22000-22600 and 23000-23600 | B27: X | E27: X | G27: X | H27: X | I27: X | M27: 15778 | O27: T/R 13-02 Annexes A1, A2, A3 | P27: 189 | Q27: 12735 | R27: 2854 | S27: 0.12 | T27: 6.5 | U27: 12.21 | V27: +10/20
A28: 37000-39500 | B28: X | E28: X | G28: X | H28: X | I28: X | M28: 13585 | O28: T/R 12-01 | P28: 65 | Q28: 10989 | R28: 2531 | S28: 0.1 | T28: 3.875 | U28: 9.3 | V28: +10/20
A29: 40500-43500 | B29: X | E29: X | G29: X | H29: X | I29: X | M29: 1580 | O29: ECC/REC/(01)04 | P29: 0 | Q29: 1095 | R29: 485 | S29: 0.080 | T29: 2 | U29: 3.9 | V29: +10/20
A30: 71000-76000 and 81000-86000 | B30: X | E30: X | G30: X | H30: X | I30: X | M30: 8 | O30: ECC/REC/(05)07 | P30: 0 | Q30: 4 | R30: 4 | S30: 0.144 | T30: 0.5 | U30: 1.436 | V30: +10/20

Sheet Portugal
C1: Frequency band (MHz) | D1: Licensing regime | H1: Topo- logy | J1: Application | O1: Number of P-P links | Q1: Number of CS | R1: Channel/frequency plan used (e.g. ERC/ECC Rec., ITU-R Rec.) | S1: Link characteristics | Y1: Future trends in the next 5 years
S2: Capacity | V2: Hop lenght (km)
D3: Link by link | E3: Block | F3: Light licensed | G3: Licence exempt | H3: P-P | I3: P-MP (FWA systems) | J3: Mobile backhaul | K3: Others | L3: Broadcasting Infrastructure | M3: No Information available on the application | N3: Other (please indicate) | O3: Unidirectional | P3: Bidirectional (1 bidirectional link = counts 1; 1 link with more than 1 channel = counts 1) | Q3: (applicable only for P-MP and mesh networks) | S3: LOW (<10 Mbit/s) | T3: MEDIUM (10 to 100 Mbit/s) | U3: HIGH (>100 Mbit/s) | V3: MIN | W3: Typical figure | X3: MAX | Y3: Anticipated growth/reduction (+/-%) | Z3: Currently congested | AA3: Planned relocation to other service/application | AB3: Other (please describe) (see Question 3 of the Questionnaire)
A4: Portugal | B4: =VLOOKUP(Portugal!A4, 'Country names'!$A$5:$C$53,3,FALSE) -> POR | C4: 1350-1375 and 1492-1517 | D4: X | H4: X | P4: 92 | R4: T/R 13-01 Annex A | S4: X | V4: 5 | W4: 20 | X4: 50 | Y4: 0
A5: Portugal | B5: =VLOOKUP(Portugal!A5, 'Country names'!$A$5:$C$53,3,FALSE) -> POR | D5: X | I5: X | Q5: 9 | R5: T/R 13-01 Annex A | S5: X | V5: 5 | W5: 10 | X5: 25 | Y5: -100
A6: Portugal | B6: =VLOOKUP(Portugal!A6, 'Country names'!$A$5:$C$53,3,FALSE) -> POR | C6: 1375-1400 and 1427-1452 | D6: X | H6: X | I6: X | R6: T/R 13-01 Annex B | S6: X | Y6: Planned
A7: Portugal | B7: =VLOOKUP(Portugal!A7, 'Country names'!$A$5:$C$53,3,FALSE) -> POR | C7: 1517-1525 | D7: X | L7: X | O7: 347 | R7: National plan (STL) | S7: X | V7: 5 | W7: 15 | X7: 30 | Y7: 5
A8: Portugal | B8: =VLOOKUP(Portugal!A8, 'Country names'!$A$5:$C$53,3,FALSE) -> POR | C8: 2025-2110 and 2200-2290 | D8: X | H8: X | L8: X | N8: TCR, SAP/SAB | P8: 11 | R8: T/R 13-01 Annex C | S8: X | V8: 5 | W8: 30 | X8: 190 | Y8: 0
A9: Portugal | B9: =VLOOKUP(Portugal!A9, 'Country names'!$A$5:$C$53,3,FALSE) -> POR | C9: 3400-3600 | E9: X | I9: X | N9: BWA (3.3 - 3.6GHz) | Q9: 44meo | R9: ERC/REC 14-03 | S9: X | T9: X | V9: 1 | W9: 10 | X9: 20 | Y9: -50
A10: Portugal | B10: =VLOOKUP(Portugal!A10, 'Country names'!$A$5:$C$53,3,FALSE) -> POR | C10: 3600-4200 | E10: X | I10: X | N10: FSS, VSAT (3.8-4.2 GHz) | Q10: 2zax | R10: ERC/REC 12-08 | S10: X | T10: X | V10: 1 | W10: 10 | X10: 20 | Y10: -100
A11: Portugal | B11: =VLOOKUP(Portugal!A11, 'Country names'!$A$5:$C$53,3,FALSE) -> POR | C11: 4400-5000 | N11: Military
A12: Portugal | B12: =VLOOKUP(Portugal!A12, 'Country names'!$A$5:$C$53,3,FALSE) -> POR | C12: 5850-5925 | G12: X | N12: ISM, SRD
A13: Portugal | B13: =VLOOKUP(Portugal!A13, 'Country names'!$A$5:$C$53,3,FALSE) -> POR | C13: 5925-7125 | D13: X | H13: X | J13: X | K13: X | N13: VSAT, SRD | P13: 6 | R13: ERC/REC 14-01 | T13: X | U13: X | V13: 15 | W13: 30 | X13: 70 | Y13: 5
A14: Portugal | B14: =VLOOKUP(Portugal!A14, 'Country names'!$A$5:$C$53,3,FALSE) -> POR | D14: X | H14: X | J14: X | K14: X | N14: VSAT, SRD | P14: 7 | R14: ERC/REC 14-02 | T14: X | U14: X | V14: 15 | W14: 30 | X14: 70 | Y14: 5
A15: Portugal | B15: =VLOOKUP(Portugal!A15, 'Country names'!$A$5:$C$53,3,FALSE) -> POR | D15: X | H15: X | N15: VSAT, SRD | R15: ECC/REC(14)06 | S15: X | V15: 10 | W15: 20 | X15: 70 | Y15: Planned
A16: Portugal | B16: =VLOOKUP(Portugal!A16, 'Country names'!$A$5:$C$53,3,FALSE) -> POR | C16: 7125-7750 | D16: X | H16: X | K16: X | N16: FSS, Military (7.25-7.3 GHz) | P16: 4 | R16: 7 LOW: ITU-R F.385 | S16: X | V16: 15 | W16: 30 | X16: 50 | Y16: -100
A17: Portugal | B17: =VLOOKUP(Portugal!A17, 'Country names'!$A$5:$C$53,3,FALSE) -> POR | D17: X | H17: X | J17: X | N17: FSS, Military (7.25-7.3 GHz) | P17: 286 | R17: 7 LOW: ECC REC (02)06 | S17: X | T17: X | U17: X | V17: 10 | W17: 25 | X17: 40 | Y17: 10
A18: Portugal | B18: =VLOOKUP(Portugal!A18, 'Country names'!$A$5:$C$53,3,FALSE) -> POR | D18: X | H18: X | K18: X | N18: FSS | P18: 4 | R18: 7 HIGH: ITU-R F.385 | S18: X | V18: 15 | W18: 30 | X18: 50 | Y18: -100
A19: Portugal | B19: =VLOOKUP(Portugal!A19, 'Country names'!$A$5:$C$53,3,FALSE) -> POR | D19: X | H19: X | J19: X | K19: X | N19: FSS | P19: 103 | R19: 7 HIGH: ECC REC (02)06 | S19: X | T19: X | U19: X | V19: 10 | W19: 25 | X19: 40 | Y19: 10
A20: Portugal | B20: =VLOOKUP(Portugal!A20, 'Country names'!$A$5:$C$53,3,FALSE) -> POR | C20: 7750-7900 | D20: X | H20: X | J20: X | K20: X | P20: 141 | R20: 8 LOW: ECC REC (02)06 | T20: X | U20: X | V20: 10 | W20: 25 | X20: 50 | Y20: 10
A21: Portugal | B21: =VLOOKUP(Portugal!A21, 'Country names'!$A$5:$C$53,3,FALSE) -> POR | C21: 7900-8500 | D21: X | H21: X | N21: FSS, EESS, Military (7.975-8.025 GHz) | R21: 8 HIGH: ECC REC (02)06 | S21: X | T21: X | Y21: Planned
A22: Portugal | B22: =VLOOKUP(Portugal!A22, 'Country names'!$A$5:$C$53,3,FALSE) -> POR | C22: 10000-10680 | N22: AM, SAP/SAB, SRD | R22: ERC/REC 12-05
A23: Portugal | B23: =VLOOKUP(Portugal!A23, 'Country names'!$A$5:$C$53,3,FALSE) -> POR | C23: 10700-11700 | D23: X | H23: X | J23: X | K23: X | L23: X | N23: FSS, VSAT, SNG, SIT, AES, Euteltracs | P23: 97 | R23: ERC/REC 12-06 | T23: X | U23: X | V23: 5 | W23: 20 | X23: 40 | Y23: -10
A24: Portugal | B24: =VLOOKUP(Portugal!A24, 'Country names'!$A$5:$C$53,3,FALSE) -> POR | C24: 11700-12500 | N24: RAD-S, SIT
A25: Portugal | B25: =VLOOKUP(Portugal!A25, 'Country names'!$A$5:$C$53,3,FALSE) -> POR | C25: 12750-13250 | D25: X | H25: X | J25: X | K25: X | N25: FSS | P25: 357 | R25: ERC/REC 12-02 | S25: X | T25: X | U25: X | V25: 5 | W25: 15 | X25: 40 | Y25: 5
A26: Portugal | B26: =VLOOKUP(Portugal!A26, 'Country names'!$A$5:$C$53,3,FALSE) -> POR | C26: 14250-14500 | N26: FSS, VSAT, SNG, AES
A27: Portugal | B27: =VLOOKUP(Portugal!A27, 'Country names'!$A$5:$C$53,3,FALSE) -> POR | C27: 14500-14620 and 15230-15350 | D27: X | H27: X | J27: X | K27: X | P27: 189 | R27: ERC/REC 12-07 | S27: X | T27: X | U27: X | V27: 5 | W27: 15 | X27: 30 | Y27: 5
A28: Portugal | B28: =VLOOKUP(Portugal!A28, 'Country names'!$A$5:$C$53,3,FALSE) -> POR | C28: 17300-17700 | N28: FSS, HDFSS
A29: Portugal | B29: =VLOOKUP(Portugal!A29, 'Country names'!$A$5:$C$53,3,FALSE) -> POR | C29: 17700-19700 | D29: X | H29: X | J29: X | K29: X | N29: FSS | P29: 251 | R29: ITU-R F.595 | S29: X | T29: X | V29: 3 | W29: 10 | X29: 20 | Y29: 5
A30: Portugal | B30: =VLOOKUP(Portugal!A30, 'Country names'!$A$5:$C$53,3,FALSE) -> POR | D30: X | H30: X | J30: X | K30: X | L30: X | N30: FSS | P30: 1628 | R30: ERC/REC 12-03 | T30: X | U30: X | V30: 3 | W30: 10 | X30: 20 | Y30: 20
A31: Portugal | B31: =VLOOKUP(Portugal!A31, 'Country names'!$A$5:$C$53,3,FALSE) -> POR | C31: 21200-22000 | N31: SRR
A32: Portugal | B32: =VLOOKUP(Portugal!A32, 'Country names'!$A$5:$C$53,3,FALSE) -> POR | C32: 22000-22600 and 23000-23600 | D32: X | H32: X | J32: X | K32: X | N32: SRR | P32: 1047 | R32: T/R 13-02 Annexes A1 | S32: X | T32: X | U32: X | V32: 1 | W32: 5 | X32: 15 | Y32: 10
A33: Portugal | B33: =VLOOKUP(Portugal!A33, 'Country names'!$A$5:$C$53,3,FALSE) -> POR | C33: 22600-23000 | D33: X | H33: X | N33: SRR | R33: T/R 13-02 Annexes A2, A3 | Y33: No use at the moment.
A34: Portugal | B34: =VLOOKUP(Portugal!A34, 'Country names'!$A$5:$C$53,3,FALSE) -> POR | C34: 24250-24500 | N34: SRR, SRD
A35: Portugal | B35: =VLOOKUP(Portugal!A35, 'Country names'!$A$5:$C$53,3,FALSE) -> POR | C35: 24500-26500 | E35: X | I35: X | J35: X | N35: SRR, SRD, Military (25.25-25.492 GHz and 26.25-27.5 GHz) | R35: T/R 13-02 Annex B | S35: X | T35: X | W35: 5 | Y35: No use at the moment.
A36: Portugal | B36: =VLOOKUP(Portugal!A36, 'Country names'!$A$5:$C$53,3,FALSE) -> POR | C36: 26500-27500 | N36: SRR, SRD, Military (26.25-27.5 GHz)
A37: Portugal | B37: =VLOOKUP(Portugal!A37, 'Country names'!$A$5:$C$53,3,FALSE) -> POR | C37: 27500-29500 | E37: X | I37: X | L37: X | N37: FSS, HDFSS | R37: T/R 13-02 Annex C | T37: X | W37: 5 | Y37: No use at the moment.
A38: Portugal | B38: =VLOOKUP(Portugal!A38, 'Country names'!$A$5:$C$53,3,FALSE) -> POR | C38: 31000-31300 | R38: ECC/REC/(02)02 | Y38: Planned
A39: Portugal | B39: =VLOOKUP(Portugal!A39, 'Country names'!$A$5:$C$53,3,FALSE) -> POR | C39: 31800-33400 | D39: X | H39: X | I39: X | R39: ERC/REC/(01)02 | Y39: Planned
A40: Portugal | B40: =VLOOKUP(Portugal!A40, 'Country names'!$A$5:$C$53,3,FALSE) -> POR | C40: 36000-37000 | M40: X | N40: Military
A41: Portugal | B41: =VLOOKUP(Portugal!A41, 'Country names'!$A$5:$C$53,3,FALSE) -> POR | C41: 37000-39500 | D41: X | H41: X | J41: X | K41: X | N41: FS | P41: 425 | R41: T/R 12-01 | S41: X | T41: X | U41: X | V41: 0.1 | W41: 2 | X41: 6 | Y41: 5
A42: Portugal | B42: =VLOOKUP(Portugal!A42, 'Country names'!$A$5:$C$53,3,FALSE) -> POR | C42: 39500-40500 | N42: HDFSS
A43: Portugal | B43: =VLOOKUP(Portugal!A43, 'Country names'!$A$5:$C$53,3,FALSE) -> POR | C43: 40500-43500 | D43: ? | E43: ? | H43: X | I43: X | N43: MWS, MVDS | R43: ECC/REC/(01)04 | Y43: Planned
A44: Portugal | B44: =VLOOKUP(Portugal!A44, 'Country names'!$A$5:$C$53,3,FALSE) -> POR | C44: 47200-48500 | N44: HDFSS (47.5-47.9 GHz)
A45: Portugal | B45: =VLOOKUP(Portugal!A45, 'Country names'!$A$5:$C$53,3,FALSE) -> POR | C45: 48500-50200 | D45: ? | E45: ? | H45: X | I45: X | N45: HDFSS (48.2-48.54 GHz and 49.44-50.2 GHz) | R45: ERC/REC 12-11 | Y45: Planned
A46: Portugal | B46: =VLOOKUP(Portugal!A46, 'Country names'!$A$5:$C$53,3,FALSE) -> POR | C46: 50400-51400
A47: Portugal | B47: =VLOOKUP(Portugal!A47, 'Country names'!$A$5:$C$53,3,FALSE) -> POR | C47: 51400-52600 | D47: ? | E47: ? | H47: X | I47: X | R47: ERC/REC 12-11 | Y47: Planned
A48: Portugal | B48: =VLOOKUP(Portugal!A48, 'Country names'!$A$5:$C$53,3,FALSE) -> POR | C48: 55780-57000 | D48: ? | E48: ? | H48: X | I48: X | N48: EESS | R48: ERC/REC 12-12 | Y48: Planned
A49: Portugal | B49: =VLOOKUP(Portugal!A49, 'Country names'!$A$5:$C$53,3,FALSE) -> POR | C49: 57000-59000 | D49: ? | E49: ? | H49: X | I49: X | N49: EESS, SRD | R49: ECC/REC/(09)01 | Y49: Planned
A50: Portugal | B50: =VLOOKUP(Portugal!A50, 'Country names'!$A$5:$C$53,3,FALSE) -> POR | C50: 59000-64000 | D50: ? | E50: ? | H50: X | I50: X | N50: SRD, ISM, Military (59-61 GHz) | R50: ECC/REC/(09)01 | Y50: Planned
A51: Portugal | B51: =VLOOKUP(Portugal!A51, 'Country names'!$A$5:$C$53,3,FALSE) -> POR | C51: 64000-66000 | D51: ? | E51: ? | H51: X | I51: X | R51: ECC/REC/(05)02 | Y51: Planned
A52: Portugal | B52: =VLOOKUP(Portugal!A52, 'Country names'!$A$5:$C$53,3,FALSE) -> POR | C52: 71000-76000 and 81000-86000 | D52: ? | E52: ? | H52: X | I52: X | K52: X | N52: SRD, AM (75.5-76 GHz), Military (71-74 GHz and 81-84 GHz) | P52: 1 | R52: ECC/REC/(05)07 | U52: X | V52: 0.01 | W52: 0,3 | X52: 1 | Y52: 1000
A53: Portugal | B53: =VLOOKUP(Portugal!A53, 'Country names'!$A$5:$C$53,3,FALSE) -> POR | C53: 92000-95000 | D53: ? | E53: ? | H53: X | I53: X | R53: ECC/REC/(14)01 | Y53: Planned

Sheet Bulgaria
C1: Frequency band (MHz) | D1: Licensing regime | H1: Topo-logy | J1: Application | O1: Number of P-P links | Q1: Number of CS | R1: Channel/Frequency plan used (e.g. ERC/ECC Rec. ITU-R Rec.) | S1: Link characteristics | Y1: Future trends (e.g. in the next 5 years)
H2: FWA | J2: Network Infrastruc-ture | S2: Capacity | V2: Hop length (km)
D3: Link by link | E3: Block | F3: Light licensed | G3: Licence exempt | H3: P-P | I3: P-MP | J3: Mobile backhaul | K3: Others | L3: Broadcasting Infrastructure | M3: No Information available on the application | N3: Other (please indicate) | O3: unidirection | P3: bidirectional (1 bidirectional link counts 1) | Q3: (applicable only for P-MP and mesh networks) | S3: LOW (<10 Mbit/s) | T3: MEDIUM (10 to 100 Mbit/s) | U3: HIGH (>100 Mbit/s) | V3: MIN | W3: Typical figure | X3: MAX | Y3: Anticipated growth/reduction (+/-%) | Z3: Currently congested | AA3: Planned reallocation to other service/application | AB3: Other (please describe) (see Question 3 of the Questionnaire)
A4: Bulgaria | B4: =VLOOKUP(A4, 'Country names'!$A$5:$C$53,3,FALSE) -> BUL | C4: 3600-3800 | D4: X | H4: X | K4: X | O4: 0 | P4: 14 | R4: ERC/REC 12-08, Annex B, Part 2 | T4: X | V4: 13 | W4: 51 | X4: 73 | AB4: Reallocate to another suitable frequency band
A5: Bulgaria | B5: =VLOOKUP(A5, 'Country names'!$A$5:$C$53,3,FALSE) -> BUL | C5: 3800-4200 | D5: X | H5: X | O5: 0 | P5: 0 | R5: ERC/REC 12-08, Annex B, Part 1 | S5: - | T5: - | U5: - | V5: - | W5: - | X5: -
A6: Bulgaria | B6: =VLOOKUP(A6, 'Country names'!$A$5:$C$53,3,FALSE) -> BUL | C6: 5925-6425 | D6: X | H6: X | J6: X | K6: X | O6: 0 | P6: 232 | R6: ERC/REC 14-01, Annex 1 | U6: X | V6: 6 | W6: 32 | X6: 70 | Z6: X | AB6: Currently congested for area of capital - Sofia
A7: Bulgaria | B7: =VLOOKUP(A7, 'Country names'!$A$5:$C$53,3,FALSE) -> BUL | C7: 6425-7125 | D7: X | H7: X | J7: X | K7: X | O7: 0 | P7: 228 | R7: ERC/REC 14-02, Annex 1 | U7: X | V7: 9 | W7: 30 | X7: 97 | Z7: X | AB7: Currently congested for area of capital - Sofia
A8: Bulgaria | B8: =VLOOKUP(A8, 'Country names'!$A$5:$C$53,3,FALSE) -> BUL | C8: 7125-7425 | D8: X | H8: X | J8: X | K8: X | O8: 0 | P8: 73 | R8: ITU-R F.385-8 | T8: X | U8: X | V8: 20 | W8: 35 | X8: 59 | Y8: +25 %
A9: Bulgaria | B9: =VLOOKUP(A9, 'Country names'!$A$5:$C$53,3,FALSE) -> BUL | C9: 7425-7725 | D9: X | H9: X | J9: X | O9: 0 | P9: 404 | R9: ITU-R F.385-8 | S9: X | T9: X | U9: X | V9: 18 | W9: 30 | X9: 98 | Y9: +25 %
A10: Bulgaria | B10: =VLOOKUP(A10, 'Country names'!$A$5:$C$53,3,FALSE) -> BUL | C10: 7725-7875 | D10: X | H10: X | J10: X | O10: 0 | P10: 454 | R10: ITU-R F.386-9 and national plan | S10: X | T10: X | U10: X | V10: 7 | W10: 22 | X10: 58 | Y10: +10 %
A11: Bulgaria | B11: =VLOOKUP(A11, 'Country names'!$A$5:$C$53,3,FALSE) -> BUL | C11: 7900-8500 | D11: X | H11: X | K11: X | O11: 0 | P11: 19 | R11: ECC REC (02)06, Annex 2 | T11: X | V11: 15 | W11: 34 | X11: 61 | Y11: +200 %
A12: Bulgaria | B12: =VLOOKUP(A12, 'Country names'!$A$5:$C$53,3,FALSE) -> BUL | C12: 10150-10680 | D12: X | H12: X | L12: X | O12: 53 | P12: 1 | R12: ERC/REC 12-05, Annex A | S12: X | V12: 0.2 | W12: 7 | X12: 42 | Y12: +10 %
A13: Bulgaria | B13: =VLOOKUP(A13, 'Country names'!$A$5:$C$53,3,FALSE) -> BUL | C13: 10755-11725 | D13: X | H13: X | J13: X | K13: X | O13: 5 | P13: 242 | R13: ITU-R F.387-12 | T13: X | U13: X | V13: 3 | W13: 16 | X13: 46 | Y13: +25 %
A14: Bulgaria | B14: =VLOOKUP(A14, 'Country names'!$A$5:$C$53,3,FALSE) -> BUL | C14: 11725-12500 | D14: X | H14: X | K14: X | O14: 3 | P14: 0 | R14: national plan | S14: X | T14: X | V14: 2 | W14: 3 | X14: 4 | AB14: Reallocate to another suitable frequency band
A15: Bulgaria | B15: =VLOOKUP(A15, 'Country names'!$A$5:$C$53,3,FALSE) -> BUL | C15: 12750-13250 | D15: X | H15: X | J15: X | K15: X | O15: 0 | P15: 1135 | R15: ERC/REC 12-02 | S15: X | T15: X | U15: X | V15: 2 | W15: 15 | X15: 59 | Y15: +25 %
A16: Bulgaria | B16: =VLOOKUP(A16, 'Country names'!$A$5:$C$53,3,FALSE) -> BUL | C16: 17700-19700 | D16: X | H16: X | J16: X | K16: X | O16: 0 | P16: 2798 | R16: ERC/REC 12-03 | S16: X | T16: X | U16: X | V16: 0.2 | W16: 10 | X16: 36 | Y16: +50 %
A17: Bulgaria | B17: =VLOOKUP(A17, 'Country names'!$A$5:$C$53,3,FALSE) -> BUL | C17: 22008-23576 | D17: X | H17: X | J17: X | K17: X | O17: 0 | P17: 903 | R17: T/R 13-02, Annex A | S17: X | T17: X | U17: X | V17: 0.2 | W17: 5 | X17: 21 | Y17: +25 %
A18: Bulgaria | B18: =VLOOKUP(A18, 'Country names'!$A$5:$C$53,3,FALSE) -> BUL | C18: 24500-26500 | D18: X | E18: X | H18: X | I18: X | J18: X | O18: 0 | P18: 469 | Q18: 1472 | R18: T/R 13-02 Annex B for P-P and ECC/REC (00) 05 for P-MP | S18: X | T18: X | U18: X | V18: 0.06 | W18: 4 | X18: 15 | Y18: +25 %
A19: Bulgaria | B19: =VLOOKUP(A19, 'Country names'!$A$5:$C$53,3,FALSE) -> BUL | C19: 27500-29500 | D19: X | H19: X | J19: X | O19: 0 | P19: 946 | R19: T/R 13-02 Annex C | S19: X | T19: X | U19: X | V19: 0.07 | W19: 2 | X19: 10 | Y19: +50 %
A20: Bulgaria | B20: =VLOOKUP(A20, 'Country names'!$A$5:$C$53,3,FALSE) -> BUL | C20: 31000-31300 | D20: X | H20: X | O20: 0 | P20: 0 | R20: ECC/REC/(02)02 | S20: - | T20: - | U20: - | V20: - | W20: - | X20: -
A21: Bulgaria | B21: =VLOOKUP(A21, 'Country names'!$A$5:$C$53,3,FALSE) -> BUL | C21: 31800-33400 | D21: X | H21: X | O21: 0 | P21: 0 | R21: ERC/REC/(01)02 | S21: - | T21: - | U21: - | V21: - | W21: - | X21: -
A22: Bulgaria | B22: =VLOOKUP(A22, 'Country names'!$A$5:$C$53,3,FALSE) -> BUL | C22: 37000-39500 | D22: X | H22: X | J22: X | O22: 0 | P22: 1075 | R22: T/R 12-01, Annex A | S22: X | T22: X | U22: X | V22: 0.03 | W22: 1 | X22: 6 | Y22: +50 %
A23: Bulgaria | B23: =VLOOKUP(A23, 'Country names'!$A$5:$C$53,3,FALSE) -> BUL | C23: 51400-52600 | D23: X | H23: X | O23: 0 | P23: 0 | R23: ERC/REC 12-11 | S23: - | T23: - | U23: - | V23: - | W23: - | X23: -
A24: Bulgaria | B24: =VLOOKUP(A24, 'Country names'!$A$5:$C$53,3,FALSE) -> BUL | C24: 557800-57000 | D24: X | H24: X | O24: 0 | P24: 0 | R24: ERC/REC 12-12, Annex 2 | S24: - | T24: - | U24: - | V24: - | W24: - | X24: -
A25: Bulgaria | B25: =VLOOKUP(A25, 'Country names'!$A$5:$C$53,3,FALSE) -> BUL | C25: 57000-59000 | D25: X | H25: X | O25: 0 | P25: 0 | R25: ECC/REC/(09)01 | S25: - | T25: - | U25: - | V25: - | W25: - | X25: -
A26: Bulgaria | B26: =VLOOKUP(A26, 'Country names'!$A$5:$C$53,3,FALSE) -> BUL | C26: 59000-64000 | D26: X | H26: X | O26: 0 | P26: 0 | R26: ECC/REC/(09)01 | S26: - | T26: - | U26: - | V26: - | W26: - | X26: -
A27: Bulgaria | B27: =VLOOKUP(A27, 'Country names'!$A$5:$C$53,3,FALSE) -> BUL | C27: 64000-66000 | D27: X | H27: X | O27: 0 | P27: 0 | R27: ECC/REC/(05)02 | S27: - | T27: - | U27: - | V27: - | W27: - | X27: -
A28: Bulgaria | B28: =VLOOKUP(A28, 'Country names'!$A$5:$C$53,3,FALSE) -> BUL | C28: 71000-76000 and 81000-86000 | D28: X | H28: X | J28: X | O28: 0 | P28: 52 | R28: ECC/REC/(05)07 | U28: X | V28: 0.2 | W28: 0.8 | X28: 2 | Y28: +500 %

Sheet Switzerland
C1: Frequency band (MHz) | D1: Licensing regime | H1: Topo-logy | J1: Application | O1: Number of P-P links | Q1: Number of CS | R1: Channel/Frequency plan used (e.g. ERC/ECC Rec. ITU-R Rec.) | S1: Link characteristics | Y1: Future trends (e.g. in the next 5 years)
H2: FWA | J2: Network Infrastruc-ture | S2: Capacity | V2: Hop length (km)
D3: Link by link | E3: Block | F3: Light licensed | G3: Licence exempt | H3: P-P | I3: P-MP | J3: Mobile backhaul | K3: Others | L3: Broadcasting Infrastructure | M3: No Information available on the application | N3: Other (please indicate) | O3: unidirection | P3: bidirectional (1 bidirectional link counts 1) | Q3: (applicable only for P-MP and mesh networks) | S3: LOW (<10 Mbit/s) | T3: MEDIUM (10 to 100 Mbit/s) | U3: HIGH (>100 Mbit/s) | V3: MIN | W3: Typical figure | X3: MAX | Y3: Anticipated growth/reduction (+/-%) | Z3: Currently congested | AA3: Planned reallocation to other service/application | AB3: Other (please describe) (see Question 3 of the Questionnaire)
A4: Switzerland | B4: =VLOOKUP(A4, 'Country names'!$A$5:$C$53,3,FALSE) -> SUI | C4: 1350-1375 and 1492-1517 | D4: x | H4: x | K4: x | P4: 2 | R4: T/R 13-01 Annex A | S4: x | Y4: -100 | AA4: MFCN
A5: Switzerland | B5: =VLOOKUP(A5, 'Country names'!$A$5:$C$53,3,FALSE) -> SUI | C5: 1440-1500 | D5: x | H5: x | K5: x | P5: 39 | S5: analog | Y5: -100 | AA5: MFCN
A6: Switzerland | B6: =VLOOKUP(A6, 'Country names'!$A$5:$C$53,3,FALSE) -> SUI | C6: 1375-1400 and 1427-1452 | D6: x | H6: x | K6: x | P6: 32 | R6: T/R 13-01 Annex B | S6: x /analog | Y6: -100 | AA6: MFCN
A7: Switzerland | B7: =VLOOKUP(A7, 'Country names'!$A$5:$C$53,3,FALSE) -> SUI | C7: 1518 - 1525 | D7: x | H7: x | L7: x | O7: 24 | S7: x /analog | V7: 1.1 | W7: 16.7 | X7: 36.6 | Y7: 0
A8: Switzerland | B8: =VLOOKUP(A8, 'Country names'!$A$5:$C$53,3,FALSE) -> SUI | C8: 2025-2110 and 2200-2290 | M8: x | N8: No civil use, PMSE | R8: T/R 13-01 Annex C
A9: Switzerland | B9: =VLOOKUP(A9, 'Country names'!$A$5:$C$53,3,FALSE) -> SUI
A10: Switzerland | B10: =VLOOKUP(A10, 'Country names'!$A$5:$C$53,3,FALSE) -> SUI | C10: 3400-3600 | D10: x | I10: x | K10: x | R10: ERC/REC 14-03 | AA10: MFCN | AB10: PMSE
A11: Switzerland | B11: =VLOOKUP(A11, 'Country names'!$A$5:$C$53,3,FALSE) -> SUI
A12: Switzerland | B12: =VLOOKUP(A12, 'Country names'!$A$5:$C$53,3,FALSE) -> SUI | C12: 3600-4200 | D12: x | I12: x | K12: x | R12: ERC/REC 12-08 | AA12: MFCN
A13: Switzerland | B13: =VLOOKUP(A13, 'Country names'!$A$5:$C$53,3,FALSE) -> SUI
A14: Switzerland | B14: =VLOOKUP(A14, 'Country names'!$A$5:$C$53,3,FALSE) -> SUI | C14: 4400-5000 | M14: x | N14: No civil use
A15: Switzerland | B15: =VLOOKUP(A15, 'Country names'!$A$5:$C$53,3,FALSE) -> SUI
A16: Switzerland | B16: =VLOOKUP(A16, 'Country names'!$A$5:$C$53,3,FALSE) -> SUI | C16: 5850-5925 | G16: x | H16: x | I16: x | M16: x
A17: Switzerland | B17: =VLOOKUP(A17, 'Country names'!$A$5:$C$53,3,FALSE) -> SUI
A18: Switzerland | B18: =VLOOKUP(A18, 'Country names'!$A$5:$C$53,3,FALSE) -> SUI | C18: 5925-7125 | D18: x | H18: x | J18: x | K18: x | L18: x | P18: 46 | R18: ERC/REC 14-01 and ERC/REC 14-02, ECC/REC(14)06 | U18: x | V18: 20.2 | W18: 46.7 | X18: 75.9 | Y18: 20
A19: Switzerland | B19: =VLOOKUP(A19, 'Country names'!$A$5:$C$53,3,FALSE) -> SUI
A20: Switzerland | B20: =VLOOKUP(A20, 'Country names'!$A$5:$C$53,3,FALSE) -> SUI | C20: 7125-7750 | D20: x | H20: x | J20: x | K20: x | L20: x | P20: 90 | R20: ECC REC (02)06 | T20: x | U20: x | V20: 11.1 | W20: 30.1 | X20: 56.5 | Y20: 10
A21: Switzerland | B21: =VLOOKUP(A21, 'Country names'!$A$5:$C$53,3,FALSE) -> SUI
A22: Switzerland | B22: =VLOOKUP(A22, 'Country names'!$A$5:$C$53,3,FALSE) -> SUI | C22: 7750-7900 | M22: x | N22: No civil use
A23: Switzerland | B23: =VLOOKUP(A23, 'Country names'!$A$5:$C$53,3,FALSE) -> SUI
A24: Switzerland | B24: =VLOOKUP(A24, 'Country names'!$A$5:$C$53,3,FALSE) -> SUI | C24: 7900-8500 | M24: x | N24: No civil use | R24: ECC REC (02)06
A25: Switzerland | B25: =VLOOKUP(A25, 'Country names'!$A$5:$C$53,3,FALSE) -> SUI
A26: Switzerland | B26: =VLOOKUP(A26, 'Country names'!$A$5:$C$53,3,FALSE) -> SUI | C26: 10000-10680 | D26: x | H26: x | K26: x | L26: x | P26: 66 | R26: ERC/REC 12-05 | T26: x | V26: 6.6 | W26: 20.4 | X26: 42.5 | Y26: 30
A27: Switzerland | B27: =VLOOKUP(A27, 'Country names'!$A$5:$C$53,3,FALSE) -> SUI
A28: Switzerland | B28: =VLOOKUP(A28, 'Country names'!$A$5:$C$53,3,FALSE) -> SUI | C28: 10700-11700 | D28: x | H28: x | J28: x | K28: x | L28: x | P28: 103 | R28: ERC/REC 12-06 | U28: x | V28: 9.6 | W28: 17.7 | X28: 37.01 | Y28: 30
A29: Switzerland | B29: =VLOOKUP(A29, 'Country names'!$A$5:$C$53,3,FALSE) -> SUI
A30: Switzerland | B30: =VLOOKUP(A30, 'Country names'!$A$5:$C$53,3,FALSE) -> SUI | C30: 11700-12500
A31: Switzerland | B31: =VLOOKUP(A31, 'Country names'!$A$5:$C$53,3,FALSE) -> SUI
A32: Switzerland | B32: =VLOOKUP(A32, 'Country names'!$A$5:$C$53,3,FALSE) -> SUI | C32: 12750-13250 | D32: x | H32: x | J32: x | K32: x | L32: x | P32: 510 | R32: ERC/REC 12-02 | T32: x | V32: 5.8 | W32: 15.3 | X32: 46.4 | Y32: 50
A33: Switzerland | B33: =VLOOKUP(A33, 'Country names'!$A$5:$C$53,3,FALSE) -> SUI
A34: Switzerland | B34: =VLOOKUP(A34, 'Country names'!$A$5:$C$53,3,FALSE) -> SUI | C34: 14250-14500 | L34: x | N34: FSS SNG
A35: Switzerland | B35: =VLOOKUP(A35, 'Country names'!$A$5:$C$53,3,FALSE) -> SUI
A36: Switzerland | B36: =VLOOKUP(A36, 'Country names'!$A$5:$C$53,3,FALSE) -> SUI | C36: 14500-14620 and 15230-15350 | D36: x | H36: x | J36: x | K36: x | L36: x | P36: 103 | R36: ERC/REC 12-07 | T36: x | V36: 7.6 | W36: 15.3 | X36: 29.2 | Y36: -20
A37: Switzerland | B37: =VLOOKUP(A37, 'Country names'!$A$5:$C$53,3,FALSE) -> SUI
A38: Switzerland | B38: =VLOOKUP(A38, 'Country names'!$A$5:$C$53,3,FALSE) -> SUI | C38: 17300-17700 | L38: x | N38: FSS Feeder Link
A39: Switzerland | B39: =VLOOKUP(A39, 'Country names'!$A$5:$C$53,3,FALSE) -> SUI
A40: Switzerland | B40: =VLOOKUP(A40, 'Country names'!$A$5:$C$53,3,FALSE) -> SUI | C40: 17700-19700 | D40: x | H40: x | J40: x | K40: x | L40: x | P40: 1149 | R40: ERC/REC 12-03 | T40: x | U40: x | V40: 2.4 | W40: 8.2 | X40: 26.1 | Y40: 200
A41: Switzerland | B41: =VLOOKUP(A41, 'Country names'!$A$5:$C$53,3,FALSE) -> SUI
A42: Switzerland | B42: =VLOOKUP(A42, 'Country names'!$A$5:$C$53,3,FALSE) -> SUI | C42: 21200-22000 | N42: PMSE | AB42: ?? equipment available
A43: Switzerland | B43: =VLOOKUP(A43, 'Country names'!$A$5:$C$53,3,FALSE) -> SUI
A44: Switzerland | B44: =VLOOKUP(A44, 'Country names'!$A$5:$C$53,3,FALSE) -> SUI | C44: 22000-22600 and 23000-23600 | D44: x | H44: x | J44: x | K44: x | L44: x | P44: 873 | R44: T/R 13-02 Annexes A1, A2, A3 | T44: x | V44: 1.6 | W44: 7.2 | X44: 20.6 | Y44: 50 | Z44: > High / Low problems in urban areas
A45: Switzerland | B45: =VLOOKUP(A45, 'Country names'!$A$5:$C$53,3,FALSE) -> SUI
A46: Switzerland | B46: =VLOOKUP(A46, 'Country names'!$A$5:$C$53,3,FALSE) -> SUI | C46: 22600-23000 | D46: (x) | H46: (x) | K46: (x) | S46: (x) | AB46: (planned narrowband link as a replacement for 1.4 GHz)
A47: Switzerland | B47: =VLOOKUP(A47, 'Country names'!$A$5:$C$53,3,FALSE) -> SUI
A48: Switzerland | B48: =VLOOKUP(A48, 'Country names'!$A$5:$C$53,3,FALSE) -> SUI | C48: 24250-24500 | N48: PMSE
A49: Switzerland | B49: =VLOOKUP(A49, 'Country names'!$A$5:$C$53,3,FALSE) -> SUI
A50: Switzerland | B50: =VLOOKUP(A50, 'Country names'!$A$5:$C$53,3,FALSE) -> SUI | C50: 24500-26500 | D50: x | H50: x | J50: x | K50: x | L50: x | P50: 52 | R50: T/R 13-02 Annex B | U50: x | V50: 0.9 | W50: 3.9 | X50: 7.9 | Y50: 200
A51: Switzerland | B51: =VLOOKUP(A51, 'Country names'!$A$5:$C$53,3,FALSE) -> SUI
A52: Switzerland | B52: =VLOOKUP(A52, 'Country names'!$A$5:$C$53,3,FALSE) -> SUI | C52: 26500-27500 | M52: x | N52: No civil use
A53: Switzerland | B53: =VLOOKUP(A53, 'Country names'!$A$5:$C$53,3,FALSE) -> SUI
A54: Switzerland | B54: =VLOOKUP(A54, 'Country names'!$A$5:$C$53,3,FALSE) -> SUI | C54: 27500-29500 | D54: x | H54: x | J54: x | K54: x | L54: x | P54: 540 | R54: T/R 13-02 Annex C | T54: x | U54: x | V54: 1.8 | W54: 4.2 | X54: 6.8 | Y54: 100
A55: Switzerland | B55: =VLOOKUP(A55, 'Country names'!$A$5:$C$53,3,FALSE) -> SUI
A56: Switzerland | B56: =VLOOKUP(A56, 'Country names'!$A$5:$C$53,3,FALSE) -> SUI | C56: 31000-31300 | R56: ECC/REC/(02)02 | AB56: ?? equipment available
A57: Switzerland | B57: =VLOOKUP(A57, 'Country names'!$A$5:$C$53,3,FALSE) -> SUI
A58: Switzerland | B58: =VLOOKUP(A58, 'Country names'!$A$5:$C$53,3,FALSE) -> SUI | C58: 31800-33400 | D58: x | H58: x | J58: x | K58: x | L58: x | P58: 775 | R58: ERC/REC/(01)02 | U58: x | V58: 0.5 | W58: 2.3 | X58: 5.7 | Y58: 100
A59: Switzerland | B59: =VLOOKUP(A59, 'Country names'!$A$5:$C$53,3,FALSE) -> SUI
A60: Switzerland | B60: =VLOOKUP(A60, 'Country names'!$A$5:$C$53,3,FALSE) -> SUI | C60: 36000-37000 | N60: No civil use
A61: Switzerland | B61: =VLOOKUP(A61, 'Country names'!$A$5:$C$53,3,FALSE) -> SUI
A62: Switzerland | B62: =VLOOKUP(A62, 'Country names'!$A$5:$C$53,3,FALSE) -> SUI | C62: 37000-39500 | D62: x | H62: x | J62: x | K62: x | L62: x | P62: 1036 | R62: T/R 12-01 | T62: x | V62: 0.3 | W62: 2.7 | X62: 7.9 | Y62: 50 | Z62: > High / Low problems in urban areas
A63: Switzerland | B63: =VLOOKUP(A63, 'Country names'!$A$5:$C$53,3,FALSE) -> SUI
A64: Switzerland | B64: =VLOOKUP(A64, 'Country names'!$A$5:$C$53,3,FALSE) -> SUI | C64: 39500-40500 | N64: FSS
A65: Switzerland | B65: =VLOOKUP(A65, 'Country names'!$A$5:$C$53,3,FALSE) -> SUI
A66: Switzerland | B66: =VLOOKUP(A66, 'Country names'!$A$5:$C$53,3,FALSE) -> SUI | C66: 40500-43500 | D66: x | H66: x | J66: x | K66: x | P66: 582 | R66: ECC/REC/(01)04 | U66: x | V66: 0.5 | W66: 1.6 | X66: 3.8 | Y66: 200
A67: Switzerland | B67: =VLOOKUP(A67, 'Country names'!$A$5:$C$53,3,FALSE) -> SUI
A68: Switzerland | B68: =VLOOKUP(A68, 'Country names'!$A$5:$C$53,3,FALSE) -> SUI | C68: 47200-48500 | N68: PMSE | AB68: ?? equipment available
A69: Switzerland | B69: =VLOOKUP(A69, 'Country names'!$A$5:$C$53,3,FALSE) -> SUI
A70: Switzerland | B70: =VLOOKUP(A70, 'Country names'!$A$5:$C$53,3,FALSE) -> SUI | C70: 48500-50200 | R70: ERC/REC 12-11 | AB70: ?? equipment available
A71: Switzerland | B71: =VLOOKUP(A71, 'Country names'!$A$5:$C$53,3,FALSE) -> SUI
A72: Switzerland | B72: =VLOOKUP(A72, 'Country names'!$A$5:$C$53,3,FALSE) -> SUI | C72: 50400-51400 | AB72: ?? equipment available
A73: Switzerland | B73: =VLOOKUP(A73, 'Country names'!$A$5:$C$53,3,FALSE) -> SUI
A74: Switzerland | B74: =VLOOKUP(A74, 'Country names'!$A$5:$C$53,3,FALSE) -> SUI | C74: 51400-52600 | D74: x | H74: x | J74: x | K74: x | P74: 299 | R74: ERC/REC 12-11 | T74: x | V74: 0.15 | W74: 0.75 | X74: 2.8 | Y74: -80 | AB74: > not enough transmission capacity with existing equipment
A75: Switzerland | B75: =VLOOKUP(A75, 'Country names'!$A$5:$C$53,3,FALSE) -> SUI
A76: Switzerland | B76: =VLOOKUP(A76, 'Country names'!$A$5:$C$53,3,FALSE) -> SUI | C76: 55780-57000 | D76: x | H76: x | J76: x | K76: x | P76: 0 | R76: ERC/REC 12-12 | AB76: ?? equipment available
A77: Switzerland | B77: =VLOOKUP(A77, 'Country names'!$A$5:$C$53,3,FALSE) -> SUI
A78: Switzerland | B78: =VLOOKUP(A78, 'Country names'!$A$5:$C$53,3,FALSE) -> SUI | C78: 57000-59000 | D78: x | H78: x | J78: x | P78: 109 | R78: ECC/REC/(09)01 | S78: x | V78: 0.05 | W78: 0.3 | X78: 1 | Y78: -100 | AB78: > not enough transmission capacity with existing equipment
A79: Switzerland | B79: =VLOOKUP(A79, 'Country names'!$A$5:$C$53,3,FALSE) -> SUI
A80: Switzerland | B80: =VLOOKUP(A80, 'Country names'!$A$5:$C$53,3,FALSE) -> SUI | C80: 59000-64000 | G80: x | H80: x | R80: ECC/REC/(09)01
A81: Switzerland | B81: =VLOOKUP(A81, 'Country names'!$A$5:$C$53,3,FALSE) -> SUI
A82: Switzerland | B82: =VLOOKUP(A82, 'Country names'!$A$5:$C$53,3,FALSE) -> SUI | C82: 64000-66000 | G82: x | H82: x | R82: ECC/REC/(05)02
A83: Switzerland | B83: =VLOOKUP(A83, 'Country names'!$A$5:$C$53,3,FALSE) -> SUI
A84: Switzerland | B84: =VLOOKUP(A84, 'Country names'!$A$5:$C$53,3,FALSE) -> SUI | C84: 71000-76000 and 81000-86000 | D84: x | H84: x | J84: x | K84: x | P84: 333 | R84: ECC/REC/(05)07 | U84: x | V84: 0.1 | W84: 0.8 | X84: 4.9 | Y84: 500
A85: Switzerland | B85: =VLOOKUP(A85, 'Country names'!$A$5:$C$53,3,FALSE) -> SUI
A86: Switzerland | B86: =VLOOKUP(A86, 'Country names'!$A$5:$C$53,3,FALSE) -> SUI | C86: 92000-95000 | D86: x | H86: x | J86: x | K86: x | P86: 0 | R86: ECC/REC (14)01 | U86: x | Y86: ? | AB86: ?? equipment available
A87: Switzerland | B87: =VLOOKUP(A87, 'Country names'!$A$5:$C$53,3,FALSE) -> SUI
A88: Switzerland | B88: =VLOOKUP(A88, 'Country names'!$A$5:$C$53,3,FALSE) -> SUI
A89: Switzerland | B89: =VLOOKUP(A89, 'Country names'!$A$5:$C$53,3,FALSE) -> SUI | C89: 20161010 SUI_BAKOM_Worksheet SE(16)029A3_Questionnaire on revision of ECC Report 173 final
A90: Switzerland | B90: =VLOOKUP(A90, 'Country names'!$A$5:$C$53,3,FALSE) -> SUI
A91: Switzerland | B91: =VLOOKUP(A91, 'Country names'!$A$5:$C$53,3,FALSE) -> SUI
A92: Switzerland | B92: =VLOOKUP(A92, 'Country names'!$A$5:$C$53,3,FALSE) -> SUI | P92: =SUM(P4:P91) -> 6739

Sheet Hungary
C1: Frequency band (MHz) | D1: Licensing regime | H1: Topo-logy | J1: Application | O1: Number of P-P links | Q1: Number of CS | R1: Channel/Frequency plan used (e.g. ERC/ECC Rec. ITU-R Rec.) | S1: Link characteristics | Y1: Future trends (e.g. in the next 5 years)
H2: FWA | J2: Network Infrastruc-ture | S2: Capacity | V2: Hop length (km)
D3: Link by link | E3: Block | F3: Light licensed | G3: Licence exempt | H3: P-P | I3: P-MP | J3: Mobile backhaul | K3: Others | L3: Broadcasting Infrastructure | M3: No Information available on the application | N3: Other (please indicate) | O3: unidirection | P3: bidirectional (1 bidirectional link counts 1) | Q3: (applicable only for P-MP and mesh networks) | S3: LOW (<10 Mbit/s) | T3: MEDIUM (10 to 100 Mbit/s) | U3: HIGH (>100 Mbit/s) | V3: MIN | W3: Typical figure | X3: MAX | Y3: Anticipated growth/reduction (+/-%) | Z3: Currently congested | AA3: Planned reallocation to other service/application | AB3: Other (please describe) (see Question 3 of the Questionnaire) | AC3: Remarks
A4: Hungary | B4: =VLOOKUP(A4, 'Country names'!$A$5:$C$53,3,FALSE) -> HNG | C4: 1350-1375 and 1492-1517 | R4: T/R 13-01 Annex A
A5: Hungary | B5: =VLOOKUP(A5, 'Country names'!$A$5:$C$53,3,FALSE) -> HNG
A6: Hungary | B6: =VLOOKUP(A6, 'Country names'!$A$5:$C$53,3,FALSE) -> HNG | C6: 1375-1400 and 1427-1452 | D6: X | H6: X | P6: 0 | R6: T/R 13-01 Annex B
A7: Hungary | B7: =VLOOKUP(A7, 'Country names'!$A$5:$C$53,3,FALSE) -> HNG
A8: Hungary | B8: =VLOOKUP(A8, 'Country names'!$A$5:$C$53,3,FALSE) -> HNG | C8: 2025-2110 and 2200-2290 | D8: X | H8: X | P8: 0 | R8: T/R 13-01 Annex C
A9: Hungary | B9: =VLOOKUP(A9, 'Country names'!$A$5:$C$53,3,FALSE) -> HNG
A10: Hungary | B10: =VLOOKUP(A10, 'Country names'!$A$5:$C$53,3,FALSE) -> HNG | C10: 3400-3600 | E10: X | H10: X | I10: X | R10: ERC/REC 14-03 | AC10: Block assignment for MFCN; awarded 2016 summer - currently no usage
A11: Hungary | B11: =VLOOKUP(A11, 'Country names'!$A$5:$C$53,3,FALSE) -> HNG
A12: Hungary | B12: =VLOOKUP(A12, 'Country names'!$A$5:$C$53,3,FALSE) -> HNG | C12: 3600-4200 | P12: 17 | R12: ERC/REC 12-08 | AC12: 3600-3800 MHz band: awarded 2016 summer; Block assignment for MFCN; currently no usage; 3800-4200 MHz: 17 bidirectional links
A13: Hungary | B13: =VLOOKUP(A13, 'Country names'!$A$5:$C$53,3,FALSE) -> HNG
A14: Hungary | B14: =VLOOKUP(A14, 'Country names'!$A$5:$C$53,3,FALSE) -> HNG | C14: 4400-5000
A15: Hungary | B15: =VLOOKUP(A15, 'Country names'!$A$5:$C$53,3,FALSE) -> HNG
A16: Hungary | B16: =VLOOKUP(A16, 'Country names'!$A$5:$C$53,3,FALSE) -> HNG | C16: 5850-5925
A17: Hungary | B17: =VLOOKUP(A17, 'Country names'!$A$5:$C$53,3,FALSE) -> HNG
A18: Hungary | B18: =VLOOKUP(A18, 'Country names'!$A$5:$C$53,3,FALSE) -> HNG | C18: 5925-7125 | D18: X | H18: X | P18: 135 | R18: ERC/REC 14-01 and ERC/REC 14-02 | U18: X | W18: 60
A19: Hungary | B19: =VLOOKUP(A19, 'Country names'!$A$5:$C$53,3,FALSE) -> HNG
A20: Hungary | B20: =VLOOKUP(A20, 'Country names'!$A$5:$C$53,3,FALSE) -> HNG | C20: 7125-7750 | D20: X | H20: X | K20: X | P20: 205 | R20: ECC REC (02)06 | T20: X | W20: 40 | AC20: 7125-7425 MHz subband for non-civil FS, 7427-7725 MHz subband for civil FS
A21: Hungary | B21: =VLOOKUP(A21, 'Country names'!$A$5:$C$53,3,FALSE) -> HNG
A22: Hungary | B22: =VLOOKUP(A22, 'Country names'!$A$5:$C$53,3,FALSE) -> HNG | C22: 7750-7900 | D22: X | H22: X | L22: X | P22: 0 | R22: ECC REC (02)06 | T22: X | W22: 40
A23: Hungary | B23: =VLOOKUP(A23, 'Country names'!$A$5:$C$53,3,FALSE) -> HNG
A24: Hungary | B24: =VLOOKUP(A24, 'Country names'!$A$5:$C$53,3,FALSE) -> HNG | C24: 7900-8500 | D24: X | H24: X | P24: 0 | R24: ECC REC (02)06
A25: Hungary | B25: =VLOOKUP(A25, 'Country names'!$A$5:$C$53,3,FALSE) -> HNG
A26: Hungary | B26: =VLOOKUP(A26, 'Country names'!$A$5:$C$53,3,FALSE) -> HNG | C26: 10000-10680 | D26: X | H26: X | L26: X | O26: 58 | R26: ERC/REC 12-05 | T26: X | W26: 20
A27: Hungary | B27: =VLOOKUP(A27, 'Country names'!$A$5:$C$53,3,FALSE) -> HNG
A28: Hungary | B28: =VLOOKUP(A28, 'Country names'!$A$5:$C$53,3,FALSE) -> HNG | C28: 10700-11700 | D28: X | H28: X | J28: X | P28: 341 | R28: ERC/REC 12-06 | U28: X | W28: 40
A29: Hungary | B29: =VLOOKUP(A29, 'Country names'!$A$5:$C$53,3,FALSE) -> HNG
A30: Hungary | B30: =VLOOKUP(A30, 'Country names'!$A$5:$C$53,3,FALSE) -> HNG | C30: 11700-12500 | I30: X | L30: X | Q30: 150 | R30: National plan | U30: X | AC30: Only 12.3-12.5 GHz band designated for local MVDS
A31: Hungary | B31: =VLOOKUP(A31, 'Country names'!$A$5:$C$53,3,FALSE) -> HNG
A32: Hungary | B32: =VLOOKUP(A32, 'Country names'!$A$5:$C$53,3,FALSE) -> HNG | C32: 12750-13250 | D32: X | H32: X | P32: 2806 | R32: ERC/REC 12-02 | U32: X | W32: 30 | Z32: X | AC32: Currently congested in big cities
A33: Hungary | B33: =VLOOKUP(A33, 'Country names'!$A$5:$C$53,3,FALSE) -> HNG
A34: Hungary | B34: =VLOOKUP(A34, 'Country names'!$A$5:$C$53,3,FALSE) -> HNG | C34: 14250-14500
A35: Hungary | B35: =VLOOKUP(A35, 'Country names'!$A$5:$C$53,3,FALSE) -> HNG
A36: Hungary | B36: =VLOOKUP(A36, 'Country names'!$A$5:$C$53,3,FALSE) -> HNG | C36: 14500-14620 and 15230-15350 | D36: X | H36: X | P36: 114 | R36: ERC/REC 12-07 | T36: X | W36: 25 | AC36: Number of civil FS links decreased due to the extension of the subband used for military purposes
A37: Hungary | B37: =VLOOKUP(A37, 'Country names'!$A$5:$C$53,3,FALSE) -> HNG
A38: Hungary | B38: =VLOOKUP(A38, 'Country names'!$A$5:$C$53,3,FALSE) -> HNG | C38: 17300-17700
A39: Hungary | B39: =VLOOKUP(A39, 'Country names'!$A$5:$C$53,3,FALSE) -> HNG
A40: Hungary | B40: =VLOOKUP(A40, 'Country names'!$A$5:$C$53,3,FALSE) -> HNG | C40: 17700-19700 | D40: X | H40: X | P40: 2159 | R40: ERC/REC 12-03 | U40: X | W40: 20 | Z40: X | AC40: Currently congested in big cities
A41: Hungary | B41: =VLOOKUP(A41, 'Country names'!$A$5:$C$53,3,FALSE) -> HNG
A42: Hungary | B42: =VLOOKUP(A42, 'Country names'!$A$5:$C$53,3,FALSE) -> HNG | C42: 21200-22000 | D42: X | H42: X | AC42: Only the subband 21.2-21.4 GHz is planned for ENG/OB
A43: Hungary | B43: =VLOOKUP(A43, 'Country names'!$A$5:$C$53,3,FALSE) -> HNG
A44: Hungary | B44: =VLOOKUP(A44, 'Country names'!$A$5:$C$53,3,FALSE) -> HNG | C44: 22000-22600 and 23000-23600 | D44: X | H44: X | P44: 2209 | R44: T/R 13-02 Annex A1 | T44: X | W44: 10 | AC44: 22-22.45/23-23.45 GHz subband for civil FS, the rest for non-civil FS
A45: Hungary | B45: =VLOOKUP(A45, 'Country names'!$A$5:$C$53,3,FALSE) -> HNG
A46: Hungary | B46: =VLOOKUP(A46, 'Country names'!$A$5:$C$53,3,FALSE) -> HNG | C46: 22600-23000 | D46: X | H46: X | L46: X | O46: 1 | R46: T/R 13-02 Annexes A2 and A3 | AC46: National plan for analogue ENG/OB
A47: Hungary | B47: =VLOOKUP(A47, 'Country names'!$A$5:$C$53,3,FALSE) -> HNG
A48: Hungary | B48: =VLOOKUP(A48, 'Country names'!$A$5:$C$53,3,FALSE) -> HNG | C48: 24250-24500 | D48: X | H48: X | L48: X | O48: 0 | R48: T/R 13-02 | AC48: T/R 13-02 van beírva
A49: Hungary | B49: =VLOOKUP(A49, 'Country names'!$A$5:$C$53,3,FALSE) -> HNG
A50: Hungary | B50: =VLOOKUP(A50, 'Country names'!$A$5:$C$53,3,FALSE) -> HNG | C50: 24500-26500 | E50: X | H50: X | I50: X | J50: X | P50: N/A | Q50: N/A | R50: T/R 13-02 Annex B | U50: X | W50: 10 | AC50: Block assignment is applied, the exact number of CS and PP links is not known
A51: Hungary | B51: =VLOOKUP(A51, 'Country names'!$A$5:$C$53,3,FALSE) -> HNG
A52: Hungary | B52: =VLOOKUP(A52, 'Country names'!$A$5:$C$53,3,FALSE) -> HNG | C52: 26500-27500
A53: Hungary | B53: =VLOOKUP(A53, 'Country names'!$A$5:$C$53,3,FALSE) -> HNG
A54: Hungary | B54: =VLOOKUP(A54, 'Country names'!$A$5:$C$53,3,FALSE) -> HNG | C54: 27500-29500 | R54: ECC/DEC/(05)01 | AC54: Only planned for PP, PMP
A55: Hungary | B55: =VLOOKUP(A55, 'Country names'!$A$5:$C$53,3,FALSE) -> HNG
A56: Hungary | B56: =VLOOKUP(A56, 'Country names'!$A$5:$C$53,3,FALSE) -> HNG | C56: 31000-31300 | D56: X | H56: X | P56: 0 | R56: ECC/REC/(02)02
A57: Hungary | B57: =VLOOKUP(A57, 'Country names'!$A$5:$C$53,3,FALSE) -> HNG
A58: Hungary | B58: =VLOOKUP(A58, 'Country names'!$A$5:$C$53,3,FALSE) -> HNG | C58: 31800-33400 | R58: ERC/REC/(01)02 | AC58: Only planned for PP, PMP
A59: Hungary | B59: =VLOOKUP(A59, 'Country names'!$A$5:$C$53,3,FALSE) -> HNG
A60: Hungary | B60: =VLOOKUP(A60, 'Country names'!$A$5:$C$53,3,FALSE) -> HNG | C60: 36000-37000
A61: Hungary | B61: =VLOOKUP(A61, 'Country names'!$A$5:$C$53,3,FALSE) -> HNG
A62: Hungary | B62: =VLOOKUP(A62, 'Country names'!$A$5:$C$53,3,FALSE) -> HNG | C62: 37000-39500 | D62: X | H62: X | J62: X | P62: 6356 | R62: T/R 12-01 | T62: X | U62: X | W62: 5 | Z62: X | AC62: 37.926-38.220/39.186-39.480 GHz subband designated for non-civil FS, the rest for civil FS
A63: Hungary | B63: =VLOOKUP(A63, 'Country names'!$A$5:$C$53,3,FALSE) -> HNG | AC63: Currently congested in big cities
A64: Hungary | B64: =VLOOKUP(A64, 'Country names'!$A$5:$C$53,3,FALSE) -> HNG | C64: 39500-40500
A65: Hungary | B65: =VLOOKUP(A65, 'Country names'!$A$5:$C$53,3,FALSE) -> HNG
A66: Hungary | B66: =VLOOKUP(A66, 'Country names'!$A$5:$C$53,3,FALSE) -> HNG | C66: 40500-43500 | R66: ERC/DEC/(99)15 | AC66: Only planned for PP and MWS
A67: Hungary | B67: =VLOOKUP(A67, 'Country names'!$A$5:$C$53,3,FALSE) -> HNG
A68: Hungary | B68: =VLOOKUP(A68, 'Country names'!$A$5:$C$53,3,FALSE) -> HNG | C68: 47200-48500
A69: Hungary | B69: =VLOOKUP(A69, 'Country names'!$A$5:$C$53,3,FALSE) -> HNG
A70: Hungary | B70: =VLOOKUP(A70, 'Country names'!$A$5:$C$53,3,FALSE) -> HNG | C70: 48500-50200 | D70: X | H70: X | P70: 0 | R70: ERC/REC 12-10
A71: Hungary | B71: =VLOOKUP(A71, 'Country names'!$A$5:$C$53,3,FALSE) -> HNG
A72: Hungary | B72: =VLOOKUP(A72, 'Country names'!$A$5:$C$53,3,FALSE) -> HNG | C72: 50400-51400
A73: Hungary | B73: =VLOOKUP(A73, 'Country names'!$A$5:$C$53,3,FALSE) -> HNG
A74: Hungary | B74: =VLOOKUP(A74, 'Country names'!$A$5:$C$53,3,FALSE) -> HNG | C74: 51400-52600 | D74: X | H74: X | P74: 0 | R74: ERC/REC 12-11
A75: Hungary | B75: =VLOOKUP(A75, 'Country names'!$A$5:$C$53,3,FALSE) -> HNG
A76: Hungary | B76: =VLOOKUP(A76, 'Country names'!$A$5:$C$53,3,FALSE) -> HNG | C76: 557800-57000 | D76: X | H76: X | P76: 0 | R76: ERC/REC 12-12
A77: Hungary | B77: =VLOOKUP(A77, 'Country names'!$A$5:$C$53,3,FALSE) -> HNG
A78: Hungary | B78: =VLOOKUP(A78, 'Country names'!$A$5:$C$53,3,FALSE) -> HNG | C78: 57000-59000 | D78: X | H78: X | K78: X | P78: 2 | R78: ECC/REC/(09)01 | U78: X | W78: 3
A79: Hungary | B79: =VLOOKUP(A79, 'Country names'!$A$5:$C$53,3,FALSE) -> HNG
A80: Hungary | B80: =VLOOKUP(A80, 'Country names'!$A$5:$C$53,3,FALSE) -> HNG | C80: 59000-64000 | F80: X | H80: X | P80: 0 | R80: ECC/REC/(09)01
A81: Hungary | B81: =VLOOKUP(A81, 'Country names'!$A$5:$C$53,3,FALSE) -> HNG
A82: Hungary | B82: =VLOOKUP(A82, 'Country names'!$A$5:$C$53,3,FALSE) -> HNG | C82: 64000-66000 | R82: ECC/REC/(05)02 | AC82: Only planned for PP
A83: Hungary | B83: =VLOOKUP(A83, 'Country names'!$A$5:$C$53,3,FALSE) -> HNG
A84: Hungary | B84: =VLOOKUP(A84, 'Country names'!$A$5:$C$53,3,FALSE) -> HNG | C84: 71000-76000 and 81000-86000 | F84: X | H84: X | P84: 562 | R84: ECC/REC/(05)07 | U84: X | W84: 1
A85: Hungary | B85: =VLOOKUP(A85, 'Country names'!$A$5:$C$53,3,FALSE) -> HNG
A86: Hungary | B86: =VLOOKUP(A86, 'Country names'!$A$5:$C$53,3,FALSE) -> HNG | C86: 92000-95000 | R86: ECC/REC (14)01 | AC86: Only planned for PP

Sheet Latvia
C1: Frequency band (MHz) | D1: Licensing regime | H1: Topo-logy | J1: Application | O1: Number of P-P links | Q1: Number of CS | R1: Channel/Frequency plan used (e.g. ERC/ECC Rec. ITU-R Rec.) | S1: Link characteristics | Y1: Future trends (e.g. in the next 5 years)
H2: FWA | J2: Network Infrastruc-ture | S2: Capacity | V2: Hop length (km)
D3: Link by link | E3: Block | F3: Light licensed | G3: Licence exempt | H3: P-P | I3: P-MP | J3: Mobile backhaul | K3: Others | L3: Broadcasting Infrastructure | M3: No Information available on the application | N3: Other (please indicate) | O3: unidirection | P3: bidirectional (1 bidirectional link counts 1) | Q3: (applicable only for P-MP and mesh networks) | S3: LOW (<10 Mbit/s) | T3: MEDIUM (10 to 100 Mbit/s) | U3: HIGH (>100 Mbit/s) | V3: MIN | W3: Typical figure | X3: MAX | Y3: Anticipated growth/reduction (+/-%) | Z3: Currently congested | AA3: Planned reallocation to other service/application | AB3: Other (please describe) (see Question 3 of the Questionnaire) | AC3: LVA comments
A4: Latvia | B4: =VLOOKUP(A4, 'Country names'!$A$5:$C$53,3,FALSE) -> LVA | C4: 1350-1375 and 1492-1517 | D4: X | H4: X | K4: X | P4: 0 | R4: T/R 13-01 Annex A | AA4: X
A5: Latvia | B5: =VLOOKUP(A5, 'Country names'!$A$5:$C$53,3,FALSE) -> LVA
A6: Latvia | B6: =VLOOKUP(A6, 'Country names'!$A$5:$C$53,3,FALSE) -> LVA | C6: 1492–1506 | D6: X | I6: X | J6: X | Q6: 19 | R6: ITU-R F.701 | S6: X | V6: 1 | W6: 5 | X6: 10
A7: Latvia | B7: =VLOOKUP(A7, 'Country names'!$A$5:$C$53,3,FALSE) -> LVA
A8: Latvia | B8: =VLOOKUP(A8, 'Country names'!$A$5:$C$53,3,FALSE) -> LVA | C8: 1375-1400 and 1427-1452 | D8: X | H8: X | K8: X | P8: 0 | R8: T/R 13-01 Annex B | AA8: X
A9: Latvia | B9: =VLOOKUP(A9, 'Country names'!$A$5:$C$53,3,FALSE) -> LVA
A10: Latvia | B10: =VLOOKUP(A10, 'Country names'!$A$5:$C$53,3,FALSE) -> LVA | C10: 2025-2110 and 2200-2290 | D10: X | H10: X | M10: X | O10: 0 | P10: 0 | R10: T/R 13-01 Annex C | AB10: No changes
A11: Latvia | B11: =VLOOKUP(A11, 'Country names'!$A$5:$C$53,3,FALSE) -> LVA
A12: Latvia | B12: =VLOOKUP(A12, 'Country names'!$A$5:$C$53,3,FALSE) -> LVA | C12: 3400-3600 | D12: X | H12: X | I12: X | J12: X | K12: X | O12: 0 | P12: 0 | Q12: 31 | R12: ERC/REC 14-03 | T12: X | V12: 1 | W12: 10 | X12: 25 | Y12: 0.1
A13: Latvia | B13: =VLOOKUP(A13, 'Country names'!$A$5:$C$53,3,FALSE) -> LVA | R13: 2014/276/ES
A14: Latvia | B14: =VLOOKUP(A14, 'Country names'!$A$5:$C$53,3,FALSE) -> LVA | C14: 3600-4200 | D14: X | H14: X | I14: X | J14: X | K14: X | O14: 0 | P14: 5 | Q14: 106 | R14: ERC/REC 12-08 | T14: X | V14: 1 | W14: 10 | X14: 25 | Y14: 0.1
A15: Latvia | B15: =VLOOKUP(A15, 'Country names'!$A$5:$C$53,3,FALSE) -> LVA | R15: 2014/276/ES
A16: Latvia | B16: =VLOOKUP(A16, 'Country names'!$A$5:$C$53,3,FALSE) -> LVA | C16: 4400-5000 | AC16: Exclusive Military Band Within the Band 4400-5000 MHz
A17: Latvia | B17: =VLOOKUP(A17, 'Country names'!$A$5:$C$53,3,FALSE) -> LVA
A18: Latvia | B18: =VLOOKUP(A18, 'Country names'!$A$5:$C$53,3,FALSE) -> LVA | C18: 5850-5925 | AC18: Currently not in use by Fixed service
A19: Latvia | B19: =VLOOKUP(A19, 'Country names'!$A$5:$C$53,3,FALSE) -> LVA
A20: Latvia | B20: =VLOOKUP(A20, 'Country names'!$A$5:$C$53,3,FALSE) -> LVA | C20: 5925-7125 | D20: X | H20: X | J20: X | K20: X | L20: X | P20: 105 | R20: ERC/REC 14-01 and ERC/REC 14-02 | T20: X | U20: X | V20: 20 | W20: 30 | X20: 51 | Y20: 0.1
A21: Latvia | B21: =VLOOKUP(A21, 'Country names'!$A$5:$C$53,3,FALSE) -> LVA
A22: Latvia | B22: =VLOOKUP(A22, 'Country names'!$A$5:$C$53,3,FALSE) -> LVA | C22: 7125-7750 | D22: X | H22: X | J22: X | K22: X | P22: 110 | R22: ECC REC (02)06 | T22: X | U22: X | V22: 10 | W22: 35 | X22: 55 | Y22: 0.2
A23: Latvia | B23: =VLOOKUP(A23, 'Country names'!$A$5:$C$53,3,FALSE) -> LVA
A24: Latvia | B24: =VLOOKUP(A24, 'Country names'!$A$5:$C$53,3,FALSE) -> LVA | C24: 7750-7900 | D24: X | H24: X | J24: X | K24: X | P24: 35 | R24: ECC REC (02)06 | T24: X | U24: X | V24: 10 | W24: 35 | X24: 50 | Y24: 0.2
A25: Latvia | B25: =VLOOKUP(A25, 'Country names'!$A$5:$C$53,3,FALSE) -> LVA
A26: Latvia | B26: =VLOOKUP(A26, 'Country names'!$A$5:$C$53,3,FALSE) -> LVA | C26: 7900-8500 | D26: X | H26: X | J26: X | K26: X | P26: 410 | R26: ECC REC (02)06 | T26: X | U26: X | V26: 8 | W26: 25 | X26: 45 | Y26: 0.1
A27: Latvia | B27: =VLOOKUP(A27, 'Country names'!$A$5:$C$53,3,FALSE) -> LVA
A28: Latvia | B28: =VLOOKUP(A28, 'Country names'!$A$5:$C$53,3,FALSE) -> LVA | C28: 10000-10680 | D28: X | H28: X | K28: X | P28: 20 | R28: ERC/REC 12-05 | S28: X | T28: X | V28: 5 | W28: 10 | X28: 20 | Y28: -0.2
A29: Latvia | B29: =VLOOKUP(A29, 'Country names'!$A$5:$C$53,3,FALSE) -> LVA | E29: X | I29: X | K29: X | Q29: 65 | T29: X | V29: 1 | W29: 5 | X29: 15 | Y29: 0.1
A30: Latvia | B30: =VLOOKUP(A30, 'Country names'!$A$5:$C$53,3,FALSE) -> LVA | C30: 10700-11700 | D30: X | H30: X | J30: X | K30: X | L30: X | O30: 6 | P30: 0 | R30: ERC/REC 12-06 | T30: X | U30: X | V30: 10 | W30: 15 | X30: 30 | Y30: 5
A31: Latvia | B31: =VLOOKUP(A31, 'Country names'!$A$5:$C$53,3,FALSE) -> LVA
A32: Latvia | B32: =VLOOKUP(A32, 'Country names'!$A$5:$C$53,3,FALSE) -> LVA | C32: 11700-12500 | AC32: Not allocated for Fixed service
A33: Latvia | B33: =VLOOKUP(A33, 'Country names'!$A$5:$C$53,3,FALSE) -> LVA
A34: Latvia | B34: =VLOOKUP(A34, 'Country names'!$A$5:$C$53,3,FALSE) -> LVA | C34: 12750-13250 | D34: X | H34: X | J34: X | K34: X | P34: 890 | R34: ERC/REC 12-02 | T34: X | U34: X | V34: 2 | W34: 20 | X34: 52 | Y34: 0.1
A35: Latvia | B35: =VLOOKUP(A35, 'Country names'!$A$5:$C$53,3,FALSE) -> LVA
A36: Latvia | B36: =VLOOKUP(A36, 'Country names'!$A$5:$C$53,3,FALSE) -> LVA | C36: 14250-14500 | AC36: Not allocated for Fixed service, allocation for FSS (Earth to Space)
A37: Latvia | B37: =VLOOKUP(A37, 'Country names'!$A$5:$C$53,3,FALSE) -> LVA
A38: Latvia | B38: =VLOOKUP(A38, 'Country names'!$A$5:$C$53,3,FALSE) -> LVA | C38: 14500-14620 and 15230-15350 | D38: X | H38: x | J38: X | K38: X | P38: 44 | R38: ERC/REC 12-07 | T38: X | U38: X | V38: 10 | W38: 25 | X38: 41 | Y38: 0.1
A39: Latvia | B39: =VLOOKUP(A39, 'Country names'!$A$5:$C$53,3,FALSE) -> LVA
A40: Latvia | B40: =VLOOKUP(A40, 'Country names'!$A$5:$C$53,3,FALSE) -> LVA | C40: 17300-17700 | R40: ECC/DEC/(05)08 | AC40: Not allocated for Fixed service, allocation for FSS (application - HDFSS)
A41: Latvia | B41: =VLOOKUP(A41, 'Country names'!$A$5:$C$53,3,FALSE) -> LVA
A42: Latvia | B42: =VLOOKUP(A42, 'Country names'!$A$5:$C$53,3,FALSE) -> LVA | C42: 17700-19700 | D42: X | H42: X | J42: X | K42: X | P42: 550 | R42: ERC/REC 12-03 | T42: X | U42: X | V42: 2 | W42: 18 | X42: 27 | Y42: 0.1
A43: Latvia | B43: =VLOOKUP(A43, 'Country names'!$A$5:$C$53,3,FALSE) -> LVA
A44: Latvia | B44: =VLOOKUP(A44, 'Country names'!$A$5:$C$53,3,FALSE) -> LVA | C44: 21200-22000 | D44: X | H44: X | L44: X | P44: 0 | R44: ITU-R F.637 Annex 2
A45: Latvia | B45: =VLOOKUP(A45, 'Country names'!$A$5:$C$53,3,FALSE) -> LVA
A46: Latvia | B46: =VLOOKUP(A46, 'Country names'!$A$5:$C$53,3,FALSE) -> LVA | C46: 22000-22600 and 23000-23600 | D46: X | H46: X | J46: X | K46: X | P46: 1380 | R46: T/R 13-02 Annexes A1, A2, A3 | T46: X | U46: X | V46: 1 | W46: 12 | X46: 23 | Y46: 0.1
A47: Latvia | B47: =VLOOKUP(A47, 'Country names'!$A$5:$C$53,3,FALSE) -> LVA
A48: Latvia | B48: =VLOOKUP(A48, 'Country names'!$A$5:$C$53,3,FALSE) -> LVA | C48: 22600-23000 | D48: X | H48: X | L48: X | O48: 0 | R48: T/R 13-02 Annex A2 | T48: X | U48: X | Y48: 0.1
A49: Latvia | B49: =VLOOKUP(A49, 'Country names'!$A$5:$C$53,3,FALSE) -> LVA
A50: Latvia | B50: =VLOOKUP(A50, 'Country names'!$A$5:$C$53,3,FALSE) -> LVA | C50: 24250-24500 | D50: X | H50: X | L50: X | O50: 0 | R50: T/R 13-02 | T50: X | U50: X | Y50: 0.1
A51: Latvia | B51: =VLOOKUP(A51, 'Country names'!$A$5:$C$53,3,FALSE) -> LVA
A52: Latvia | B52: =VLOOKUP(A52, 'Country names'!$A$5:$C$53,3,FALSE) -> LVA | C52: 24500–24717/25557–25725 | D52: X | H52: X | J52: X | P52: 33 | R52: T/R 13-02 | T52: X | U52: X | V52: 0.2 | W52: 2 | X52: 5 | Y52: 0.1
A53: Latvia | B53: =VLOOKUP(A53, 'Country names'!$A$5:$C$53,3,FALSE) -> LVA | C53: 24773–25445/25781–26453 | D53: X | H53: X | I53: X | J53: X | Q53: 43 | R53: T/R 13-02 | T53: X | U53: X | V53: 0.2 | W53: 2 | X53: 5 | Y53: 0.1
A54: Latvia | B54: =VLOOKUP(A54, 'Country names'!$A$5:$C$53,3,FALSE) -> LVA | C54: 26500-27500 | AC54: Exclusive Military Band Within the Band 26500-27500 MHz
A55: Latvia | B55: =VLOOKUP(A55, 'Country names'!$A$5:$C$53,3,FALSE) -> LVA
A56: Latvia | B56: =VLOOKUP(A56, 'Country names'!$A$5:$C$53,3,FALSE) -> LVA | C56: 27828,5–28444,5/28948,5–29452,5 | D56: X | H56: X | I56: X | J56: X | K56: X | P56: 7 | Q56: 86 | R56: T/R 13-02 | T56: X | U56: X | V56: 0.1 | W56: 1.5 | X56: 5 | Y56: 0.1
A57: Latvia | B57: =VLOOKUP(A57, 'Country names'!$A$5:$C$53,3,FALSE) -> LVA
A58: Latvia | B58: =VLOOKUP(A58, 'Country names'!$A$5:$C$53,3,FALSE) -> LVA | C58: 31000-31300 | D58: X | H58: X | I58: X | J58: X | P58: 0 | Q58: 0 | R58: ECC/REC/(02)02
A59: Latvia | B59: =VLOOKUP(A59, 'Country names'!$A$5:$C$53,3,FALSE) -> LVA
A60: Latvia | B60: =VLOOKUP(A60, 'Country names'!$A$5:$C$53,3,FALSE) -> LVA | C60: 32375–32571/33187–33383 | D60: X | H60: X | J60: X | P60: 0 | R60: ERC/REC/(01)02 | Y60: 0.05
A61: Latvia | B61: =VLOOKUP(A61, 'Country names'!$A$5:$C$53,3,FALSE) -> LVA | C61: 31815–32347/32627–33159 | D61: X | H61: X | I61: X | J61: X | P61: 224 | R61: ERC/REC/(01)02 | T61: X | U61: X | V61: 0.1 | W61: 1.5 | X61: 5 | Y61: 0.1
A62: Latvia | B62: =VLOOKUP(A62, 'Country names'!$A$5:$C$53,3,FALSE) -> LVA | C62: 36000-37000 | AC62: Exclusive Military Band Within the Band 36000-37000 MHz
A63: Latvia | B63: =VLOOKUP(A63, 'Country names'!$A$5:$C$53,3,FALSE) -> LVA
A64: Latvia | B64: =VLOOKUP(A64, 'Country names'!$A$5:$C$53,3,FALSE) -> LVA | C64: 37000-39500 | D64: X | H64: X | J64: X | K64: X | P64: 195 | R64: T/R 12-01 | T64: X | U64: X | V64: 0,3 | W64: 2 | X64: 6 | Y64: 0.2
A65: Latvia | B65: =VLOOKUP(A65, 'Country names'!$A$5:$C$53,3,FALSE) -> LVA
A66: Latvia | B66: =VLOOKUP(A66, 'Country names'!$A$5:$C$53,3,FALSE) -> LVA | C66: 39500-40500 | R66: ERC/DEC/(00)02 | AC66: Currently not in use by Fixed service
A67: Latvia | B67: =VLOOKUP(A67, 'Country names'!$A$5:$C$53,3,FALSE) -> LVA
A68: Latvia | B68: =VLOOKUP(A68, 'Country names'!$A$5:$C$53,3,FALSE) -> LVA | C68: 40500-43500 | D68: X | H68: X | I68: X | J68: X | P68: 0 | Q68: 0 | R68: ECC/REC/(01)04 | T68: X | U68: X | Y68: 1
A69: Latvia | B69: =VLOOKUP(A69, 'Country names'!$A$5:$C$53,3,FALSE) -> LVA
A70: Latvia | B70: =VLOOKUP(A70, 'Country names'!$A$5:$C$53,3,FALSE) -> LVA | C70: 47200-48500 | D70: X | H70: X | L70: X | O70: 0 | R70: ERC/REC 25-10 | T70: X | Y70: 1
A71: Latvia | B71: =VLOOKUP(A71, 'Country names'!$A$5:$C$53,3,FALSE) -> LVA
A72: Latvia | B72: =VLOOKUP(A72, 'Country names'!$A$5:$C$53,3,FALSE) -> LVA | C72: 48500-50200 | D72: X | H72: X | J72: X | K72: X | P72: 0 | R72: ERC/REC 12-11
A73: Latvia | B73: =VLOOKUP(A73, 'Country names'!$A$5:$C$53,3,FALSE) -> LVA
A74: Latvia | B74: =VLOOKUP(A74, 'Country names'!$A$5:$C$53,3,FALSE) -> LVA | C74: 50400-51400 | AC74: Currently not in use by Fixed service
A75: Latvia | B75: =VLOOKUP(A75, 'Country names'!$A$5:$C$53,3,FALSE) -> LVA
A76: Latvia | B76: =VLOOKUP(A76, 'Country names'!$A$5:$C$53,3,FALSE) -> LVA | C76: 51400-52600 | D76: X | H76: X | J76: X | K76: X | P76: 0 | R76: ERC/REC 12-11 | T76: X | U76: X | Y76: 1
A77: Latvia | B77: =VLOOKUP(A77, 'Country names'!$A$5:$C$53,3,FALSE) -> LVA
A78: Latvia | B78: =VLOOKUP(A78, 'Country names'!$A$5:$C$53,3,FALSE) -> LVA | C78: 557800-57000 | D78: X | H78: X | J78: X | K78: X | P78: 0 | R78: ERC/REC 12-12E | Y78: 1
A79: Latvia | B79: =VLOOKUP(A79, 'Country names'!$A$5:$C$53,3,FALSE) -> LVA
A80: Latvia | B80: =VLOOKUP(A80, 'Country names'!$A$5:$C$53,3,FALSE) -> LVA | C80: 57000-59000 | D80: X | H80: X | J80: X | P80: 0 | R80: ECC/REC/(09)01 | Y80: 1
A81: Latvia | B81: =VLOOKUP(A81, 'Country names'!$A$5:$C$53,3,FALSE) -> LVA
A82: Latvia | B82: =VLOOKUP(A82, 'Country names'!$A$5:$C$53,3,FALSE) -> LVA | C82: 59000-61000 | R82: ECC/REC/(09)01 | AA82: X | AC82: Exclusive Military Band Within the Band 59000-61000 MHz; planned reallocation
A83: Latvia | B83: =VLOOKUP(A83, 'Country names'!$A$5:$C$53,3,FALSE) -> LVA
A84: Latvia | B84: =VLOOKUP(A84, 'Country names'!$A$5:$C$53,3,FALSE) -> LVA | C84: 61000-66000 | AA84: X
A85: Latvia | B85: =VLOOKUP(A85, 'Country names'!$A$5:$C$53,3,FALSE) -> LVA
A86: Latvia | B86: =VLOOKUP(A86, 'Country names'!$A$5:$C$53,3,FALSE) -> LVA | C86: 74000-76000 and 84000-86000 | D86: X | H86: X | J86: X | K86: X | P86: 14 | R86: ECC/REC/(05)07 | U86: X | V86: 0,1 | W86: 1 | X86: 3 | Y86: 5
A87: Latvia | B87: =VLOOKUP(A87, 'Country names'!$A$5:$C$53,3,FALSE) -> LVA
A88: Latvia | B88: =VLOOKUP(A88, 'Country names'!$A$5:$C$53,3,FALSE) -> LVA | C88: 92000-95000

Sheet Ireland
C1: Frequency band (MHz) | D1: Licensing regime | H1: Topo-logy | J1: Application | O1: Number of P-P links | Q1: Number of CS | R1: Channel/Frequency plan used (e.g. ERC/ECC Rec. ITU-R Rec.) | S1: Link characteristics | Y1: Future trends (e.g. in the next 5 years)
H2: FWA | J2: Network Infrastruc-ture | S2: Capacity | V2: Hop length (km)
D3: Link by link | E3: Block | F3: Light licensed | G3: Licence exempt | H3: P-P | I3: P-MP | J3: Mobile backhaul | K3: Others | L3: Broadcasting Infrastructure | M3: No Information available on the application | N3: Other (please indicate) | O3: unidirection | P3: bidirectional (1 bidirectional link counts 1) | Q3: (applicable only for P-MP and mesh networks) | S3: LOW (<10 Mbit/s) | T3: MEDIUM (10 to 100 Mbit/s) | U3: HIGH (>100 Mbit/s) | V3: MIN | W3: Typical figure | X3: MAX | Y3: Anticipated growth/reduction (+/-%) | Z3: Currently congested | AA3: Planned reallocation to other service/application | AB3: Other (please describe) (see Question 3 of the Questionnaire)
A4: Ireland | B4: =VLOOKUP(A4, 'Country names'!$A$5:$C$53,3,FALSE) -> IRL | C4: 1350-1375 and 1492-1517 | D4: X | H4: X | M4: X | P4: 76 | R4: T/R 13-01 Annex A | S4: 76 | V4: No min. path length policy
A5: Ireland | B5: =VLOOKUP(A5, 'Country names'!$A$5:$C$53,3,FALSE) -> IRL
A6: Ireland | B6: =VLOOKUP(A6, 'Country names'!$A$5:$C$53,3,FALSE) -> IRL | C6: 1375-1400 and 1427-1452 | D6: X | H6: X | L6: X | O6: 41 | R6: T/R 13-01 Annex B | S6: 41 | V6: No min. path length policy
A7: Ireland | B7: =VLOOKUP(A7, 'Country names'!$A$5:$C$53,3,FALSE) -> IRL
A8: Ireland | B8: =VLOOKUP(A8, 'Country names'!$A$5:$C$53,3,FALSE) -> IRL | C8: 2025-2110 and 2200-2290 | D8: X | H8: X | M8: X | P8: 28 | R8: T/R 13-01 Annex C | S8: 7 | T8: 21 | V8: 25 km
A9: Ireland | B9: =VLOOKUP(A9, 'Country names'!$A$5:$C$53,3,FALSE) -> IRL
A10: Ireland | B10: =VLOOKUP(A10, 'Country names'!$A$5:$C$53,3,FALSE) -> IRL | C10: 3400-3600 | D10: X (FWALA licences issues on case by case basis) | I10: X | N10: Wireless broadband provision | Q10: 268 (3400 - 3800 MHz) | R10: ERC/REC 14-03 | V10: N/A | AA10: X
A11: Ireland | B11: =VLOOKUP(A11, 'Country names'!$A$5:$C$53,3,FALSE) -> IRL
A12: Ireland | B12: =VLOOKUP(A12, 'Country names'!$A$5:$C$53,3,FALSE) -> IRL | C12: 3600-4200 | D12: X (FWALA licences issues on case by case basis) | I12: X | N12: Wireless broadband provision | Q12: 268 (3400 - 3800 MHz) | R12: ERC/REC 12-08 | V12: N/A | AA12: X
A13: Ireland | B13: =VLOOKUP(A13, 'Country names'!$A$5:$C$53,3,FALSE) -> IRL
A14: Ireland | B14: =VLOOKUP(A14, 'Country names'!$A$5:$C$53,3,FALSE) -> IRL | C14: 4400-5000
A15: Ireland | B15: =VLOOKUP(A15, 'Country names'!$A$5:$C$53,3,FALSE) -> IRL
A16: Ireland | B16: =VLOOKUP(A16, 'Country names'!$A$5:$C$53,3,FALSE) -> IRL | C16: 5850-5925 | F16: X (5725 - 5875 MHz) | I16: X | K16: X | Q16: 106 stations registered for use of the entire band 5725 - 5875 MHz | V16: N/A
A17: Ireland | B17: =VLOOKUP(A17, 'Country names'!$A$5:$C$53,3,FALSE) -> IRL
A18: Ireland | B18: =VLOOKUP(A18, 'Country names'!$A$5:$C$53,3,FALSE) -> IRL | C18: 5925-7125 | D18: X | H18: X | M18: X | P18: 208 | R18: ERC/REC 14-01 and ERC/REC 14-02, ECC/REC(14)06 | U18: 208 | V18: 25 km
A19: Ireland | B19: =VLOOKUP(A19, 'Country names'!$A$5:$C$53,3,FALSE) -> IRL
A20: Ireland | B20: =VLOOKUP(A20, 'Country names'!$A$5:$C$53,3,FALSE) -> IRL | C20: 7125-7750 | D20: X | H20: X | M20: X | P20: 270 | R20: ECC REC (02)06 | S20: 12 | T20: 31 | U20: 227 | V20: 25 km
A21: Ireland | B21: =VLOOKUP(A21, 'Country names'!$A$5:$C$53,3,FALSE) -> IRL
A22: Ireland | B22: =VLOOKUP(A22, 'Country names'!$A$5:$C$53,3,FALSE) -> IRL | C22: 7750-7900 | D22: X | H22: X | M22: X | P22: 208 | T22: 10 | U22: 198 | V22: 25 km
A23: Ireland | B23: =VLOOKUP(A23, 'Country names'!$A$5:$C$53,3,FALSE) -> IRL
A24: Ireland | B24: =VLOOKUP(A24, 'Country names'!$A$5:$C$53,3,FALSE) -> IRL | C24: 7900-8500 | D24: X | H24: X | M24: X | P24: 12 | R24: ECC REC (02)06 | S24: 8 | T24: 4 | V24: 25 km
A25: Ireland | B25: =VLOOKUP(A25, 'Country names'!$A$5:$C$53,3,FALSE) -> IRL
A26: Ireland | B26: =VLOOKUP(A26, 'Country names'!$A$5:$C$53,3,FALSE) -> IRL | C26: 10000-10680 | D26: X (FWALA licences issues on case by case basis) | I26: X | N26: Wireless broadband provision | Q26: 35 | R26: ERC/REC 12-05 | V26: N/A
A27: Ireland | B27: =VLOOKUP(A27, 'Country names'!$A$5:$C$53,3,FALSE) -> IRL
A28: Ireland | B28: =VLOOKUP(A28, 'Country names'!$A$5:$C$53,3,FALSE) -> IRL | C28: 10700-11700 | D28: X | H28: X | M28: X | P28: 778 | R28: ERC/REC 12-06 | U28: 778 | V28: 10 km
A29: Ireland | B29: =VLOOKUP(A29, 'Country names'!$A$5:$C$53,3,FALSE) -> IRL
A30: Ireland | B30: =VLOOKUP(A30, 'Country names'!$A$5:$C$53,3,FALSE) -> IRL | C30: 11700-12500
A31: Ireland | B31: =VLOOKUP(A31, 'Country names'!$A$5:$C$53,3,FALSE) -> IRL
A32: Ireland | B32: =VLOOKUP(A32, 'Country names'!$A$5:$C$53,3,FALSE) -> IRL | C32: 12750-13250 | D32: X | H32: X | M32: X | P32: 1362 | R32: ERC/REC 12-02 | S32: 42 | T32: 603 | U32: 717 | V32: 9 km | Z32: X
A33: Ireland | B33: =VLOOKUP(A33, 'Country names'!$A$5:$C$53,3,FALSE) -> IRL
A34: Ireland | B34: =VLOOKUP(A34, 'Country names'!$A$5:$C$53,3,FALSE) -> IRL | C34: 14250-14500
A35: Ireland | B35: =VLOOKUP(A35, 'Country names'!$A$5:$C$53,3,FALSE) -> IRL
A36: Ireland | B36: =VLOOKUP(A36, 'Country names'!$A$5:$C$53,3,FALSE) -> IRL | C36: 14500-14620 and 15230-15350 | D36: X | H36: X | M36: X | P36: 1752 | R36: ERC/REC 12-07 | S36: 201 | T36: 7 | U36: 1544 | V36: 9 km | Z36: X
A37: Ireland | B37: =VLOOKUP(A37, 'Country names'!$A$5:$C$53,3,FALSE) -> IRL
A38: Ireland | B38: =VLOOKUP(A38, 'Country names'!$A$5:$C$53,3,FALSE) -> IRL | C38: 17300-17700
A39: Ireland | B39: =VLOOKUP(A39, 'Country names'!$A$5:$C$53,3,FALSE) -> IRL
A40: Ireland | B40: =VLOOKUP(A40, 'Country names'!$A$5:$C$53,3,FALSE) -> IRL | C40: 17700-19700 | D40: X | H40: X | M40: X | P40: 1190 | T40: 13 | U40: 1177 | V40: 6 km for links ≤ 34 MBit/s. | Z40: X
A41: Ireland | B41: =VLOOKUP(A41, 'Country names'!$A$5:$C$53,3,FALSE) -> IRL | V41: 0 km for links > 34 Mbit/s.
A42: Ireland | B42: =VLOOKUP(A42, 'Country names'!$A$5:$C$53,3,FALSE) -> IRL | C42: 21200-22000
A43: Ireland | B43: =VLOOKUP(A43, 'Country names'!$A$5:$C$53,3,FALSE) -> IRL
A44: Ireland | B44: =VLOOKUP(A44, 'Country names'!$A$5:$C$53,3,FALSE) -> IRL | C44: 22000-22600 and 23000-23600 | D44: X | H44: X | M44: X | P44: 1640 | R44: T/R 13-02 Annexes A1, A2, A3 | S44: 163 | T44: 758 | U44: 719 | V44: 3 km for links ≤ 34 MBit/s. | Z44: X
A45: Ireland | B45: =VLOOKUP(A45, 'Country names'!$A$5:$C$53,3,FALSE) -> IRL | V45: 0 km for links > 34 Mbit/s, or 34 Mbit/s in 14 MHz channel spacing.
A46: Ireland | B46: =VLOOKUP(A46, 'Country names'!$A$5:$C$53,3,FALSE) -> IRL | C46: 22600-23000
A47: Ireland | B47: =VLOOKUP(A47, 'Country names'!$A$5:$C$53,3,FALSE) -> IRL
A48: Ireland | B48: =VLOOKUP(A48, 'Country names'!$A$5:$C$53,3,FALSE) -> IRL | C48: 24250-24500
A49: Ireland | B49: =VLOOKUP(A49, 'Country names'!$A$5:$C$53,3,FALSE) -> IRL
A50: Ireland | B50: =VLOOKUP(A50, 'Country names'!$A$5:$C$53,3,FALSE) -> IRL | C50: 24500-26500 | E50: X | H50: X | P50: 4444 sites registered nationwide for 26 GHz "block licence" link deployments. There are therefore a minimum of 2222 links, with potentially many more, depending upon the number of 26 GHz links deployed at each site. | S50: X | T50: X | U50: X | V50: 3 km for links ≤ 34 MBit/s.
A51: Ireland | B51: =VLOOKUP(A51, 'Country names'!$A$5:$C$53,3,FALSE) -> IRL | V51: 0 km for links > 34 Mbit/s, or 34 Mbit/s in 14 MHz channel spacing.
A52: Ireland | B52: =VLOOKUP(A52, 'Country names'!$A$5:$C$53,3,FALSE) -> IRL | D52: X | H52: X | P52: 474 | R52: T/R 13-02 Annex B | U52: 474 | V52: 3 km for links ≤ 34 MBit/s.
A53: Ireland | B53: =VLOOKUP(A53, 'Country names'!$A$5:$C$53,3,FALSE) -> IRL | V53: 0 km for links > 34 Mbit/s, or 34 Mbit/s in 14 MHz channel spacing.
A54: Ireland | B54: =VLOOKUP(A54, 'Country names'!$A$5:$C$53,3,FALSE) -> IRL | D54: X (FWALA licences issues on case by case basis) | I54: X | N54: Wireless broadband provision | Q54: 3 | V54: N/A
A55: Ireland | B55: =VLOOKUP(A55, 'Country names'!$A$5:$C$53,3,FALSE) -> IRL
A56: Ireland | B56: =VLOOKUP(A56, 'Country names'!$A$5:$C$53,3,FALSE) -> IRL | C56: 26500-27500
A57: Ireland | B57: =VLOOKUP(A57, 'Country names'!$A$5:$C$53,3,FALSE) -> IRL
A58: Ireland | B58: =VLOOKUP(A58, 'Country names'!$A$5:$C$53,3,FALSE) -> IRL | C58: 27500-29500 | D58: X | H58: X | M58: X | P58: 197 | R58: T/R 13-02 Annex C | T58: 45 | U58: 153 | V58: 3 km for links ≤ 34 MBit/s.
A59: Ireland | B59: =VLOOKUP(A59, 'Country names'!$A$5:$C$53,3,FALSE) -> IRL | V59: 0 km for links > 34 Mbit/s, or 34 Mbit/s in 14 MHz channel spacing.
A60: Ireland | B60: =VLOOKUP(A60, 'Country names'!$A$5:$C$53,3,FALSE) -> IRL | C60: 31000-31300 | D60: X | P60: 0 | R60: ECC/REC/(02)02
A61: Ireland | B61: =VLOOKUP(A61, 'Country names'!$A$5:$C$53,3,FALSE) -> IRL
A62: Ireland | B62: =VLOOKUP(A62, 'Country names'!$A$5:$C$53,3,FALSE) -> IRL | C62: 31800-33400 | R62: ERC/REC/(01)02
A63: Ireland | B63: =VLOOKUP(A63, 'Country names'!$A$5:$C$53,3,FALSE) -> IRL
A64: Ireland | B64: =VLOOKUP(A64, 'Country names'!$A$5:$C$53,3,FALSE) -> IRL | C64: 36000-37000
A65: Ireland | B65: =VLOOKUP(A65, 'Country names'!$A$5:$C$53,3,FALSE) -> IRL
A66: Ireland | B66: =VLOOKUP(A66, 'Country names'!$A$5:$C$53,3,FALSE) -> IRL | C66: 37000-39500 | D66: X | H66: X | M66: X | P66: 2095 | R66: T/R 12-01 | S66: 245 | T66: 843 | U66: 1007 | V66: 0 km
A67: Ireland | B67: =VLOOKUP(A67, 'Country names'!$A$5:$C$53,3,FALSE) -> IRL
A68: Ireland | B68: =VLOOKUP(A68, 'Country names'!$A$5:$C$53,3,FALSE) -> IRL | C68: 39500-40500
A69: Ireland | B69: =VLOOKUP(A69, 'Country names'!$A$5:$C$53,3,FALSE) -> IRL
A70: Ireland | B70: =VLOOKUP(A70, 'Country names'!$A$5:$C$53,3,FALSE) -> IRL | C70: 40500-43500 | D70: X | H70: X | M70: X | P70: 10 | R70: ECC/REC/(01)04 | U70: 10 | V70: 0 km
A71: Ireland | B71: =VLOOKUP(A71, 'Country names'!$A$5:$C$53,3,FALSE) -> IRL
A72: Ireland | B72: =VLOOKUP(A72, 'Country names'!$A$5:$C$53,3,FALSE) -> IRL | C72: 47200-48500
A73: Ireland | B73: =VLOOKUP(A73, 'Country names'!$A$5:$C$53,3,FALSE) -> IRL
A74: Ireland | B74: =VLOOKUP(A74, 'Country names'!$A$5:$C$53,3,FALSE) -> IRL | C74: 48500-50200 | R74: ERC/REC 12-11
A75: Ireland | B75: =VLOOKUP(A75, 'Country names'!$A$5:$C$53,3,FALSE) -> IRL
A76: Ireland | B76: =VLOOKUP(A76, 'Country names'!$A$5:$C$53,3,FALSE) -> IRL | C76: 50400-51400
A77: Ireland | B77: =VLOOKUP(A77, 'Country names'!$A$5:$C$53,3,FALSE) -> IRL
A78: Ireland | B78: =VLOOKUP(A78, 'Country names'!$A$5:$C$53,3,FALSE) -> IRL | C78: 51400-52600 | R78: ERC/REC 12-11
A79: Ireland | B79: =VLOOKUP(A79, 'Country names'!$A$5:$C$53,3,FALSE) -> IRL
A80: Ireland | B80: =VLOOKUP(A80, 'Country names'!$A$5:$C$53,3,FALSE) -> IRL | C80: 557800-57000 | R80: ERC/REC 12-12
A81: Ireland | B81: =VLOOKUP(A81, 'Country names'!$A$5:$C$53,3,FALSE) -> IRL
A82: Ireland | B82: =VLOOKUP(A82, 'Country names'!$A$5:$C$53,3,FALSE) -> IRL | C82: 57000-59000 | R82: ECC/REC/(09)01
A83: Ireland | B83: =VLOOKUP(A83, 'Country names'!$A$5:$C$53,3,FALSE) -> IRL
A84: Ireland | B84: =VLOOKUP(A84, 'Country names'!$A$5:$C$53,3,FALSE) -> IRL | C84: 59000-64000 | R84: ECC/REC/(09)01
A85: Ireland | B85: =VLOOKUP(A85, 'Country names'!$A$5:$C$53,3,FALSE) -> IRL
A86: Ireland | B86: =VLOOKUP(A86, 'Country names'!$A$5:$C$53,3,FALSE) -> IRL | C86: 64000-66000 | R86: ECC/REC/(05)02
A87: Ireland | B87: =VLOOKUP(A87, 'Country names'!$A$5:$C$53,3,FALSE) -> IRL
A88: Ireland | B88: =VLOOKUP(A88, 'Country names'!$A$5:$C$53,3,FALSE) -> IRL | C88: 71000-76000 and 81000-86000 | D88: X | H88: X | M88: X | P88: 355 | R88: ECC/REC/(05)07 | S88: 355 | V88: 0 km
A89: Ireland | B89: =VLOOKUP(A89, 'Country names'!$A$5:$C$53,3,FALSE) -> IRL
A90: Ireland | B90: =VLOOKUP(A90, 'Country names'!$A$5:$C$53,3,FALSE) -> IRL | C90: 92000-95000 | R90: ECC/REC (14)01

Sheet Finland
C1: Frequency band (MHz) | D1: Licensing regime | H1: Topo-logy | J1: Application | O1: Number of P-P links | Q1: Number of CS | R1: Channel/Frequency plan used (e.g. ERC/ECC Rec. ITU-R Rec.) | S1: Link characteristics | Y1: Future trends (e.g. in the next 5 years)
H2: FWA | J2: Network Infrastruc-ture | S2: Capacity | V2: Hop length (km)
D3: Link by link | E3: Block | F3: Light licensed | G3: Licence exempt | H3: P-P | I3: P-MP | J3: Mobile backhaul | K3: Others | L3: Broadcasting Infrastructure | M3: No Information available on the application | N3: Other (please indicate) | O3: unidirection | P3: bidirectional (1 bidirectional link counts 1) | Q3: (applicable only for P-MP and mesh networks) | S3: LOW (<10 Mbit/s) | T3: MEDIUM (10 to 100 Mbit/s) | U3: HIGH (>100 Mbit/s) | V3: MIN | W3: Typical figure | X3: MAX | Y3: Anticipated growth/reduction (+/-%) | Z3: Currently congested | AA3: Planned reallocation to other service/application | AB3: Other (please describe) (see Question 3 of the Questionnaire)
A4: Finland | B4: =VLOOKUP(A4, 'Country names'!$A$5:$C$53,3,FALSE) -> FIN | C4: 1350-1375 and 1492-1517 | O4: 0 | P4: 0 | R4: (T/R 13-01 Annex A) 1) | AA4: 1) | AC4: 1) MFCN 1492-1517 MHz planned in the beginning of 2019
A5: Finland | B5: =VLOOKUP(A5, 'Country names'!$A$5:$C$53,3,FALSE) -> FIN | E5: x | I5: x | K5: x | Q5: 16 | R5: FWA: 1359-1371 MHz, national plan | T5: x | W5: N/A
A6: Finland | B6: =VLOOKUP(A6, 'Country names'!$A$5:$C$53,3,FALSE) -> FIN | C6: 1375-1400 and 1427-1452
A7: Finland | B7: =VLOOKUP(A7, 'Country names'!$A$5:$C$53,3,FALSE) -> FIN | AA7: 2) | AC7: 2) MFCN 1427-1452 MHz planned in the beginning of 2019
A8: Finland | B8: =VLOOKUP(A8, 'Country names'!$A$5:$C$53,3,FALSE) -> FIN | C8: 2025-2110 and 2200-2290
A9: Finland | B9: =VLOOKUP(A9, 'Country names'!$A$5:$C$53,3,FALSE) -> FIN | D9: x | H9: x | K9: x | O9: N/A | R9: ERC/REC 25-10 | T9: x | W9: N/A | AC9: temporary use
A10: Finland | B10: =VLOOKUP(A10, 'Country names'!$A$5:$C$53,3,FALSE) -> FIN | C10: 3400-3600
A11: Finland | B11: =VLOOKUP(A11, 'Country names'!$A$5:$C$53,3,FALSE) -> FIN | E11: x | I11: x | K11: x | Q11: ca.250 | R11: FWA: 3410-3590 MHz, national plan | S11: x | W11: <8 | Y11: -35 | AA11: 3) | AC11: 3) MFCN 3400-3800 MHz planned in the beginning of 2019
A12: Finland | B12: =VLOOKUP(A12, 'Country names'!$A$5:$C$53,3,FALSE) -> FIN | C12: 3600-4200 | D12: x | H12: x | L12: x | O12: 164 | P12: 32 | R12: ERC/REC 12-08 | T12: x | U12: x | V12: 20 | W12: >30 | AA12: 3) | AC12: 3) MFCN 3400-3800 MHz planned in the beginning of 2019
A13: Finland | B13: =VLOOKUP(A13, 'Country names'!$A$5:$C$53,3,FALSE) -> FIN
A14: Finland | B14: =VLOOKUP(A14, 'Country names'!$A$5:$C$53,3,FALSE) -> FIN | C14: 4400-5000
A15: Finland | B15: =VLOOKUP(A15, 'Country names'!$A$5:$C$53,3,FALSE) -> FIN
A16: Finland | B16: =VLOOKUP(A16, 'Country names'!$A$5:$C$53,3,FALSE) -> FIN | C16: 5850-5925
A17: Finland | B17: =VLOOKUP(A17, 'Country names'!$A$5:$C$53,3,FALSE) -> FIN
A18: Finland | B18: =VLOOKUP(A18, 'Country names'!$A$5:$C$53,3,FALSE) -> FIN | C18: 5925-7125 | D18: x | H18: x | J18: x | K18: x | L18: x | O18: 0 | P18: 646 | R18: ERC/REC 14-01 and ERC/REC 14-02, ECC/REC(14)06 | T18: x | U18: x | V18: 10 | W18: 19.7 | X18: 63.1 | Y18: + 50 | Z18: x | AB18: upper 6 GHz congested in some areas
A19: Finland | B19: =VLOOKUP(A19, 'Country names'!$A$5:$C$53,3,FALSE) -> FIN
A20: Finland | B20: =VLOOKUP(A20, 'Country names'!$A$5:$C$53,3,FALSE) -> FIN | C20: 7125-7750 | D20: x | H20: x | J20: x | K20: x | O20: 0 | P20: 363 | R20: Modified ITU-R F.385 | T20: x | U20: x | V20: 10 | W20: 29.4 | X20: 74.9 | Y20: -25
A21: Finland | B21: =VLOOKUP(A21, 'Country names'!$A$5:$C$53,3,FALSE) -> FIN
A22: Finland | B22: =VLOOKUP(A22, 'Country names'!$A$5:$C$53,3,FALSE) -> FIN | C22: 7750-7900
A23: Finland | B23: =VLOOKUP(A23, 'Country names'!$A$5:$C$53,3,FALSE) -> FIN
A24: Finland | B24: =VLOOKUP(A24, 'Country names'!$A$5:$C$53,3,FALSE) -> FIN | C24: 7900-8500 | D24: x | J24: x | K24: x | O24: 0 | P24: 4 | R24: ECC REC (02)06 | U24: x | V24: 10 | W24: 15.4 | X24: 17.1
A25: Finland | B25: =VLOOKUP(A25, 'Country names'!$A$5:$C$53,3,FALSE) -> FIN | E25: x | L25: x | O25: N/A | P25: N/A | R25: video links, national plan | T25: x | W25: N/A
A26: Finland | B26: =VLOOKUP(A26, 'Country names'!$A$5:$C$53,3,FALSE) -> FIN | C26: 10000-10680 | D26: x | H26: x | K26: x | L26: x | O26: 3 | P26: 0 | R26: ERC/REC 12-05 | V26: 0.1 | W26: 5.1 | X26: 14.2
A27: Finland | B27: =VLOOKUP(A27, 'Country names'!$A$5:$C$53,3,FALSE) -> FIN
A28: Finland | B28: =VLOOKUP(A28, 'Country names'!$A$5:$C$53,3,FALSE) -> FIN | C28: 10700-11700
A29: Finland | B29: =VLOOKUP(A29, 'Country names'!$A$5:$C$53,3,FALSE) -> FIN
A30: Finland | B30: =VLOOKUP(A30, 'Country names'!$A$5:$C$53,3,FALSE) -> FIN | C30: 11700-12500
A31: Finland | B31: =VLOOKUP(A31, 'Country names'!$A$5:$C$53,3,FALSE) -> FIN
A32: Finland | B32: =VLOOKUP(A32, 'Country names'!$A$5:$C$53,3,FALSE) -> FIN | C32: 12750-13250 | D32: x | H32: x | J32: x | K32: x | O32: 0 | P32: 1750 | R32: ERC/REC 12-02 | T32: x | U32: x | V32: 0.24 | W32: 14.4 | X32: 34.9 | Y32: -10
A33: Finland | B33: =VLOOKUP(A33, 'Country names'!$A$5:$C$53,3,FALSE) -> FIN
A34: Finland | B34: =VLOOKUP(A34, 'Country names'!$A$5:$C$53,3,FALSE) -> FIN | C34: 14250-14500
A35: Finland | B35: =VLOOKUP(A35, 'Country names'!$A$5:$C$53,3,FALSE) -> FIN
A36: Finland | B36: =VLOOKUP(A36, 'Country names'!$A$5:$C$53,3,FALSE) -> FIN | C36: 14500-14620 and 15230-15350 | D36: x | H36: x | J36: x | K36: x | O36: 0 | P36: 414 | R36: ITU-R F.636 | S36: x | T36: x | V36: 0.4 | W36: 13.8 | X36: 32.2 | Y36: -7
A37: Finland | B37: =VLOOKUP(A37, 'Country names'!$A$5:$C$53,3,FALSE) -> FIN
A38: Finland | B38: =VLOOKUP(A38, 'Country names'!$A$5:$C$53,3,FALSE) -> FIN | C38: 17300-17700
A39: Finland | B39: =VLOOKUP(A39, 'Country names'!$A$5:$C$53,3,FALSE) -> FIN
A40: Finland | B40: =VLOOKUP(A40, 'Country names'!$A$5:$C$53,3,FALSE) -> FIN | C40: 17700-19700 | D40: x | H40: x | J40: x | K40: x | O40: 0 | P40: 2730 | R40: ERC/DEC/(00)07; ERC/REC 12-03 | T40: x | U40: x | V40: 0.1 | W40: 8.0 | X40: 26.6 | Y40: +15
A41: Finland | B41: =VLOOKUP(A41, 'Country names'!$A$5:$C$53,3,FALSE) -> FIN
A42: Finland | B42: =VLOOKUP(A42, 'Country names'!$A$5:$C$53,3,FALSE) -> FIN | C42: 21200-22000 | D42: x | H42: x | K42: x | O42: 0 | P42: 0 | R42: ERC/REC 25-10
A43: Finland | B43: =VLOOKUP(A43, 'Country names'!$A$5:$C$53,3,FALSE) -> FIN
A44: Finland | B44: =VLOOKUP(A44, 'Country names'!$A$5:$C$53,3,FALSE) -> FIN | C44: 22000-22600 and 23000-23600 | D44: x | H44: x | J44: x | K44: x | O44: 0 | P44: 1619 | R44: T/R 13-02 Annexes A1, A2, A3 | S44: x | T44: x | U44: x | V44: 0.6 | W44: 4.9 | X44: 17.5 | Y44: -15 *) | AC44: *) decrease 28 MHz / increase 56 MHz
A45: Finland | B45: =VLOOKUP(A45, 'Country names'!$A$5:$C$53,3,FALSE) -> FIN | Y45: +2 *) | Z45: x | AB45: 56 MHz channels congested in some areas
A46: Finland | B46: =VLOOKUP(A46, 'Country names'!$A$5:$C$53,3,FALSE) -> FIN | C46: 22600-23000 | D46: x | H46: x | K46: x | O46: 0 | P46: 0 | R46: ERC/REC 25-10
A47: Finland | B47: =VLOOKUP(A47, 'Country names'!$A$5:$C$53,3,FALSE) -> FIN
A48: Finland | B48: =VLOOKUP(A48, 'Country names'!$A$5:$C$53,3,FALSE) -> FIN | C48: 24250-24500 | AA48: 4) | AC48: 4) Potential 5G candidate band under study
A49: Finland | B49: =VLOOKUP(A49, 'Country names'!$A$5:$C$53,3,FALSE) -> FIN
A50: Finland | B50: =VLOOKUP(A50, 'Country names'!$A$5:$C$53,3,FALSE) -> FIN | C50: 24500-26500 | D50: x | H50: x | L50: x | O50: 0 | P50: 1 | R50: T/R 13-02 Annex B | T50: x | W50: 1.6 | AA50: 4)
A51: Finland | B51: =VLOOKUP(A51, 'Country names'!$A$5:$C$53,3,FALSE) -> FIN
A52: Finland | B52: =VLOOKUP(A52, 'Country names'!$A$5:$C$53,3,FALSE) -> FIN | C52: 26500-27500 | AA52: 4)
A53: Finland | B53: =VLOOKUP(A53, 'Country names'!$A$5:$C$53,3,FALSE) -> FIN
A54: Finland | B54: =VLOOKUP(A54, 'Country names'!$A$5:$C$53,3,FALSE) -> FIN | C54: 27500-29500 | D54: x | H54: x | J54: x | K54: x | L54: x | O54: 0 | P54: 500 | R54: T/R 13-02 Annex C | T54: x | U54: x | V54: 0.1 | W54: 1.3 | X54: 17.3 | Y54: +2
A55: Finland | B55: =VLOOKUP(A55, 'Country names'!$A$5:$C$53,3,FALSE) -> FIN
A56: Finland | B56: =VLOOKUP(A56, 'Country names'!$A$5:$C$53,3,FALSE) -> FIN | C56: 31000-31300 | D56: x | H56: x | K56: x | O56: 0 | P56: 0 | R56: ECC/REC/(02)02
A57: Finland | B57: =VLOOKUP(A57, 'Country names'!$A$5:$C$53,3,FALSE) -> FIN
A58: Finland | B58: =VLOOKUP(A58, 'Country names'!$A$5:$C$53,3,FALSE) -> FIN | C58: 31800-33400 | D58: x | H58: x | J58: x | O58: 0 | P58: 111 | R58: ERC/REC/(01)02 | U58: x | V58: 0.1 | W58: 1.1 | X58: 7.5 | Y58: +4 | AA58: 4)
A59: Finland | B59: =VLOOKUP(A59, 'Country names'!$A$5:$C$53,3,FALSE) -> FIN
A60: Finland | B60: =VLOOKUP(A60, 'Country names'!$A$5:$C$53,3,FALSE) -> FIN | C60: 36000-37000
A61: Finland | B61: =VLOOKUP(A61, 'Country names'!$A$5:$C$53,3,FALSE) -> FIN
A62: Finland | B62: =VLOOKUP(A62, 'Country names'!$A$5:$C$53,3,FALSE) -> FIN | C62: 37000-39500 | D62: x | H62: x | K62: x | O62: 0 | P62: 18 | R62: T/R 12-01 | T62: x | V62: 0.7 | W62: 1.8 | X62: 3.7 | AA62: 4)
A63: Finland | B63: =VLOOKUP(A63, 'Country names'!$A$5:$C$53,3,FALSE) -> FIN
A64: Finland | B64: =VLOOKUP(A64, 'Country names'!$A$5:$C$53,3,FALSE) -> FIN | C64: 39500-40500 | AA64: 4)
A65: Finland | B65: =VLOOKUP(A65, 'Country names'!$A$5:$C$53,3,FALSE) -> FIN
A66: Finland | B66: =VLOOKUP(A66, 'Country names'!$A$5:$C$53,3,FALSE) -> FIN | C66: 40500-43500 | D66: x | H66: x | O66: 0 | P66: 0 | R66: ECC/REC/(01)04 | AA66: 4)
A67: Finland | B67: =VLOOKUP(A67, 'Country names'!$A$5:$C$53,3,FALSE) -> FIN
A68: Finland | B68: =VLOOKUP(A68, 'Country names'!$A$5:$C$53,3,FALSE) -> FIN | C68: 47200-48500 | D68: x | H68: x | O68: 0 | P68: 0 | R68: ERC/REC 12-11 | AA68: 4)
A69: Finland | B69: =VLOOKUP(A69, 'Country names'!$A$5:$C$53,3,FALSE) -> FIN
A70: Finland | B70: =VLOOKUP(A70, 'Country names'!$A$5:$C$53,3,FALSE) -> FIN | C70: 48500-50200 | D70: x | H70: x | O70: 0 | P70: 0 | R70: ERC/REC 12-11 | AA70: 4)
A71: Finland | B71: =VLOOKUP(A71, 'Country names'!$A$5:$C$53,3,FALSE) -> FIN
A72: Finland | B72: =VLOOKUP(A72, 'Country names'!$A$5:$C$53,3,FALSE) -> FIN | C72: 50400-51400 | D72: x | H72: x | O72: 0 | P72: 0 | R72: no channel plan | AA72: 4)
A73: Finland | B73: =VLOOKUP(A73, 'Country names'!$A$5:$C$53,3,FALSE) -> FIN
A74: Finland | B74: =VLOOKUP(A74, 'Country names'!$A$5:$C$53,3,FALSE) -> FIN | C74: 51400-52600 | D74: x | H74: x | O74: 0 | P74: 0 | R74: ERC/REC 12-11, planned | AA74: 4)
A75: Finland | B75: =VLOOKUP(A75, 'Country names'!$A$5:$C$53,3,FALSE) -> FIN
A76: Finland | B76: =VLOOKUP(A76, 'Country names'!$A$5:$C$53,3,FALSE) -> FIN | C76: 55780-57000 | D76: x | H76: x | O76: 0 | P76: 0 | R76: ERC/REC 12-12, planned
A77: Finland | B77: =VLOOKUP(A77, 'Country names'!$A$5:$C$53,3,FALSE) -> FIN
A78: Finland | B78: =VLOOKUP(A78, 'Country names'!$A$5:$C$53,3,FALSE) -> FIN | C78: 57000-59000 | E78: x | H78: x | K78: x | P78: 4 | R78: existing use ERC/REC 12-09 | W78: N/A
A79: Finland | B79: =VLOOKUP(A79, 'Country names'!$A$5:$C$53,3,FALSE) -> FIN | R79: future use ECC/REC/(09)01
A80: Finland | B80: =VLOOKUP(A80, 'Country names'!$A$5:$C$53,3,FALSE) -> FIN | C80: 59000-64000 | R80: ECC/REC/(09)01
A81: Finland | B81: =VLOOKUP(A81, 'Country names'!$A$5:$C$53,3,FALSE) -> FIN
A82: Finland | B82: =VLOOKUP(A82, 'Country names'!$A$5:$C$53,3,FALSE) -> FIN | C82: 64000-66000 | D82: x | H82: x | O82: 0 | P82: 0 | R82: ECC/REC/(05)02
A83: Finland | B83: =VLOOKUP(A83, 'Country names'!$A$5:$C$53,3,FALSE) -> FIN
A84: Finland | B84: =VLOOKUP(A84, 'Country names'!$A$5:$C$53,3,FALSE) -> FIN | C84: 71000-76000 and 81000-86000 | D84: x | H84: x | K84: x | O84: 0 | P84: 4 | R84: ECC/REC/(05)07 | U84: x | V84: 0.1 | W84: 2.4 | X84: 2.9 | AA84: 4)
A85: Finland | B85: =VLOOKUP(A85, 'Country names'!$A$5:$C$53,3,FALSE) -> FIN
A86: Finland | B86: =VLOOKUP(A86, 'Country names'!$A$5:$C$53,3,FALSE) -> FIN | C86: 92000-95000 | D86: x | H86: x | O86: 0 | P86: 0 | R86: ECC/REC (14)01

Sheet Slovenia
C1: Frequency band (MHz) | D1: Licensing regime | H1: Topo-logy | J1: Application | O1: Number of P-P links | Q1: Number of CS | R1: Channel/Frequency plan used (e.g. ERC/ECC Rec. ITU-R Rec.) | S1: Link characteristics | Y1: Future trends (e.g. in the next 5 years)
H2: FWA | J2: Network Infrastruc-ture | S2: Capacity | V2: Hop length (km)
D3: Link by link | E3: Block | F3: Light licensed | G3: Licence exempt | H3: P-P | I3: P-MP | J3: Mobile backhaul | K3: Others | L3: Broadcasting Infrastructure | M3: No Information available on the application | N3: Other (please indicate) | O3: unidirection | P3: bidirectional (1 bidirectional link counts 1) | Q3: (applicable only for P-MP and mesh networks) | S3: LOW (<10 Mbit/s) | T3: MEDIUM (10 to 100 Mbit/s) | U3: HIGH (>100 Mbit/s) | V3: MIN | W3: Typical figure | X3: MAX | Y3: Anticipated growth/reduction (+/-%) | Z3: Currently congested | AA3: Planned reallocation to other service/application | AB3: Other (please describe) (see Question 3 of the Questionnaire)
A4: Slovenia | B4: =VLOOKUP(A4, 'Country names'!$A$5:$C$53,3,FALSE) -> SVN | C4: 1350-1375 and 1492-1517 | D4: X | H4: X | K4: X | L4: X | O4: 83 | P4: 12 | R4: T/R 13-01 Annex A | S4: X | V4: 0.6 | W4: 18 | X4: 82 | AA4: X | AB4: candidate band for mobile broadband
A5: Slovenia | B5: =VLOOKUP(A5, 'Country names'!$A$5:$C$53,3,FALSE) -> SVN
A6: Slovenia | B6: =VLOOKUP(A6, 'Country names'!$A$5:$C$53,3,FALSE) -> SVN | C6: 1375-1400 and 1427-1452 | D6: X | H6: X | L6: X | O6: 25 | P6: 0 | R6: T/R 13-01 Annex B | S6: X | V6: 2 | W6: 15 | X6: 33 | AA6: X | AB6: candidate band for mobile broadband
A7: Slovenia | B7: =VLOOKUP(A7, 'Country names'!$A$5:$C$53,3,FALSE) -> SVN
A8: Slovenia | B8: =VLOOKUP(A8, 'Country names'!$A$5:$C$53,3,FALSE) -> SVN | C8: 1518-1530 | D8: X | H8: X | L8: X | O8: 61 | P8: 0 | R8: national plan | S8: X | V8: 1 | W8: 10 | X8: 46 | Y8: +10% | AB8: 500 kHz analog FM
A9: Slovenia | B9: =VLOOKUP(A9, 'Country names'!$A$5:$C$53,3,FALSE) -> SVN
A10: Slovenia | B10: =VLOOKUP(A10, 'Country names'!$A$5:$C$53,3,FALSE) -> SVN | C10: 3400-3600 | E10: X | I10: X | K10: X | M10: X | Q10: 10 | R10: ERC/REC 14-03 | T10: X
A11: Slovenia | B11: =VLOOKUP(A11, 'Country names'!$A$5:$C$53,3,FALSE) -> SVN
A12: Slovenia | B12: =VLOOKUP(A12, 'Country names'!$A$5:$C$53,3,FALSE) -> SVN | C12: 3800-4200 | D12: X | H12: X | L12: X | O12: 0 | P12: 19 | R12: ERC/REC 12-08 | U12: X | V12: 27 | W12: 57 | X12: 69
A13: Slovenia | B13: =VLOOKUP(A13, 'Country names'!$A$5:$C$53,3,FALSE) -> SVN
A14: Slovenia | B14: =VLOOKUP(A14, 'Country names'!$A$5:$C$53,3,FALSE) -> SVN | C14: 5925-6425 | D14: X | H14: X | J14: X | K14: X | O14: 0 | P14: 12 | R14: ERC/REC 14-01 | T14: X | U14: X | V14: 10 | W14: 21 | X14: 33
A15: Slovenia | B15: =VLOOKUP(A15, 'Country names'!$A$5:$C$53,3,FALSE) -> SVN
A16: Slovenia | B16: =VLOOKUP(A16, 'Country names'!$A$5:$C$53,3,FALSE) -> SVN | C16: 6425-7125 | D16: X | H16: X | K16: X | O16: 0 | P16: 1 | R16: ERC/REC 14-02 | T16: X | V16: 39 | W16: 39 | X16: 39
A17: Slovenia | B17: =VLOOKUP(A17, 'Country names'!$A$5:$C$53,3,FALSE) -> SVN
A18: Slovenia | B18: =VLOOKUP(A18, 'Country names'!$A$5:$C$53,3,FALSE) -> SVN | C18: 7125-7425 | D18: X | H18: X | J18: X | L18: X | O18: 0 | P18: 85 | R18: ECC REC (02)06 | U18: X | V18: 2 | W18: 29 | X18: 72
A19: Slovenia | B19: =VLOOKUP(A19, 'Country names'!$A$5:$C$53,3,FALSE) -> SVN
A20: Slovenia | B20: =VLOOKUP(A20, 'Country names'!$A$5:$C$53,3,FALSE) -> SVN | C20: 7425-7725 | D20: X | H20: X | J20: X | K20: X | L20: X | O20: 0 | P20: 39 | R20: ECC REC (02)06 | T20: X | U20: X | V20: 6 | W20: 23 | X20: 53 | Z20: X
A21: Slovenia | B21: =VLOOKUP(A21, 'Country names'!$A$5:$C$53,3,FALSE) -> SVN
A22: Slovenia | B22: =VLOOKUP(A22, 'Country names'!$A$5:$C$53,3,FALSE) -> SVN | C22: 7725-8275 | D22: X | H22: X | L22: X | O22: 0 | P22: 48 | R22: ECC REC (02)06 | U22: X | V22: 2 | W22: 27 | X22: 50
A23: Slovenia | B23: =VLOOKUP(A23, 'Country names'!$A$5:$C$53,3,FALSE) -> SVN
A24: Slovenia | B24: =VLOOKUP(A24, 'Country names'!$A$5:$C$53,3,FALSE) -> SVN | C24: 8275-8500 | D24: X | H24: X | J24: X | O24: 0 | P24: 1 | R24: ECC REC (02)06 | U24: X | V24: 28 | W24: 28 | X24: 28
A25: Slovenia | B25: =VLOOKUP(A25, 'Country names'!$A$5:$C$53,3,FALSE) -> SVN
A26: Slovenia | B26: =VLOOKUP(A26, 'Country names'!$A$5:$C$53,3,FALSE) -> SVN | C26: 10000-10680 | D26: X | H26: X | L26: X | M26: X | O26: 3 | P26: 0 | R26: ERC/REC 12-05 | U26: X | V26: 4 | W26: 8 | X26: 11
A27: Slovenia | B27: =VLOOKUP(A27, 'Country names'!$A$5:$C$53,3,FALSE) -> SVN | E27: X | I27: X | N27: X | Q27: 6 | T27: X | AB27: BWA/MMDS/block assignment for P-P
A28: Slovenia | B28: =VLOOKUP(A28, 'Country names'!$A$5:$C$53,3,FALSE) -> SVN | C28: 10700-11700 | D28: X | H28: X | L28: X | O28: 0 | P28: 10 | R28: ERC/REC 12-06 | U28: X | V28: 4 | W28: 12 | X28: 27
A29: Slovenia | B29: =VLOOKUP(A29, 'Country names'!$A$5:$C$53,3,FALSE) -> SVN
A30: Slovenia | B30: =VLOOKUP(A30, 'Country names'!$A$5:$C$53,3,FALSE) -> SVN | C30: 11700-12500 | E30: X | I30: X | N30: X | Q30: 30 | R30: national plan | T30: X | AB30: MMDS, block of 200MHz
A31: Slovenia | B31: =VLOOKUP(A31, 'Country names'!$A$5:$C$53,3,FALSE) -> SVN
A32: Slovenia | B32: =VLOOKUP(A32, 'Country names'!$A$5:$C$53,3,FALSE) -> SVN | C32: 12750-13250 | D32: X | H32: X | J32: X | K32: X | L32: X | M32: X | O32: 0 | P32: 326 | R32: ERC/REC 12-02 | T32: X | U32: X | V32: 1 | W32: 13 | X32: 35 | Y32: +10% | Z32: X
A33: Slovenia | B33: =VLOOKUP(A33, 'Country names'!$A$5:$C$53,3,FALSE) -> SVN
A34: Slovenia | B34: =VLOOKUP(A34, 'Country names'!$A$5:$C$53,3,FALSE) -> SVN | C34: 14500-15350 | D34: X | H34: X | J34: X | O34: 0 | P34: 83 | R34: ERC/REC 12-07 (and ITU F.636) | U34: X | V34: 4 | W34: 13 | X34: 30 | AB34: NATO-NJFA frequency band
A35: Slovenia | B35: =VLOOKUP(A35, 'Country names'!$A$5:$C$53,3,FALSE) -> SVN
A36: Slovenia | B36: =VLOOKUP(A36, 'Country names'!$A$5:$C$53,3,FALSE) -> SVN | C36: 17700-19700 | D36: X | H36: X | J36: X | K36: X | L36: X | M36: X | O36: 0 | P36: 459 | R36: ERC/REC 12-03 | T36: X | U36: X | V36: 0.2 | W36: 8 | X36: 39 | Y36: +10% | Z36: X
A37: Slovenia | B37: =VLOOKUP(A37, 'Country names'!$A$5:$C$53,3,FALSE) -> SVN
A38: Slovenia | B38: =VLOOKUP(A38, 'Country names'!$A$5:$C$53,3,FALSE) -> SVN | C38: 22000-22600 and 23000-23600 | D38: X | H38: X | J38: X | O38: 0 | P38: 661 | R38: T/R 13-02 Annex A.1 | T38: X | U38: X | V38: 0.3 | W38: 5 | X38: 16 | Y38: +10% | Z38: X
A39: Slovenia | B39: =VLOOKUP(A39, 'Country names'!$A$5:$C$53,3,FALSE) -> SVN
A40: Slovenia | B40: =VLOOKUP(A40, 'Country names'!$A$5:$C$53,3,FALSE) -> SVN | C40: 24500-26500 | D40: X | H40: X | J40: X | O40: 0 | P40: 204 | R40: T/R 13-02 Annex B | T40: X | U40: X | V40: 0.3 | W40: 4 | X40: 9 | Y40: +10%
A41: Slovenia | B41: =VLOOKUP(A41, 'Country names'!$A$5:$C$53,3,FALSE) -> SVN
A42: Slovenia | B42: =VLOOKUP(A42, 'Country names'!$A$5:$C$53,3,FALSE) -> SVN | C42: 37000-39500 | D42: X | H42: X | J42: X | O42: 0 | P42: 504 | R42: T/R 12-01 | T42: X | U42: X | V42: 0.1 | W42: 2 | X42: 6 | Y42: +10% | Z42: X
A43: Slovenia | B43: =VLOOKUP(A43, 'Country names'!$A$5:$C$53,3,FALSE) -> SVN
A44: Slovenia | B44: =VLOOKUP(A44, 'Country names'!$A$5:$C$53,3,FALSE) -> SVN | C44: 71000-76000 and 81000-86000 | D44: X | H44: X | J44: X | K44: X | O44: 0 | P44: 5 | R44: ECC/REC/(05)07 | U44: X | V44: 0.5 | W44: 2 | X44: 3 | Y44: +10%

Sheet Turkey
C1: Frequency band (MHz) | D1: Licensing regime | H1: Topo-logy | J1: Application | O1: Number of P-P links | Q1: Number of CS | R1: Channel/Frequency plan used (e.g. ERC/ECC Rec. ITU-R Rec.) | S1: Link characteristics | Y1: Future trends (e.g. in the next 5 years)
H2: FWA | J2: Network Infrastruc-ture | S2: Capacity | V2: Hop length (km)
D3: Link by link | E3: Block | F3: Light licensed | G3: Licence exempt | H3: P-P | I3: P-MP | J3: Mobile backhaul | K3: Others | L3: Broadcasting Infrastructure | M3: No Information available on the application | N3: Other (please indicate) | O3: unidirection | P3: bidirectional (1 bidirectional link counts 1) | Q3: (applicable only for P-MP and mesh networks) | S3: LOW (<10 Mbit/s) | T3: MEDIUM (10 to 100 Mbit/s) | U3: HIGH (>100 Mbit/s) | V3: MIN | W3: Typical figure | X3: MAX | Y3: Anticipated growth/reduction (+/-%) | Z3: Currently congested | AA3: Planned reallocation to other service/application | AB3: Other (please describe) (see Question 3 of the Questionnaire)
A4: Turkey | B4: =VLOOKUP(A4, 'Country names'!$A$5:$C$53,3,FALSE) -> TUR | C4: 1350-1375 and 1492-1517 | R4: T/R 13-01 Annex A
A5: Turkey | B5: =VLOOKUP(A5, 'Country names'!$A$5:$C$53,3,FALSE) -> TUR
A6: Turkey | B6: =VLOOKUP(A6, 'Country names'!$A$5:$C$53,3,FALSE) -> TUR | C6: 1375-1400 and 1427-1452 | R6: T/R 13-01 Annex B
A7: Turkey | B7: =VLOOKUP(A7, 'Country names'!$A$5:$C$53,3,FALSE) -> TUR
A8: Turkey | B8: =VLOOKUP(A8, 'Country names'!$A$5:$C$53,3,FALSE) -> TUR | C8: 2025-2110 and 2200-2290 | R8: T/R 13-01 Annex C
A9: Turkey | B9: =VLOOKUP(A9, 'Country names'!$A$5:$C$53,3,FALSE) -> TUR
A10: Turkey | B10: =VLOOKUP(A10, 'Country names'!$A$5:$C$53,3,FALSE) -> TUR | C10: 3400-3600 | E10: x | I10: x | K10: x | Q10: 1276 | R10: ERC/REC 14-03
A11: Turkey | B11: =VLOOKUP(A11, 'Country names'!$A$5:$C$53,3,FALSE) -> TUR
A12: Turkey | B12: =VLOOKUP(A12, 'Country names'!$A$5:$C$53,3,FALSE) -> TUR | C12: 3800-4200 | D12: x | P12: 172 | R12: ERC/REC 12-08 | V12: <1 | W12: 33 | X12: 72
A13: Turkey | B13: =VLOOKUP(A13, 'Country names'!$A$5:$C$53,3,FALSE) -> TUR
A14: Turkey | B14: =VLOOKUP(A14, 'Country names'!$A$5:$C$53,3,FALSE) -> TUR | C14: 4400-5000
A15: Turkey | B15: =VLOOKUP(A15, 'Country names'!$A$5:$C$53,3,FALSE) -> TUR
A16: Turkey | B16: =VLOOKUP(A16, 'Country names'!$A$5:$C$53,3,FALSE) -> TUR | C16: 5850-5925
A17: Turkey | B17: =VLOOKUP(A17, 'Country names'!$A$5:$C$53,3,FALSE) -> TUR
A18: Turkey | B18: =VLOOKUP(A18, 'Country names'!$A$5:$C$53,3,FALSE) -> TUR | C18: 5925-7125 | D18: x | H18: x | P18: 1387 | R18: ERC/REC 14-01 and ERC/REC 14-02 | V18: <1 | W18: 35 | X18: 96
A19: Turkey | B19: =VLOOKUP(A19, 'Country names'!$A$5:$C$53,3,FALSE) -> TUR
A20: Turkey | B20: =VLOOKUP(A20, 'Country names'!$A$5:$C$53,3,FALSE) -> TUR | C20: 7125-7425 | D20: x | H20: x | P20: 2231 | R20: ECC REC (02)06 Annex 2.1
A21: Turkey | B21: =VLOOKUP(A21, 'Country names'!$A$5:$C$53,3,FALSE) -> TUR
A22: Turkey | B22: =VLOOKUP(A22, 'Country names'!$A$5:$C$53,3,FALSE) -> TUR | C22: 7425-7900 | D22: x | H22: x | P22: 3766 | R22: ECC REC (02)06 Annex 2.2
A23: Turkey | B23: =VLOOKUP(A23, 'Country names'!$A$5:$C$53,3,FALSE) -> TUR
A24: Turkey | B24: =VLOOKUP(A24, 'Country names'!$A$5:$C$53,3,FALSE) -> TUR | C24: 7900-8500 | D24: x | H24: x | P24: 1323 | R24: ECC REC (02)06 Annex 2.3
A25: Turkey | B25: =VLOOKUP(A25, 'Country names'!$A$5:$C$53,3,FALSE) -> TUR
A26: Turkey | B26: =VLOOKUP(A26, 'Country names'!$A$5:$C$53,3,FALSE) -> TUR | C26: 10500-10680 | R26: ITU-R F.747
A27: Turkey | B27: =VLOOKUP(A27, 'Country names'!$A$5:$C$53,3,FALSE) -> TUR | E27: x | H27: x | P27: 5229 | R27: ITU-R F.747
A28: Turkey | B28: =VLOOKUP(A28, 'Country names'!$A$5:$C$53,3,FALSE) -> TUR | C28: 10700-11700 | R28: ERC/REC 12-06
A29: Turkey | B29: =VLOOKUP(A29, 'Country names'!$A$5:$C$53,3,FALSE) -> TUR
A30: Turkey | B30: =VLOOKUP(A30, 'Country names'!$A$5:$C$53,3,FALSE) -> TUR | C30: 11700-12500
A31: Turkey | B31: =VLOOKUP(A31, 'Country names'!$A$5:$C$53,3,FALSE) -> TUR
A32: Turkey | B32: =VLOOKUP(A32, 'Country names'!$A$5:$C$53,3,FALSE) -> TUR | C32: 12750-13250 | R32: ERC/REC 12-02
A33: Turkey | B33: =VLOOKUP(A33, 'Country names'!$A$5:$C$53,3,FALSE) -> TUR
A34: Turkey | B34: =VLOOKUP(A34, 'Country names'!$A$5:$C$53,3,FALSE) -> TUR | C34: 14250-14500
A35: Turkey | B35: =VLOOKUP(A35, 'Country names'!$A$5:$C$53,3,FALSE) -> TUR
A36: Turkey | B36: =VLOOKUP(A36, 'Country names'!$A$5:$C$53,3,FALSE) -> TUR | C36: 14500-14620 and 15230-15350 | D36: x | H36: x | P36: 87 | R36: ITU-R F.636.3 | V36: 1 | W36: 7 | X36: 16
A37: Turkey | B37: =VLOOKUP(A37, 'Country names'!$A$5:$C$53,3,FALSE) -> TUR | E37: x | H37: x | P37: 6499 | R37: ITU-R F.636.3
A38: Turkey | B38: =VLOOKUP(A38, 'Country names'!$A$5:$C$53,3,FALSE) -> TUR | C38: 17300-17700
A39: Turkey | B39: =VLOOKUP(A39, 'Country names'!$A$5:$C$53,3,FALSE) -> TUR
A40: Turkey | B40: =VLOOKUP(A40, 'Country names'!$A$5:$C$53,3,FALSE) -> TUR | C40: 17700-19700 | D40: x | H40: x | P40: 6002 | R40: ERC/REC 12-03 Annex A
A41: Turkey | B41: =VLOOKUP(A41, 'Country names'!$A$5:$C$53,3,FALSE) -> TUR
A42: Turkey | B42: =VLOOKUP(A42, 'Country names'!$A$5:$C$53,3,FALSE) -> TUR | C42: 21200-22000
A43: Turkey | B43: =VLOOKUP(A43, 'Country names'!$A$5:$C$53,3,FALSE) -> TUR
A44: Turkey | B44: =VLOOKUP(A44, 'Country names'!$A$5:$C$53,3,FALSE) -> TUR | C44: 22000-22600 and 23000-23600 | D44: x | H44: x | P44: 129 | R44: T/R 13-02 Annexes A1 | V44: <1 | W44: 6.5 | X44: 11
A45: Turkey | B45: =VLOOKUP(A45, 'Country names'!$A$5:$C$53,3,FALSE) -> TUR | E45: x | H45: x | P45: 22714
A46: Turkey | B46: =VLOOKUP(A46, 'Country names'!$A$5:$C$53,3,FALSE) -> TUR | C46: 22600-23000
A47: Turkey | B47: =VLOOKUP(A47, 'Country names'!$A$5:$C$53,3,FALSE) -> TUR
A48: Turkey | B48: =VLOOKUP(A48, 'Country names'!$A$5:$C$53,3,FALSE) -> TUR | C48: 24250-24500
A49: Turkey | B49: =VLOOKUP(A49, 'Country names'!$A$5:$C$53,3,FALSE) -> TUR
A50: Turkey | B50: =VLOOKUP(A50, 'Country names'!$A$5:$C$53,3,FALSE) -> TUR | C50: 24500-26500 | D50: x | H50: x | P50: 383 | R50: T/R 13-02 Annex B | V50: <1 | W50: 3 | X50: 9
A51: Turkey | B51: =VLOOKUP(A51, 'Country names'!$A$5:$C$53,3,FALSE) -> TUR | E51: x | H51: x | P51: 12068
A52: Turkey | B52: =VLOOKUP(A52, 'Country names'!$A$5:$C$53,3,FALSE) -> TUR | C52: 26500-27500
A53: Turkey | B53: =VLOOKUP(A53, 'Country names'!$A$5:$C$53,3,FALSE) -> TUR
A54: Turkey | B54: =VLOOKUP(A54, 'Country names'!$A$5:$C$53,3,FALSE) -> TUR | C54: 27500-29500 | R54: T/R 13-02 Annex C
A55: Turkey | B55: =VLOOKUP(A55, 'Country names'!$A$5:$C$53,3,FALSE) -> TUR
A56: Turkey | B56: =VLOOKUP(A56, 'Country names'!$A$5:$C$53,3,FALSE) -> TUR | C56: 31000-31300 | R56: ECC/REC/(02)02
A57: Turkey | B57: =VLOOKUP(A57, 'Country names'!$A$5:$C$53,3,FALSE) -> TUR
A58: Turkey | B58: =VLOOKUP(A58, 'Country names'!$A$5:$C$53,3,FALSE) -> TUR | C58: 31800-33400 | R58: ERC/REC/(01)02
A59: Turkey | B59: =VLOOKUP(A59, 'Country names'!$A$5:$C$53,3,FALSE) -> TUR
A60: Turkey | B60: =VLOOKUP(A60, 'Country names'!$A$5:$C$53,3,FALSE) -> TUR | C60: 36000-37000
A61: Turkey | B61: =VLOOKUP(A61, 'Country names'!$A$5:$C$53,3,FALSE) -> TUR
A62: Turkey | B62: =VLOOKUP(A62, 'Country names'!$A$5:$C$53,3,FALSE) -> TUR | C62: 37000-39500 | D62: x | H62: x | P62: 422 | R62: T/R 12-01 Annex A | V62: <1 | W62: 1.5 | X62: 5
A63: Turkey | B63: =VLOOKUP(A63, 'Country names'!$A$5:$C$53,3,FALSE) -> TUR | E63: x | H63: x | P63: 15870
A64: Turkey | B64: =VLOOKUP(A64, 'Country names'!$A$5:$C$53,3,FALSE) -> TUR | C64: 39500-40500
A65: Turkey | B65: =VLOOKUP(A65, 'Country names'!$A$5:$C$53,3,FALSE) -> TUR
A66: Turkey | B66: =VLOOKUP(A66, 'Country names'!$A$5:$C$53,3,FALSE) -> TUR | C66: 40500-43500 | R66: ECC/REC/(01)04
A67: Turkey | B67: =VLOOKUP(A67, 'Country names'!$A$5:$C$53,3,FALSE) -> TUR
A68: Turkey | B68: =VLOOKUP(A68, 'Country names'!$A$5:$C$53,3,FALSE) -> TUR | C68: 47200-48500
A69: Turkey | B69: =VLOOKUP(A69, 'Country names'!$A$5:$C$53,3,FALSE) -> TUR
A70: Turkey | B70: =VLOOKUP(A70, 'Country names'!$A$5:$C$53,3,FALSE) -> TUR | C70: 48500-50200 | R70: ERC/REC 12-11
A71: Turkey | B71: =VLOOKUP(A71, 'Country names'!$A$5:$C$53,3,FALSE) -> TUR
A72: Turkey | B72: =VLOOKUP(A72, 'Country names'!$A$5:$C$53,3,FALSE) -> TUR | C72: 50400-51400
A73: Turkey | B73: =VLOOKUP(A73, 'Country names'!$A$5:$C$53,3,FALSE) -> TUR
A74: Turkey | B74: =VLOOKUP(A74, 'Country names'!$A$5:$C$53,3,FALSE) -> TUR | C74: 51400-52600 | R74: ERC/REC 12-11
A75: Turkey | B75: =VLOOKUP(A75, 'Country names'!$A$5:$C$53,3,FALSE) -> TUR
A76: Turkey | B76: =VLOOKUP(A76, 'Country names'!$A$5:$C$53,3,FALSE) -> TUR | C76: 557800-57000 | R76: ERC/REC 12-12
A77: Turkey | B77: =VLOOKUP(A77, 'Country names'!$A$5:$C$53,3,FALSE) -> TUR
A78: Turkey | B78: =VLOOKUP(A78, 'Country names'!$A$5:$C$53,3,FALSE) -> TUR | C78: 57000-59000 | R78: ECC/REC/(09)01
A79: Turkey | B79: =VLOOKUP(A79, 'Country names'!$A$5:$C$53,3,FALSE) -> TUR
A80: Turkey | B80: =VLOOKUP(A80, 'Country names'!$A$5:$C$53,3,FALSE) -> TUR | C80: 59000-64000 | R80: ECC/REC/(09)01
A81: Turkey | B81: =VLOOKUP(A81, 'Country names'!$A$5:$C$53,3,FALSE) -> TUR
A82: Turkey | B82: =VLOOKUP(A82, 'Country names'!$A$5:$C$53,3,FALSE) -> TUR | C82: 64000-66000 | R82: ECC/REC/(05)02
A83: Turkey | B83: =VLOOKUP(A83, 'Country names'!$A$5:$C$53,3,FALSE) -> TUR
A84: Turkey | B84: =VLOOKUP(A84, 'Country names'!$A$5:$C$53,3,FALSE) -> TUR | C84: 71000-76000 and 81000-86000 | D84: x | H84: x | P84: 581 | R84: ECC/REC/(05)07 | V84: <1 | W84: 1 | X84: 4
A85: Turkey | B85: =VLOOKUP(A85, 'Country names'!$A$5:$C$53,3,FALSE) -> TUR
A86: Turkey | B86: =VLOOKUP(A86, 'Country names'!$A$5:$C$53,3,FALSE) -> TUR | C86: 92000-95000 | R86: ECC/REC (14)01

Sheet Mobitel EAD Bulgaria
C1: Frequency band (MHz) | D1: Licensing regime | H1: Topo-logy | J1: Application | O1: Number of P-P links | Q1: Number of CS | R1: Channel/Frequency plan used (e.g. ERC/ECC Rec. ITU-R Rec.) | S1: Link characteristics | Y1: Future trends (e.g. in the next 5 years)
H2: FWA | J2: Network Infrastruc-ture | S2: Capacity | V2: Hop length (km)
D3: Link by link | E3: Block | F3: Light licensed | G3: Licence exempt | H3: P-P | I3: P-MP | J3: Mobile backhaul | K3: Others | L3: Broadcasting Infrastructure | M3: No Information available on the application | N3: Other (please indicate) | O3: unidirection | P3: bidirectional (1 bidirectional link counts 1) | Q3: (applicable only for P-MP and mesh networks) | S3: LOW (<10 Mbit/s) | T3: MEDIUM (10 to 100 Mbit/s) | U3: HIGH (>100 Mbit/s) | V3: MIN | W3: Typical figure | X3: MAX | Y3: Anticipated growth/reduction (+/-%) | Z3: Currently congested | AA3: Planned reallocation to other service/application | AB3: Other (please describe) (see Question 3 of the Questionnaire)
A4: Mobitel EAD Bulgaria | B4: =VLOOKUP(A4, 'Country names'!$A$5:$C$53,3,FALSE) ->  | C4: 1350-1375 and 1492-1517 | R4: T/R 13-01 Annex A
A5: Mobitel EAD Bulgaria | B5: =VLOOKUP(A5, 'Country names'!$A$5:$C$53,3,FALSE) -> 
A6: Mobitel EAD Bulgaria | B6: =VLOOKUP(A6, 'Country names'!$A$5:$C$53,3,FALSE) ->  | C6: 1375-1400 and 1427-1452 | R6: T/R 13-01 Annex B
A7: Mobitel EAD Bulgaria | B7: =VLOOKUP(A7, 'Country names'!$A$5:$C$53,3,FALSE) -> 
A8: Mobitel EAD Bulgaria | B8: =VLOOKUP(A8, 'Country names'!$A$5:$C$53,3,FALSE) ->  | C8: 2025-2110 and 2200-2290 | R8: T/R 13-01 Annex C
A9: Mobitel EAD Bulgaria | B9: =VLOOKUP(A9, 'Country names'!$A$5:$C$53,3,FALSE) -> 
A10: Mobitel EAD Bulgaria | B10: =VLOOKUP(A10, 'Country names'!$A$5:$C$53,3,FALSE) ->  | C10: 3400-3600 | R10: ERC/REC 14-03
A11: Mobitel EAD Bulgaria | B11: =VLOOKUP(A11, 'Country names'!$A$5:$C$53,3,FALSE) -> 
A12: Mobitel EAD Bulgaria | B12: =VLOOKUP(A12, 'Country names'!$A$5:$C$53,3,FALSE) ->  | C12: 3600-4200 | R12: ERC/REC 12-08
A13: Mobitel EAD Bulgaria | B13: =VLOOKUP(A13, 'Country names'!$A$5:$C$53,3,FALSE) -> 
A14: Mobitel EAD Bulgaria | B14: =VLOOKUP(A14, 'Country names'!$A$5:$C$53,3,FALSE) ->  | C14: 4400-5000
A15: Mobitel EAD Bulgaria | B15: =VLOOKUP(A15, 'Country names'!$A$5:$C$53,3,FALSE) -> 
A16: Mobitel EAD Bulgaria | B16: =VLOOKUP(A16, 'Country names'!$A$5:$C$53,3,FALSE) ->  | C16: 5850-5925
A17: Mobitel EAD Bulgaria | B17: =VLOOKUP(A17, 'Country names'!$A$5:$C$53,3,FALSE) -> 
A18: Mobitel EAD Bulgaria | B18: =VLOOKUP(A18, 'Country names'!$A$5:$C$53,3,FALSE) ->  | C18: 5925-7125 | D18: x | H18: x | J18: x | P18: 96 | R18: ERC/REC 14-01 and ERC/REC 14-02, ECC/REC(14)06 | U18: x | V18: 15.01 | W18: 25.75 | X18: 54.03 | Y18: 10
A19: Mobitel EAD Bulgaria | B19: =VLOOKUP(A19, 'Country names'!$A$5:$C$53,3,FALSE) -> 
A20: Mobitel EAD Bulgaria | B20: =VLOOKUP(A20, 'Country names'!$A$5:$C$53,3,FALSE) ->  | C20: 7125-7750 | R20: ECC REC (02)06
A21: Mobitel EAD Bulgaria | B21: =VLOOKUP(A21, 'Country names'!$A$5:$C$53,3,FALSE) -> 
A22: Mobitel EAD Bulgaria | B22: =VLOOKUP(A22, 'Country names'!$A$5:$C$53,3,FALSE) ->  | C22: 7750-7900
A23: Mobitel EAD Bulgaria | B23: =VLOOKUP(A23, 'Country names'!$A$5:$C$53,3,FALSE) -> 
A24: Mobitel EAD Bulgaria | B24: =VLOOKUP(A24, 'Country names'!$A$5:$C$53,3,FALSE) ->  | C24: 7900-8500 | R24: ECC REC (02)06
A25: Mobitel EAD Bulgaria | B25: =VLOOKUP(A25, 'Country names'!$A$5:$C$53,3,FALSE) ->  | D25: x | H25: x | J25: x | P25: 442 | T25: x | V25: 15.02 | W25: 21.77 | X25: 54.37 | Y25: 10
A26: Mobitel EAD Bulgaria | B26: =VLOOKUP(A26, 'Country names'!$A$5:$C$53,3,FALSE) ->  | C26: 10000-10680 | R26: ERC/REC 12-05
A27: Mobitel EAD Bulgaria | B27: =VLOOKUP(A27, 'Country names'!$A$5:$C$53,3,FALSE) -> 
A28: Mobitel EAD Bulgaria | B28: =VLOOKUP(A28, 'Country names'!$A$5:$C$53,3,FALSE) ->  | C28: 10700-11700 | R28: ERC/REC 12-06
A29: Mobitel EAD Bulgaria | B29: =VLOOKUP(A29, 'Country names'!$A$5:$C$53,3,FALSE) -> 
A30: Mobitel EAD Bulgaria | B30: =VLOOKUP(A30, 'Country names'!$A$5:$C$53,3,FALSE) ->  | C30: 11700-12500
A31: Mobitel EAD Bulgaria | B31: =VLOOKUP(A31, 'Country names'!$A$5:$C$53,3,FALSE) -> 
A32: Mobitel EAD Bulgaria | B32: =VLOOKUP(A32, 'Country names'!$A$5:$C$53,3,FALSE) ->  | C32: 12750-13250
A33: Mobitel EAD Bulgaria | B33: =VLOOKUP(A33, 'Country names'!$A$5:$C$53,3,FALSE) ->  | D33: x | H33: x | J33: x | P33: 267 | R33: ERC/REC 12-02 | T33: x | V33: 6.27 | W33: 12.62 | X33: 30.75 | Y33: 20
A34: Mobitel EAD Bulgaria | B34: =VLOOKUP(A34, 'Country names'!$A$5:$C$53,3,FALSE) ->  | C34: 14250-14500
A35: Mobitel EAD Bulgaria | B35: =VLOOKUP(A35, 'Country names'!$A$5:$C$53,3,FALSE) -> 
A36: Mobitel EAD Bulgaria | B36: =VLOOKUP(A36, 'Country names'!$A$5:$C$53,3,FALSE) ->  | C36: 14500-14620 and 15230-15350 | R36: ERC/REC 12-07
A37: Mobitel EAD Bulgaria | B37: =VLOOKUP(A37, 'Country names'!$A$5:$C$53,3,FALSE) -> 
A38: Mobitel EAD Bulgaria | B38: =VLOOKUP(A38, 'Country names'!$A$5:$C$53,3,FALSE) ->  | C38: 17300-17700
A39: Mobitel EAD Bulgaria | B39: =VLOOKUP(A39, 'Country names'!$A$5:$C$53,3,FALSE) -> 
A40: Mobitel EAD Bulgaria | B40: =VLOOKUP(A40, 'Country names'!$A$5:$C$53,3,FALSE) ->  | C40: 17700-19700
A41: Mobitel EAD Bulgaria | B41: =VLOOKUP(A41, 'Country names'!$A$5:$C$53,3,FALSE) ->  | D41: x | H41: x | J41: x | P41: 666 | R41: ERC/REC 12-03 | T41: x | V41: 2.97 | W41: 8.23 | X41: 21.01 | Y41: 10
A42: Mobitel EAD Bulgaria | B42: =VLOOKUP(A42, 'Country names'!$A$5:$C$53,3,FALSE) ->  | C42: 21200-22000
A43: Mobitel EAD Bulgaria | B43: =VLOOKUP(A43, 'Country names'!$A$5:$C$53,3,FALSE) -> 
A44: Mobitel EAD Bulgaria | B44: =VLOOKUP(A44, 'Country names'!$A$5:$C$53,3,FALSE) ->  | C44: 22000-22600 and 23000-23600 | R44: T/R 13-02 Annexes A1, A2, A3
A45: Mobitel EAD Bulgaria | B45: =VLOOKUP(A45, 'Country names'!$A$5:$C$53,3,FALSE) -> 
A46: Mobitel EAD Bulgaria | B46: =VLOOKUP(A46, 'Country names'!$A$5:$C$53,3,FALSE) ->  | C46: 22600-23000
A47: Mobitel EAD Bulgaria | B47: =VLOOKUP(A47, 'Country names'!$A$5:$C$53,3,FALSE) -> 
A48: Mobitel EAD Bulgaria | B48: =VLOOKUP(A48, 'Country names'!$A$5:$C$53,3,FALSE) ->  | C48: 24250-24500
A49: Mobitel EAD Bulgaria | B49: =VLOOKUP(A49, 'Country names'!$A$5:$C$53,3,FALSE) -> 
A50: Mobitel EAD Bulgaria | B50: =VLOOKUP(A50, 'Country names'!$A$5:$C$53,3,FALSE) ->  | C50: 24500-26500
A51: Mobitel EAD Bulgaria | B51: =VLOOKUP(A51, 'Country names'!$A$5:$C$53,3,FALSE) ->  | D51: x | H51: x | J51: x | P51: 474 | R51: T/R 13-02 Annex B | T51: x | V51: 1.98 | W51: 3.69 | X51: 15.18 | Y51: 20
A52: Mobitel EAD Bulgaria | B52: =VLOOKUP(A52, 'Country names'!$A$5:$C$53,3,FALSE) ->  | C52: 26500-27500
A53: Mobitel EAD Bulgaria | B53: =VLOOKUP(A53, 'Country names'!$A$5:$C$53,3,FALSE) -> 
A54: Mobitel EAD Bulgaria | B54: =VLOOKUP(A54, 'Country names'!$A$5:$C$53,3,FALSE) ->  | C54: 27500-29500
A55: Mobitel EAD Bulgaria | B55: =VLOOKUP(A55, 'Country names'!$A$5:$C$53,3,FALSE) ->  | D55: x | H55: x | J55: x | P55: 440 | R55: T/R 13-02 Annex C | T55: x | V55: 0.07 | W55: 1.9 | X55: 5.67 | Y55: 10
A56: Mobitel EAD Bulgaria | B56: =VLOOKUP(A56, 'Country names'!$A$5:$C$53,3,FALSE) ->  | C56: 31000-31300 | R56: ECC/REC/(02)02
A57: Mobitel EAD Bulgaria | B57: =VLOOKUP(A57, 'Country names'!$A$5:$C$53,3,FALSE) -> 
A58: Mobitel EAD Bulgaria | B58: =VLOOKUP(A58, 'Country names'!$A$5:$C$53,3,FALSE) ->  | C58: 31800-33400 | R58: ERC/REC/(01)02
A59: Mobitel EAD Bulgaria | B59: =VLOOKUP(A59, 'Country names'!$A$5:$C$53,3,FALSE) -> 
A60: Mobitel EAD Bulgaria | B60: =VLOOKUP(A60, 'Country names'!$A$5:$C$53,3,FALSE) ->  | C60: 36000-37000
A61: Mobitel EAD Bulgaria | B61: =VLOOKUP(A61, 'Country names'!$A$5:$C$53,3,FALSE) -> 
A62: Mobitel EAD Bulgaria | B62: =VLOOKUP(A62, 'Country names'!$A$5:$C$53,3,FALSE) ->  | C62: 37000-39500
A63: Mobitel EAD Bulgaria | B63: =VLOOKUP(A63, 'Country names'!$A$5:$C$53,3,FALSE) ->  | D63: x | H63: x | J63: x | P63: 671 | R63: T/R 12-01 | T63: x | V63: 0.04 | W63: 0.79 | X63: 2.61 | Y63: -10
A64: Mobitel EAD Bulgaria | B64: =VLOOKUP(A64, 'Country names'!$A$5:$C$53,3,FALSE) ->  | C64: 39500-40500
A65: Mobitel EAD Bulgaria | B65: =VLOOKUP(A65, 'Country names'!$A$5:$C$53,3,FALSE) -> 
A66: Mobitel EAD Bulgaria | B66: =VLOOKUP(A66, 'Country names'!$A$5:$C$53,3,FALSE) ->  | C66: 40500-43500 | R66: ECC/REC/(01)04
A67: Mobitel EAD Bulgaria | B67: =VLOOKUP(A67, 'Country names'!$A$5:$C$53,3,FALSE) -> 
A68: Mobitel EAD Bulgaria | B68: =VLOOKUP(A68, 'Country names'!$A$5:$C$53,3,FALSE) ->  | C68: 47200-48500
A69: Mobitel EAD Bulgaria | B69: =VLOOKUP(A69, 'Country names'!$A$5:$C$53,3,FALSE) -> 
A70: Mobitel EAD Bulgaria | B70: =VLOOKUP(A70, 'Country names'!$A$5:$C$53,3,FALSE) ->  | C70: 48500-50200 | R70: ERC/REC 12-11
A71: Mobitel EAD Bulgaria | B71: =VLOOKUP(A71, 'Country names'!$A$5:$C$53,3,FALSE) -> 
A72: Mobitel EAD Bulgaria | B72: =VLOOKUP(A72, 'Country names'!$A$5:$C$53,3,FALSE) ->  | C72: 50400-51400
A73: Mobitel EAD Bulgaria | B73: =VLOOKUP(A73, 'Country names'!$A$5:$C$53,3,FALSE) -> 
A74: Mobitel EAD Bulgaria | B74: =VLOOKUP(A74, 'Country names'!$A$5:$C$53,3,FALSE) ->  | C74: 51400-52600 | R74: ERC/REC 12-11
A75: Mobitel EAD Bulgaria | B75: =VLOOKUP(A75, 'Country names'!$A$5:$C$53,3,FALSE) -> 
A76: Mobitel EAD Bulgaria | B76: =VLOOKUP(A76, 'Country names'!$A$5:$C$53,3,FALSE) ->  | C76: 557800-57000 | R76: ERC/REC 12-12
A77: Mobitel EAD Bulgaria | B77: =VLOOKUP(A77, 'Country names'!$A$5:$C$53,3,FALSE) -> 
A78: Mobitel EAD Bulgaria | B78: =VLOOKUP(A78, 'Country names'!$A$5:$C$53,3,FALSE) ->  | C78: 57000-59000 | R78: ECC/REC/(09)01
A79: Mobitel EAD Bulgaria | B79: =VLOOKUP(A79, 'Country names'!$A$5:$C$53,3,FALSE) -> 
A80: Mobitel EAD Bulgaria | B80: =VLOOKUP(A80, 'Country names'!$A$5:$C$53,3,FALSE) ->  | C80: 59000-64000 | R80: ECC/REC/(09)01
A81: Mobitel EAD Bulgaria | B81: =VLOOKUP(A81, 'Country names'!$A$5:$C$53,3,FALSE) -> 
A82: Mobitel EAD Bulgaria | B82: =VLOOKUP(A82, 'Country names'!$A$5:$C$53,3,FALSE) ->  | C82: 64000-66000 | R82: ECC/REC/(05)02
A83: Mobitel EAD Bulgaria | B83: =VLOOKUP(A83, 'Country names'!$A$5:$C$53,3,FALSE) -> 
A84: Mobitel EAD Bulgaria | B84: =VLOOKUP(A84, 'Country names'!$A$5:$C$53,3,FALSE) ->  | C84: 71000-76000 and 81000-86000 | R84: ECC/REC/(05)07
A85: Mobitel EAD Bulgaria | B85: =VLOOKUP(A85, 'Country names'!$A$5:$C$53,3,FALSE) -> 
A86: Mobitel EAD Bulgaria | B86: =VLOOKUP(A86, 'Country names'!$A$5:$C$53,3,FALSE) ->  | C86: 92000-95000 | R86: ECC/REC (14)01

Sheet Greece
C1: Frequency band (MHz) | D1: Licensing regime | H1: Topo-logy | J1: Application | O1: Number of P-P links | Q1: Number of CS | R1: Channel/Frequency plan used (e.g. ERC/ECC Rec. ITU-R Rec.) | S1: Link characteristics | Y1: Future trends (e.g. in the next 5 years)
H2: FWA | J2: Network Infrastruc-ture | S2: Capacity | V2: Hop length (km)
D3: Link by link | E3: Block | F3: Light licensed | G3: Licence exempt | H3: P-P | I3: P-MP | J3: Mobile backhaul | K3: Others | L3: Broadcasting Infrastructure | M3: No Information available on the application | N3: Other (please indicate) | O3: unidirection | P3: bidirectional (1 bidirectional link counts 1) | Q3: (applicable only for P-MP and mesh networks) | S3: LOW (<10 Mbit/s) | T3: MEDIUM (10 to 100 Mbit/s) | U3: HIGH (>100 Mbit/s) | V3: MIN | W3: Typical figure | X3: MAX | Y3: Anticipated growth/reduction (+/-%) | Z3: Currently congested | AA3: Planned reallocation to other service/application | AB3: Other (please describe) (see Question 3 of the Questionnaire)
A4: Greece | B4: =VLOOKUP(A4, 'Country names'!$A$5:$C$53,3,FALSE) -> GRC | C4: 1350-1375 and 1492-1517 | R4: T/R 13-01 Annex A
A5: Greece | B5: =VLOOKUP(A5, 'Country names'!$A$5:$C$53,3,FALSE) -> GRC
A6: Greece | B6: =VLOOKUP(A6, 'Country names'!$A$5:$C$53,3,FALSE) -> GRC | C6: 1375-1400 and 1427-1452 | R6: T/R 13-01 Annex B
A7: Greece | B7: =VLOOKUP(A7, 'Country names'!$A$5:$C$53,3,FALSE) -> GRC
A8: Greece | B8: =VLOOKUP(A8, 'Country names'!$A$5:$C$53,3,FALSE) -> GRC | C8: 1437,5-1465,5 and 1486,5-1514,5 | E8: X | I8: X | N8: rural networks | R8: National Plan | Y8: reduction | AB8: licenses expire at 2020
A9: Greece | B9: =VLOOKUP(A9, 'Country names'!$A$5:$C$53,3,FALSE) -> GRC
A10: Greece | B10: =VLOOKUP(A10, 'Country names'!$A$5:$C$53,3,FALSE) -> GRC | C10: 1700-1709 and 1786-1800 | D10: X | L10: X | O10: 192 | R10: National Plan | S10: X | T10: X | V10: 0.7 | W10: 17 | X10: 90 | Y10: reduction | AA10: reallocate the 1785-1800 MHz band for PMSE applications (2014/641/EC)
A11: Greece | B11: =VLOOKUP(A11, 'Country names'!$A$5:$C$53,3,FALSE) -> GRC
A12: Greece | B12: =VLOOKUP(A12, 'Country names'!$A$5:$C$53,3,FALSE) -> GRC | C12: 2025-2110 and 2200-2290 | D12: X | K12: X | P12: 41 | R12: T/R 13-01 Annex C | S12: X | T12: X | V12: 0.6 | W12: 22 | X12: 60 | Y12: reduction
A13: Greece | B13: =VLOOKUP(A13, 'Country names'!$A$5:$C$53,3,FALSE) -> GRC
A14: Greece | B14: =VLOOKUP(A14, 'Country names'!$A$5:$C$53,3,FALSE) -> GRC | C14: 3400-3600 | E14: X | H14: X | I14: X | O14: 1 National Coverage License (2x30 MHz) | R14: ECC/DEC/(11)06 | Y14: growth | AA14: potential future use of the band for 5G networks
A15: Greece | B15: =VLOOKUP(A15, 'Country names'!$A$5:$C$53,3,FALSE) -> GRC
A16: Greece | B16: =VLOOKUP(A16, 'Country names'!$A$5:$C$53,3,FALSE) -> GRC | C16: 3800-4200 | D16: Χ | K16: X | P16: 144 | R16: ERC/REC 12-08 | T16: X | U16: Χ | V16: 11 | W16: 64 | X16: 101 | Y16: reduction
A17: Greece | B17: =VLOOKUP(A17, 'Country names'!$A$5:$C$53,3,FALSE) -> GRC
A18: Greece | B18: =VLOOKUP(A18, 'Country names'!$A$5:$C$53,3,FALSE) -> GRC | C18: 4400-5000
A19: Greece | B19: =VLOOKUP(A19, 'Country names'!$A$5:$C$53,3,FALSE) -> GRC
A20: Greece | B20: =VLOOKUP(A20, 'Country names'!$A$5:$C$53,3,FALSE) -> GRC | C20: 5725-5795 | F20: X | H20: X | I20: X | Q20: 25 | R20: ECC/DEC/(06)04 | Y20: growth
A21: Greece | B21: =VLOOKUP(A21, 'Country names'!$A$5:$C$53,3,FALSE) -> GRC
A22: Greece | B22: =VLOOKUP(A22, 'Country names'!$A$5:$C$53,3,FALSE) -> GRC | C22: 5925-6425 | D22: X | J22: X | K22: X | L22: X | O22: 7 | P22: 324 | R22: ERC/REC 14-01 | T22: X | U22: X | V22: 7 | W22: 40 | X22: 98 | Y22: growth
A23: Greece | B23: =VLOOKUP(A23, 'Country names'!$A$5:$C$53,3,FALSE) -> GRC
A24: Greece | B24: =VLOOKUP(A24, 'Country names'!$A$5:$C$53,3,FALSE) -> GRC | C24: 6425-7110 | D24: X | J24: X | K24: X | L24: X | O24: 9 | P24: 367 | R24: ERC/REC 14-02 | U24: X | V24: 7 | W24: 45 | X24: 123 | Y24: growth
A25: Greece | B25: =VLOOKUP(A25, 'Country names'!$A$5:$C$53,3,FALSE) -> GRC
A26: Greece | B26: =VLOOKUP(A26, 'Country names'!$A$5:$C$53,3,FALSE) -> GRC | C26: 7125-7425 | D26: X | K26: X | L26: X | O26: 10 | P26: 16 | R26: ITU-R REC F.385-10 | S26: X | V26: 0.5 | W26: 16 | X26: 56
A27: Greece | B27: =VLOOKUP(A27, 'Country names'!$A$5:$C$53,3,FALSE) -> GRC
A28: Greece | B28: =VLOOKUP(A28, 'Country names'!$A$5:$C$53,3,FALSE) -> GRC | C28: 7425-7725 | D28: X | J28: X | K28: X | P28: 1057 | R28: ECC REC (02)06 | S28: X | T28: X | U28: X | V28: 0.6 | W28: 30 | X28: 98 | Y28: stable
A29: Greece | B29: =VLOOKUP(A29, 'Country names'!$A$5:$C$53,3,FALSE) -> GRC
A30: Greece | B30: =VLOOKUP(A30, 'Country names'!$A$5:$C$53,3,FALSE) -> GRC | C30: 7725-8275 | D30: X | J30: X | K30: X | P30: 1058 | R30: ITU-R REC F.386-9 | T30: X | U30: X | V30: 5 | W30: 43 | X30: 102 | Y30: reduction
A31: Greece | B31: =VLOOKUP(A31, 'Country names'!$A$5:$C$53,3,FALSE) -> GRC
A32: Greece | B32: =VLOOKUP(A32, 'Country names'!$A$5:$C$53,3,FALSE) -> GRC | C32: 8275-8500 | D32: X | J32: X | K32: X | P32: 111 | R32: ECC REC (02)06 | S32: X | T32: X | U32: X | V32: 9 | W32: 35 | X32: 79 | Y32: reduction
A33: Greece | B33: =VLOOKUP(A33, 'Country names'!$A$5:$C$53,3,FALSE) -> GRC
A34: Greece | B34: =VLOOKUP(A34, 'Country names'!$A$5:$C$53,3,FALSE) -> GRC | C34: 10000-10680 | D34: X | L34: X | O34: 74 | R34: National Plan | S34: X | T34: X | V34: 3 | W34: 14 | X34: 40 | Y34: reduction
A35: Greece | B35: =VLOOKUP(A35, 'Country names'!$A$5:$C$53,3,FALSE) -> GRC
A36: Greece | B36: =VLOOKUP(A36, 'Country names'!$A$5:$C$53,3,FALSE) -> GRC | C36: 10700-11700 | D36: X | J36: X | K36: X | P36: 934 | R36: ERC/REC 12-06 | U36: X | V36: 1.7 | W36: 19 | X36: 71 | Y36: growth
A37: Greece | B37: =VLOOKUP(A37, 'Country names'!$A$5:$C$53,3,FALSE) -> GRC
A38: Greece | B38: =VLOOKUP(A38, 'Country names'!$A$5:$C$53,3,FALSE) -> GRC | C38: 11700-12500
A39: Greece | B39: =VLOOKUP(A39, 'Country names'!$A$5:$C$53,3,FALSE) -> GRC
A40: Greece | B40: =VLOOKUP(A40, 'Country names'!$A$5:$C$53,3,FALSE) -> GRC | C40: 12750-13250 | D40: X | J40: X | K40: X | P40: 1408 | R40: ERC/REC 12-02 | S40: X | T40: X | U40: X | V40: 1 | W40: 17 | X40: 58 | Y40: high growth
A41: Greece | B41: =VLOOKUP(A41, 'Country names'!$A$5:$C$53,3,FALSE) -> GRC
A42: Greece | B42: =VLOOKUP(A42, 'Country names'!$A$5:$C$53,3,FALSE) -> GRC | C42: 14250-14500
A43: Greece | B43: =VLOOKUP(A43, 'Country names'!$A$5:$C$53,3,FALSE) -> GRC
A44: Greece | B44: =VLOOKUP(A44, 'Country names'!$A$5:$C$53,3,FALSE) -> GRC | C44: 14500-15350 | D44: X | J44: X | K44: X | P44: 2867 | R44: National Plan | S44: X | T44: X | U44: X | V44: 0.2 | W44: 14 | X44: 57 | Y44: growth | Z44: heavily used
A45: Greece | B45: =VLOOKUP(A45, 'Country names'!$A$5:$C$53,3,FALSE) -> GRC
A46: Greece | B46: =VLOOKUP(A46, 'Country names'!$A$5:$C$53,3,FALSE) -> GRC | C46: 17300-17700
A47: Greece | B47: =VLOOKUP(A47, 'Country names'!$A$5:$C$53,3,FALSE) -> GRC
A48: Greece | B48: =VLOOKUP(A48, 'Country names'!$A$5:$C$53,3,FALSE) -> GRC | C48: 17700-19700 | D48: X | J48: X | K48: X | P48: 3026 | R48: ERC/REC 12-03 | S48: X | T48: X | U48: X | V48: 0.1 | W48: 8 | X48: 40 | Y48: growth | Z48: heavily used
A49: Greece | B49: =VLOOKUP(A49, 'Country names'!$A$5:$C$53,3,FALSE) -> GRC
A50: Greece | B50: =VLOOKUP(A50, 'Country names'!$A$5:$C$53,3,FALSE) -> GRC | C50: 21200-22000
A51: Greece | B51: =VLOOKUP(A51, 'Country names'!$A$5:$C$53,3,FALSE) -> GRC
A52: Greece | B52: =VLOOKUP(A52, 'Country names'!$A$5:$C$53,3,FALSE) -> GRC | C52: 22000-23600 | D52: X | J52: X | K52: X | P52: 2086 | R52: T/R 13-02 Annex A | S52: X | T52: X | U52: X | V52: 0.1 | W52: 4 | X52: 15 | Y52: growth
A53: Greece | B53: =VLOOKUP(A53, 'Country names'!$A$5:$C$53,3,FALSE) -> GRC
A54: Greece | B54: =VLOOKUP(A54, 'Country names'!$A$5:$C$53,3,FALSE) -> GRC | C54: 22600-23000 | L54: X | R54: National Plan
A55: Greece | B55: =VLOOKUP(A55, 'Country names'!$A$5:$C$53,3,FALSE) -> GRC
